Workbook

Sheet Dev (hidden)
G2: Allow macros by clicking 'options…' in the above banner and choosing 'enable this content'
E11: PAM is a software developed by The University of Arkansas and Texas A&M AgriLife Research in collaboration with the Australian Herbicide Resistance Initiative (AHRI), The University of Western Australia.
E16: © 2016 Microsoft Excel 2007® or a higher version is recommended.
D60: Before to screen-copy, zoom to 100% and make sure computer resolution settings are normal
D62: use the 'snipping tool' to capture screenshots
A80: Tutorials
A82: Title Page | B82: 1 | P82: 2 | AA82: 3 | AR82: 4 | BF82: 5
A125: Systems | B125: 1 | R125: 2 | AE125: 3 | AV125: 4 | BK125: 5 | BX125: 6 | CJ125: 7
A171: Strategy | B171: 1 | R171: 2 | AG171: 3 | AX171: 4 | BL171: 5 | CC171: 6 | CT171: 7 | DF171: 8
A216: Output | B216: 1

Sheet Title
C20: A decision-support tool to evaluate the effectiveness of Palmer amaranth
C21: management strategies in the row-crop production systems of the southern United States
C23: The model operates in three simple steps:
C25: 1. Define System 2. Build Strategy 3. Compare Output Results
P32: Credits
AM33: 5
U35: Version 2018.3 | AM35: FALSE

Sheet Names (hidden)
B2: Herbicides | D2: Fall Options | F2: Crops (3) | H2: Crop Traits | J2: Crop Traits by Crop | L2: Crop Trait Named Ranges - VLOOKUPS | S2: Herbicide by Crop and Crop Trait
B3: 2,4-D | D3: MB Plough | F3: Cotton | H3: Conventional | AP3: =$M$4 -> BD | AX3: =$N$4 -> PP | BE3: =$O$4 -> Pre | BP3: =$P$4 -> Post | CC3: =$Q$4 -> Layby
B4: Acuron | D4: Cereal Rye Cover | F4: Corn | H4: Enlist | J4: =$F$3 -> Cotton | L4: =$J$4 -> Cotton | M4: BD | N4: PP | O4: Pre | P4: Post | Q4: Layby | S4: =$J$12 -> Corn | T4: =$J$13 -> Conventional | U4: =$J$14 -> Enlist | V4: =$J$15 -> Roundup Ready | W4: =$J$16 -> Roundup/LibertyLink | Y4: =$J$4 -> Cotton | Z4: =$J$5 -> Conventional | AA4: =$J$6 -> Enlist | AB4: =$J$7 -> Glytol/LibertyLink | AC4: =$J$8 -> LibertyLink | AD4: =$J$9 -> Roundup Ready | AE4: =$J$10 -> Xtend | AF4: ="" ->  | AG4: =$J$18 -> Soybean | AH4: =$J$19 -> Conventional | AI4: =$J$20 -> Enlist | AJ4: =$J$21 -> LibertyLink | AK4: =$J$22 -> Roundup Ready | AL4: =$J$23 -> Xtend | AO4: =$J$12 -> Corn
B5: Atrazine | D5: Cover Crop Mix | F5: Soybean | H5: Glytol/LibertyLink | J5: =$H$3 -> Conventional | L5: =$J$5 -> Conventional | M5: CottonBDCv | N5: CottonPPCv | O5: CottonPreCv | P5: CottonPostCv | Q5: CottonLayCv | S5: =$M$12 -> BD | T5: =$M$13 -> CornBDCv | U5: =$M$14 -> CornBDEn | V5: =$M$15 -> CornBDRR | W5: =$M$16 -> CornBDRRLL | Y5: =$M$4 -> BD | Z5: =$M$5 -> CottonBDCv | AA5: =$M$6 -> CottonBDEn | AB5: =$M$7 -> CottonBDGL | AC5: =$M$8 -> CottonBDLL | AD5: =$M$9 -> CottonBDRR | AE5: =$M$10 -> CottonBDXt | AG5: =$M$18 -> BD | AH5: =$M$19 -> SoyBDCv | AI5: =$M$20 -> SoyBDEn | AJ5: =$M$21 -> SoyBDLL | AK5: =$M$22 -> SoyBDRR | AL5: =$M$23 -> SoyBDXt
B6: Authority MTZ | D6: Windrow Burn | H6: LibertyLink | J6: =$H$4 -> Enlist | L6: =$J$6 -> Enlist | M6: CottonBDEn | N6: CottonPPEn | O6: CottonPreEn | P6: CottonPostEn | Q6: CottonLayEn | T6: =$B$3 -> 2,4-D | U6: =$B$3 -> 2,4-D | V6: 2,4-D | W6: 2,4-D | Z6: =$B$3 -> 2,4-D | AA6: =$B$3 -> 2,4-D | AB6: 2,4-D | AC6: 2,4-D | AD6: 2,4-D | AE6: 2,4-D | AH6: =$B$3 -> 2,4-D | AI6: =$B$3 -> 2,4-D | AJ6: 2,4-D | AK6: 2,4-D | AL6: 2,4-D | AO6: =$J$13 -> Conventional | AP6: =$M$13 -> CornBDCv | AQ6: =$B$3 -> 2,4-D | AR6: =$B$13 -> Dicamba | AS6: =$B$19 -> Gramoxone | AT6: =$B$22 -> Liberty | AU6: =$B$27 -> Roundup | BE6: =$N$13 -> CornPreCv | BF6: =$B$4 -> Acuron | BG6: =$B$5 -> Atrazine | BH6: =$B$7 -> Bicep II Magnum | BI6: =$B$10 -> Corvus | BJ6: =$B$12 -> Degree Xtra | BK6: =$B$15 -> Dual II Magnum | BL6: =$B$21 -> Keystone | BM6: =$B$25 -> Prowl | BN6: =$B$30 -> Surestart | BP6: =$O$13 -> CornPostCv | BQ6: =$B$3 -> 2,4-D | BR6: =$B$4 -> Acuron | BS6: =$B$5 -> Atrazine | BT6: =$B$9 -> Capreno | BU6: =$B$13 -> Dicamba | BV6: =$B$15 -> Dual II Magnum | BW6: =$B$34 -> Warrant
B7: Bicep II Magnum | F7: Crops (4) | H7: Roundup Ready | J7: =$H$5 -> Glytol/LibertyLink | L7: =$J$7 -> Glytol/LibertyLink | M7: CottonBDGL | N7: CottonPPGL | O7: CottonPreGL | P7: CottonPostGL | Q7: CottonLayGL | T7: =$B$13 -> Dicamba | U7: =$B$13 -> Dicamba | V7: =$B$13 -> Dicamba | W7: =$B$13 -> Dicamba | Z7: =$B$13 -> Dicamba | AA7: Dicamba | AB7: Dicamba | AC7: Dicamba | AD7: Dicamba | AE7: Dicamba | AH7: =$B$13 -> Dicamba | AI7: =$B$13 -> Dicamba | AJ7: =$B$13 -> Dicamba | AK7: =$B$13 -> Dicamba | AL7: =$B$13 -> Dicamba | AO7: =$J$14 -> Enlist | AP7: =$M$14 -> CornBDEn | AQ7: =$B$3 -> 2,4-D | AR7: =$B$13 -> Dicamba | AS7: =$B$19 -> Gramoxone | AT7: =$B$22 -> Liberty | AU7: =$B$27 -> Roundup | BE7: =$N$14 -> CornPreEn | BF7: =$B$4 -> Acuron | BG7: =$B$5 -> Atrazine | BH7: =$B$7 -> Bicep II Magnum | BI7: =$B$10 -> Corvus | BJ7: =$B$12 -> Degree Xtra | BK7: =$B$15 -> Dual II Magnum | BL7: =$B$21 -> Keystone | BM7: =$B$25 -> Prowl | BN7: =$B$30 -> Surestart | BP7: =$O$14 -> CornPostEn | BQ7: =$B$3 -> 2,4-D | BR7: =$B$4 -> Acuron | BS7: =$B$5 -> Atrazine | BT7: =$B$9 -> Capreno | BU7: =$B$13 -> Dicamba | BV7: =$B$15 -> Dual II Magnum | BW7: =$B$17 -> Enlist Duo | BX7: =$B$20 -> Halex GT | BY7: =$B$22 -> Liberty | BZ7: =$B$27 -> Roundup | CA7: =$B$34 -> Warrant
B8: Boundary | F8: Cotton | H8: Roundup/LibertyLink | J8: =$H$6 -> LibertyLink | L8: =$J$8 -> LibertyLink | M8: CottonBDLL | N8: CottonPPLL | O8: CottonPreLL | P8: CottonPostLL | Q8: CottonLayLL | T8: =$B$19 -> Gramoxone | U8: =$B$19 -> Gramoxone | V8: Gramoxone | W8: Gramoxone | Z8: =$B$19 -> Gramoxone | AA8: =$B$19 -> Gramoxone | AB8: Gramoxone | AC8: Gramoxone | AD8: Gramoxone | AE8: Gramoxone | AH8: =$B$19 -> Gramoxone | AI8: =$B$19 -> Gramoxone | AJ8: Gramoxone | AK8: Gramoxone | AL8: Gramoxone | AO8: =$J$15 -> Roundup Ready | AP8: =$M$15 -> CornBDRR | AQ8: =$B$3 -> 2,4-D | AR8: =$B$13 -> Dicamba | AS8: =$B$19 -> Gramoxone | AT8: =$B$22 -> Liberty | AU8: =$B$27 -> Roundup | BE8: =$N$15 -> CornPreRR | BF8: =$B$4 -> Acuron | BG8: =$B$5 -> Atrazine | BH8: =$B$7 -> Bicep II Magnum | BI8: =$B$10 -> Corvus | BJ8: =$B$12 -> Degree Xtra | BK8: =$B$15 -> Dual II Magnum | BL8: =$B$21 -> Keystone | BM8: =$B$25 -> Prowl | BN8: =$B$30 -> Surestart | BP8: =$O$15 -> CornPostRR | BQ8: =$B$3 -> 2,4-D | BR8: =$B$4 -> Acuron | BS8: =$B$5 -> Atrazine | BT8: =$B$9 -> Capreno | BU8: =$B$13 -> Dicamba | BV8: =$B$15 -> Dual II Magnum | BW8: =$B$20 -> Halex GT | BX8: =$B$27 -> Roundup | BY8: =$B$34 -> Warrant
B9: Capreno | F9: Corn | H9: Xtend | J9: =$H$7 -> Roundup Ready | L9: =$J$9 -> Roundup Ready | M9: CottonBDRR | N9: CottonPPRR | O9: CottonPreRR | P9: CottonPostRR | Q9: CottonLayRR | T9: =$B$22 -> Liberty | U9: =$B$22 -> Liberty | V9: Liberty | W9: Liberty | Z9: =$B$22 -> Liberty | AA9: =$B$22 -> Liberty | AB9: Liberty | AC9: Liberty | AD9: Liberty | AE9: Liberty | AH9: =$B$22 -> Liberty | AI9: =$B$22 -> Liberty | AJ9: Liberty | AK9: Liberty | AL9: Liberty | AO9: =$J$16 -> Roundup/LibertyLink | AP9: =$M$16 -> CornBDRRLL | AQ9: =$B$3 -> 2,4-D | AR9: =$B$13 -> Dicamba | AS9: =$B$19 -> Gramoxone | AT9: =$B$22 -> Liberty | AU9: =$B$27 -> Roundup | BE9: =$N$16 -> CornPreRRLL | BF9: =$B$4 -> Acuron | BG9: =$B$5 -> Atrazine | BH9: =$B$7 -> Bicep II Magnum | BI9: =$B$10 -> Corvus | BJ9: =$B$12 -> Degree Xtra | BK9: =$B$15 -> Dual II Magnum | BL9: =$B$21 -> Keystone | BM9: =$B$25 -> Prowl | BN9: =$B$30 -> Surestart | BP9: =$O$16 -> CornPostRRLL | BQ9: =$B$3 -> 2,4-D | BR9: =$B$4 -> Acuron | BS9: =$B$5 -> Atrazine | BT9: =$B$9 -> Capreno | BU9: =$B$13 -> Dicamba | BV9: =$B$15 -> Dual II Magnum | BW9: =$B$20 -> Halex GT | BX9: =$B$22 -> Liberty | BY9: =$B$27 -> Roundup | BZ9: =$B$34 -> Warrant
B10: Corvus | F10: Soybean_FS | J10: =$H$9 -> Xtend | L10: =$J$10 -> Xtend | M10: CottonBDXt | N10: CottonPPXt | O10: CottonPreXt | P10: CottonPostXt | Q10: CottonLayXt | T10: =$B$27 -> Roundup | U10: =$B$27 -> Roundup | V10: Roundup | W10: Roundup | Z10: =$B$27 -> Roundup | AA10: =$B$27 -> Roundup | AB10: Roundup | AC10: Roundup | AD10: Roundup | AE10: Roundup | AH10: =$B$27 -> Roundup | AI10: =$B$27 -> Roundup | AJ10: Roundup | AK10: Roundup | AL10: Roundup | AO10: =$J$4 -> Cotton
B11: Cotoran | F11: Soybean_Double | Z11: =$B$33 -> Valor | AA11: =$B$33 -> Valor | AB11: Valor | AC11: Valor | AD11: Valor | AE11: Valor | AH11: =$B$33 -> Valor | AI11: =$B$33 -> Valor | AJ11: Valor | AK11: Valor | AL11: Valor
B12: Degree Xtra | J12: =$F$4 -> Corn | L12: =$J$12 -> Corn | M12: BD | N12: Pre | O12: Post | S12: =$N$12 -> Pre | T12: =$N$13 -> CornPreCv | U12: =$N$14 -> CornPreEn | V12: =$N$15 -> CornPreRR | W12: =$N$16 -> CornPreRRLL | AO12: =$J$5 -> Conventional | AP12: =$M$5 -> CottonBDCv | AQ12: =$B$3 -> 2,4-D | AR12: =$B$13 -> Dicamba | AS12: =$B$19 -> Gramoxone | AT12: =$B$22 -> Liberty | AU12: =$B$27 -> Roundup | AV12: =$B$33 -> Valor | AX12: =$N$5 -> CottonPPCv | AY12: =$B$25 -> Prowl | AZ12: =$B$26 -> Reflex | BA12: =$B$27 -> Roundup | BB12: =$B$31 -> Treflan | BE12: =$O$5 -> CottonPreCv | BF12: =$B$11 -> Cotoran | BG12: =$B$19 -> Gramoxone | BH12: =$B$25 -> Prowl | BI12: =$B$31 -> Treflan | BJ12: =$B$34 -> Warrant | BP12: =$P$5 -> CottonPostCv | BQ12: =$B$16 -> Dual Magnum | BR12: =$B$29 -> Staple | BS12: =$B$34 -> Warrant | CC12: =$Q$5 -> CottonLayCv | CD12: =$B$14 -> Direx | CE12: =$B$23 -> MSMA | CF12: =$B$33 -> Valor
B13: Dicamba | F13: Soy | J13: =$H$3 -> Conventional | L13: =$J$13 -> Conventional | M13: CornBDCv | N13: CornPreCv | O13: CornPostCv | T13: =$B$4 -> Acuron | U13: =$B$4 -> Acuron | V13: Acuron | W13: Acuron | Y13: =$N$4 -> PP | Z13: =$N$5 -> CottonPPCv | AA13: =$N$6 -> CottonPPEn | AB13: =$N$7 -> CottonPPGL | AC13: =$N$8 -> CottonPPLL | AD13: =$N$9 -> CottonPPRR | AE13: =$N$10 -> CottonPPXt | AG13: =$N$18 -> Pre | AH13: =$N$19 -> SoyPreCv | AI13: =$N$20 -> SoyPreEn | AJ13: =$N$21 -> SoyPreLL | AK13: =$N$22 -> SoyPreRR | AL13: =$N$23 -> SoyPreXt | AO13: =$J$6 -> Enlist | AP13: =$M$6 -> CottonBDEn | AQ13: 2,4-D | AR13: Dicamba | AS13: Gramoxone | AT13: Liberty | AU13: Roundup | AV13: Valor | AX13: =$N$6 -> CottonPPEn | AY13: =$B$17 -> Enlist Duo | AZ13: =$B$25 -> Prowl | BA13: =$B$26 -> Reflex | BB13: =$B$27 -> Roundup | BC13: =$B$31 -> Treflan | BE13: =$O$6 -> CottonPreEn | BF13: Cotoran | BG13: Gramoxone | BH13: Prowl | BI13: Treflan | BJ13: Warrant | BP13: =$P$6 -> CottonPostEn | BQ13: Dual Magnum | BR13: =$B$17 -> Enlist Duo | BS13: =$B$22 -> Liberty | BT13: =$B$27 -> Roundup | BU13: =$B$29 -> Staple | BV13: =$B$34 -> Warrant | CC13: =$Q$6 -> CottonLayEn | CD13: Direx | CE13: MSMA | CF13: =$B$27 -> Roundup | CG13: =$B$33 -> Valor
B14: Direx | J14: =$H$4 -> Enlist | L14: =$J$14 -> Enlist | M14: CornBDEn | N14: CornPreEn | O14: CornPostEn | T14: =$B$5 -> Atrazine | U14: =$B$5 -> Atrazine | V14: Atrazine | W14: Atrazine | Z14: =$B$25 -> Prowl | AA14: =$B$17 -> Enlist Duo | AB14: =$B$25 -> Prowl | AC14: =$B$25 -> Prowl | AD14: =$B$25 -> Prowl | AE14: =$B$13 -> Dicamba | AF14: 2x | AH14: =$B$6 -> Authority MTZ | AI14: =$B$6 -> Authority MTZ | AJ14: Authority MTZ | AK14: Authority MTZ | AL14: Authority MTZ | AO14: =$J$7 -> Glytol/LibertyLink | AP14: =$M$7 -> CottonBDGL | AQ14: 2,4-D | AR14: Dicamba | AS14: Gramoxone | AT14: Liberty | AU14: Roundup | AV14: Valor | AX14: =$N$7 -> CottonPPGL | AY14: =$B$25 -> Prowl | AZ14: =$B$26 -> Reflex | BA14: =$B$27 -> Roundup | BB14: =$B$31 -> Treflan | BE14: =$O$7 -> CottonPreGL | BF14: Cotoran | BG14: Gramoxone | BH14: Prowl | BI14: Treflan | BJ14: Warrant | BP14: =$P$7 -> CottonPostGL | BQ14: Dual Magnum | BR14: =$B$22 -> Liberty | BS14: =$B$27 -> Roundup | BT14: =$B$29 -> Staple | BU14: =$B$34 -> Warrant | CC14: =$Q$7 -> CottonLayGL | CD14: Direx | CE14: MSMA | CF14: =$B$27 -> Roundup | CG14: =$B$33 -> Valor
B15: Dual II Magnum | J15: =$H$7 -> Roundup Ready | L15: =$J$15 -> Roundup Ready | M15: CornBDRR | N15: CornPreRR | O15: CornPostRR | T15: =$B$7 -> Bicep II Magnum | U15: =$B$7 -> Bicep II Magnum | V15: Bicep II Magnum | W15: Bicep II Magnum | Z15: =$B$26 -> Reflex | AA15: =$B$25 -> Prowl | AB15: =$B$26 -> Reflex | AC15: =$B$26 -> Reflex | AD15: =$B$26 -> Reflex | AE15: =$B$25 -> Prowl | AH15: =$B$8 -> Boundary | AI15: =$B$8 -> Boundary | AJ15: Boundary | AK15: Boundary | AL15: Boundary | AO15: =$J$8 -> LibertyLink | AP15: =$M$8 -> CottonBDLL | AQ15: 2,4-D | AR15: Dicamba | AS15: Gramoxone | AT15: Liberty | AU15: Roundup | AV15: Valor | AX15: =$N$8 -> CottonPPLL | AY15: =$B$25 -> Prowl | AZ15: =$B$26 -> Reflex | BA15: =$B$27 -> Roundup | BB15: =$B$31 -> Treflan | BE15: =$O$8 -> CottonPreLL | BF15: Cotoran | BG15: Gramoxone | BH15: Prowl | BI15: Treflan | BJ15: Warrant | BP15: =$P$8 -> CottonPostLL | BQ15: Dual Magnum | BR15: =$B$22 -> Liberty | BS15: =$B$29 -> Staple | BT15: =$B$34 -> Warrant | CC15: =$Q$8 -> CottonLayLL | CD15: Direx | CE15: MSMA | CF15: =$B$33 -> Valor
B16: Dual Magnum | J16: =$H$8 -> Roundup/LibertyLink | L16: =$J$16 -> Roundup/LibertyLink | M16: CornBDRRLL | N16: CornPreRRLL | O16: CornPostRRLL | T16: =$B$10 -> Corvus | U16: =$B$10 -> Corvus | V16: =$B$10 -> Corvus | W16: =$B$10 -> Corvus | Z16: =$B$27 -> Roundup | AA16: =$B$26 -> Reflex | AB16: =$B$27 -> Roundup | AC16: =$B$27 -> Roundup | AD16: =$B$27 -> Roundup | AE16: =$B$26 -> Reflex | AH16: =$B$16 -> Dual Magnum | AI16: =$B$16 -> Dual Magnum | AJ16: Dual Magnum | AK16: Dual Magnum | AL16: Dicamba | AO16: =$J$9 -> Roundup Ready | AP16: =$M$9 -> CottonBDRR | AQ16: 2,4-D | AR16: Dicamba | AS16: Gramoxone | AT16: Liberty | AU16: Roundup | AV16: Valor | AX16: =$N$9 -> CottonPPRR | AY16: =$B$25 -> Prowl | AZ16: =$B$26 -> Reflex | BA16: =$B$27 -> Roundup | BB16: =$B$31 -> Treflan | BE16: =$O$9 -> CottonPreRR | BF16: Cotoran | BG16: Gramoxone | BH16: Prowl | BI16: Treflan | BJ16: Warrant | BP16: =$P$9 -> CottonPostRR | BQ16: Dual Magnum | BR16: =$B$27 -> Roundup | BS16: =$B$29 -> Staple | BT16: =$B$34 -> Warrant | CC16: =$Q$9 -> CottonLayRR | CD16: Direx | CE16: MSMA | CF16: =$B$27 -> Roundup | CG16: =$B$33 -> Valor
B17: Enlist Duo | T17: =$B$12 -> Degree Xtra | U17: =$B$12 -> Degree Xtra | V17: =$B$12 -> Degree Xtra | W17: =$B$12 -> Degree Xtra | Z17: =$B$31 -> Treflan | AA17: =$B$27 -> Roundup | AB17: =$B$31 -> Treflan | AC17: =$B$31 -> Treflan | AD17: =$B$31 -> Treflan | AE17: =$B$27 -> Roundup | AH17: =$B$18 -> Fierce | AI17: =$B$18 -> Fierce | AJ17: Fierce | AK17: Fierce | AL17: Dual Magnum | AO17: =$J$10 -> Xtend | AP17: =$M$10 -> CottonBDXt | AQ17: 2,4-D | AR17: Dicamba | AS17: Gramoxone | AT17: Liberty | AU17: Roundup | AV17: Valor | AX17: =$N$10 -> CottonPPXt | AY17: =$B$13 -> Dicamba | AZ17: =$B$25 -> Prowl | BA17: =$B$26 -> Reflex | BB17: =$B$27 -> Roundup | BC17: =$B$31 -> Treflan | BE17: =$O$10 -> CottonPreXt | BF17: Cotoran | BG17: Gramoxone | BH17: Prowl | BI17: Treflan | BJ17: Warrant | BP17: =$P$10 -> CottonPostXt | BQ17: Dual Magnum | BR17: =$B$22 -> Liberty | BS17: =$B$27 -> Roundup | BT17: =$B$29 -> Staple | BU17: =$B$34 -> Warrant | CC17: =$Q$10 -> CottonLayXt | CD17: Direx | CE17: MSMA | CF17: =$B$27 -> Roundup | CG17: =$B$33 -> Valor
B18: Fierce | J18: =$F$5 -> Soybean | L18: =$J$18 -> Soybean | M18: BD | N18: Pre | O18: Post | T18: =$B$15 -> Dual II Magnum | U18: =$B$15 -> Dual II Magnum | V18: Dual II Magnum | W18: Dual II Magnum | AA18: =$B$31 -> Treflan | AE18: =$B$31 -> Treflan | AH18: =$B$19 -> Gramoxone | AI18: =$B$19 -> Gramoxone | AJ18: Gramoxone | AK18: Gramoxone | AL18: Fierce | AO18: =$J$18 -> Soybean
B19: Gramoxone | J19: =$H$3 -> Conventional | L19: =$J$19 -> Conventional | M19: SoyBDCv | N19: SoyPreCv | O19: SoyPostCv | T19: =$B$21 -> Keystone | U19: =$B$21 -> Keystone | V19: Keystone | W19: Keystone | AH19: =$B$25 -> Prowl | AI19: =$B$25 -> Prowl | AJ19: Prowl | AK19: Prowl | AL19: Gramoxone
B20: Halex GT | J20: =$H$4 -> Enlist | L20: =$J$20 -> Enlist | M20: SoyBDEn | N20: SoyPreEn | O20: SoyPostEn | T20: =$B$25 -> Prowl | U20: =$B$25 -> Prowl | V20: Prowl | W20: Prowl | Y20: =$O$4 -> Pre | Z20: =$O$5 -> CottonPreCv | AA20: =$O$6 -> CottonPreEn | AB20: =$O$7 -> CottonPreGL | AC20: =$O$8 -> CottonPreLL | AD20: =$O$9 -> CottonPreRR | AE20: =$O$10 -> CottonPreXt | AH20: =$B$28 -> Sonic | AI20: =$B$28 -> Sonic | AJ20: Sonic | AK20: Sonic | AL20: Prowl | AO20: =$J$19 -> Conventional | AP20: =$M$19 -> SoyBDCv | AQ20: =$B$3 -> 2,4-D | AR20: =$B$13 -> Dicamba | AS20: =$B$19 -> Gramoxone | AT20: =$B$22 -> Liberty | AU20: =$B$27 -> Roundup | AV20: =$B$33 -> Valor | BE20: =$N$19 -> SoyPreCv | BF20: =$B$6 -> Authority MTZ | BG20: =$B$8 -> Boundary | BH20: =$B$16 -> Dual Magnum | BI20: =$B$18 -> Fierce | BJ20: =$B$19 -> Gramoxone | BK20: =$B$25 -> Prowl | BL20: =$B$28 -> Sonic | BM20: =$B$31 -> Treflan | BN20: =$B$34 -> Warrant | BP20: =$O$19 -> SoyPostCv | BQ20: =$B$24 -> Prefix | BR20: =$B$32 -> Ultra Blazer | BS20: =$B$34 -> Warrant
B21: Keystone | J21: =$H$6 -> LibertyLink | L21: =$J$21 -> LibertyLink | M21: SoyBDLL | N21: SoyPreLL | O21: SoyPostLL | T21: =$B$30 -> Surestart | U21: =$B$30 -> Surestart | V21: Surestart | W21: Surestart | Z21: =$B$11 -> Cotoran | AA21: Cotoran | AB21: Cotoran | AC21: Cotoran | AD21: Cotoran | AE21: Cotoran | AH21: =$B$31 -> Treflan | AI21: =$B$31 -> Treflan | AJ21: Treflan | AK21: Treflan | AL21: Sonic | AO21: =$J$20 -> Enlist | AP21: =$M$20 -> SoyBDEn | AQ21: =$B$3 -> 2,4-D | AR21: =$B$13 -> Dicamba | AS21: =$B$19 -> Gramoxone | AT21: =$B$22 -> Liberty | AU21: =$B$27 -> Roundup | AV21: =$B$33 -> Valor | BE21: =$N$20 -> SoyPreEn | BF21: =$B$6 -> Authority MTZ | BG21: =$B$8 -> Boundary | BH21: =$B$16 -> Dual Magnum | BI21: =$B$18 -> Fierce | BJ21: =$B$19 -> Gramoxone | BK21: =$B$25 -> Prowl | BL21: =$B$28 -> Sonic | BM21: =$B$31 -> Treflan | BN21: =$B$34 -> Warrant | BP21: =$O$20 -> SoyPostEn | BQ21: =$B$17 -> Enlist Duo | BR21: =$B$22 -> Liberty | BS21: =$B$24 -> Prefix | BT21: =$B$27 -> Roundup | BU21: =$B$32 -> Ultra Blazer | BV21: =$B$34 -> Warrant
B22: Liberty | J22: =$H$7 -> Roundup Ready | L22: =$J$22 -> Roundup Ready | M22: SoyBDRR | N22: SoyPreRR | O22: SoyPostRR | Z22: =$B$19 -> Gramoxone | AA22: =$B$19 -> Gramoxone | AB22: Gramoxone | AC22: Gramoxone | AD22: Gramoxone | AE22: Dicamba | AH22: =$B$34 -> Warrant | AI22: =$B$34 -> Warrant | AJ22: Warrant | AK22: Warrant | AL22: Treflan | AO22: =$J$21 -> LibertyLink | AP22: =$M$21 -> SoyBDLL | AQ22: =$B$3 -> 2,4-D | AR22: =$B$13 -> Dicamba | AS22: =$B$19 -> Gramoxone | AT22: =$B$22 -> Liberty | AU22: =$B$27 -> Roundup | AV22: =$B$33 -> Valor | BE22: =$N$21 -> SoyPreLL | BF22: =$B$6 -> Authority MTZ | BG22: =$B$8 -> Boundary | BH22: =$B$16 -> Dual Magnum | BI22: =$B$18 -> Fierce | BJ22: =$B$19 -> Gramoxone | BK22: =$B$25 -> Prowl | BL22: =$B$28 -> Sonic | BM22: =$B$31 -> Treflan | BN22: =$B$34 -> Warrant | BP22: =$O$21 -> SoyPostLL | BQ22: =$B$22 -> Liberty | BR22: =$B$24 -> Prefix | BS22: =$B$32 -> Ultra Blazer | BT22: =$B$34 -> Warrant
B23: MSMA | J23: =$H$9 -> Xtend | L23: =$J$23 -> Xtend | M23: SoyBDXt | N23: SoyPreXt | O23: SoyPostXt | S23: =$O$12 -> Post | T23: =$O$13 -> CornPostCv | U23: =$O$14 -> CornPostEn | V23: =$O$15 -> CornPostRR | W23: =$O$16 -> CornPostRRLL | Z23: =$B$25 -> Prowl | AA23: =$B$25 -> Prowl | AB23: Prowl | AC23: Prowl | AD23: Prowl | AE23: Gramoxone | AL23: Warrant | AO23: =$J$22 -> Roundup Ready | AP23: =$M$22 -> SoyBDRR | AQ23: =$B$3 -> 2,4-D | AR23: =$B$13 -> Dicamba | AS23: =$B$19 -> Gramoxone | AT23: =$B$22 -> Liberty | AU23: =$B$27 -> Roundup | AV23: =$B$33 -> Valor | BE23: =$N$22 -> SoyPreRR | BF23: =$B$6 -> Authority MTZ | BG23: =$B$8 -> Boundary | BH23: =$B$16 -> Dual Magnum | BI23: =$B$18 -> Fierce | BJ23: =$B$19 -> Gramoxone | BK23: =$B$25 -> Prowl | BL23: =$B$28 -> Sonic | BM23: =$B$31 -> Treflan | BN23: =$B$34 -> Warrant | BP23: =$O$22 -> SoyPostRR | BQ23: =$B$24 -> Prefix | BR23: =$B$27 -> Roundup | BS23: =$B$32 -> Ultra Blazer | BT23: =$B$34 -> Warrant
B24: Prefix | Q24: italics means | T24: =$B$3 -> 2,4-D | U24: =$B$3 -> 2,4-D | V24: =$B$3 -> 2,4-D | W24: =$B$3 -> 2,4-D | Z24: =$B$31 -> Treflan | AA24: =$B$31 -> Treflan | AB24: Treflan | AC24: Treflan | AD24: Treflan | AE24: Prowl | AO24: =$J$23 -> Xtend | AP24: =$M$23 -> SoyBDXt | AQ24: =$B$3 -> 2,4-D | AR24: =$B$13 -> Dicamba | AS24: =$B$19 -> Gramoxone | AT24: =$B$22 -> Liberty | AU24: =$B$27 -> Roundup | AV24: =$B$33 -> Valor | BE24: =$N$23 -> SoyPreXt | BF24: =$B$6 -> Authority MTZ | BG24: =$B$8 -> Boundary | BH24: =$B$16 -> Dual Magnum | BI24: =$B$18 -> Fierce | BJ24: =$B$19 -> Gramoxone | BK24: =$B$25 -> Prowl | BL24: =$B$28 -> Sonic | BM24: =$B$31 -> Treflan | BN24: =$B$34 -> Warrant | BP24: =$O$23 -> SoyPostXt | BQ24: =$B$24 -> Prefix | BR24: =$B$27 -> Roundup | BS24: =$B$32 -> Ultra Blazer | BT24: =$B$34 -> Warrant
B25: Prowl | Q25: half rate | T25: =$B$4 -> Acuron | U25: =$B$4 -> Acuron | V25: Acuron | W25: Acuron | Z25: =$B$34 -> Warrant | AA25: =$B$34 -> Warrant | AB25: Warrant | AC25: Warrant | AD25: Warrant | AE25: Treflan | AG25: =$O$18 -> Post | AH25: =$O$19 -> SoyPostCv | AI25: =$O$20 -> SoyPostEn | AJ25: =$O$21 -> SoyPostLL | AK25: =$O$22 -> SoyPostRR | AL25: =$O$23 -> SoyPostXt
B26: Reflex | T26: =$B$5 -> Atrazine | U26: =$B$5 -> Atrazine | V26: =$B$5 -> Atrazine | W26: =$B$5 -> Atrazine | AE26: Warrant | AH26: =+$B$16 -> Dual Magnum | AI26: =+$B$16 -> Dual Magnum | AJ26: Dual Magnum | AK26: Dual Magnum | AL26: Dicamba
B27: Roundup | T27: =$B$9 -> Capreno | U27: =$B$9 -> Capreno | V27: =$B$9 -> Capreno | W27: =$B$9 -> Capreno | AH27: =$B$24 -> Prefix | AI27: =$B$17 -> Enlist Duo | AJ27: =$B$22 -> Liberty | AK27: =$B$24 -> Prefix | AL27: Dual Magnum
B28: Sonic | T28: =$B$13 -> Dicamba | U28: =$B$13 -> Dicamba | V28: =$B$13 -> Dicamba | W28: =$B$13 -> Dicamba | Y28: =$P$4 -> Post | Z28: =$P$5 -> CottonPostCv | AA28: =$P$6 -> CottonPostEn | AB28: =$P$7 -> CottonPostGL | AC28: =$P$8 -> CottonPostLL | AD28: =$P$9 -> CottonPostRR | AE28: =$P$10 -> CottonPostXt | AH28: =+$B$26 -> Reflex | AI28: =$B$22 -> Liberty | AJ28: Prefix | AK28: =+$B$26 -> Reflex | AL28: Prefix
B29: Staple | T29: =$B$15 -> Dual II Magnum | U29: =$B$15 -> Dual II Magnum | V29: =$B$15 -> Dual II Magnum | W29: =$B$15 -> Dual II Magnum | Z29: =$B$16 -> Dual Magnum | AA29: =$B$16 -> Dual Magnum | AB29: =$B$16 -> Dual Magnum | AC29: =$B$16 -> Dual Magnum | AD29: Dual Magnum | AE29: Dicamba | AH29: =$B$32 -> Ultra Blazer | AI29: =$B$24 -> Prefix | AJ29: =+$B$26 -> Reflex | AK29: =$B$27 -> Roundup | AL29: =+$B$26 -> Reflex
B30: Surestart | T30: =$B$34 -> Warrant | U30: =$B$17 -> Enlist Duo | V30: =$B$20 -> Halex GT | W30: =$B$20 -> Halex GT | Z30: =$B$29 -> Staple | AA30: =$B$17 -> Enlist Duo | AB30: =$B$22 -> Liberty | AC30: =$B$22 -> Liberty | AD30: =$B$27 -> Roundup | AE30: Dual Magnum | AH30: =$B$34 -> Warrant | AI30: =+$B$26 -> Reflex | AJ30: =$B$32 -> Ultra Blazer | AK30: Ultra Blazer | AL30: =$B$27 -> Roundup
B31: Treflan | U31: =$B$20 -> Halex GT | V31: =$B$27 -> Roundup | W31: =$B$22 -> Liberty | Z31: =$B$34 -> Warrant | AA31: =$B$22 -> Liberty | AB31: =$B$27 -> Roundup | AC31: =$B$29 -> Staple | AD31: =$B$29 -> Staple | AE31: =$B$22 -> Liberty | AI31: =$B$27 -> Roundup | AJ31: =$B$34 -> Warrant | AK31: Warrant | AL31: =$B$32 -> Ultra Blazer
B32: Ultra Blazer | U32: =$B$22 -> Liberty | V32: =$B$34 -> Warrant | W32: =$B$27 -> Roundup | AA32: =$B$27 -> Roundup | AB32: =$B$29 -> Staple | AC32: =$B$34 -> Warrant | AD32: =$B$34 -> Warrant | AE32: =$B$27 -> Roundup | AI32: =$B$32 -> Ultra Blazer | AL32: =$B$34 -> Warrant
B33: Valor | U33: =$B$27 -> Roundup | W33: =$B$34 -> Warrant | AA33: =$B$29 -> Staple | AB33: =$B$34 -> Warrant | AE33: =$B$29 -> Staple | AI33: =$B$34 -> Warrant
B34: Warrant | U34: =$B$34 -> Warrant | AA34: =$B$34 -> Warrant | AE34: =$B$34 -> Warrant
B35: Weedar
B36: zExtra 1
B37: zExtra 2 | Y37: =$Q$4 -> Layby | Z37: =$Q$5 -> CottonLayCv | AA37: =$Q$6 -> CottonLayEn | AB37: =$Q$7 -> CottonLayGL | AC37: =$Q$8 -> CottonLayLL | AD37: =$Q$9 -> CottonLayRR | AE37: =$Q$10 -> CottonLayXt
B38: 2,4-D (Enlist) | Z38: =$B$14 -> Direx | AA38: =$B$14 -> Direx | AB38: Direx | AC38: Direx | AD38: Direx | AE38: Direx
B39: Roundup (Enlist-OTT) | Z39: =$B$23 -> MSMA | AA39: =$B$23 -> MSMA | AB39: MSMA | AC39: MSMA | AD39: MSMA | AE39: MSMA
B40: Atrazine (Bicep) | Z40: =$B$33 -> Valor | AA40: =$B$27 -> Roundup | AB40: =$B$27 -> Roundup | AC40: =$B$33 -> Valor | AD40: Roundup | AE40: =$B$27 -> Roundup
B41: Dual II Mag (Bicep) | AA41: =$B$33 -> Valor | AB41: Valor | AD41: Valor | AE41: =$B$33 -> Valor
B42: Balance (Corvus)
B43: TCM (Corvus)
B44: Atrazine (Degree Xtra)
B45: Acetochlor (Degree Xtra)
B46: Atrazine (Keystone)
B47: Acetochlor (Keystone) | FY47: =Names!B16\ -> 
B48: Acetochlor (Surestart)
B49: Flumetsulam (Surestart)
B50: Clopyralid (Surestart)
B51: Laudis (Capreno)
B52: TCM (Capreno)
B53: RoundUp (Enlist)
B54: Callisto (Halex GT)
B55: Dual (Halex GT)
B56: RoundUp (Halex GT)
B57: Sulfentrazone (Authority)
B58: Metribuzin (Authority)
B59: Dual (Boundary)
B60: Metribuzin (Boundary)
B61: Valor (Fierce)
B62: Zidua (Fierce)
B63: Sulfentrazone (Sonic)
B64: Chloransulam (Sonic)
B65: Dual (Prefix)
B66: Fomesafen (Prefix)
B67: Bicyclopyrone | C67: <--- in Risk tabs only

Sheet Prices (hidden)
R2: base year | Y2: Seed costs | AA2: Cost ($/A)
B3: application unit | C3: Indexed Prices | L3: Prices are from Arkansas Cooperatives | P3: Year | Q3: 2010 | R3: 2011 | S3: 2012 | T3: 2013 | U3: 2014 | Y3: ='2.Strategy'!AM1 -> Cotton | Z3: ='2.Strategy'!AM2 -> Conventional | AA3: 30
C4: 2010 Price | D4: 2010 Price | E4: 2011 Price | F4: 2012 Price | G4: 2013 Price | H4: 2014 Price | I4: 5 Yr Avg. | J4: 2018 Price | L4: Herbicide | M4: 2016 Price | N4: purchase unit | P4: 2011 Price Index | Q4: 101 | R4: 100 | S4: 106 | T4: 108 | U4: 110 | Z4: ='2.Strategy'!AM3 -> Enlist | AA4: 90 | AF4: Net returns calculation
A5: =Names!B3 -> 2,4-D | B5: gal | C5: 16.8 | D5: =($C5/Q$5)*100 -> 18.2970297 | E5: =($C5/R$5)*100 -> 18.48 | F5: =($C5/S$5)*100 -> 17.43396226 | G5: =($C5/T$5)*100 -> 17.11111111 | H5: =($C5/U$5)*100 -> 16.8 | I5: =SUM(D5:H5)/5 -> 17.62442062 | J5: 15.4 | L5: =A8 -> Authority MTZ | M5: 22.75 | N5: lb | P5: 2014 Price | Q5: =(Q4/U4)*100 -> 91.81818182 | R5: =(R4/U4)*100 -> 90.90909091 | S5: =(S4/U4)*100 -> 96.36363636 | T5: =(T4/U4)*100 -> 98.18181818 | U5: =(U4/U4)*100 -> 100 | Z5: ='2.Strategy'!AM4 -> Glytol/LibertyLink | AA5: 75 | AF5: Economic Outputs | AG5: Year 1 | AH5: Year 2 | AI5: Year 3 | AJ5: Year 4 | AK5: Year 5 | AL5: Year 6 | AM5: Year 7 | AN5: Year 8 | AO5: Year 9 | AP5: Year 10
A6: =Names!B4 -> Acuron | B6: gal | J6: =AVERAGE(M15,M27) -> 64.5 | L6: =A11 -> Capreno | M6: 800.15 | N6: gal | Z6: ='2.Strategy'!AM5 -> LibertyLink | AA6: 75 | AF6: Seed Costs | AG6: =IFERROR(IF('2.Strategy'!D$17=Prices!$Y$3,VLOOKUP('2.Strategy'!D$18,Prices!$Z$3:$AA$8,2,FALSE),IF('2.Strategy'!D$17=Prices!$Y$10,VLOOKUP('2.Strategy'!D$18,Prices!$Z$10:$AA$13,2,FALSE),IF('2.Strategy'!D$17=Prices!$Y$15,VLOOKUP('2.Strategy'!D$18,Prices!$Z$15:$AA$19,2,FALSE),IF('2.Strategy'!D$17=Prices!$Y$21,VLOOKUP('2.Strategy'!D$18,Prices!$Z$21:$AA$25,2,FALSE),"")))),0) -> 75 | AH6: =IF('2.Strategy'!E$17=Prices!$Y$3, VLOOKUP('2.Strategy'!E$18,Prices!$Z$3:$AA$8,2,FALSE), IF('2.Strategy'!E$17=Prices!$Y$10, VLOOKUP('2.Strategy'!E$18,Prices!$Z$10:$AA$13,2,FALSE), IF('2.Strategy'!E$17=Prices!$Y$15, VLOOKUP('2.Strategy'!E$18,Prices!$Z$15:$AA$19,2,FALSE),IF('2.Strategy'!E$17=Prices!$Y$21, VLOOKUP('2.Strategy'!E$18,Prices!$Z$21:$AA$25,2,FALSE),"")))) -> 130 | AI6: =IF('2.Strategy'!F$17=Prices!$Y$3, VLOOKUP('2.Strategy'!F$18,Prices!$Z$3:$AA$8,2,FALSE), IF('2.Strategy'!F$17=Prices!$Y$10, VLOOKUP('2.Strategy'!F$18,Prices!$Z$10:$AA$13,2,FALSE), IF('2.Strategy'!F$17=Prices!$Y$15, VLOOKUP('2.Strategy'!F$18,Prices!$Z$15:$AA$19,2,FALSE),IF('2.Strategy'!F$17=Prices!$Y$21, VLOOKUP('2.Strategy'!F$18,Prices!$Z$21:$AA$25,2,FALSE),"")))) -> 69 | AJ6: =IF('2.Strategy'!G$17=Prices!$Y$3, VLOOKUP('2.Strategy'!G$18,Prices!$Z$3:$AA$8,2,FALSE), IF('2.Strategy'!G$17=Prices!$Y$10, VLOOKUP('2.Strategy'!G$18,Prices!$Z$10:$AA$13,2,FALSE), IF('2.Strategy'!G$17=Prices!$Y$15, VLOOKUP('2.Strategy'!G$18,Prices!$Z$15:$AA$19,2,FALSE),IF('2.Strategy'!G$17=Prices!$Y$21, VLOOKUP('2.Strategy'!G$18,Prices!$Z$21:$AA$25,2,FALSE),"")))) -> 75 | AK6: =IF('2.Strategy'!H$17=Prices!$Y$3, VLOOKUP('2.Strategy'!H$18,Prices!$Z$3:$AA$8,2,FALSE), IF('2.Strategy'!H$17=Prices!$Y$10, VLOOKUP('2.Strategy'!H$18,Prices!$Z$10:$AA$13,2,FALSE), IF('2.Strategy'!H$17=Prices!$Y$15, VLOOKUP('2.Strategy'!H$18,Prices!$Z$15:$AA$19,2,FALSE),IF('2.Strategy'!H$17=Prices!$Y$21, VLOOKUP('2.Strategy'!H$18,Prices!$Z$21:$AA$25,2,FALSE),"")))) -> 80 | AL6: =IF('2.Strategy'!I$17=Prices!$Y$3, VLOOKUP('2.Strategy'!I$18,Prices!$Z$3:$AA$8,2,FALSE), IF('2.Strategy'!I$17=Prices!$Y$10, VLOOKUP('2.Strategy'!I$18,Prices!$Z$10:$AA$13,2,FALSE), IF('2.Strategy'!I$17=Prices!$Y$15, VLOOKUP('2.Strategy'!I$18,Prices!$Z$15:$AA$19,2,FALSE),IF('2.Strategy'!I$17=Prices!$Y$21, VLOOKUP('2.Strategy'!I$18,Prices!$Z$21:$AA$25,2,FALSE),"")))) -> 70 | AM6: =IF('2.Strategy'!J$17=Prices!$Y$3, VLOOKUP('2.Strategy'!J$18,Prices!$Z$3:$AA$8,2,FALSE), IF('2.Strategy'!J$17=Prices!$Y$10, VLOOKUP('2.Strategy'!J$18,Prices!$Z$10:$AA$13,2,FALSE), IF('2.Strategy'!J$17=Prices!$Y$15, VLOOKUP('2.Strategy'!J$18,Prices!$Z$15:$AA$19,2,FALSE),IF('2.Strategy'!J$17=Prices!$Y$21, VLOOKUP('2.Strategy'!J$18,Prices!$Z$21:$AA$25,2,FALSE),"")))) -> 75 | AN6: =IF('2.Strategy'!K$17=Prices!$Y$3, VLOOKUP('2.Strategy'!K$18,Prices!$Z$3:$AA$8,2,FALSE), IF('2.Strategy'!K$17=Prices!$Y$10, VLOOKUP('2.Strategy'!K$18,Prices!$Z$10:$AA$13,2,FALSE), IF('2.Strategy'!K$17=Prices!$Y$15, VLOOKUP('2.Strategy'!K$18,Prices!$Z$15:$AA$19,2,FALSE),IF('2.Strategy'!K$17=Prices!$Y$21, VLOOKUP('2.Strategy'!K$18,Prices!$Z$21:$AA$25,2,FALSE),"")))) -> 130 | AO6: =IF('2.Strategy'!L$17=Prices!$Y$3, VLOOKUP('2.Strategy'!L$18,Prices!$Z$3:$AA$8,2,FALSE), IF('2.Strategy'!L$17=Prices!$Y$10, VLOOKUP('2.Strategy'!L$18,Prices!$Z$10:$AA$13,2,FALSE), IF('2.Strategy'!L$17=Prices!$Y$15, VLOOKUP('2.Strategy'!L$18,Prices!$Z$15:$AA$19,2,FALSE),IF('2.Strategy'!L$17=Prices!$Y$21, VLOOKUP('2.Strategy'!L$18,Prices!$Z$21:$AA$25,2,FALSE),"")))) -> 69 | AP6: =IF('2.Strategy'!M$17=Prices!$Y$3, VLOOKUP('2.Strategy'!M$18,Prices!$Z$3:$AA$8,2,FALSE), IF('2.Strategy'!M$17=Prices!$Y$10, VLOOKUP('2.Strategy'!M$18,Prices!$Z$10:$AA$13,2,FALSE), IF('2.Strategy'!M$17=Prices!$Y$15, VLOOKUP('2.Strategy'!M$18,Prices!$Z$15:$AA$19,2,FALSE),IF('2.Strategy'!M$17=Prices!$Y$21, VLOOKUP('2.Strategy'!M$18,Prices!$Z$21:$AA$25,2,FALSE),"")))) -> 90
A7: =Names!B5 -> Atrazine | B7: gal | C7: 16.2 | D7: =($C7/Q$5)*100 -> 17.64356436 | E7: =($C7/R$5)*100 -> 17.82 | F7: =($C7/S$5)*100 -> 16.81132075 | G7: =($C7/T$5)*100 -> 16.5 | H7: =($C7/U$5)*100 -> 16.2 | I7: =SUM(D7:H7)/5 -> 16.99497702 | J7: 16.9 | L7: =A14 -> Corvus | M7: =8.37*128 -> 1071.36 | N7: gal | Z7: ='2.Strategy'!AM6 -> Roundup Ready | AA7: 80 | AF7: Weed Control Costs | AG7: ='2.Strategy'!D9 -> 157.7192525 | AH7: ='2.Strategy'!E9 -> 128.820825 | AI7: ='2.Strategy'!F9 -> 139.057825 | AJ7: ='2.Strategy'!G9 -> 175.1392525 | AK7: ='2.Strategy'!H9 -> 133.820825 | AL7: ='2.Strategy'!I9 -> 132.7245437 | AM7: ='2.Strategy'!J9 -> 170.1392525 | AN7: ='2.Strategy'!K9 -> 133.820825 | AO7: ='2.Strategy'!L9 -> 139.057825 | AP7: ='2.Strategy'!M9 -> 174.153315
A8: =Names!B6 -> Authority MTZ | B8: =N5 -> lb | D8: 0 | E8: 0 | F8: 0 | G8: 0 | H8: 0 | I8: 0 | J8: =AVERAGE(M5,M17) -> 23.3745 | L8: =A16 -> Degree Xtra | M8: 43.55 | N8: gal | Z8: ='2.Strategy'!AM7 -> Xtend | AA8: 92 | AF8: Total Specified Expenses | AG8: =AF29 -> 354.08 | AH8: =AG29 -> 386.61 | AI8: 189.27 | AJ8: 354.08 | AK8: 386.61 | AL8: 189.27 | AM8: 354.08 | AN8: 386.61 | AO8: 189.27 | AP8: 354.08
A9: =Names!B7 -> Bicep II Magnum | B9: gal | C9: 40.16 | D9: 43.73861386 | E9: 44.176 | F9: 41.6754717 | G9: 40.9037037 | H9: 40.16 | I9: 42.13075785 | J9: 40.16 | L9: =A20 -> Enlist Duo | AF9: Yield Achieved | AG9: =Biology!BM45 -> 1200 | AH9: =Biology!BN45 -> 208.9717505 | AI9: =Biology!BO45 -> 60 | AJ9: =Biology!BP45 -> 1200 | AK9: =Biology!BQ45 -> 210 | AL9: =Biology!BR45 -> 60 | AM9: =Biology!BS45 -> 1200 | AN9: =Biology!BT45 -> 210 | AO9: =Biology!BU45 -> 60 | AP9: =Biology!BV45 -> 1200
A10: =Names!B8 -> Boundary | B10: gal | C10: 76 | D10: 82.77227723 | E10: 83.6 | F10: 78.86792453 | G10: 77.40740741 | H10: 76 | I10: 79.72952183 | J10: 76 | L10: =A21 -> Fierce | M10: 105 | N10: lb | Y10: ='2.Strategy'!AN1 -> Corn | Z10: ='2.Strategy'!AN2 -> Conventional | AA10: 80 | AF10: Expected Commodity Price | AG10: =AF28 -> 0.65 | AH10: =AG28 -> 3.35 | AI10: 10 | AJ10: 0.65 | AK10: 3.35 | AL10: 10 | AM10: 0.65 | AN10: 3.35 | AO10: 10 | AP10: 0.65
A11: =Names!B9 -> Capreno | B11: oz | D11: 0 | E11: 0 | F11: 0 | G11: 0 | H11: 0 | I11: 0 | J11: 6.97 | L11: =A24 -> Keystone | N11: gal | Z11: ='2.Strategy'!AN3 -> Enlist | AA11: 130 | AF11: Net Returns | AG11: =(AG$9*AG$10)-SUM(AG6:AG8) -> 193.2007475 | AH11: =(AH$9*AH$10)-SUM(AH6:AH8) -> 54.62453926 | AI11: 202.672175 | AJ11: 175.7807475 | AK11: 103.069175 | AL11: 208.0054563 | AM11: 180.7807475 | AN11: 53.069175 | AO11: 202.672175 | AP11: 161.766685
A12: =Names!B13 -> Dicamba | B12: gal | C12: 99 | D12: 107.8217822 | E12: 108.9 | F12: 102.7358491 | G12: 100.8333333 | H12: 99 | I12: 103.8581929 | J12: 76.8 | L12: =A31 -> Sonic | M12: 79.16 | N12: lb | Z12: ='2.Strategy'!AN4 -> Roundup Ready | AA12: 130
A13: Xtendimax | B13: oz | J13: =10.5/22 -> 0.4772727273 | L13: =A33 -> Surestart | N13: gal | Z13: ='2.Strategy'!AN5 -> Roundup/LibertyLink | AA13: 130
A14: =Names!B10 -> Corvus | B14: =N7 -> gal | D14: =($C14/Q$5)*100 -> 0 | E14: =($C14/R$5)*100 -> 0 | F14: =($C14/S$5)*100 -> 0 | G14: =($C14/T$5)*100 -> 0 | H14: =($C14/U$5)*100 -> 0 | I14: =SUM(D14:H14)/5 -> 0 | J14: 853.76 | L14: =A37 -> Warrant | M14: 34.88 | N14: gal
A15: =Names!B11 -> Cotoran | B15: gal | C15: 42 | D15: 45.74257426 | E15: 46.2 | F15: 43.58490566 | G15: 42.77777778 | H15: 42 | I15: 44.06105154 | J15: 42 | L15: =A6 -> Acuron | M15: 63 | N15: gal | Y15: ='2.Strategy'!AO1 -> Soybean_FS | Z15: ='2.Strategy'!AO2 -> Conventional | AA15: 33
A16: =Names!B12 -> Degree Xtra | B16: =N8 -> gal | D16: 0 | E16: 0 | F16: 0 | G16: 0 | H16: 0 | I16: 0 | J16: =AVERAGE(M8,M20,M32) -> 44.95 | L16: Herbicide | M16: 2016 Price | N16: purchase unit | Z16: ='2.Strategy'!AO3 -> Enlist | AA16: 70
A17: =Names!B14 -> Direx | B17: gal | C17: 25 | D17: 27.22772277 | E17: 27.5 | F17: 25.94339623 | G17: 25.46296296 | H17: 25 | I17: 26.22681639 | J17: 25 | L17: =A8 -> Authority MTZ | M17: =23.3*1.03 -> 23.999 | N17: lb | Z17: ='2.Strategy'!AO4 -> LibertyLink | AA17: 59 | AF17: Commodity prices and total specified expenses: | AI17: (to avoid errors when a crop not selected in profile is selected in strategy - the user should eventually change it in the profile)
A18: =Names!B15 -> Dual II Magnum | B18: =B19 -> gal | C18: =C19 -> 109 | D18: 118.7128713 | E18: 119.9 | F18: 113.1132075 | G18: 111.0185185 | H18: 109 | I18: 114.3489195 | J18: =J19 -> 109 | L18: =A11 -> Capreno | M18: =795*1.03 -> 818.85 | N18: gal | Z18: ='2.Strategy'!AO5 -> Roundup Ready | AA18: 59
A19: =Names!B16 -> Dual Magnum | B19: gal | C19: 109 | D19: 118.7128713 | E19: 119.9 | F19: 113.1132075 | G19: 111.0185185 | H19: 109 | I19: 114.3489195 | J19: 109 | L19: =A14 -> Corvus | M19: =819*1.03 -> 843.57 | N19: gal | Z19: ='2.Strategy'!AO6 -> Xtend | AA19: 69 | AG19: CommPrice (user) | AH19: TSE (user) | AK19: CommPrice (default) | AL19: TSE (default) | AO19: Final. Comm.Price | AP19: Final.TSE
A20: =Names!B17 -> Enlist Duo | B20: acre | D20: 0 | E20: 0 | F20: 0 | G20: 0 | H20: 0 | I20: 0 | J20: =11 -> 11 | L20: =A16 -> Degree Xtra | M20: =45*1.03 -> 46.35 | N20: gal | AF20: ='1.System'!BJ3 -> Cotton | AG20: ='1.System'!BK3 -> 0.65 | AH20: ='1.System'!BL3 -> 354.08 | AJ20: ='1.System'!BN3 -> Cotton | AK20: ='1.System'!BO3 -> 0.65 | AL20: ='1.System'!BP3 -> 354.08 | AN20: ='1.System'!BR3 -> Cotton | AO20: ='1.System'!BS3 -> 0.65 | AP20: ='1.System'!BT3 -> 354.08
A21: =Names!B18 -> Fierce | B21: =N10 -> lb | D21: 0 | E21: 0 | F21: 0 | G21: 0 | H21: 0 | I21: 0 | J21: =AVERAGE(M10,M22) -> 105.03 | L21: =A20 -> Enlist Duo | M21: 1 | Y21: ='2.Strategy'!AP1 -> Soybean_Double | Z21: ='2.Strategy'!AP2 -> Conventional | AA21: 36 | AF21: ='1.System'!BJ4 -> Corn | AG21: ='1.System'!BK4 -> 3.35 | AH21: ='1.System'!BL4 -> 386.61 | AJ21: ='1.System'!BN4 -> Corn | AK21: ='1.System'!BO4 -> 3.35 | AL21: ='1.System'!BP4 -> 386.61 | AN21: ='1.System'!BR4 -> Corn | AO21: ='1.System'!BS4 -> 3.35 | AP21: ='1.System'!BT4 -> 386.61
A22: =Names!B19 -> Gramoxone | B22: gal | C22: 33 | D22: 35.94059406 | E22: 36.3 | F22: 34.24528302 | G22: 33.61111111 | H22: 33 | I22: 34.61939764 | J22: 33 | L22: =A21 -> Fierce | M22: =102*1.03 -> 105.06 | N22: lb | Z22: ='2.Strategy'!AP3 -> Enlist | AA22: 77 | AF22: ='1.System'!BJ5 -> Soybean_FS | AG22: ='1.System'!BK5 -> 10 | AH22: ='1.System'!BL5 -> 189.27 | AJ22: ='1.System'!BN5 -> Soybean_FS | AK22: ='1.System'!BO5 -> 10 | AL22: ='1.System'!BP5 -> 189.27 | AN22: ='1.System'!BR5 -> Soybean_FS | AO22: ='1.System'!BS5 -> 10 | AP22: ='1.System'!BT5 -> 189.27
A23: =Names!B20 -> Halex GT | B23: gal | C23: 42 | D23: 45.74257426 | E23: 46.2 | F23: 43.58490566 | G23: 42.77777778 | H23: 42 | I23: 44.06105154 | J23: 42 | L23: =A24 -> Keystone | M23: =51*1.03 -> 52.53 | N23: gal | Z23: ='2.Strategy'!AP4 -> LibertyLink | AA23: 65 | AF23: ='1.System'!BJ6 -> Soybean_Double | AG23: ='1.System'!BK6 -> 0 | AH23: ='1.System'!BL6 -> 0 | AJ23: ='1.System'!BN6 -> Soybean_Double | AK23: ='1.System'!BO6 -> 10 | AL23: ='1.System'!BP6 ->  | AN23: ='1.System'!BR6 -> Soybean_Double | AO23: ='1.System'!BS6 -> 10 | AP23: ='1.System'!BT6 -> 
A24: =Names!B21 -> Keystone | B24: =N11 -> gal | D24: 0 | E24: 0 | F24: 0 | G24: 0 | H24: 0 | I24: 0 | J24: =AVERAGE(M11,M23) -> 52.53 | L24: =A31 -> Sonic | M24: =78*1.03 -> 80.34 | N24: lb | Z24: ='2.Strategy'!AP5 -> Roundup Ready | AA24: 65
A25: =Names!B22 -> Liberty | B25: gal | C25: 53.9 | D25: 58.7029703 | E25: 59.29 | F25: 55.93396226 | G25: 54.89814815 | H25: 53.9 | I25: 56.54501614 | J25: 53.9 | L25: =A33 -> Surestart | M25: =89*1.03 -> 91.67 | N25: gal | Z25: ='2.Strategy'!AP6 -> Xtend | AA25: 76 | AN25: ='2.Strategy'!D17 -> Cotton
A26: =Names!B23 -> MSMA | B26: gal | C26: 25 | D26: 27.22772277 | E26: 27.5 | F26: 25.94339623 | G26: 25.46296296 | H26: 25 | I26: 26.22681639 | J26: 25 | L26: =A37 -> Warrant | M26: =34*1.03 -> 35.02 | N26: gal
A27: =Names!B24 -> Prefix | B27: gal | C27: 50 | D27: 54.45544554 | E27: 55 | F27: 51.88679245 | G27: 50.92592593 | H27: 50 | I27: 52.45363278 | J27: 48.5 | L27: =A6 -> Acuron | M27: 66 | N27: gal | AF27: =Biology!BM63 -> Cotton 1 | AG27: =Biology!BN63 -> Corn 2 | AH27: =Biology!BO63 -> Soybean_FS 3 | AI27: =Biology!BP63 -> Cotton 4 | AJ27: =Biology!BQ63 -> Corn 5 | AK27: =Biology!BR63 -> Soybean_FS 6 | AL27: =Biology!BS63 -> Cotton 7 | AM27: =Biology!BT63 -> Corn 8 | AN27: =Biology!BU63 -> Soybean_FS 9 | AO27: =Biology!BV63 -> Cotton 10
A28: =Names!B25 -> Prowl | B28: gal | J28: 38.25 | L28: Herbicide | M28: 2016 Price | N28: purchase unit | AE28: Comm. Price | AF28: =VLOOKUP('2.Strategy'!D17,Prices!$AN$20:$AO$23,2,FALSE) -> 0.65 | AG28: =VLOOKUP('2.Strategy'!E17,Prices!$AN$20:$AO$23,2,FALSE) -> 3.35 | AH28: =VLOOKUP('2.Strategy'!F17,Prices!$AN$20:$AO$23,2,FALSE) -> 10 | AI28: =VLOOKUP('2.Strategy'!G17,Prices!$AN$20:$AO$23,2,FALSE) -> 0.65 | AJ28: =VLOOKUP('2.Strategy'!H17,Prices!$AN$20:$AO$23,2,FALSE) -> 3.35 | AK28: =VLOOKUP('2.Strategy'!I17,Prices!$AN$20:$AO$23,2,FALSE) -> 10 | AL28: =VLOOKUP('2.Strategy'!J17,Prices!$AN$20:$AO$23,2,FALSE) -> 0.65 | AM28: =VLOOKUP('2.Strategy'!K17,Prices!$AN$20:$AO$23,2,FALSE) -> 3.35 | AN28: =VLOOKUP('2.Strategy'!L17,Prices!$AN$20:$AO$23,2,FALSE) -> 10 | AO28: =VLOOKUP('2.Strategy'!M17,Prices!$AN$20:$AO$23,2,FALSE) -> 0.65
A29: =Names!B26 -> Reflex | B29: gal | C29: 103 | D29: =($C29/Q$5)*100 -> 112.1782178 | E29: 113.3 | F29: 106.8867925 | G29: 104.9074074 | H29: 103 | I29: =SUM(D29:H29)/5 -> 108.0544835 | J29: 103 | AE29: TSE (Total Specified Exp) | AF29: =VLOOKUP('2.Strategy'!D17,Prices!$AN$20:$AP$23,3, FALSE) -> 354.08 | AG29: =VLOOKUP('2.Strategy'!E17,Prices!$AN$20:$AP$23,3, FALSE) -> 386.61 | AH29: =VLOOKUP('2.Strategy'!F17,Prices!$AN$20:$AP$23,3, FALSE) -> 189.27 | AI29: =VLOOKUP('2.Strategy'!G17,Prices!$AN$20:$AP$23,3, FALSE) -> 354.08 | AJ29: =VLOOKUP('2.Strategy'!H17,Prices!$AN$20:$AP$23,3, FALSE) -> 386.61 | AK29: =VLOOKUP('2.Strategy'!I17,Prices!$AN$20:$AP$23,3, FALSE) -> 189.27 | AL29: =VLOOKUP('2.Strategy'!J17,Prices!$AN$20:$AP$23,3, FALSE) -> 354.08 | AM29: =VLOOKUP('2.Strategy'!K17,Prices!$AN$20:$AP$23,3, FALSE) -> 386.61 | AN29: =VLOOKUP('2.Strategy'!L17,Prices!$AN$20:$AP$23,3, FALSE) -> 189.27 | AO29: =VLOOKUP('2.Strategy'!M17,Prices!$AN$20:$AP$23,3, FALSE) -> 354.08
A30: =Names!B27 -> Roundup | B30: gal | C30: 20 | D30: 21.78217822 | E30: 22 | F30: 20.75471698 | G30: 20.37037037 | H30: 20 | I30: =SUM(D30:H30)/5 -> 20.98145311 | J30: 20
A31: =Names!B28 -> Sonic | B31: =N12 -> lb | D31: 0 | E31: 0 | F31: 0 | G31: 0 | H31: 0 | I31: =SUM(D31:H31)/5 -> 0 | J31: 79.77
A32: =Names!B29 -> Staple | B32: oz | C32: 7 | D32: 7.623762376 | E32: 7.7 | F32: 7.264150943 | G32: 7.12962963 | H32: 7 | I32: =SUM(D32:H32)/5 -> 7.34350859 | J32: 7 | L32: Cost of Narrow Row Planting | N32: 3.5
A33: =Names!B30 -> Surestart | B33: gal | D33: 0 | E33: 0 | F33: 0 | G33: 0 | H33: 0 | I33: =SUM(D33:H33)/5 -> 0 | J33: =AVERAGE(M13,M25) -> 91.67 | L33: Cost of Shallow Till | N33: 4.5 | P33: Labor & Fuel | Q33: R&M
A34: =Names!B31 -> Treflan | B34: gal | J34: 25.92 | L34: Cost of Herbicide Application | N34: =+P34+Q34 -> 0.777775 | P34: =0.1273*'1.System'!C28+0.0147*'1.System'!C27 -> 0.477775 | Q34: 0.3
A35: =Names!B32 -> Ultra Blazer | B35: gal | C35: 69 | D35: =($C35/Q$5)*100 -> 75.14851485 | E35: 75.9 | F35: 71.60377358 | G35: 70.27777778 | H35: 69 | I35: =SUM(D35:H35)/5 -> 72.38601324 | J35: 64 | L35: Cost of Layby | N35: =+P35+Q35 -> 1.97694 | P35: =0.0496*'1.System'!C27+0.3681*'1.System'!C28 -> 1.47694 | Q35: 0.5
A36: =Names!B33 -> Valor | B36: oz | C36: 4.38 | D36: 4.77029703 | E36: 4.818 | F36: 4.545283019 | G36: 4.461111111 | H36: 4.38 | I36: =SUM(D36:H36)/5 -> 4.594938232 | J36: 4.38
A37: =Names!B34 -> Warrant | B37: =N14 -> gal | D37: 0 | E37: 0 | F37: 0 | G37: 0 | H37: 0 | I37: =SUM(D37:H37)/5 -> 0 | J37: 36.73
A38: =Names!B35 -> Weedar | B38: =B5 -> gal | C38: =C5 -> 16.8 | D38: 18.2970297 | E38: 18.48 | F38: 17.43396226 | G38: 17.11111111 | H38: 16.8 | I38: =SUM(D38:H38)/5 -> 17.62442062 | J38: =J5 -> 15.4
B40: purchase unit | C40: 2016 Price | D40: Application Rate (units per acre) | E40: application unit | F40: Weed Control Cost ($ per Acre)
A41: Cotton | G41: =MIN(F47,F55,F42) -> 3.85 | H41: =VLOOKUP(G41,F43:G55,2,FALSE) -> 2,4-D | I41: Conversion Factors | K41: gal
A42: =A12 -> Dicamba | B42: =VLOOKUP(A42,$A$5:$J$38,2,FALSE) -> gal | C42: =VLOOKUP(A42,$A$5:$J$38,10,FALSE) -> 76.8 | D42: 8 | E42: oz | F42: =IF(B42=$K$41,C42*VLOOKUP(E42,$I$42:$J$44,2,FALSE)*D42,IF(B42=$K$46,C42*VLOOKUP(E42,$I$47:$J$47,2,FALSE)*D42,C42*D42)) -> 4.8 | G42: =A42 -> Dicamba | I42: qt | J42: 0.25
A43: =A15 -> Cotoran | B43: gal | C43: =VLOOKUP(A43,$A$5:$J$38,10,FALSE) -> 42 | D43: 32 | E43: oz | F43: =IF(B43=$K$41,C43*VLOOKUP(E43,$I$42:$J$44,2,FALSE)*D43,IF(B43=$K$46,C43*VLOOKUP(E43,$I$47:$J$47,2,FALSE)*D43,C43*D43)) -> 10.5 | G43: =A43 -> Cotoran | I43: pt | J43: 0.125
A44: =A17 -> Direx | B44: gal | C44: 25 | D44: 16 | E44: oz | F44: =IF(B44=$K$41,C44*VLOOKUP(E44,$I$42:$J$44,2,FALSE)*D44,IF(B44=$K$46,C44*VLOOKUP(E44,$I$47:$J$47,2,FALSE)*D44,C44*D44)) -> 3.125 | G44: =A44 -> Direx | I44: oz | J44: 0.0078125
A45: =A19 -> Dual Magnum | B45: gal | C45: 109 | D45: 16 | E45: oz | F45: 13.625 | G45: Dual Magnum
A46: =A20 -> Enlist Duo | B46: acre | C46: 11 | D46: 1 | E46: acre | F46: 11 | G46: Enlist Duo | I46: Conversion Factors | K46: lb
A47: =A22 -> Gramoxone | B47: gal | C47: 33 | D47: 48 | E47: oz | F47: 12.375 | G47: Gramoxone | I47: oz | J47: 0.0625
A48: =A25 -> Liberty | B48: gal | C48: 53.9 | D48: 29 | E48: oz | F48: 12.21171875 | G48: Liberty
A49: =A26 -> MSMA | B49: gal | C49: 25 | D49: 2.3 | E49: pt | F49: 7.1875 | G49: MSMA
A50: =A29 -> Reflex | B50: gal | C50: 103 | D50: 16 | E50: oz | F50: 12.875 | G50: Reflex
A51: =A30 -> Roundup | B51: gal | C51: 20 | D51: 32 | E51: oz | F51: 5 | G51: Roundup
A52: =A32 -> Staple | B52: oz | C52: 7 | D52: 2.6 | E52: oz | F52: 18.2 | G52: Staple
A53: =A36 -> Valor | B53: oz | C53: 4.38 | D53: 2 | E53: oz | F53: 8.76 | G53: Valor
A54: =A37 -> Warrant | B54: gal | C54: 36.73 | D54: 3 | E54: pt | F54: 13.77375 | G54: Warrant
A55: =A5 -> 2,4-D | B55: gal | C55: 15.4 | D55: 32 | E55: oz | F55: 3.85 | G55: 2,4-D
A56: =A28 -> Prowl | B56: gal | C56: 38.25 | D56: 2 | E56: pt | F56: 9.5625 | G56: =A56 -> Prowl
A57: =A34 -> Treflan | B57: gal | C57: 25.92 | D57: 1.5 | E57: pt | F57: =IF(B57=$K$41,C57*VLOOKUP(E57,$I$42:$J$44,2,FALSE)*D57,IF(B57=$K$46,C57*VLOOKUP(E57,$I$47:$J$47,2,FALSE)*D57,C57*D57)) -> 4.86 | G57: =A57 -> Treflan
A58: =$A$42 -> Dicamba | B58: =$B$13 -> oz | C58: =+J13 -> 0.4772727273 | D58: 22 | E58: oz | F58: =IF(B58=$K$41,C58*VLOOKUP(E58,$I$42:$J$44,2,FALSE)*D58,IF(B58=$K$46,C58*VLOOKUP(E58,$I$47:$J$47,2,FALSE)*D58,C58*D58)) -> 10.5 | G58: =+A13 -> Xtendimax
A60: Corn | G60: =MIN(F62,F61,F72) -> 3.85 | H60: =VLOOKUP(G60,F62:G79,2,FALSE) -> 2,4-D
A61: =A12 -> Dicamba | B61: =VLOOKUP(A61,$A$5:$J$38,2,FALSE) -> gal | C61: =VLOOKUP(A61,$A$5:$J$38,10,FALSE) -> 76.8 | D61: 8 | E61: oz | F61: =IF(B61="gal",C61*VLOOKUP(E61,$I$42:$J$44,2,FALSE)*D61,IF(B61="lb",C61*VLOOKUP(E61,$I$47:$J$47,2,FALSE)*D61,C61*D61)) -> 4.8 | G61: =A61 -> Dicamba
A62: =A5 -> 2,4-D | B62: =VLOOKUP(A62,$A$5:$J$38,2,FALSE) -> gal | C62: =VLOOKUP(A62,$A$5:$J$38,10,FALSE) -> 15.4 | D62: 32 | E62: oz | F62: =IF(B62=$K$41,C62*VLOOKUP(E62,$I$42:$J$44,2,FALSE)*D62,IF(B62=$K$46,C62*VLOOKUP(E62,$I$47:$J$47,2,FALSE)*D62,C62*D62)) -> 3.85 | G62: =A62 -> 2,4-D
A63: =A6 -> Acuron | B63: gal | C63: 64.5 | D63: 1.5 | E63: qt | F63: =IF(B63=$K$41,C63*VLOOKUP(E63,$I$42:$J$44,2,FALSE)*D63,IF(B63=$K$46,C63*VLOOKUP(E63,$I$47:$J$47,2,FALSE)*D63,C63*D63)) -> 24.1875 | G63: =A63 -> Acuron
A64: =A7 -> Atrazine | B64: gal | C64: 16.9 | D64: 1.5 | E64: qt | F64: =IF(B64="gal",C64*VLOOKUP(E64,$I$42:$J$44,2,FALSE)*D64,IF(B64="lb",C64*VLOOKUP(E64,$I$47:$J$47,2,FALSE)*D64,C64*D64)) -> 6.3375 | G64: =A64 -> Atrazine
A65: =A9 -> Bicep II Magnum | B65: gal | C65: 40.16 | D65: 2 | E65: qt | F65: 20.08 | G65: Bicep II Magnum
A66: =A11 -> Capreno | B66: oz | C66: 6.97 | D66: 3 | E66: oz | F66: 20.91 | G66: Capreno
A67: =A14 -> Corvus | B67: gal | C67: 853.76 | D67: 5.6 | E67: oz | F67: 37.352 | G67: Corvus
A68: =A16 -> Degree Xtra | B68: gal | C68: 44.95 | D68: 5 | E68: pt | F68: 28.09375 | G68: Degree Xtra
A69: =A19 -> Dual Magnum | B69: gal | C69: 109 | D69: 16 | E69: oz | F69: 13.625 | G69: Dual Magnum
A70: =A18 -> Dual II Magnum | B70: gal | C70: 109 | D70: 1 | E70: pt | F70: 13.625 | G70: Dual II Magnum
A71: =A20 -> Enlist Duo | B71: acre | C71: 11 | D71: 1 | E71: acre | F71: 11 | G71: Enlist Duo
A72: =A22 -> Gramoxone | B72: gal | C72: 33 | D72: 48 | E72: oz | F72: 12.375 | G72: Gramoxone
A73: =A23 -> Halex GT | B73: gal | C73: 42 | D73: 3.6 | E73: pt | F73: 18.9 | G73: Halex GT
A74: =A24 -> Keystone | B74: gal | C74: 52.53 | D74: 2.6 | E74: qt | F74: 34.1445 | G74: Keystone
A75: =A25 -> Liberty | B75: gal | C75: 53.9 | D75: 22 | E75: oz | F75: 9.2640625 | G75: Liberty
A76: =A30 -> Roundup | B76: gal | C76: 20 | D76: 32 | E76: oz | F76: 5 | G76: Roundup
A77: =A33 -> Surestart | B77: gal | C77: 91.67 | D77: 2.5 | E77: pt | F77: 28.646875 | G77: Surestart
A78: =A37 -> Warrant | B78: gal | C78: 36.73 | D78: 3 | E78: pt | F78: 13.77375 | G78: Warrant
A79: =A5 -> 2,4-D | B79: gal | C79: 15.4 | D79: 16 | E79: oz | F79: 1.925 | G79: 2,4-D
A80: =A28 -> Prowl | B80: gal | C80: 38.25 | D80: 2 | E80: pt | F80: =IF(B80="gal",C80*VLOOKUP(E80,$I$42:$J$44,2,FALSE)*D80,IF(B80="lb",C80*VLOOKUP(E80,$I$47:$J$47,2,FALSE)*D80,C80*D80)) -> 9.5625 | G80: =A80 -> Prowl
A81: =A34 -> Treflan | B81: gal | C81: 25.92 | D81: 1.5 | E81: pt | F81: 4.86 | G81: Treflan
A82: =$A$42 -> Dicamba | B82: =$B$13 -> oz | C82: =+J13 -> 0.4772727273 | D82: 22 | E82: oz | F82: =IF(B82=$K$41,C82*VLOOKUP(E82,$I$42:$J$44,2,FALSE)*D82,IF(B82=$K$46,C82*VLOOKUP(E82,$I$47:$J$47,2,FALSE)*D82,C82*D82)) -> 10.5 | G82: =+A13 -> Xtendimax
A84: Soybean | G84: =MIN(F86,F92,F85) -> 3.85 | H84: =VLOOKUP(G84,F86:G100,2,FALSE) -> 2,4-D
A85: =A12 -> Dicamba | B85: =VLOOKUP(A85,$A$5:$J$38,2,FALSE) -> gal | C85: =VLOOKUP(A85,$A$5:$J$38,10,FALSE) -> 76.8 | D85: 8 | E85: oz | F85: =IF(B85="gal",C85*VLOOKUP(E85,$I$42:$J$44,2,FALSE)*D85,IF(B85="lb",C85*VLOOKUP(E85,$I$47:$J$47,2,FALSE)*D85,C85*D85)) -> 4.8 | G85: =A85 -> Dicamba
A86: =A5 -> 2,4-D | B86: =VLOOKUP(A86,$A$5:$J$38,2,FALSE) -> gal | C86: =VLOOKUP(A86,$A$5:$J$38,10,FALSE) -> 15.4 | D86: 32 | E86: oz | F86: =IF(B86="gal",C86*VLOOKUP(E86,$I$42:$J$44,2,FALSE)*D86,IF(B86="lb",C86*VLOOKUP(E86,$I$47:$J$47,2,FALSE)*D86,C86*D86)) -> 3.85 | G86: =A86 -> 2,4-D
A87: =A8 -> Authority MTZ | B87: lb | C87: 23.3745 | D87: 16 | E87: oz | F87: 23.3745 | G87: =A87 -> Authority MTZ
A88: =A10 -> Boundary | B88: gal | C88: 76 | D88: 2.25 | E88: pt | F88: 21.375 | G88: Boundary
A89: =A19 -> Dual Magnum | B89: gal | C89: 109 | D89: 16 | E89: oz | F89: 13.625 | G89: Dual Magnum
A90: =A20 -> Enlist Duo | B90: acre | C90: 11 | D90: 1 | E90: acre | F90: 11 | G90: Enlist Duo
A91: =A21 -> Fierce | B91: lb | C91: 105.03 | D91: 3 | E91: oz | F91: 19.693125 | G91: Fierce
A92: =A22 -> Gramoxone | B92: gal | C92: 33 | D92: 48 | E92: oz | F92: 12.375 | G92: Gramoxone
A93: =A25 -> Liberty | B93: gal | C93: 53.9 | D93: 29 | E93: oz | F93: 12.21171875 | G93: Liberty
A94: =A27 -> Prefix | B94: gal | C94: 48.5 | D94: 32 | E94: oz | F94: 12.125 | G94: Prefix
A95: =A29 -> Reflex | B95: gal | C95: 103 | D95: 16 | E95: oz | F95: 12.875 | G95: Reflex
A96: =A30 -> Roundup | B96: gal | C96: 20 | D96: 32 | E96: oz | F96: 5 | G96: Roundup
A97: =A31 -> Sonic | B97: lb | C97: 79.77 | D97: 6 | E97: oz | F97: 29.91375 | G97: Sonic
A98: =A35 -> Ultra Blazer | B98: gal | C98: 64 | D98: 2 | E98: pt | F98: 16 | G98: Ultra Blazer
A99: =A36 -> Valor | B99: oz | C99: 4.38 | D99: 2 | E99: oz | F99: 8.76 | G99: Valor
A100: =A37 -> Warrant | B100: gal | C100: 36.73 | D100: 3 | E100: pt | F100: 13.77375 | G100: Warrant
A101: =A28 -> Prowl | B101: gal | C101: 38.25 | D101: 2 | E101: pt | F101: =IF(B101="gal",C101*VLOOKUP(E101,$I$42:$J$44,2,FALSE)*D101,IF(B101="lb",C101*VLOOKUP(E101,$I$47:$J$47,2,FALSE)*D101,C101*D101)) -> 9.5625 | G101: =A101 -> Prowl
A102: =A34 -> Treflan | B102: gal | C102: 25.92 | D102: 1.5 | E102: pt | F102: 4.86 | G102: Treflan
A103: =$A$42 -> Dicamba | B103: =$B$13 -> oz | C103: =+J13 -> 0.4772727273 | D103: 22 | E103: oz | F103: =IF(B103=$K$41,C103*VLOOKUP(E103,$I$42:$J$44,2,FALSE)*D103,IF(B103=$K$46,C103*VLOOKUP(E103,$I$47:$J$47,2,FALSE)*D103,C103*D103)) -> 10.5 | G103: =+A13 -> Xtendimax
A105: Fall Options | B105: purchase unit | C105: 2016 Price | D105: Application Rate (units/acre) | E105: application unit | F105: User-Specified Prices
A106: =Names!D3 -> MB Plough | C106: ='1.System'!AZ9 -> 15 | F106: =C106 -> 15
A107: =Names!D4 -> Cereal Rye Cover | B107: lb | C107: ='1.System'!AZ10 -> 0.63 | D107: ='1.System'!BA10 -> 90 | E107: lb | F107: =C107*D107 -> 56.7
A108: =Names!D5 -> Cover Crop Mix | B108: lb | C108: ='1.System'!AZ11 -> 2.44 | D108: ='1.System'!BA11 -> 12 | E108: lb | F108: =C108*D108 -> 29.28
A109: =Names!D6 -> Windrow Burn | B109: ="" ->  | C109: ='1.System'!AZ12 -> 0 | F109: =C109 -> 0

Sheet TSE (hidden)
A1: Cost of fuel | B1: ='1.System'!C28 -> 2.2 | D1: labor cost | E1: ='1.System'!C27 -> 13.45 | G1: Source: 2018 uaex crop production budgets
A3: Cotton | B3: Conv | D3: B2XF | F3: GLT/WRF
B4: Furrow | C4: CP | D4: Furrow | E4: CP | F4: Furrow | G4: CP | I4: Average | K4: operating interest (%) | M4: 4.3
A5: Fert | B5: 72.48 | C5: 72.48 | D5: 72.48 | E5: 72.48 | F5: 72.48 | G5: 72.48 | I5: =AVERAGE(B5:G5) -> 72.48
A6: Insect. | B6: 106.11 | C6: 106.11 | D6: 97.74 | E6: 97.74 | F6: 97.74 | G6: 97.74 | I6: =AVERAGE(B6:G6) -> 100.53
A7: Nemat./Fung./Defoliant | B7: =19.16+14 -> 33.16 | C7: 33.16 | D7: 33.16 | E7: 33.16 | F7: 33.16 | G7: 33.16 | I7: =AVERAGE(B7:G7) -> 33.16
A8: Fuel | B8: 26.27 | C8: 26.27 | D8: 26.27 | E8: 24.56 | F8: 26.27 | G8: 24.56 | I8: =ROUND(+I16*B1,2) -> 23.18 | J8: less spraying fuel use
A9: R&M | B9: 33.73 | C9: 40.87 | D9: 33.73 | E9: 40.22 | F9: 33.73 | G9: 40.22 | I9: =ROUND(AVERAGE(B9:G9)-2.52,2) -> 34.56 | J9: subtract $2.52 for R&M for spraying
A10: Irr. (Energy & Supplies) | B10: 35.06 | C10: 47.37 | D10: 35.06 | E10: 47.37 | F10: 35.06 | G10: 47.37 | I10: =+I18*B1+3.88/2 -> 41.21 | J10: $3.88 for poly pipe for 1/2 acreage + fuel use times fuel cost
A11: Labor & Scouting | B11: 34.94 | C11: 35.7 | D11: 34.94 | E11: 33.06 | F11: 34.94 | G11: 33.06 | I11: =+I17*E1+10 -> 32.780265 | J11: incl. 10 custom scouting fee which should be subracted before calculating operator hours.
A12: Other (Ins., Fees) | B12: 11.41 | C12: 11.41 | D12: 11.41 | E12: 11.41 | F12: 11.41 | G12: 11.41 | I12: =AVERAGE(B12:G12) -> 11.41
A13: Ownership charges | B13: 178.23 | C13: 232 | D13: 178.23 | E13: 225.16 | F13: 178.23 | G13: 225.16 | I13: =AVERAGE(B13:G13) -> 202.835 | J13: Excluded from PAM
A14: Hauling etc is covered by cotton seed revenue
A16: Fuel (Gal) | B16: 11.94 | C16: 11.163 | D16: 11.94 | E16: 11.163 | F16: 11.94 | G16: 11.163 | I16: =ROUND(AVERAGE(B16:G16)-1.014,3) -> 10.538 | J16: UAEX uses a fuel cost of $2.20 - 1.014 gal/acre for hooded sprays and self-propelled spraying and non-custom applications.
A17: Labor (hrs) | B17: 1.854 | C17: 1.911 | D17: 1.854 | E17: 1.714 | F17: 1.854 | G17: 1.714 | I17: =ROUND(AVERAGE(B17:G17)-0.1231,4) -> 1.6937 | J17: UAEX uses a labor charge of 13.45 - .1231 hrs for spraying
A18: Fuel Irr. (Gal) | B18: =31.18/2.2 -> 14.17272727 | C18: =+C10/2.2 -> 21.53181818 | D18: =31.18/2.2 -> 14.17272727 | E18: =+E10/2.2 -> 21.53181818 | F18: =31.18/2.2 -> 14.17272727 | G18: =+G10/2.2 -> 21.53181818 | I18: =ROUND(AVERAGE(B18:G18),2) -> 17.85 | J18: average fuel use for CP and Furrow Irrigation
A20: Corn | B20: Conv | D20: Stacked Gene
B21: Furrow | C21: CP | D21: Furrow | E21: CP | I21: Average | K21: operating interest (%) | M21: 4.3
A22: Fert | B22: =151.97+7 -> 158.97 | C22: =151.97+7 -> 158.97 | D22: =151.97+7 -> 158.97 | E22: =151.97+7 -> 158.97 | I22: =AVERAGE(B22:E22) -> 158.97
A23: Insect. | B23: =16.19+7 -> 23.19 | C23: =16.19+7 -> 23.19 | D23: 0 | E23: 0 | I23: =ROUND(AVERAGE(B23:E23),2) -> 11.6
A24: Nemat./Fung./Defoliant | B24: 0 | C24: 0 | D24: 0 | E24: 0 | I24: =AVERAGE(B24:E24) -> 0
A25: Fuel | B25: 15.69 | C25: 13.99 | D25: 15.45 | E25: 14.61 | I25: =+I32*B1 -> 14.0844 | J25: less spraying fuel use
A26: R&M | B26: 22.36 | C26: 30.03 | D26: 23.01 | E26: 31.12 | I26: =AVERAGE(B26:E26)-1.14 -> 25.49 | J26: subtract $1.14 for R&M for spraying
A27: Irr. (Energy & Supplies) | B27: =36.38+3.88 -> 40.26 | C27: 55.26 | D27: =36.38+3.88 -> 40.26 | E27: 55.26 | I27: =+I34*B1+3.88/2 -> 47.766 | J27: $3.88 for poly pipe for 1/2 acreage + fuel use times fuel cost
A28: Labor & Scouting | B28: 18.5 | C28: 16.74 | D28: 18.34 | E28: 17.13 | I28: =+I33*E1+6 -> 17.08818 | J28: incl. 6 custom scouting fee which should be subracted before calculating operator hours.
A29: Other (Ins., Fees) | B29: 13 | C29: 13 | D29: 13 | E29: 13 | I29: =AVERAGE(B29:E29) -> 13
A30: Ownership charges | B30: 104.08 | C30: 159.47 | D30: 105.1 | E30: 164.2 | I30: =AVERAGE(B30:E30) -> 133.2125 | J30: Excluded from PAM
A32: Fuel (Gal) | B32: 7.134 | C32: 6.357 | D32: 7.023 | E32: 6.639 | I32: =ROUND(AVERAGE(B32:E32)-0.3863,3) -> 6.402 | J32: UAEX uses a fuel cost of $2.20 - .3863 gal/acre for self-propelled spraying and non-custom applications.
A33: Labor (hrs) | B33: 0.929 | C33: 0.799 | D33: 0.918 | E33: 0.828 | I33: =ROUND(AVERAGE(B33:E33)-0.0441,4) -> 0.8244 | J33: UAEX uses a labor charge of 13.45 - .0441 hrs for spraying
A34: Fuel Irr. (Gal) | B34: =36.38/2.2 -> 16.53636364 | C34: =55.26/2.2 -> 25.11818182 | D34: =36.38/2.2 -> 16.53636364 | E34: =55.26/2.2 -> 25.11818182 | I34: =ROUND(AVERAGE(B34:G34),2) -> 20.83 | J34: average fuel use for CP and Furrow Irrigation
A36: Soybean | B36: Conv | E36: RR/LL
B37: Furrow | C37: CP | D37: Flood | E37: Furrow | F37: CP | G37: Flood | I37: Average | K37: operating interest (%) | M37: 4.3
A38: Fert | B38: 32.05 | C38: 32.05 | D38: 32.05 | E38: 32.05 | F38: 32.05 | G38: 32.05 | I38: =AVERAGE(B38:G38) -> 32.05
A39: Insect. | B39: =17.23+7 -> 24.23 | C39: =17.23+7 -> 24.23 | D39: =17.23+7 -> 24.23 | E39: =17.23+7 -> 24.23 | F39: 24.23 | G39: 24.23 | I39: =AVERAGE(B39:G39) -> 24.23
A40: Nemat./Fung./Defoliant | B40: =13.67+7 -> 20.67 | C40: =9.57+7 -> 16.57 | D40: 20.67 | E40: =13.67+7 -> 20.67 | F40: =9.57+7 -> 16.57 | G40: 20.67 | I40: =AVERAGE(B40:G40) -> 19.30333333
A41: Fuel | B41: 13.95 | C41: 12.24 | D41: 13.4 | E41: 14.61 | F41: 12.24 | G41: 13.4 | I41: =+I48*B1 -> 11.9108 | J41: less spraying fuel use
A42: R&M | B42: 18.01 | C42: 24.5 | D42: 16.93 | E42: 17.58 | F42: 24.5 | G42: 16.93 | I42: =ROUND(AVERAGE(B42:G42)-1.52,2) -> 18.22 | J42: subtract $1.52 for R&M for spraying
A43: Irr. (Energy & Supplies) | B43: 35.06 | C43: 47.37 | D43: 31.18 | E43: 35.06 | F43: 47.37 | G43: 31.18 | I43: =+I50*B1+3.88/3 -> 37.87933333 | J43: $3.88 for poly pipe for 1/3 acreage + fuel use times fuel cost
A44: Labor & Scouting | B44: 18.11 | C44: 16.23 | D44: 17.69 | E44: 17.57 | F44: 16.23 | G44: 17.69 | I44: =+I49*E1+7 -> 16.462075 | J44: incl. 7 custom scouting fee which should be subracted before calculating operator hours.
A45: Other (Ins., Fees) | B45: 7.21 | C45: 7.21 | D45: 7.21 | E45: 7.21 | F45: 7.21 | G45: 7.21 | I45: =AVERAGE(B45:G45) -> 7.21
A46: Ownership charges | B46: 93.59 | C46: 140.53 | D46: 87.65 | E46: 89.89 | F46: 140.53 | G46: 87.65 | I46: =AVERAGE(B46:G46) -> 106.64 | J46: Excluded from PAM
A48: Fuel (Gal) | B48: 6.34 | C48: 5.563 | D48: 6.091 | E48: 5.947 | F48: 5.563 | G48: 6.091 | I48: =ROUND(AVERAGE(B48:G48)-0.5182,3) -> 5.414 | J48: UAEX uses a fuel cost of $2.20 - .5182 gal/acre for self-propelled spraying and non-custom applications.
A49: Labor (hrs) | B49: 0.826 | C49: 0.686 | D49: 0.795 | E49: 0.786 | F49: 0.686 | G49: 0.795 | I49: =ROUND(AVERAGE(B49:G49)-0.0588,4) -> 0.7035 | J49: UAEX uses a labor charge of 13.45 - .0588 hrs for spraying
A50: Fuel Irr. (Gal) | B50: =31.18/2.2 -> 14.17272727 | C50: =47.37/2.2 -> 21.53181818 | D50: =31.18/2.2 -> 14.17272727 | E50: =31.18/2.2 -> 14.17272727 | F50: =47.37/2.2 -> 21.53181818 | G50: =31.18/2.2 -> 14.17272727 | I50: =ROUND(AVERAGE(B50:G50),2) -> 16.63 | J50: average fuel use for CP and Furrow Irrigation

Sheet 1.System
A1: 1. DEFINE Systems | U1: =IF(L2=L4,'Sys1'!P3,IF(L2=L5,'Sys2'!P3)) -> 0 | V1: FALSE | W1: <<<-Enable private sub in 1.Profile on False
J2: System: | L2: Diverse Traits | S2: TRUE | U2: Error Checking | V2: TRUE | W2: For D10 selection | Y2: Fert | Z2: Insect | AA2: Fung | AB2: R&M | AC2: Irr. (Fuel&Supplies) | AD2: Fuel (excl. Irr) | AE2: Rent | AF2: Returns | AG2: Op Int (%) | AH2: Haul ($/bu) | AI2: Dry ($/bu) | AJ2: Checkoff ($/bu) | AK2: Labor (ins. & fees) | AL2: Misc. | AM2: TSE | AO2: Exp. Yield | AP2: Yield Units | AQ2: Exp. Price | AR2: Price Units | AT2: YR 1 | AU2: YR 2 | AV2: YR 3 | BC2: =BD2 -> 0 | BD2: =IF(OR(D3='Sys1'!D3,D3='Sys2'!D3),0,1) -> 0 | BE2: =SUM(BC2+BC4+BC9+BC10+BC11+BC14+BC17+BC20+BC21+BC22+BC25+BC26+BC27+BC28+BG24) -> 4 | BF2: <<---Current saved as default? | BK2: CommPrice (user) | BL2: TSE (user) | BO2: CommPrice (default) | BP2: TSE (default) | BS2: Final. Comm.Price | BT2: Final.TSE
B3: Enter operator name: | D3: Jason Norsworthy | U3: =IF(U1>0,TRUE,FALSE) -> FALSE | V3: Systems | X3: =Names!F8 -> Cotton | Y3: =TSE!I5 -> 72.48 | Z3: =TSE!I6 -> 100.53 | AA3: =TSE!I7 -> 33.16 | AB3: =TSE!I9 -> 34.56 | AC3: =ROUND(TSE!I18*C28+3.88/2,2) -> 41.21 | AD3: =ROUND(TSE!I16*C28,2) -> 23.18 | AE3: 1 | AG3: =TSE!M4 -> 4.3 | AH3: 0 | AI3: 0 | AJ3: 0 | AK3: =ROUND(TSE!I17*C27+10,2) -> 32.78 | AL3: =TSE!I12 -> 11.41 | AM3: =ROUND((Y3+Z3+AA3+AB3+AC3+AD3+AE3+AK3+AL3)+(Y3+Z3+AA3+AB3+AC3+AD3+AE3+AK3+AL3)/2*0.5*AG3/100+AH3*$AS$3+AI3*$AS$3+AJ3*$AS$3-AF3,2) -> 354.08 | AN3: =Names!F8 -> Cotton | AO3: 1200 | AP3: lbs/acre | AQ3: 0.65 | AR3: $/cwt | AS3: =HLOOKUP(AN3,$AO$10:$AQ$11,2,FALSE) -> 1200 | AT3: =IFERROR(VLOOKUP(D10,AN3:AP6,3,FALSE),"") -> lbs/acre | AU3: =IFERROR(VLOOKUP(G10,AN3:AP6,3,FALSE),"") -> bu/acre | AV3: =IFERROR(VLOOKUP(J10,AN3:AP6,3,FALSE),"") -> bu/acre | AW3: Seeding | BG3: =IF(OR(AM15='Sys1'!N5,AM15='Sys2'!N5),0,1) -> 1 | BJ3: =AN3 -> Cotton | BK3: =IF($D$10=BJ3,$D$12,IF($G$10=BJ3,$G$12,IF($J$10=BJ3,$J$12,0))) -> 0.65 | BL3: =IF($D$10=BJ3,$D$15,IF($G$10=BJ3,$G$15, IF($J$10=BJ3,$J$15, 0))) -> 354.08 | BN3: =BJ3 -> Cotton | BO3: =AQ3 -> 0.65 | BP3: =AM3 -> 354.08 | BR3: =BN3 -> Cotton | BS3: =IF(BK3<>0, BK3, BO3) -> 0.65 | BT3: =IF(BL3<>0,BL3,BP3) -> 354.08
K4: System 1: | L4: Corn/Cotton/Soybean | U4: 1 | V4: =L4 -> Corn/Cotton/Soybean | X4: =Names!F9 -> Corn | Y4: =TSE!I22 -> 158.97 | Z4: =TSE!I23 -> 11.6 | AA4: =TSE!I24 -> 0 | AB4: =TSE!I26 -> 25.49 | AC4: =ROUND(TSE!I34*C28+3.88/2,2) -> 47.77 | AD4: =ROUND(TSE!I32*C28,2) -> 14.08 | AE4: 1 | AG4: =TSE!M21 -> 4.3 | AH4: 0.25 | AI4: 0.19 | AJ4: 0.01 | AK4: =ROUND(TSE!I33*C27+6,2) -> 17.09 | AL4: =TSE!I29 -> 13 | AM4: =ROUND((Y4+Z4+AA4+AB4+AC4+AD4+AE4+AK4+AL4)+(Y4+Z4+AA4+AB4+AC4+AD4+AE4+AK4+AL4)/2*0.5*AG4/100+AH4*$AS$4+AI4*$AS$4+AJ4*$AS$4-AF4,2) -> 386.61 | AN4: =Names!F9 -> Corn | AO4: 210 | AP4: bu/acre | AQ4: 3.35 | AR4: $/bu | AS4: =HLOOKUP(AN4,$AO$10:$AQ$11,2,FALSE) -> 210 | AT4: =IFERROR(VLOOKUP(D10,AN3:AR6,5,FALSE),"") -> $/cwt | AU4: =IFERROR(VLOOKUP(G10,AN3:AR6,5,FALSE),"") -> $/bu | AV4: =IFERROR(VLOOKUP(J10,AN3:AR6,5,FALSE),"") -> $/bu | AW4: Broadcast | BC4: =BD4 -> 0 | BD4: =IF(OR(H5='Sys1'!H5,H5='Sys2'!H5),0,1) -> 0 | BG4: =IF(OR(AM16='Sys1'!N6,AM16='Sys2'!N6),0,1) -> 1 | BJ4: =AN4 -> Corn | BK4: =IF($D$10=BJ4,$D$12,IF($G$10=BJ4,$G$12,IF($J$10=BJ4,$J$12,0))) -> 3.35 | BL4: =IF($D$10=BJ4,$D$15,IF($G$10=BJ4,$G$15, IF($J$10=BJ4,$J$15, 0))) -> 386.61 | BN4: =BJ4 -> Corn | BO4: =AQ4 -> 3.35 | BP4: =AM4 -> 386.61 | BR4: =BN4 -> Corn | BS4: =IF(BK4<>0, BK4, BO4) -> 3.35 | BT4: =IF(BL4<>0,BL4,BP4) -> 386.61
B5: Select the typical duration of crop rotation: (number of crops in rotation) | H5: 3 | K5: System 2: | L5: Diverse Traits | U5: 2 | V5: =L5 -> Diverse Traits | X5: =Names!F10 -> Soybean_FS | Y5: =TSE!I38 -> 32.05 | Z5: =TSE!I39 -> 24.23 | AA5: 19.3 | AB5: =TSE!I42 -> 18.22 | AC5: =ROUND(TSE!I50*C28+3.88/3,2) -> 37.88 | AD5: =ROUND(TSE!I48*C28,2) -> 11.91 | AE5: 1 | AG5: =TSE!M37 -> 4.3 | AH5: 0.27 | AI5: 0 | AJ5: =ROUND(0.047,2) -> 0.05 | AK5: =ROUND(TSE!I49*C27+7,2) -> 16.46 | AL5: =TSE!I45 -> 7.21 | AM5: =ROUND((Y5+Z5+AA5+AB5+AC5+AD5+AE5+AK5+AL5)+(Y5+Z5+AA5+AB5+AC5+AD5+AE5+AK5+AL5)/2*0.5*AG5/100+AH5*$AS$5+AI5*$AS$5+AJ5*$AS$5-AF5,2) -> 189.27 | AN5: =Names!F10 -> Soybean_FS | AO5: 60 | AP5: bu/acre | AQ5: 10 | AR5: $/bu | AS5: =HLOOKUP(AN5,$AO$10:$AQ$11,2,FALSE) -> 60 | AW5: Drill Seed | BG5: =IF(OR(AM17='Sys1'!N7,AM17='Sys2'!N7),0,1) -> 1 | BJ5: =AN5 -> Soybean_FS | BK5: 10 | BL5: 189.27 | BN5: =BJ5 -> Soybean_FS | BO5: =AQ5 -> 10 | BP5: =AM5 -> 189.27 | BR5: =BN5 -> Soybean_FS | BS5: =IF(BK5<>0, BK5, BO5) -> 10 | BT5: 189.27
X6: =Names!F11 -> Soybean_Double | Y6: =Y5 -> 32.05 | Z6: =Z5 -> 24.23 | AA6: 19.3 | AB6: 18.22 | AC6: 37.88 | AD6: 11.91 | AE6: 1 | AF6: 40.56 | AG6: =TSE!M37 -> 4.3 | AH6: 0.27 | AI6: 0 | AJ6: =ROUND(0.047,2) -> 0.05 | AK6: =AK5 -> 16.46 | AL6: =AL5 -> 7.21 | AM6: =ROUND((Y6+Z6+AA6+AB6+AC6+AD6+AE6+AK6+AL6)+(Y6+Z6+AA6+AB6+AC6+AD6+AE6+AK6+AL6)/2*0.5*AG6/100+AH6*$AS$6+AI6*$AS$6+AJ6*$AS$6-AF6,2) ->  | AN6: =Names!F11 -> Soybean_Double | AO6: 60 | AP6: bu/acre | AQ6: 10 | AR6: $/bu | AS6: =HLOOKUP(AN6,$AO$10:$AQ$11,2,FALSE) ->  | BG6: =IF(OR(AX10='Sys1'!N8,AX10='Sys2'!N8),0,1) -> 0 | BJ6: =AN6 -> Soybean_Double | BK6: 0 | BL6: =IF($D$10=BJ6,$D$15,IF($G$10=BJ6,$G$15, IF($J$10=BJ6,$J$15, 0))) -> 0 | BN6: =BJ6 -> Soybean_Double | BO6: =AQ6 -> 10 | BP6: =AM6 ->  | BR6: =BN6 -> Soybean_Double | BS6: =IF(BK6<>0, BK6, BO6) -> 10
B7: Select a typical crop rotation (a), enter expected yield (b) and price received (c), and calculate the total specified expenses (d) for each crop in the rotation: | AS7: Default Fall Options | AX7: User-Specified Fall Options | BG7: =IF(OR(AX11='Sys1'!N9,AX11='Sys2'!N9),0,1) -> 1 | BJ7: Expected yield levels (user specified) | BN7: Expected yield levels (default) | BQ7: Yield levels to be used in the strategy page
B8: (Click on the 'Calculate Costs' buttons below to determine total specified expenses) | W8: TSE Userform Controls | Y8: Fert | Z8: Insect | AA8: Fung | AB8: R&M | AC8: Irr. (Fuel&Supplies) | AD8: Fuel (excl. Irr) | AE8: Rent | AF8: Returns | AG8: Op Int (%) | AH8: Haul ($/bu) | AI8: Dry ($/bu) | AJ8: Checkoff ($/bu) | AK8: Labor (ins. & fees) | AL8: Misc. | AM8: TSE | AR8: Fall Options | AS8: Default | AT8: User | AU8: Price ($/lb) | AV8: Quantity | AW8: Seeding | AX8: Default | AY8: User | AZ8: Price ($/lb) | BA8: Quantity | BB8: Seeding | BG8: =IF(OR(AY9='Sys1'!N10,AY9='Sys2'!N10),0,1) -> 0 | BK8: =AN3 -> Cotton | BL8: =IF($D$10=BK8,$D$11,IF($G$10=BK8,$G$11,IF($J$10=BK8,$J$11,0))) -> 1200 | BN8: =AN3 -> Cotton | BO8: 1200 | BQ8: =AN3 -> Cotton | BR8: =IF(BL8<>0, BL8, BO8) -> 1200
D9: Year 1 | G9: Year 2 | J9: Year 3 | U9: Rot 1 | V9: =D10 -> Cotton | W9: Defaults | X9: Rot 1 | Y9: =VLOOKUP($V$9,$X$3:$AL$6,2,FALSE) -> 72.48 | Z9: =VLOOKUP($V$9,$X$3:$AL$6,3,FALSE) -> 100.53 | AA9: =VLOOKUP($V$9,$X$3:$AL$6,4,FALSE) -> 33.16 | AB9: =VLOOKUP($V$9,$X$3:$AL$6,5,FALSE) -> 34.56 | AC9: =VLOOKUP($V$9,$X$3:$AL$6,6,FALSE) -> 41.21 | AD9: =VLOOKUP($V$9,$X$3:$AL$6,7,FALSE) -> 23.18 | AE9: =VLOOKUP($V$9,$X$3:$AL$6,8,FALSE) -> 1 | AF9: =VLOOKUP($V$9,$X$3:$AL$6,9,FALSE) -> 0 | AG9: =VLOOKUP($V$9,$X$3:$AL$6,10,FALSE) -> 4.3 | AH9: =VLOOKUP($V$9,$X$3:$AL$6,11,FALSE) -> 0 | AI9: =VLOOKUP($V$9,$X$3:$AL$6,12,FALSE) -> 0 | AJ9: =VLOOKUP($V$9,$X$3:$AL$6,13,FALSE) -> 0 | AK9: =VLOOKUP($V$9,$X$3:$AL$6,14,FALSE) -> 32.78 | AL9: =VLOOKUP($V$9,$X$3:$AL$6,15,FALSE) -> 11.41 | AM9: =ROUND(VLOOKUP($V$9,$X$3:$AM$6,16,FALSE),2) -> 354.08 | AO9: Rot1 | AP9: Rot2 | AQ9: Rot3 | AR9: =Names!D3 -> MB Plough | AS9: TRUE | AT9: FALSE | AU9: 15 | AX9: TRUE | AY9: FALSE | AZ9: 15 | BC9: =SUM(BD9+BE9+BF9) -> 0 | BD9: =IF(OR(D10='Sys1'!D10,D10='Sys2'!D10),0,1) -> 0 | BE9: =IF(OR(G10='Sys1'!G10,G10='Sys2'!G10),0,1) -> 0 | BF9: =IF(OR(J10='Sys1'!J10,J10='Sys2'!J10),0,1) -> 0 | BG9: =IF(OR(AY10='Sys1'!N11,AY10='Sys2'!N11),0,1) -> 0 | BK9: =AN4 -> Corn | BL9: =IF($D$10=BK9,$D$11,IF($G$10=BK9,$G$11,IF($J$10=BK9,$J$11,0))) -> 210 | BN9: Corn | BO9: 210 | BQ9: =AN4 -> Corn | BR9: =IF(BL9<>0, BL9, BO9) -> 210
B10: a. Typical Rotation | D10: Cotton | G10: Corn | J10: Soybean_FS | U10: Rot 2 | V10: =G10 -> Corn | X10: Rot 2 | Y10: =VLOOKUP($V$10,$X$3:$AL$6,2,FALSE) -> 158.97 | Z10: =VLOOKUP($V$10,$X$3:$AL$6,3,FALSE) -> 11.6 | AA10: =VLOOKUP($V$10,$X$3:$AL$6,4,FALSE) -> 0 | AB10: =VLOOKUP($V$10,$X$3:$AL$6,5,FALSE) -> 25.49 | AC10: =VLOOKUP($V$10,$X$3:$AL$6,6,FALSE) -> 47.77 | AD10: =VLOOKUP($V$10,$X$3:$AL$6,7,FALSE) -> 14.08 | AE10: =VLOOKUP($V$10,$X$3:$AL$6,8,FALSE) -> 1 | AF10: =VLOOKUP($V$10,$X$3:$AL$6,9,FALSE) -> 0 | AG10: =VLOOKUP($V$10,$X$3:$AL$6,10,FALSE) -> 4.3 | AH10: =VLOOKUP($V$10,$X$3:$AL$6,11,FALSE) -> 0.25 | AI10: =VLOOKUP($V$10,$X$3:$AL$6,12,FALSE) -> 0.19 | AJ10: =VLOOKUP($V$10,$X$3:$AL$6,13,FALSE) -> 0.01 | AK10: =VLOOKUP($V$10,$X$3:$AL$6,14,FALSE) -> 17.09 | AL10: =VLOOKUP($V$10,$X$3:$AL$6,15,FALSE) -> 13 | AM10: =ROUND(VLOOKUP($V$10,$X$3:$AM$6,16,FALSE),2) -> 386.61 | AO10: =D10 -> Cotton | AP10: =G10 -> Corn | AQ10: =J10 -> Soybean_FS | AR10: =Names!D4 -> Cereal Rye Cover | AS10: TRUE | AT10: FALSE | AU10: 0.63 | AV10: 90 | AW10: Broadcast | AX10: TRUE | AY10: FALSE | AZ10: 0.63 | BA10: 90 | BB10: Broadcast | BC10: =SUM(BD10+BE10+BF10) -> 0 | BD10: =IF(OR(D11='Sys1'!D11,D11='Sys2'!D11),0,1) -> 0 | BE10: =IF(OR(G11='Sys1'!G11,G11='Sys2'!G11),0,1) -> 0 | BF10: =IF(OR(J11='Sys1'!J11,J11='Sys2'!J11),0,1) -> 0 | BG10: =IF(OR(AY11='Sys1'!N12,AY11='Sys2'!N12),0,1) -> 0 | BK10: =AN5 -> Soybean_FS | BL10: 60 | BN10: Soybean_FS | BO10: 60 | BQ10: =AN5 -> Soybean_FS | BR10: 60
B11: b. Expected Yield | D11: 1200 | E11: =IF(D10="","",VLOOKUP(D10,AN3:AP6,3,FALSE)) -> lbs/acre | G11: 210 | H11: =IFERROR(VLOOKUP(G10,AN3:AP6,3,FALSE),"") -> bu/acre | J11: 60 | K11: =IFERROR(VLOOKUP(J10,AN3:AP6,3,FALSE),"") -> bu/acre | U11: Rot 3 | V11: =J10 -> Soybean_FS | X11: Rot 3 | Y11: =VLOOKUP($V$11,$X$3:$AL$6,2,FALSE) -> 32.05 | Z11: =VLOOKUP($V$11,$X$3:$AL$6,3,FALSE) -> 24.23 | AA11: =VLOOKUP($V$11,$X$3:$AL$6,4,FALSE) -> 19.3 | AB11: =VLOOKUP($V$11,$X$3:$AL$6,5,FALSE) -> 18.22 | AC11: =VLOOKUP($V$11,$X$3:$AL$6,6,FALSE) -> 37.88 | AD11: =VLOOKUP($V$11,$X$3:$AL$6,7,FALSE) -> 11.91 | AE11: =VLOOKUP($V$11,$X$3:$AL$6,8,FALSE) -> 1 | AF11: =VLOOKUP($V$11,$X$3:$AL$6,9,FALSE) -> 0 | AG11: =VLOOKUP($V$11,$X$3:$AL$6,10,FALSE) -> 4.3 | AH11: =VLOOKUP($V$11,$X$3:$AL$6,11,FALSE) -> 0.27 | AI11: =VLOOKUP($V$11,$X$3:$AL$6,12,FALSE) -> 0 | AJ11: =VLOOKUP($V$11,$X$3:$AL$6,13,FALSE) -> 0.05 | AK11: =VLOOKUP($V$11,$X$3:$AL$6,14,FALSE) -> 16.46 | AL11: =VLOOKUP($V$11,$X$3:$AL$6,15,FALSE) -> 7.21 | AM11: =ROUND(VLOOKUP($V$11,$X$3:$AM$6,16,FALSE),2) -> 189.27 | AO11: =D11 -> 1200 | AP11: =G11 -> 210 | AQ11: =J11 -> 60 | AR11: =Names!D5 -> Cover Crop Mix | AS11: TRUE | AT11: FALSE | AU11: 2.44 | AV11: 12 | AW11: Broadcast | AX11: TRUE | AY11: FALSE | AZ11: 2.44 | BA11: 12 | BB11: Broadcast | BC11: =SUM(BD11+BE11+BF11) -> 0 | BD11: =IF(OR(D12='Sys1'!D12,D12='Sys2'!D12),0,1) -> 0 | BE11: =IF(OR(G12='Sys1'!G12,G12='Sys2'!G12),0,1) -> 0 | BF11: =IF(OR(J12='Sys1'!J12,J12='Sys2'!J12),0,1) -> 0 | BG11: =IF(OR(AY12='Sys1'!N13,AY12='Sys2'!N13),0,1) -> 0 | BK11: =AN6 -> Soybean_Double | BL11: 0 | BN11: Soybean_Double | BO11: 60 | BQ11: =AN6 -> Soybean_Double | BR11: 60
B12: c. Expected Price | D12: 0.65 | E12: =IF(D10="","",VLOOKUP(D10,AN3:AR6,5,FALSE)) -> $/cwt | G12: 3.35 | H12: =IFERROR(VLOOKUP(G10,AN3:AR6,5,FALSE),"") -> $/bu | J12: 10 | K12: =IFERROR(VLOOKUP(J10,AN3:AR6,5,FALSE),"") -> $/bu | U12: Rot 1 | V12: =D11 -> 1200 | W12: CC Inputs | X12: Rot 1 | Y12: 72.48 | Z12: 100.53 | AA12: 33.16 | AB12: 34.56 | AC12: 41.21 | AD12: 23.18 | AE12: 1 | AF12: 0 | AG12: 4.3 | AH12: 0 | AI12: 0 | AJ12: 0 | AK12: 32.78 | AL12: 11.41 | AM12: =ROUND((Y12+Z12+AA12+AB12+AC12+AD12+AE12+AK12+AL12)+(Y12+Z12+AA12+AB12+AC12+AD12+AE12+AK12+AL12)/2*0.5*AG12/100+AH12*$V$12+AI12*$V$12+AJ12*$V$12-AF12,2) -> 354.08 | AO12: =D12 -> 0.65 | AP12: =G12 -> 3.35 | AQ12: =J12 -> 10 | AR12: =Names!D6 -> Windrow Burn | AS12: TRUE | AT12: FALSE | AU12: 0 | AX12: TRUE | AY12: FALSE | AZ12: 0 | BG12: =IF(OR(AZ9='Sys1'!N14,AZ9='Sys2'!N14),0,1) -> 0
U13: Rot 2 | V13: =G11 -> 210 | X13: Rot 2 | Y13: 158.97 | Z13: 11.6 | AA13: 0 | AB13: 25.49 | AC13: 47.77 | AD13: 14.08 | AE13: 1 | AF13: 0 | AG13: 4.3 | AH13: 0.25 | AI13: 0.19 | AJ13: 0.01 | AK13: 17.09 | AL13: 13 | AM13: =ROUND((Y13+Z13+AA13+AB13+AC13+AD13+AE13+AK13+AL13)+(Y13+Z13+AA13+AB13+AC13+AD13+AE13+AK13+AL13)/2*0.5*AG13/100+AH13*$V$13+AI13*$V$13+AJ13*$V$13-AF13,2) -> 386.61 | AO13: =IF(AO10="","",VLOOKUP(AO10,$X$3:$AM$6,14,FALSE)) -> 32.78 | AP13: =IF(AP10="","",VLOOKUP(AP10,$X$3:$AM$6,14,FALSE)) -> 17.09 | AQ13: =IF(AQ10="","",VLOOKUP(AQ10,$X$3:$AM$6,14,FALSE)) -> 16.46 | BG13: =IF(OR(AZ10='Sys1'!N15,AZ10='Sys2'!N15),0,1) -> 0
B14: d. Total Specified Expense | U14: Rot 3 | V14: =J11 -> 60 | X14: Rot 3 | Y14: 32.05 | Z14: 24.23 | AA14: 19.3 | AB14: 18.22 | AC14: 37.88 | AD14: 11.91 | AE14: 1 | AF14: 0 | AG14: 4.3 | AH14: 0.27 | AI14: 0 | AJ14: 0.05 | AK14: 16.46 | AL14: 7.21 | AM14: =ROUND((Y14+Z14+AA14+AB14+AC14+AD14+AE14+AK14+AL14)+(Y14+Z14+AA14+AB14+AC14+AD14+AE14+AK14+AL14)/2*0.5*AG14/100+AH14*$V$14+AI14*$V$14+AJ14*$V$14-AF14,2) -> 189.27 | AN14: Default Match (T/F) | AO14: =IF(AO10="","",VLOOKUP(AO10,$AN$3:$AR$6,2,FALSE)) -> 1200 | AP14: =IF(AP10="","",VLOOKUP(AP10,$AN$3:$AR$6,2,FALSE)) -> 210 | AQ14: =IF(AQ10="","",VLOOKUP(AQ10,$AN$3:$AR$6,2,FALSE)) -> 60 | BC14: =SUM(BD14+BE14+BF14) -> 0 | BD14: =IF(OR(D15='Sys1'!D15,D15='Sys2'!D15),0,1) -> 0 | BE14: =IF(OR(G15='Sys1'!G15,G15='Sys2'!G15),0,1) -> 0 | BF14: =IF(OR(J15='Sys1'!J15,J15='Sys2'!J15),0,1) -> 0 | BG14: =IF(OR(AZ11='Sys1'!N16,AZ11='Sys2'!N16),0,1) -> 0 | BJ14: Parameter Estimations (weed density, fecundity and seed loss)
D15: 354.08 | E15: =IF(D10="","","per acre") -> per acre | G15: 386.61 | H15: =IF(G10="","","per acre") -> per acre | J15: 189.27 | K15: =IF(J10="","","per acre") -> per acre | W15: Saved Inputs | X15: Rot 1 | Y15: 72.48 | Z15: 100.53 | AA15: 33.16 | AB15: 34.56 | AC15: 41.21 | AD15: 23.18 | AE15: 1 | AF15: 0 | AG15: 4.3 | AH15: 0 | AI15: 0 | AJ15: 0 | AK15: 32.78 | AL15: 11.41 | AM15: 354.08 | AN15: =IF(AM15=AM9,TRUE,FALSE) -> TRUE | AO15: =IF(AO10="","",VLOOKUP(AO10,$AN$3:$AR$6,4,FALSE)) -> 0.65 | AP15: =IF(AP10="","",VLOOKUP(AP10,$AN$3:$AR$6,4,FALSE)) -> 3.35 | AQ15: =IF(AQ10="","",VLOOKUP(AQ10,$AN$3:$AR$6,4,FALSE)) -> 10 | BG15: =IF(OR(AZ12='Sys1'!N17,AZ12='Sys2'!N17),0,1) -> 0 | BJ15: Initial pop. density previous fall/250 sq.ft | BM15: =BK24 -> 10 | BS15: =Biology!C6 -> Size of the field unit | BT15: =Biology!E6 -> 250
X16: Rot 2 | Y16: 158.97 | Z16: 11.6 | AA16: 0 | AB16: 25.49 | AC16: 47.77 | AD16: 14.08 | AE16: 1 | AF16: 0 | AG16: 4.3 | AH16: 0.25 | AI16: 0.19 | AJ16: 0.01 | AK16: 17.09 | AL16: 13 | AM16: 386.61 | AN16: =IF(AM16=AM10,TRUE,FALSE) -> TRUE | BG16: =IF(OR(BA9='Sys1'!N18,BA9='Sys2'!N18),0,1) -> 0 | BJ16: Viable seed added to the soil/250 sq.ft | BM16: =BQ24 -> 722380.0978 | BO16: =Biology!S51 -> Density dependent fecundity (Year 0 - fall dynamics) | BS16: =Biology!D7 -> 250 sqft = | BT16: =BT15*0.092903 -> 23.22575
A17: g. | B17: Select up to four crop traits for each crop to create a default rotation (in the order specified here -- blanks are interpreted as conventional): | M17: Specify prices and rates for Fall options: | X17: Rot 3 | Y17: 32.05 | Z17: 24.23 | AA17: 19.3 | AB17: 18.22 | AC17: 37.88 | AD17: 11.91 | AE17: 1 | AF17: 0 | AG17: 4.3 | AH17: 0.27 | AI17: 0 | AJ17: 0.05 | AK17: 16.46 | AL17: 7.21 | AM17: 189.27 | AN17: =IF(AM17=AM11,TRUE,FALSE) -> TRUE | BC17: =SUM(BD17+BE17+BF17) -> 0 | BD17: =IF(OR(D18='Sys1'!D18,D18='Sys2'!D18),0,1) -> 0 | BE17: =IF(OR(G18='Sys1'!G18,G18='Sys2'!G18),0,1) -> 0 | BF17: =IF(OR(J18='Sys1'!J18,J18='Sys2'!J18),0,1) -> 0 | BG17: =IF(OR(BA10='Sys1'!N19,BA10='Sys2'!N19),0,1) -> 0 | BJ17: Total seed in spring - Year 1/250 sq.ft | BM17: =(BM16*Biology!E38*Biology!E39*Biology!E40) -> 131473.1778
D18: =IF(D10="","",D10) -> Cotton | G18: =IF(G10="","",G10) -> Corn | J18: =IF(J10="","",J10) -> Soybean_FS | BP18: =Biology!S53 -> Carrying capacity (seed/250 sq.ft): | BQ18: =Biology!U53 -> 100000000
BJ19: Weed density options (#/250 sqft) | BP19: =Biology!S54 -> Fecundity (/m2) | BQ19: =((BT19*BT20)/(1+BT19*BT20/BT21)) -> 138233.5646 | BS19: =Biology!W54 -> g (seed/plant) | BT19: =Biology!X54 -> 421000
C20: =IF($H$5=1,"Years 1, 5 & 9",IF($H$5=2,"Years 1 & 9",IF($H$5=3,"Year 1",FALSE))) -> Year 1 | D20: Glytol/LibertyLink | F20: =IF($H$5=1,"",IF($H$5=2,"Years 2 & 10",IF($H$5=3,"Year 2",FALSE))) -> Year 2 | G20: Roundup Ready | I20: =IF($H$5=1,"",IF($H$5=2,"",IF($H$5=3,"Year 3",FALSE))) -> Year 3 | J20: Xtend | U20: Labor | V20: 13.45 | W20: Weed density options | Y20: Low (1-3) | Z20: 1 | AA20: Resistance Matrix | AF20: Rotations | BC20: =SUM(BD20+BE20+BF20) -> 0 | BD20: =IF(OR(D20='Sys1'!D20,D20='Sys2'!D20),0,1) -> 0 | BE20: =IF(OR(G20='Sys1'!G20,G20='Sys2'!G20),0,1) -> 0 | BF20: =IF(OR(J20='Sys1'!J20,J20='Sys2'!J20),0,1) -> 0 | BG20: =IF(OR(BA11='Sys1'!N20,BA11='Sys2'!N20),0,1) -> 0 | BJ20: =Y20 -> Low (1-3) | BK20: 1 | BP20: =Biology!S55 -> Fecundity (/250 sq.ft) | BQ20: =BQ19*BT16 -> 3210578.212 | BS20: =Biology!W55 -> d (density/m row) | BT20: =BM15/BT16 -> 0.430556602
C21: =IF($H$5=1,"Years 2, 6 & 10",IF($H$5=2,"Year 3",IF($H$5=3,"Year 4",FALSE))) -> Year 4 | D21: LibertyLink | F21: =IF($H$5=1,"",IF($H$5=2,"Year 4",IF($H$5=3,"Year 5",FALSE))) -> Year 5 | G21: Conventional | I21: =IF($H$5=1,"",IF($H$5=2,"",IF($H$5=3,"Year 6",FALSE))) -> Year 6 | J21: Enlist | U21: Fuel | V21: 2.2 | Y21: Medium (4-7) | Z21: 5 | AA21: RR ALS | AB21: None | AC21: Low | AD21: Moderate | AE21: High | AF21: 1 | BC21: =SUM(BD21+BE21+BF21) -> 0 | BD21: =IF(OR(D21='Sys1'!D21,D21='Sys2'!D21),0,1) -> 0 | BE21: =IF(OR(G21='Sys1'!G21,G21='Sys2'!G21),0,1) -> 0 | BF21: =IF(OR(J21='Sys1'!J21,J21='Sys2'!J21),0,1) -> 0 | BG21: =IF(OR(BA12='Sys1'!N21,BA12='Sys2'!N21),0,1) -> 0 | BJ21: Medium (4-7) | BK21: 5 | BP21: =Biology!S56 -> Fecundity per carry. Cap./250 sq ft | BQ21: =IF(BQ20<BQ18,BQ20,BQ18) -> 3210578.212 | BS21: =Biology!W56 -> B (fitted constant) | BT21: =Biology!X56 -> 582300 | BU21: =Biology!Y55 -> (den/m2)
C22: =IF($H$5=1,"Years 3 & 7",IF($H$5=2,"Year 5",IF($H$5=3,"Year 7",FALSE))) -> Year 7 | D22: Glytol/LibertyLink | F22: =IF($H$5=1,"",IF($H$5=2,"Year 6",IF($H$5=3,"Year 8",FALSE))) -> Year 8 | G22: Roundup/LibertyLink | I22: =IF($H$5=1,"",IF($H$5=2,"",IF($H$5=3,"Year 9",FALSE))) -> Year 9 | J22: Xtend | U22: Discount rate | V22: 0.05 | Y22: High (8-15) | Z22: 10 | AA22: None | AB22: 10 | AC22: 10 | AD22: 20 | AE22: 50 | AF22: 2 | BC22: =SUM(BD22+BE22+BF22) -> 0 | BD22: =IF(OR(D22='Sys1'!D22,D22='Sys2'!D22),0,1) -> 0 | BE22: =IF(OR(G22='Sys1'!G22,G22='Sys2'!G22),0,1) -> 0 | BF22: =IF(OR(J22='Sys1'!J22,J22='Sys2'!J22),0,1) -> 0 | BG22: =IF(OR(BB10='Sys1'!N22,BB10='Sys2'!N22),0,1) -> 0 | BJ22: High (8-15) | BK22: 10 | BP22: =Biology!S57 -> Viable seed in Yr 0/250 sq ft | BQ22: =BQ21*Biology!E37 -> 2889520.391 | BS22: =Biology!W57 -> F= | BT22: =Biology!X57 -> ((g*d)/(1+g*d/B))
C23: =IF($H$5=1,"Years 4 & 8",IF($H$5=2,"Year 7",IF($H$5=3,"Year 10",FALSE))) -> Year 10 | D23: Enlist | F23: =IF($H$5=1,"",IF($H$5=2,"Year 8",IF($H$5=3,"",FALSE))) ->  | I23: =IF($H$5=1,"",IF($H$5=2,"",IF($H$5=3,"",FALSE))) ->  | Y23: Very High (16-25) | Z23: 20 | AA23: Low | AB23: 10 | AC23: 15 | AD23: 30 | AE23: 75 | AF23: 3 | BG23: =IF(OR(BB11='Sys1'!N23,BB11='Sys2'!N23),0,1) -> 0 | BJ23: Very High (16-25) | BK23: 20 | BP23: =Biology!S58 -> Fecundity correction for emergence timing, density dependence, etc. | BQ23: =0.5*0.5 -> 0.25
W24: Resistance | Y24: None | Z24: 10 | AA24: Moderate | AB24: 20 | AC24: 30 | AD24: 50 | AE24: 100 | BG24: =SUM(BG3:BG23) -> 4 | BJ24: Density selected | BK24: =VLOOKUP(H26,BJ20:BK23,2,FALSE) -> 10 | BP24: =Biology!S59 -> Final viable fresh seed added to the soil in Year 0 | BQ24: =BQ22*BQ23 -> 722380.0978
B25: Enter other expenses associated with herbicide application: | G25: Select weed density: (plants per 250 square feet) | M25: Enter the extent of pre-existing resistance: | Y25: Low | Z25: 20 | AA25: High | AB25: 50 | AC25: 75 | AD25: 100 | AE25: 150 | BC25: =BD25+BE25 -> 0 | BD25: =IF(OR(H26='Sys1'!H26,H26='Sys2'!H26),0,1) -> 0 | BE25: =IF(OR(P26='Sys1'!P26,P26='Sys2'!P26),0,1) -> 0
H26: High (8-15) | M26: Roundup | P26: High | Y26: Moderate | Z26: 50 | BC26: =BD26+BE26 -> 0 | BD26: =IF(OR(C27='Sys1'!C27,C27='Sys2'!C27),0,1) -> 0 | BE26: =IF(OR(P27='Sys1'!P27,P27='Sys2'!P27),0,1) -> 0
B27: Labor ($/hr) | C27: 13.45 | M27: ALS Chemistry | P27: High | Y27: High | Z27: 100 | BC27: =BD27+BE27 -> 0 | BD27: =IF(OR(C28='Sys1'!C28,C28='Sys2'!C28),0,1) -> 0 | BE27: =IF(OR(P28='Sys1'!P28,P28='Sys2'!P28),0,1) -> 0
B28: Fuel ($/gal) | C28: 2.2 | M28: PPO | P28: High | BC28: =BD28 -> 0 | BD28: =IF(OR(C29='Sys1'!C29,C29='Sys2'!C29),0,1) -> 0
B29: Amortization Rate | C29: 0.05
B32: Copyright & Disclaimer
B33: The user acknowledges and agrees as conditions of use that:
B34: (a) PAM and all associated content are the copyright of the University of Arkansas, Texas A&M AgriLife Research, the University of Western Australia (UWA) and the Department of Agriculture and Food Western Australia (DAFWA). Material contained in PAM must not be reproduced, or modified and distributed, in whole or in part or in any manner whatsoever without the written permission of the developers.
B35: (b) The copyright holders accept no responsibility for and make no representations whether expressed or implied as to the accuracy or reliability in any aspect of any material in this publication.
B36: (c) The copyright holders are not liable for any loss or damage (including direct, consequential or economic) which may result directly or indirectly from the use of PAM or information in any associated content.
B38: Requisite Supporting Software: This version of PAM requires Microsoft Excel® for Windows® version 2007 or later.
Y45: Year 1 | Z45: Year 2 | AA45: Year 3 | AB45: Year 4 | AC45: Year 5 | AD45: Year 6 | AE45: Year 7 | AF45: Year 8 | AG45: Year 9 | AH45: Year 10
X46: Crop | Y46: =+D10 -> Cotton | Z46: =IF($H$5=1,$D$10,$G$10) -> Corn | AA46: =IF($H$5=3,$J$10,$D$10) -> Soybean_FS | AB46: =IF($H$5=2,$G$10,$D$10) -> Cotton | AC46: =IF($H$5=3,$G$10,$D$10) -> Corn | AD46: =IF($H$5=3,$J$10,IF($H$5=2,$G$10,$D$10)) -> Soybean_FS | AE46: =+D10 -> Cotton | AF46: =IF($H$5=1,$D$10,$G$10) -> Corn | AG46: =IF($H$5=3,$J$10,$D$10) -> Soybean_FS | AH46: =IF($H$5=2,$G$10,$D$10) -> Cotton
X47: Trait | Y47: =IF(D20="",Names!$H$3,D20) -> Glytol/LibertyLink | Z47: =IF($H$5=1,IF(D21="",Names!$H$3,D21),IF(G20="",Names!$H$3,G20)) -> Roundup Ready | AA47: =IF($H$5=3,IF(J20="",Names!$H$3,J20),IF($H$5=1,IF(D22="",Names!$H$3,D22),IF(D21="",Names!$H$3,D21))) -> Xtend | AB47: =IF($H$5=3,IF(D21="",Names!$H$3,D21),IF($H$5=1,IF(D23="",Names!$H$3,D23),IF(G21="",Names!$H$3,G21))) -> LibertyLink | AC47: =IF($H$5=3,IF(G21="",Names!$H$3,G21),IF($H$5=1,IF(D20="",Names!$H$3,D20),IF(D22="",Names!$H$3,D22))) -> Conventional | AD47: =IF($H$5=3,IF(J21="",Names!$H$3,J21),IF($H$5=1,IF(D21="",Names!$H$3,D21),IF(G22="",Names!$H$3,G22))) -> Enlist | AE47: =IF($H$5=3,IF(D22="",Names!$H$3,D22),IF($H$5=1,IF(D22="",Names!$H$3,D22),IF(D23="",Names!$H$3,D23))) -> Glytol/LibertyLink | AF47: =IF($H$5=3,IF(G22="",Names!$H$3,G22),IF($H$5=1,IF(D23="",Names!$H$3,D23),IF(G23="",Names!$H$3,G23))) -> Roundup/LibertyLink | AG47: =IF($H$5=3,IF(J22="",Names!$H$3,J22),IF($H$5=1,IF(D20="",Names!$H$3,D20),IF(D20="",Names!$H$3,D20))) -> Xtend | AH47: =IF($H$5=3,IF(D23="",Names!$H$3,D23),IF($H$5=1,IF(D21="",Names!$H$3,D21),IF(G20="",Names!$H$3,G20))) -> Enlist

Sheet Sys1 (hidden)
T2: User-Specified Fall Options | Y2: Counter
B3: =G3 -> 1 | D3: Karen Lindsay | G3: =IF(D3='1.System'!D3,0,1) -> 1 | M3: Corn/Cotton/Soybean | P3: =IF(M3='1.System'!L4,SUM(B3:B29)+SUM(Y4:AC7)+SUM(AL9:AZ11)) -> 46 | T3: Default | U3: User | V3: Price ($/lb) | W3: Quantity | X3: Seeding | Y3: Default | Z3: User | AA3: Price ($/lb) | AB3: Quantity | AC3: Seeding
S4: ='1.System'!AR9 -> MB Plough | T4: TRUE | U4: FALSE | V4: 15 | Y4: =IF(T4='1.System'!AX9,0,1) -> 0 | Z4: =IF(U4='1.System'!AY9,0,1) -> 0 | AA4: =IF(V4='1.System'!AZ9,0,1) -> 0
B5: =I5 -> 0 | H5: 3 | I5: =IF(H5='1.System'!H5,0,1) -> 0 | S5: ='1.System'!AR10 -> Cereal Rye Cover | T5: TRUE | U5: FALSE | V5: 0.63 | W5: 90 | X5: Broadcast | Y5: =IF(T5='1.System'!AX10,0,1) -> 0 | Z5: =IF(U5='1.System'!AY10,0,1) -> 0 | AA5: =IF(V5='1.System'!AZ10,0,1) -> 0 | AB5: =IF(W5='1.System'!BA10,0,1) -> 0 | AC5: =IF(X5='1.System'!BB10,0,1) -> 0
S6: ='1.System'!AR11 -> Cover Crop Mix | T6: TRUE | U6: FALSE | V6: 2.44 | W6: 12 | X6: Broadcast | Y6: =IF(T6='1.System'!AX11,0,1) -> 0 | Z6: =IF(U6='1.System'!AY11,0,1) -> 0 | AA6: =IF(V6='1.System'!AZ11,0,1) -> 0 | AB6: =IF(W6='1.System'!BA11,0,1) -> 0 | AC6: =IF(X6='1.System'!BB11,0,1) -> 0
S7: ='1.System'!AR12 -> Windrow Burn | T7: TRUE | U7: FALSE | V7: 0 | Y7: =IF(T7='1.System'!AX12,0,1) -> 0 | Z7: =IF(U7='1.System'!AY12,0,1) -> 0 | AA7: =IF(V7='1.System'!AZ12,0,1) -> 0
N8: TRUE | T8: TSE Userform Controls | V8: Fert | W8: Insect | X8: Fung | Y8: Mach | Z8: Irr | AA8: Fuel | AB8: Rent | AC8: Returns | AD8: Op Int | AE8: Haul | AF8: Dry | AG8: Checkoff | AH8: Labor | AI8: Misc | AJ8: TSE | AK8: Counter
D9: Year 1 | G9: Year 2 | J9: Year 3 | N9: FALSE | T9: Saved Inputs | U9: Rot 1 | V9: 158.97 | W9: 11.6 | X9: 0 | Y9: 25.49 | Z9: 47.77 | AA9: 14.08 | AB9: 1 | AC9: 0 | AD9: 4.3 | AE9: 0.25 | AF9: 0.19 | AG9: 0.01 | AH9: 17.09 | AI9: 13 | AJ9: 386.61 | AK9: Rot 1 | AL9: =IF(V9='1.System'!Y15,0,1) -> 1 | AM9: =IF(W9='1.System'!Z15,0,1) -> 1 | AN9: =IF(X9='1.System'!AA15,0,1) -> 1 | AO9: =IF(Y9='1.System'!AB15,0,1) -> 1 | AP9: =IF(Z9='1.System'!AC15,0,1) -> 1 | AQ9: =IF(AA9='1.System'!AD15,0,1) -> 1 | AR9: =IF(AB9='1.System'!AE15,0,1) -> 0 | AS9: =IF(AC9='1.System'!AF15,0,1) -> 0 | AT9: =IF(AD9='1.System'!AG15,0,1) -> 0 | AU9: =IF(AE9='1.System'!AH15,0,1) -> 1 | AV9: =IF(AF9='1.System'!AI15,0,1) -> 1 | AW9: =IF(AG9='1.System'!AJ15,0,1) -> 1 | AX9: =IF(AH9='1.System'!AK15,0,1) -> 1 | AY9: =IF(AI9='1.System'!AL15,0,1) -> 1 | AZ9: =IF(AJ9='1.System'!AM15,0,1) -> 1
B10: =SUM(E10+H10+K10) -> 2 | D10: Corn | E10: =IF(D10='1.System'!D10,0,1) -> 1 | G10: Cotton | H10: =IF(G10='1.System'!G10,0,1) -> 1 | J10: Soybean_FS | K10: =IF(J10='1.System'!J10,0,1) -> 0 | N10: FALSE | U10: Rot 2 | V10: 72.48 | W10: 100.53 | X10: 33.16 | Y10: 34.56 | Z10: 41.21 | AA10: 23.18 | AB10: 1 | AC10: 0 | AD10: 4.3 | AE10: 0 | AF10: 0 | AG10: 0 | AH10: 32.78 | AI10: 11.41 | AJ10: 354.08 | AK10: Rot 2 | AL10: =IF(V10='1.System'!Y16,0,1) -> 1 | AM10: =IF(W10='1.System'!Z16,0,1) -> 1 | AN10: =IF(X10='1.System'!AA16,0,1) -> 1 | AO10: =IF(Y10='1.System'!AB16,0,1) -> 1 | AP10: =IF(Z10='1.System'!AC16,0,1) -> 1 | AQ10: =IF(AA10='1.System'!AD16,0,1) -> 1 | AR10: =IF(AB10='1.System'!AE16,0,1) -> 0 | AS10: =IF(AC10='1.System'!AF16,0,1) -> 0 | AT10: =IF(AD10='1.System'!AG16,0,1) -> 0 | AU10: =IF(AE10='1.System'!AH16,0,1) -> 1 | AV10: =IF(AF10='1.System'!AI16,0,1) -> 1 | AW10: =IF(AG10='1.System'!AJ16,0,1) -> 1 | AX10: =IF(AH10='1.System'!AK16,0,1) -> 1 | AY10: =IF(AI10='1.System'!AL16,0,1) -> 1 | AZ10: =IF(AJ10='1.System'!AM16,0,1) -> 1
B11: =SUM(E11+H11+K11) -> 2 | D11: 210 | E11: =IF(D11='1.System'!D11,0,1) -> 1 | G11: 1200 | H11: =IF(G11='1.System'!G11,0,1) -> 1 | J11: 60 | K11: =IF(J11='1.System'!J11,0,1) -> 0 | N11: FALSE | U11: Rot 3 | V11: 32.05 | W11: 24.23 | X11: 19.3 | Y11: 18.22 | Z11: 37.88 | AA11: 11.91 | AB11: 1 | AC11: 0 | AD11: 4.3 | AE11: 0.27 | AF11: 0 | AG11: 0.05 | AH11: 16.46 | AI11: 7.21 | AJ11: 189.27 | AK11: Rot 3 | AL11: =IF(V11='1.System'!Y17,0,1) -> 0 | AM11: =IF(W11='1.System'!Z17,0,1) -> 0 | AN11: =IF(X11='1.System'!AA17,0,1) -> 0 | AO11: =IF(Y11='1.System'!AB17,0,1) -> 0 | AP11: =IF(Z11='1.System'!AC17,0,1) -> 0 | AQ11: =IF(AA11='1.System'!AD17,0,1) -> 0 | AR11: =IF(AB11='1.System'!AE17,0,1) -> 0 | AS11: =IF(AC11='1.System'!AF17,0,1) -> 0 | AT11: =IF(AD11='1.System'!AG17,0,1) -> 0 | AU11: =IF(AE11='1.System'!AH17,0,1) -> 0 | AV11: =IF(AF11='1.System'!AI17,0,1) -> 0 | AW11: =IF(AG11='1.System'!AJ17,0,1) -> 0 | AX11: =IF(AH11='1.System'!AK17,0,1) -> 0 | AY11: =IF(AI11='1.System'!AL17,0,1) -> 0 | AZ11: =IF(AJ11='1.System'!AM17,0,1) -> 0
B12: =SUM(E12+H12+K12) -> 2 | D12: 3.35 | E12: =IF(D12='1.System'!D12,0,1) -> 1 | G12: 0.65 | H12: =IF(G12='1.System'!G12,0,1) -> 1 | J12: 10 | K12: =IF(J12='1.System'!J12,0,1) -> 0 | N12: FALSE
N13: FALSE
N14: 15
B15: =SUM(E15+H15+K15) -> 2 | D15: 386.61 | E15: =IF(D15='1.System'!D15,0,1) -> 1 | G15: 354.08 | H15: =IF(G15='1.System'!G15,0,1) -> 1 | J15: 189.27 | K15: =IF(J15='1.System'!J15,0,1) -> 0 | N15: 0.63
N16: 2.44
N17: 0
B18: =SUM(F18+I18+L18) -> 2 | D18: Corn | F18: =IF(D18='1.System'!D18,0,1) -> 1 | G18: Cotton | I18: =IF(G18='1.System'!G18,0,1) -> 1 | J18: Soybean_FS | L18: =IF(J18='1.System'!J18,0,1) -> 0
N19: 90
B20: =SUM(F20+I20+L20) -> 2 | D20: Roundup Ready | F20: =IF(D20='1.System'!D20,0,1) -> 1 | G20: Roundup Ready | I20: =IF(G20='1.System'!G20,0,1) -> 0 | J20: LibertyLink | L20: =IF(J20='1.System'!J20,0,1) -> 1 | N20: 12
B21: =SUM(F21+I21+L21) -> 3 | D21: Roundup/LibertyLink | F21: =IF(D21='1.System'!D21,0,1) -> 1 | G21: LibertyLink | I21: =IF(G21='1.System'!G21,0,1) -> 1 | J21: Roundup Ready | L21: =IF(J21='1.System'!J21,0,1) -> 1
B22: =SUM(F22+I22+L22) -> 3 | D22: Enlist | F22: =IF(D22='1.System'!D22,0,1) -> 1 | G22: Enlist | I22: =IF(G22='1.System'!G22,0,1) -> 1 | J22: Enlist | L22: =IF(J22='1.System'!J22,0,1) -> 1 | N22: Broadcast
B23: =SUM(F23+I23+L23) -> 1 | D23: Conventional | F23: =IF(D23='1.System'!D23,0,1) -> 1 | I23: =IF(G23='1.System'!G23,0,1) -> 0 | L23: =IF(J23='1.System'!J23,0,1) -> 0 | N23: Broadcast
B26: =K26+R26 -> 1 | H26: Very High (16-25) | K26: =IF(H26='1.System'!H26,0,1) -> 1 | P26: High | R26: =IF(P26='1.System'!P26,0,1) -> 0
B27: =D27+R27 -> 0 | C27: 13.45 | D27: =IF(C27='1.System'!C27,0,1) -> 0 | P27: High | R27: =IF(P27='1.System'!P27,0,1) -> 0
B28: =D28+R28 -> 1 | C28: 2.2 | D28: =IF(C28='1.System'!C28,0,1) -> 0 | P28: Moderate | R28: =IF(P28='1.System'!P28,0,1) -> 1
B29: =D29 -> 0 | C29: 0.05 | D29: =IF(C29='1.System'!C29,0,1) -> 0
D33: CommPrice (user) | E33: TSE (user) | H33: CommPrice (default) | I33: TSE (default) | L33: Final. Comm.Price | M33: Final.TSE
C34: ='1.System'!AN3 -> Cotton | D34: =IF($D$10=C34,$D$12,IF($G$10=C34,$G$12,IF($J$10=C34,$J$12,0))) -> 0.65 | E34: =IF($D$10=C34,$D$15,IF($G$10=C34,$G$15,IF($J$10=C34,$J$15, 0))) -> 354.08 | G34: =C34 -> Cotton | H34: ='1.System'!AQ3 -> 0.65 | I34: ='1.System'!AM3 -> 354.08 | K34: =G34 -> Cotton | L34: =IF(D34<>0, D34, H34) -> 0.65 | M34: =IF(E34<>0,E34,I34) -> 354.08
C35: ='1.System'!AN4 -> Corn | D35: =IF($D$10=C35,$D$12,IF($G$10=C35,$G$12,IF($J$10=C35,$J$12,0))) -> 3.35 | E35: =IF($D$10=C35,$D$15,IF($G$10=C35,$G$15,IF($J$10=C35,$J$15, 0))) -> 386.61 | G35: =C35 -> Corn | H35: ='1.System'!AQ4 -> 3.35 | I35: ='1.System'!AM4 -> 386.61 | K35: =G35 -> Corn | L35: =IF(D35<>0, D35, H35) -> 3.35 | M35: =IF(E35<>0,E35,I35) -> 386.61
C36: ='1.System'!AN5 -> Soybean_FS | D36: 10 | E36: =IF($D$10=C36,$D$15,IF($G$10=C36,$G$15,IF($J$10=C36,$J$15, 0))) -> 189.27 | G36: =C36 -> Soybean_FS | H36: ='1.System'!AQ5 -> 10 | I36: ='1.System'!AM5 -> 189.27 | K36: =G36 -> Soybean_FS | L36: =IF(D36<>0, D36, H36) -> 10 | M36: 189.27
C37: ='1.System'!AN6 -> Soybean_Double | D37: 0 | E37: =IF($D$10=C37,$D$15,IF($G$10=C37,$G$15,IF($J$10=C37,$J$15,0))) -> 0 | G37: =C37 -> Soybean_Double | H37: ='1.System'!AQ6 -> 10 | I37: ='1.System'!AM6 ->  | K37: =G37 -> Soybean_Double | L37: =IF(D37<>0, D37, H37) -> 10
C38: Expected yield levels (user specified) | G38: Expected yield levels (default) | J38: Yield levels to be used in the strategy page
D39: =C34 -> Cotton | E39: =IF($D$10=D39,$D$11,IF($G$10=D39,$G$11,IF($J$10=D39,$J$11,0))) -> 1200 | G39: =G34 -> Cotton | H39: ='1.System'!AO3 -> 1200 | J39: =K34 -> Cotton | K39: =IF(E39<>0, E39, H39) -> 1200
D40: =C35 -> Corn | E40: =IF($D$10=D40,$D$11,IF($G$10=D40,$G$11,IF($J$10=D40,$J$11,0))) -> 210 | G40: =G35 -> Corn | H40: ='1.System'!AO4 -> 210 | J40: =K35 -> Corn | K40: =IF(E40<>0, E40, H40) -> 210
D41: Soybean_FS | E41: =IF($D$10=D41,$D$11,IF($G$10=D41,$G$11,IF($J$10=D41,$J$11,0))) -> 60 | G41: Soybean_FS | H41: ='1.System'!AO5 -> 60 | J41: Soybean_FS | K41: =IF(E41<>0, E41, H41) -> 60
D42: Soybean_Double | E42: =IF($D$10=D42,$D$11,IF($G$10=D42,$G$11,IF($J$10=D42,$J$11,0))) -> 0 | G42: Soybean_Double | H42: ='1.System'!AO6 -> 60 | J42: Soybean_Double | K42: 60
C44: =Biology!B21 -> Parameter Estimations (weed density, fecundity and seed loss)
C45: =Biology!B23 -> Initial pop. density previous fall/250 sq.ft | F45: =D54 -> 20 | L45: =Biology!C6 -> Size of the field unit | M45: =Biology!E6 -> 250
C46: =Biology!B24 -> Viable seed added to the soil/250 sq.ft | F46: =J54 -> 1167584.556 | L46: =Biology!D7 -> 250 sqft = | M46: =M45*0.092903 -> 23.22575
C47: =Biology!B25 -> Total seed in spring - Year 1/250 sq.ft | F47: =(F46*Biology!E38*Biology!E39*Biology!E40) -> 212500.3891
I48: =Biology!S53 -> Carrying capacity (seed/250 sq.ft): | J48: =Biology!U53 -> 100000000
C49: =Biology!B27 -> Weed density options (#/250 sqft) | I49: =Biology!S54 -> Fecundity (/m2) | J49: =((M49*M50)/(1+M49*M50/M51)) -> 223427.2173 | L49: =Biology!W54 -> g (seed/plant) | M49: ='1.System'!BT19 -> 421000
C50: =Biology!B28 -> Low (1-3) | D50: ='1.System'!Z20 -> 1 | I50: =Biology!S55 -> Fecundity (/250 sq.ft) | J50: =J49*M46 -> 5189264.692 | L50: =Biology!W55 -> d (density/m row) | M50: =F45/M46 -> 0.8611132041 | N50: =Biology!Y55 -> (den/m2)
C51: =Biology!B29 -> Medium (4-7) | D51: ='1.System'!Z21 -> 5 | I51: =Biology!S56 -> Fecundity per carry. Cap./250 sq ft | J51: =IF(J50<J48,J50,J48) -> 5189264.692 | L51: =Biology!W56 -> B (fitted constant) | M51: =Biology!X56 -> 582300
C52: =Biology!B30 -> High (8-15) | D52: ='1.System'!Z22 -> 10 | I52: =Biology!S57 -> Viable seed in Yr 0/250 sq ft | J52: =J51*Biology!E37 -> 4670338.223 | L52: =Biology!W57 -> F= | M52: =Biology!X57 -> ((g*d)/(1+g*d/B))
C53: =Biology!B31 -> Very High (16-25) | D53: ='1.System'!Z23 -> 20 | I53: =Biology!S58 -> Fecundity correction for emergence timing, density dependence, etc. | J53: =0.5*0.5 -> 0.25 | K53: =Biology!V58 -> 0
C54: =Biology!B32 -> Density selected | D54: =VLOOKUP(H26,C50:D53,2,FALSE) -> 20 | I54: =Biology!S59 -> Final viable fresh seed added to the soil in Year 0 | J54: =J52*J53 -> 1167584.556

Sheet Sys2 (hidden)
T2: User-Specified Fall Options | Y2: Counter
B3: =G3 -> 0 | D3: Jason Norsworthy | G3: =IF(D3='1.System'!D3,0,1) -> 0 | M3: Diverse Traits | P3: =IF(M3='1.System'!L5,SUM(B3:B29)+SUM(Y4:AC7)+SUM(AL9:AZ11)) -> 0 | T3: Default | U3: User | V3: Price ($/lb) | W3: Quantity | X3: Seeding | Y3: Default | Z3: User | AA3: Price ($/lb) | AB3: Quantity | AC3: Seeding
S4: ='1.System'!AR9 -> MB Plough | T4: TRUE | U4: FALSE | V4: 15 | Y4: =IF(T4='1.System'!AX9,0,1) -> 0 | Z4: =IF(U4='1.System'!AY9,0,1) -> 0 | AA4: =IF(V4='1.System'!AZ9,0,1) -> 0
B5: =I5 -> 0 | H5: 3 | I5: =IF(H5='1.System'!H5,0,1) -> 0 | S5: ='1.System'!AR10 -> Cereal Rye Cover | T5: TRUE | U5: FALSE | V5: 0.63 | W5: 90 | X5: Broadcast | Y5: =IF(T5='1.System'!AX10,0,1) -> 0 | Z5: =IF(U5='1.System'!AY10,0,1) -> 0 | AA5: =IF(V5='1.System'!AZ10,0,1) -> 0 | AB5: =IF(W5='1.System'!BA10,0,1) -> 0 | AC5: =IF(X5='1.System'!BB10,0,1) -> 0
S6: ='1.System'!AR11 -> Cover Crop Mix | T6: TRUE | U6: FALSE | V6: 2.44 | W6: 12 | X6: Broadcast | Y6: =IF(T6='1.System'!AX11,0,1) -> 0 | Z6: =IF(U6='1.System'!AY11,0,1) -> 0 | AA6: =IF(V6='1.System'!AZ11,0,1) -> 0 | AB6: =IF(W6='1.System'!BA11,0,1) -> 0 | AC6: =IF(X6='1.System'!BB11,0,1) -> 0
S7: ='1.System'!AR12 -> Windrow Burn | T7: TRUE | U7: FALSE | V7: 0 | Y7: =IF(T7='1.System'!AX12,0,1) -> 0 | Z7: =IF(U7='1.System'!AY12,0,1) -> 0 | AA7: =IF(V7='1.System'!AZ12,0,1) -> 0
T8: TSE Userform Controls | V8: Fert | W8: Insect | X8: Fung | Y8: Mach | Z8: Irr | AA8: Fuel | AB8: Rent | AC8: Returns | AD8: Op Int | AE8: Haul | AF8: Dry | AG8: Checkoff | AH8: Labor | AI8: Misc | AJ8: TSE | AK8: Counter
D9: Year 1 | G9: Year 2 | J9: Year 3 | T9: Saved Inputs | U9: Rot 1 | V9: 72.48 | W9: 100.53 | X9: 33.16 | Y9: 34.56 | Z9: 41.21 | AA9: 23.18 | AB9: 1 | AC9: 0 | AD9: 4.3 | AE9: 0 | AF9: 0 | AG9: 0 | AH9: 32.78 | AI9: 11.41 | AJ9: 354.08 | AK9: Rot 1 | AL9: =IF(V9='1.System'!Y15,0,1) -> 0 | AM9: =IF(W9='1.System'!Z15,0,1) -> 0 | AN9: =IF(X9='1.System'!AA15,0,1) -> 0 | AO9: =IF(Y9='1.System'!AB15,0,1) -> 0 | AP9: =IF(Z9='1.System'!AC15,0,1) -> 0 | AQ9: =IF(AA9='1.System'!AD15,0,1) -> 0 | AR9: =IF(AB9='1.System'!AE15,0,1) -> 0 | AS9: =IF(AC9='1.System'!AF15,0,1) -> 0 | AT9: =IF(AD9='1.System'!AG15,0,1) -> 0 | AU9: =IF(AE9='1.System'!AH15,0,1) -> 0 | AV9: =IF(AF9='1.System'!AI15,0,1) -> 0 | AW9: =IF(AG9='1.System'!AJ15,0,1) -> 0 | AX9: =IF(AH9='1.System'!AK15,0,1) -> 0 | AY9: =IF(AI9='1.System'!AL15,0,1) -> 0 | AZ9: =IF(AJ9='1.System'!AM15,0,1) -> 0
B10: =SUM(E10+H10+K10) -> 0 | D10: Cotton | E10: =IF(D10='1.System'!D10,0,1) -> 0 | G10: Corn | H10: =IF(G10='1.System'!G10,0,1) -> 0 | J10: Soybean_FS | K10: =IF(J10='1.System'!J10,0,1) -> 0 | U10: Rot 2 | V10: 158.97 | W10: 11.6 | X10: 0 | Y10: 25.49 | Z10: 47.77 | AA10: 14.08 | AB10: 1 | AC10: 0 | AD10: 4.3 | AE10: 0.25 | AF10: 0.19 | AG10: 0.01 | AH10: 17.09 | AI10: 13 | AJ10: 386.61 | AK10: Rot 2 | AL10: =IF(V10='1.System'!Y16,0,1) -> 0 | AM10: =IF(W10='1.System'!Z16,0,1) -> 0 | AN10: =IF(X10='1.System'!AA16,0,1) -> 0 | AO10: =IF(Y10='1.System'!AB16,0,1) -> 0 | AP10: =IF(Z10='1.System'!AC16,0,1) -> 0 | AQ10: =IF(AA10='1.System'!AD16,0,1) -> 0 | AR10: =IF(AB10='1.System'!AE16,0,1) -> 0 | AS10: =IF(AC10='1.System'!AF16,0,1) -> 0 | AT10: =IF(AD10='1.System'!AG16,0,1) -> 0 | AU10: =IF(AE10='1.System'!AH16,0,1) -> 0 | AV10: =IF(AF10='1.System'!AI16,0,1) -> 0 | AW10: =IF(AG10='1.System'!AJ16,0,1) -> 0 | AX10: =IF(AH10='1.System'!AK16,0,1) -> 0 | AY10: =IF(AI10='1.System'!AL16,0,1) -> 0 | AZ10: =IF(AJ10='1.System'!AM16,0,1) -> 0
B11: =SUM(E11+H11+K11) -> 0 | D11: 1200 | E11: =IF(D11='1.System'!D11,0,1) -> 0 | G11: 210 | H11: =IF(G11='1.System'!G11,0,1) -> 0 | J11: 60 | K11: =IF(J11='1.System'!J11,0,1) -> 0 | U11: Rot 3 | V11: 32.05 | W11: 24.23 | X11: 19.3 | Y11: 18.22 | Z11: 37.88 | AA11: 11.91 | AB11: 1 | AC11: 0 | AD11: 4.3 | AE11: 0.27 | AF11: 0 | AG11: 0.05 | AH11: 16.46 | AI11: 7.21 | AJ11: 189.27 | AK11: Rot 3 | AL11: =IF(V11='1.System'!Y17,0,1) -> 0 | AM11: =IF(W11='1.System'!Z17,0,1) -> 0 | AN11: =IF(X11='1.System'!AA17,0,1) -> 0 | AO11: =IF(Y11='1.System'!AB17,0,1) -> 0 | AP11: =IF(Z11='1.System'!AC17,0,1) -> 0 | AQ11: =IF(AA11='1.System'!AD17,0,1) -> 0 | AR11: =IF(AB11='1.System'!AE17,0,1) -> 0 | AS11: =IF(AC11='1.System'!AF17,0,1) -> 0 | AT11: =IF(AD11='1.System'!AG17,0,1) -> 0 | AU11: =IF(AE11='1.System'!AH17,0,1) -> 0 | AV11: =IF(AF11='1.System'!AI17,0,1) -> 0 | AW11: =IF(AG11='1.System'!AJ17,0,1) -> 0 | AX11: =IF(AH11='1.System'!AK17,0,1) -> 0 | AY11: =IF(AI11='1.System'!AL17,0,1) -> 0 | AZ11: =IF(AJ11='1.System'!AM17,0,1) -> 0
B12: =SUM(E12+H12+K12) -> 0 | D12: 0.65 | E12: =IF(D12='1.System'!D12,0,1) -> 0 | G12: 3.35 | H12: =IF(G12='1.System'!G12,0,1) -> 0 | J12: 10 | K12: =IF(J12='1.System'!J12,0,1) -> 0
B15: =SUM(E15+H15+K15) -> 0 | D15: 354.08 | E15: =IF(D15='1.System'!D15,0,1) -> 0 | G15: 386.61 | H15: =IF(G15='1.System'!G15,0,1) -> 0 | J15: 189.27 | K15: =IF(J15='1.System'!J15,0,1) -> 0
B18: =SUM(F18+I18+L18) -> 0 | D18: Cotton | F18: =IF(D18='1.System'!D18,0,1) -> 0 | G18: Corn | I18: =IF(G18='1.System'!G18,0,1) -> 0 | J18: Soybean_FS | L18: =IF(J18='1.System'!J18,0,1) -> 0
B20: =SUM(F20+I20+L20) -> 0 | D20: Glytol/LibertyLink | F20: =IF(D20='1.System'!D20,0,1) -> 0 | G20: Roundup Ready | I20: =IF(G20='1.System'!G20,0,1) -> 0 | J20: Xtend | L20: =IF(J20='1.System'!J20,0,1) -> 0
B21: =SUM(F21+I21+L21) -> 0 | D21: LibertyLink | F21: =IF(D21='1.System'!D21,0,1) -> 0 | G21: Conventional | I21: =IF(G21='1.System'!G21,0,1) -> 0 | J21: Enlist | L21: =IF(J21='1.System'!J21,0,1) -> 0
B22: 0 | D22: Glytol/LibertyLink | F22: =IF(D22='1.System'!D22,0,1) -> 0 | G22: Roundup/LibertyLink | I22: =IF(G22='1.System'!G22,0,1) -> 0 | J22: Xtend | L22: =IF(J22='1.System'!J22,0,1) -> 0
B23: 0 | D23: Enlist | F23: =IF(D23='1.System'!D23,0,1) -> 0 | I23: =IF(G23='1.System'!G23,0,1) -> 0 | L23: =IF(J23='1.System'!J23,0,1) -> 0
B26: =K26+R26 -> 0 | H26: High (8-15) | K26: =IF(H26='1.System'!H26,0,1) -> 0 | P26: High | R26: =IF(P26='1.System'!P26,0,1) -> 0
B27: =D27+R27 -> 0 | C27: 13.45 | D27: =IF(C27='1.System'!C27,0,1) -> 0 | P27: High | R27: =IF(P27='1.System'!P27,0,1) -> 0
B28: =D28+R28 -> 0 | C28: 2.2 | D28: =IF(C28='1.System'!C28,0,1) -> 0 | P28: High | R28: =IF(P28='1.System'!P28,0,1) -> 0
B29: =D29 -> 0 | C29: 0.05 | D29: =IF(C29='1.System'!C29,0,1) -> 0
D33: CommPrice (user) | E33: TSE (user) | H33: CommPrice (default) | I33: TSE (default) | L33: Final. Comm.Price | M33: Final.TSE
C34: ='1.System'!AN3 -> Cotton | D34: =IF($D$10=C34,$D$12,IF($G$10=C34,$G$12,IF($J$10=C34,$J$12,0))) -> 0.65 | E34: =IF($D$10=C34,$D$15,IF($G$10=C34,$G$15,IF($J$10=C34,$J$15, 0))) -> 354.08 | G34: =C34 -> Cotton | H34: ='1.System'!AQ3 -> 0.65 | I34: ='1.System'!AM3 -> 354.08 | K34: =G34 -> Cotton | L34: =IF(D34<>0, D34, H34) -> 0.65 | M34: =IF(E34<>0,E34,I34) -> 354.08
C35: ='1.System'!AN4 -> Corn | D35: =IF($D$10=C35,$D$12,IF($G$10=C35,$G$12,IF($J$10=C35,$J$12,0))) -> 3.35 | E35: =IF($D$10=C35,$D$15,IF($G$10=C35,$G$15,IF($J$10=C35,$J$15, 0))) -> 386.61 | G35: =C35 -> Corn | H35: ='1.System'!AQ4 -> 3.35 | I35: ='1.System'!AM4 -> 386.61 | K35: =G35 -> Corn | L35: =IF(D35<>0, D35, H35) -> 3.35 | M35: =IF(E35<>0,E35,I35) -> 386.61
C36: ='1.System'!AN5 -> Soybean_FS | D36: 10 | E36: =IF($D$10=C36,$D$15,IF($G$10=C36,$G$15,IF($J$10=C36,$J$15, 0))) -> 189.27 | G36: =C36 -> Soybean_FS | H36: ='1.System'!AQ5 -> 10 | I36: ='1.System'!AM5 -> 189.27 | K36: =G36 -> Soybean_FS | L36: =IF(D36<>0, D36, H36) -> 10 | M36: 189.27
C37: ='1.System'!AN6 -> Soybean_Double | D37: 0 | E37: =IF($D$10=C37,$D$15,IF($G$10=C37,$G$15,IF($J$10=C37,$J$15,0))) -> 0 | G37: =C37 -> Soybean_Double | H37: ='1.System'!AQ6 -> 10 | I37: ='1.System'!AM6 ->  | K37: =G37 -> Soybean_Double | L37: =IF(D37<>0, D37, H37) -> 10
C38: Expected yield levels (user specified) | G38: Expected yield levels (default) | J38: Yield levels to be used in the strategy page
D39: =C34 -> Cotton | E39: =IF($D$10=D39,$D$11,IF($G$10=D39,$G$11,IF($J$10=D39,$J$11,0))) -> 1200 | G39: =G34 -> Cotton | H39: ='1.System'!AO3 -> 1200 | J39: =K34 -> Cotton | K39: =IF(E39<>0, E39, H39) -> 1200
D40: =C35 -> Corn | E40: =IF($D$10=D40,$D$11,IF($G$10=D40,$G$11,IF($J$10=D40,$J$11,0))) -> 210 | G40: =G35 -> Corn | H40: ='1.System'!AO4 -> 210 | J40: =K35 -> Corn | K40: =IF(E40<>0, E40, H40) -> 210
D41: Soybean_FS | E41: 60 | G41: Soybean_FS | H41: ='1.System'!AO5 -> 60 | J41: Soybean_FS | K41: 60
D42: Soybean_Double | E42: 0 | G42: Soybean_Double | H42: ='1.System'!AO6 -> 60 | J42: Soybean_Double | K42: 60
C44: =Biology!B21 -> Parameter Estimations (weed density, fecundity and seed loss)
C45: =Biology!B23 -> Initial pop. density previous fall/250 sq.ft | F45: =D54 -> 10 | L45: =Biology!C6 -> Size of the field unit | M45: =Biology!E6 -> 250
C46: =Biology!B24 -> Viable seed added to the soil/250 sq.ft | F46: =J54 -> 722380.0978 | L46: =Biology!D7 -> 250 sqft = | M46: =M45*0.092903 -> 23.22575
C47: =Biology!B25 -> Total seed in spring - Year 1/250 sq.ft | F47: =(F46*Biology!E38*Biology!E39*Biology!E40) -> 131473.1778
I48: =Biology!S53 -> Carrying capacity (seed/250 sq.ft): | J48: =Biology!U53 -> 100000000
C49: =Biology!B27 -> Weed density options (#/250 sqft) | I49: =Biology!S54 -> Fecundity (/m2) | J49: =((M49*M50)/(1+M49*M50/M51)) -> 138233.5646 | L49: =Biology!W54 -> g (seed/plant) | M49: ='1.System'!BT19 -> 421000
C50: =Biology!B28 -> Low (1-3) | D50: ='1.System'!Z20 -> 1 | I50: =Biology!S55 -> Fecundity (/250 sq.ft) | J50: =J49*M46 -> 3210578.212 | L50: =Biology!W55 -> d (density/m row) | M50: =F45/M46 -> 0.430556602 | N50: =Biology!Y55 -> (den/m2)
C51: =Biology!B29 -> Medium (4-7) | D51: ='1.System'!Z21 -> 5 | I51: =Biology!S56 -> Fecundity per carry. Cap./250 sq ft | J51: =IF(J50<J48,J50,J48) -> 3210578.212 | L51: =Biology!W56 -> B (fitted constant) | M51: =Biology!X56 -> 582300
C52: =Biology!B30 -> High (8-15) | D52: ='1.System'!Z22 -> 10 | I52: =Biology!S57 -> Viable seed in Yr 0/250 sq ft | J52: =J51*Biology!E37 -> 2889520.391 | L52: =Biology!W57 -> F= | M52: =Biology!X57 -> ((g*d)/(1+g*d/B))
C53: =Biology!B31 -> Very High (16-25) | D53: ='1.System'!Z23 -> 20 | I53: =Biology!S58 -> Fecundity correction for emergence timing, density dependence, etc. | J53: =0.5*0.5 -> 0.25 | K53: =Biology!V58 -> 0
C54: =Biology!B32 -> Density selected | D54: =VLOOKUP(H26,C50:D53,2,FALSE) -> 10 | I54: =Biology!S59 -> Final viable fresh seed added to the soil in Year 0 | J54: =J52*J53 -> 722380.0978

Sheet Management Options (hidden)
A1: SET UP Management Options | Z1: Options | AP1: Cotton | AQ1: Trait 1 | AR1: Trait 2 | AS1: Trait 3 | AT1: Trait 4 | AV1: Corn | AW1: Trait 1 | AX1: Trait 2 | AY1: Trait 3 | AZ1: Trait 4 | BB1: Soybean | BC1: Trait 1 | BD1: Trait 2 | BE1: Trait 3 | BF1: Trait 4
Y2: 0 | Z2: Default | AP2: BD | AQ2: =IF(C10=Names!H7,AP11,IF(C10=Names!H6,AS11,IF(C10=Names!H5,AV11,IF(C10=Names!H4,AY11,IF(C10=Names!H9,BB11,IF(C10=Names!H3,BE11,FALSE)))))) -> CottonBDCv | AR2: =IF(G10=Names!H7,AP11,IF(G10=Names!H6,AS11,IF(G10=Names!H5,AV11,IF(G10=Names!H4,AY11,IF(G10=Names!H9,BB11,IF(G10=Names!H3,BE11,FALSE)))))) -> CottonBDEn | AS2: =IF(K10=Names!H7,AP11,IF(K10=Names!H6,AS11,IF(K10=Names!H5,AV11,IF(K10=Names!H4,AY11,IF(K10=Names!H9,BB11,IF(K10=Names!H3,BE11,FALSE)))))) -> CottonBDLL | AT2: =IF(O10=Names!H7,AP11,IF(O10=Names!H6,AS11,IF(O10=Names!H5,AV11,IF(O10=Names!H4,AY11,IF(O10=Names!H9,BB11,IF(O10=Names!H3,BE11,FALSE)))))) -> CottonBDCv | AV2: BD | AW2: =IF($C$68=Names!H7,$AP69,IF($C$68=Names!H8,$AS69,IF($C$68=Names!H4,$AV69,IF($C$68=Names!H3,$AY69,FALSE)))) -> CornBDCv | AX2: =IF($G$68=Names!H7,$AP69,IF($G$68=Names!H8,$AS69,IF($G$68=Names!H4,$AV69,IF($G$68=Names!H3,$AY69,FALSE)))) -> CornBDEn | AY2: =IF($K$68=Names!H7,$AP69,IF($K$68=Names!H8,$AS69,IF($K$68=Names!H4,$AV69,IF($K$68=Names!H3,$AY69,FALSE)))) -> CornBDRR | AZ2: =IF($O$68=Names!H7,$AP69,IF($O$68=Names!H8,$AS69,IF($O$68=Names!H4,$AV69,IF($O$68=Names!H3,$AY69,FALSE)))) -> CornBDRRLL | BB2: BD | BC2: =IF($C$119=Names!H7,$AP122,IF($C$119=Names!H6,$AS122,IF($C$119=Names!H4,$AV122,IF($C$119=Names!H9,$AY122,IF($C$119=Names!H3,$BB122,FALSE))))) -> SoyBDEn | BD2: =IF($G$119=Names!H7,$AP122,IF($G$119=Names!H6,$AS122,IF($G$119=Names!H4,$AV122,IF($G$119=Names!H9,$AY122,IF($G$119=Names!H3,$BB122,FALSE))))) -> SoyBDCv | BE2: =IF($K$119=Names!H7,$AP122,IF($K$119=Names!H6,$AS122,IF($K$119=Names!H4,$AV122,IF($K$119=Names!H9,$AY122,IF($K$119=Names!H3,$BB122,FALSE))))) -> SoyBDLL | BF2: =IF($O$119=Names!H7,$AP122,IF($O$119=Names!H6,$AS122,IF($O$119=Names!H4,$AV122,IF($O$119=Names!H9,$AY122,IF($O$119=Names!H3,$BB122,FALSE))))) -> SoyBDEn
B3: System: | C3: Corn/Cotton/Soybean | G3: Option 1: | K3: Roundup LibertyLink | O3: Option 3: | S3: Not Saved | Y3: 1 | Z3: =K3 -> Roundup LibertyLink | AP3: PP | AQ3: =IF(C10=Names!H7,AP19,IF(C10=Names!H6,AS19,IF(C10=Names!H5,AV19,IF(C10=Names!H4,AY19,IF(C10=Names!H9,BB19,IF(C10=Names!H3,BE19,FALSE)))))) -> CottonPPCv | AR3: =IF(G10=Names!H7,AP19,IF(G10=Names!H6,AS19,IF(G10=Names!H5,AV19,IF(G10=Names!H4,AY19,IF(G10=Names!H9,BB19,IF(G10=Names!H3,BE19,FALSE)))))) -> CottonPPEn | AS3: =IF(K10=Names!H7,AP19,IF(K10=Names!H6,AS19,IF(K10=Names!H5,AV19,IF(K10=Names!H4,AY19,IF(K10=Names!H9,BB19,IF(K10=Names!H3,BE19,FALSE)))))) -> CottonPPLL | AT3: =IF(O10=Names!H7,AP19,IF(O10=Names!H6,AS19,IF(O10=Names!H5,AV19,IF(O10=Names!H4,AY19,IF(O10=Names!H9,BB19,IF(O10=Names!H3,BE19,FALSE)))))) -> CottonPPCv | AV3: Pre | AW3: =IF($C$68=Names!H7,$AP76,IF($C$68=Names!H8,$AS76,IF($C$68=Names!H4,$AV76,IF($C$68=Names!H3,$AY76,FALSE)))) -> CornPreCv | AX3: =IF($G$68=Names!H7,$AP76,IF($G$68=Names!H8,$AS76,IF($G$68=Names!H4,$AV76,IF($G$68=Names!H3,$AY76,FALSE)))) -> CornPreEn | AY3: =IF($K$68=Names!H7,$AP76,IF($K$68=Names!H8,$AS76,IF($K$68=Names!H4,$AV76,IF($K$68=Names!H3,$AY76,FALSE)))) -> CornPreRR | AZ3: =IF($O$68=Names!H7,$AP76,IF($O$68=Names!H8,$AS76,IF($O$68=Names!H4,$AV76,IF($O$68=Names!H3,$AY76,FALSE)))) -> CornPreRRLL | BB3: Pre | BC3: =IF($C$119=Names!H7,$AP130,IF($C$119=Names!H6,$AS130,IF($C$119=Names!H4,$AV130,IF($C$119=Names!H9,$AY130,IF($C$119=Names!H3,$BB130,FALSE))))) -> SoyPreEn | BD3: =IF($G$119=Names!H7,$AP130,IF($G$119=Names!H6,$AS130,IF($G$119=Names!H4,$AV130,IF($G$119=Names!H9,$AY130,IF($G$119=Names!H3,$BB130,FALSE))))) -> SoyPreCv | BE3: =IF($K$119=Names!H7,$AP130,IF($K$119=Names!H6,$AS130,IF($K$119=Names!H4,$AV130,IF($K$119=Names!H9,$AY130,IF($K$119=Names!H3,$BB130,FALSE))))) -> SoyPreLL | BF3: =IF($O$119=Names!H7,$AP130,IF($O$119=Names!H6,$AS130,IF($O$119=Names!H4,$AV130,IF($O$119=Names!H9,$AY130,IF($O$119=Names!H3,$BB130,FALSE))))) -> SoyPreEn
B4: Option: | C4: Default | G4: Option 2: | K4: LibertyLink & Treflan | O4: Option 4: | S4: Not Saved | Y4: 2 | Z4: =K4 -> LibertyLink & Treflan | AP4: Pre | AQ4: =IF(C10=Names!H7,AP26,IF(C10=Names!H6,AS26,IF(C10=Names!H5,AV26,IF(C10=Names!H4,AY26,IF(C10=Names!H9,BB26,IF(C10=Names!H3,BE26,FALSE)))))) -> CottonPreCv | AR4: =IF(G10=Names!H7,AP26,IF(G10=Names!H6,AS26,IF(G10=Names!H5,AV26,IF(G10=Names!H4,AY26,IF(G10=Names!H9,BB26,IF(G10=Names!H3,BE26,FALSE)))))) -> CottonPreEn | AS4: =IF(K10=Names!H7,AP26,IF(K10=Names!H6,AS26,IF(K10=Names!H5,AV26,IF(K10=Names!H4,AY26,IF(K10=Names!H9,BB26,IF(K10=Names!H3,BE26,FALSE)))))) -> CottonPreLL | AT4: =IF(O10=Names!H7,AP26,IF(O10=Names!H6,AS26,IF(O10=Names!H5,AV26,IF(O10=Names!H4,AY26,IF(O10=Names!H9,BB26,IF(O10=Names!H3,BE26,FALSE)))))) -> CottonPreCv | AV4: Post | AW4: =IF($C$68=Names!H7,$AP88,IF($C$68=Names!H8,$AS88,IF($C$68=Names!H4,$AV88,IF($C$68=Names!H3,$AY88,FALSE)))) -> CornPostCv | AX4: =IF($G$68=Names!H7,$AP88,IF($G$68=Names!H8,$AS88,IF($G$68=Names!H4,$AV88,IF($G$68=Names!H3,$AY88,FALSE)))) -> CornPostEn | AY4: =IF($K$68=Names!H7,$AP88,IF($K$68=Names!H8,$AS88,IF($K$68=Names!H4,$AV88,IF($K$68=Names!H3,$AY88,FALSE)))) -> CornPostRR | AZ4: =IF($O$68=Names!H7,$AP88,IF($O$68=Names!H8,$AS88,IF($O$68=Names!H4,$AV88,IF($O$68=Names!H3,$AY88,FALSE)))) -> CornPostRRLL | BB4: Post | BC4: =IF($C$119=Names!H7,$AP141,IF($C$119=Names!H6,$AS141,IF($C$119=Names!H4,$AV141,IF($C$119=Names!H9,$AY141,IF($C$119=Names!H3,$BB141,FALSE))))) -> SoyPostEn | BD4: =IF($G$119=Names!H7,$AP141,IF($G$119=Names!H6,$AS141,IF($G$119=Names!H4,$AV141,IF($G$119=Names!H9,$AY141,IF($G$119=Names!H3,$BB141,FALSE))))) -> SoyPostCv | BE4: =IF($K$119=Names!H7,$AP141,IF($K$119=Names!H6,$AS141,IF($K$119=Names!H4,$AV141,IF($K$119=Names!H9,$AY141,IF($K$119=Names!H3,$BB141,FALSE))))) -> SoyPostLL | BF4: =IF($O$119=Names!H7,$AP141,IF($O$119=Names!H6,$AS141,IF($O$119=Names!H4,$AV141,IF($O$119=Names!H9,$AY141,IF($O$119=Names!H3,$BB141,FALSE))))) -> SoyPostEn
B5: Select Crop: | Y5: 3 | Z5: =S3 -> Not Saved | AA5: Error Check: Current data saved or default? | AP5: Post | AQ5: =IF(C10=Names!H7,AP35,IF(C10=Names!H6,AS35,IF(C10=Names!H5,AV35,IF(C10=Names!H4,AY35,IF(C10=Names!H9,BB35,IF(C10=Names!H3,BE35,FALSE)))))) -> CottonPostCv | AR5: =IF(G10=Names!H7,AP35,IF(G10=Names!H6,AS35,IF(G10=Names!H5,AV35,IF(G10=Names!H4,AY35,IF(G10=Names!H9,BB35,IF(G10=Names!H3,BE35,FALSE)))))) -> CottonPostEn | AS5: =IF(K10=Names!H7,AP35,IF(K10=Names!H6,AS35,IF(K10=Names!H5,AV35,IF(K10=Names!H4,AY35,IF(K10=Names!H9,BB35,IF(K10=Names!H3,BE35,FALSE)))))) -> CottonPostLL | AT5: =IF(O10=Names!H7,AP35,IF(O10=Names!H6,AS35,IF(O10=Names!H5,AV35,IF(O10=Names!H4,AY35,IF(O10=Names!H9,BB35,IF(O10=Names!H3,BE35,FALSE)))))) -> CottonPostCv
W6: FALSE | X6: <<<-Enables Private sub in 2.Mgmt on False | Y6: 4 | Z6: =S4 -> Not Saved | AA6: =IF(C4="Default",AA9,IF(C4=K3,'Opt1'!G4,IF(C4=K4,'Opt2'!G4,IF(C4=S3,'Opt3'!G4,IF(C4=S4,'Opt4'!G4,"N/A"))))) -> 20 | AD6: =IF(AA6>0,TRUE,FALSE) -> TRUE | AP6: Lay | AQ6: =IF(C10=Names!H7,AP43,IF(C10=Names!H6,AS43,IF(C10=Names!H5,AV43,IF(C10=Names!H4,AY43,IF(C10=Names!H9,BB43,IF(C10=Names!H3,BE43,FALSE)))))) -> CottonLayCv | AR6: =IF(G10=Names!H7,AP43,IF(G10=Names!H6,AS43,IF(G10=Names!H5,AV43,IF(G10=Names!H4,AY43,IF(G10=Names!H9,BB43,IF(G10=Names!H3,BE43,FALSE)))))) -> CottonLayEn | AS6: =IF(K10=Names!H7,AP43,IF(K10=Names!H6,AS43,IF(K10=Names!H5,AV43,IF(K10=Names!H4,AY43,IF(K10=Names!H9,BB43,IF(K10=Names!H3,BE43,FALSE)))))) -> CottonLayLL | AT6: =IF(O10=Names!H7,AP43,IF(O10=Names!H6,AS43,IF(O10=Names!H5,AV43,IF(O10=Names!H4,AY43,IF(O10=Names!H9,BB43,IF(O10=Names!H3,BE43,FALSE)))))) -> CottonLayCv
C7: DO NOT Use Copy and Paste when editing the cells below
W8: Profile Defaults | AF8: Auto-Load Defaults on Crop Trait Change
G9: 7 | J9: 10 | K9: 11 | N9: 14 | S9: 19 | T9: 20 | Z9: Current saved as default? | AA9: =SUM(Y10:Y136,AA10:AA136,AC10:AC136,AE10:AE136) -> 20
B10: Cotton | C10: Roundup Ready | D10: 0 | G10: LibertyLink | H10: 0 | K10: Enlist | L10: 0 | O10: Roundup Ready | W10: Cotton | X10: Roundup Ready | Y10: =IF(C10=X10,0,1) -> 0 | Z10: LibertyLink | AA10: =IF(G10=Z10,0,1) -> 0 | AB10: Enlist | AC10: =IF(K10=AB10,0,1) -> 0 | AD10: Roundup Ready | AE10: =IF(O10=AD10,0,1) -> 0 | AF10: Cotton | AG10: =IF(C10=0,"",C10) -> Roundup Ready | AI10: =IF(G10=0,"",G10) -> LibertyLink | AK10: =IF(K10=0,"",K10) -> Enlist | AM10: =IF(O10=0,"",O10) -> Roundup Ready | AO10: =B10 -> Cotton | AP10: =Names!J5 -> Conventional | AS10: =Names!J6 -> Enlist | AV10: =Names!J7 -> Glytol/LibertyLink | AY10: =Names!J8 -> LibertyLink | BB10: =Names!J9 -> Roundup Ready | BE10: =Names!J10 -> Xtend
B11: Timing | C11: Crop Trait Options | D11: Price ($/ac) | E11: Efficacy | G11: Crop Trait Options | H11: Price ($/ac) | I11: Efficacy | K11: Crop Trait Options | L11: Price ($/ac) | M11: Efficacy | O11: Crop Trait Options | P11: Price ($/ac) | Q11: Efficacy | W11: Timing | X11: Crop Trait Options | Z11: Crop Trait Options | AB11: Crop Trait Options | AD11: Crop Trait Options | AF11: Timing | AG11: Crop Trait Options | AI11: Crop Trait Options | AK11: Crop Trait Options | AM11: Crop Trait Options | AO11: Timing | AP11: =Names!$M$5 -> CottonBDCv | AQ11: Cost | AS11: =Names!$M$6 -> CottonBDEn | AT11: Cost | AV11: =Names!$M$7 -> CottonBDGL | AW11: Cost | AY11: =Names!$M$8 -> CottonBDLL | AZ11: Cost | BB11: =Names!$M$9 -> CottonBDRR | BC11: Cost | BE11: =Names!$M$10 -> CottonBDXt | BF11: Cost
B12: Burndown | C12: 2,4-D | D12: =IF(C$10=$AP$10,VLOOKUP(C12,$AP$12:$AQ$17,2,FALSE),IF(C$10=$AS$10,VLOOKUP(C12,$AS$12:$AT$17,2,FALSE),IF(C$10=$AV$10,VLOOKUP(C12,$AV$12:$AW$17,2,FALSE),IF(C$10=$AY$10,VLOOKUP(C12,$AY$12:$AZ$17,2,FALSE),IF(C$10=$BB$10,VLOOKUP(C12,$BB$12:$BC$17,2,FALSE),IF(C$10=$BE$10,VLOOKUP(C12,$BE$12:$BF$17,2,FALSE))))))) -> 15.4 | E12: =IF(C$10=$AP$10,VLOOKUP(C12,$AP$12:$AR$17,3,FALSE),IF(C$10=$AS$10,VLOOKUP(C12,$AS$12:$AU$17,3,FALSE),IF(C$10=$AV$10,VLOOKUP(C12,$AV$12:$AX$17,3,FALSE),IF(C$10=$AY$10,VLOOKUP(C12,$AY$12:$BA$17,3,FALSE),IF(C$10=$BB$10,VLOOKUP(C12,$BB$12:$BD$17,3,FALSE),IF(C$10=$BE$10,VLOOKUP(C12,$BE$12:$BG$17,3,FALSE))))))) -> 0 | G12: 2,4-D | H12: =IF(G$10=$AP$10,VLOOKUP(G12,$AP$12:$AQ$17,2,FALSE),IF(G$10=$AS$10,VLOOKUP(G12,$AS$12:$AT$17,2,FALSE),IF(G$10=$AV$10,VLOOKUP(G12,$AV$12:$AW$17,2,FALSE),IF(G$10=$AY$10,VLOOKUP(G12,$AY$12:$AZ$17,2,FALSE),IF(G$10=$BB$10,VLOOKUP(G12,$BB$12:$BC$17,2,FALSE),IF(G$10=$BE$10,VLOOKUP(G12,$BE$12:$BF$17,2,FALSE))))))) -> 15.4 | I12: =IF(G$10=$AP$10,VLOOKUP(G12,$AP$12:$AR$17,3,FALSE),IF(G$10=$AS$10,VLOOKUP(G12,$AS$12:$AU$17,3,FALSE),IF(G$10=$AV$10,VLOOKUP(G12,$AV$12:$AX$17,3,FALSE),IF(G$10=$AY$10,VLOOKUP(G12,$AY$12:$BA$17,3,FALSE),IF(G$10=$BB$10,VLOOKUP(G12,$BB$12:$BD$17,3,FALSE),IF(G$10=$BE$10,VLOOKUP(G12,$BE$12:$BG$17,3,FALSE))))))) -> 0 | K12: 2,4-D | L12: =IF(K$10=$AP$10,VLOOKUP(K12,$AP$12:$AQ$17,2,FALSE),IF(K$10=$AS$10,VLOOKUP(K12,$AS$12:$AT$17,2,FALSE),IF(K$10=$AV$10,VLOOKUP(K12,$AV$12:$AW$17,2,FALSE),IF(K$10=$AY$10,VLOOKUP(K12,$AY$12:$AZ$17,2,FALSE),IF(K$10=$BB$10,VLOOKUP(K12,$BB$12:$BC$17,2,FALSE),IF(K$10=$BE$10,VLOOKUP(K12,$BE$12:$BF$17,2,FALSE))))))) -> 15.4 | M12: =IF(K$10=$AP$10,VLOOKUP(K12,$AP$12:$AR$17,3,FALSE),IF(K$10=$AS$10,VLOOKUP(K12,$AS$12:$AU$17,3,FALSE),IF(K$10=$AV$10,VLOOKUP(K12,$AV$12:$AX$17,3,FALSE),IF(K$10=$AY$10,VLOOKUP(K12,$AY$12:$BA$17,3,FALSE),IF(K$10=$BB$10,VLOOKUP(K12,$BB$12:$BD$17,3,FALSE),IF(K$10=$BE$10,VLOOKUP(K12,$BE$12:$BG$17,3,FALSE))))))) -> 0 | O12: 2,4-D | P12: =IF(O$10=$AP$10,VLOOKUP(O12,$AP$12:$AQ$17,2,FALSE),IF(O$10=$AS$10,VLOOKUP(O12,$AS$12:$AT$17,2,FALSE),IF(O$10=$AV$10,VLOOKUP(O12,$AV$12:$AW$17,2,FALSE),IF(O$10=$AY$10,VLOOKUP(O12,$AY$12:$AZ$17,2,FALSE),IF(O$10=$BB$10,VLOOKUP(O12,$BB$12:$BC$17,2,FALSE),IF(O$10=$BE$10,VLOOKUP(O12,$BE$12:$BF$17,2,FALSE))))))) -> 15.4 | Q12: =IF(O$10=$AP$10,VLOOKUP(O12,$AP$12:$AR$17,3,FALSE),IF(O$10=$AS$10,VLOOKUP(O12,$AS$12:$AU$17,3,FALSE),IF(O$10=$AV$10,VLOOKUP(O12,$AV$12:$AX$17,3,FALSE),IF(O$10=$AY$10,VLOOKUP(O12,$AY$12:$BA$17,3,FALSE),IF(O$10=$BB$10,VLOOKUP(O12,$BB$12:$BD$17,3,FALSE),IF(O$10=$BE$10,VLOOKUP(O12,$BE$12:$BG$17,3,FALSE))))))) -> 0 | W12: Burndown | X12: =IF(X$10=$AP$10,$AP$12,IF(X$10=$AS$10,$AS$12,IF(X$10=$AV$10,$AV$12,IF(X$10=$AY$10,$AY$12,IF(X$10=$BB$10,$BB$12,IF(X$10=$BE$10,$BE$12,"")))))) -> 2,4-D | Y12: =IF(C12=X12,0,1) -> 0 | Z12: =IF(Z$10=$AP$10,$AP$12,IF(Z$10=$AS$10,$AS$12,IF(Z$10=$AV$10,$AV$12,IF(Z$10=$AY$10,$AY$12,IF(Z$10=$BB$10,$BB$12,IF(Z$10=$BE$10,$BE$12,"")))))) -> 2,4-D | AA12: =IF(G12=Z12,0,1) -> 0 | AB12: =IF(AB$10=$AP$10,$AP$12,IF(AB$10=$AS$10,$AS$12,IF(AB$10=$AV$10,$AV$12,IF(AB$10=$AY$10,$AY$12,IF(AB$10=$BB$10,$BB$12,IF(AB$10=$BE$10,$BE$12,"")))))) -> 2,4-D | AC12: =IF(K12=AB12,0,1) -> 0 | AD12: =IF(AD$10=$AP$10,$AP$12,IF(AD$10=$AS$10,$AS$12,IF(AD$10=$AV$10,$AV$12,IF(AD$10=$AY$10,$AY$12,IF(AD$10=$BB$10,$BB$12,IF(AD$10=$BE$10,$BE$12,"")))))) -> 2,4-D | AE12: =IF(O12=AD12,0,1) -> 0 | AF12: Burndown | AG12: =IF(AG$10=$AP$10,$AP$12,IF(AG$10=$AS$10,$AS$12,IF(AG$10=$AV$10,$AV$12,IF(AG$10=$AY$10,$AY$12,IF(AG$10=$BB$10,$BB$12,IF(AG$10=$BE$10,$BE$12,"")))))) -> 2,4-D | AI12: =IF(AI$10=$AP$10,$AP$12,IF(AI$10=$AS$10,$AS$12,IF(AI$10=$AV$10,$AV$12,IF(AI$10=$AY$10,$AY$12,IF(AI$10=$BB$10,$BB$12,IF(AI$10=$BE$10,$BE$12,"")))))) -> 2,4-D | AK12: =IF(AK$10=$AP$10,$AP$12,IF(AK$10=$AS$10,$AS$12,IF(AK$10=$AV$10,$AV$12,IF(AK$10=$AY$10,$AY$12,IF(AK$10=$BB$10,$BB$12,IF(AK$10=$BE$10,$BE$12,"")))))) -> 2,4-D | AM12: =IF(AM$10=$AP$10,$AP$12,IF(AM$10=$AS$10,$AS$12,IF(AM$10=$AV$10,$AV$12,IF(AM$10=$AY$10,$AY$12,IF(AM$10=$BB$10,$BB$12,IF(AM$10=$BE$10,$BE$12,"")))))) -> 2,4-D | AO12: BD | AP12: =Names!$Z6 -> 2,4-D | AQ12: =VLOOKUP(AP12,Prices!$A$5:$J$38,10,FALSE) -> 15.4 | AS12: =Names!$AA6 -> 2,4-D | AT12: =VLOOKUP(AS12,Prices!$A$5:$J$38,10,FALSE) -> 15.4 | AV12: =Names!$AB6 -> 2,4-D | AW12: =VLOOKUP(AV12,Prices!$A$5:$J$38,10,FALSE) -> 15.4 | AY12: =Names!$AC6 -> 2,4-D | AZ12: =VLOOKUP(AY12,Prices!$A$5:$J$38,10,FALSE) -> 15.4 | BB12: =Names!$AD6 -> 2,4-D | BC12: =VLOOKUP(BB12,Prices!$A$5:$J$38,10,FALSE) -> 15.4 | BE12: =Names!$AE6 -> 2,4-D | BF12: =VLOOKUP(BE12,Prices!$A$5:$J$38,10,FALSE) -> 15.4
C13: Dicamba | D13: =IF(C$10=$AP$10,VLOOKUP(C13,$AP$12:$AQ$17,2,FALSE),IF(C$10=$AS$10,VLOOKUP(C13,$AS$12:$AT$17,2,FALSE),IF(C$10=$AV$10,VLOOKUP(C13,$AV$12:$AW$17,2,FALSE),IF(C$10=$AY$10,VLOOKUP(C13,$AY$12:$AZ$17,2,FALSE),IF(C$10=$BB$10,VLOOKUP(C13,$BB$12:$BC$17,2,FALSE),IF(C$10=$BE$10,VLOOKUP(C13,$BE$12:$BF$17,2,FALSE))))))) -> 76.8 | E13: =IF(C$10=$AP$10,VLOOKUP(C13,$AP$12:$AR$17,3,FALSE),IF(C$10=$AS$10,VLOOKUP(C13,$AS$12:$AU$17,3,FALSE),IF(C$10=$AV$10,VLOOKUP(C13,$AV$12:$AX$17,3,FALSE),IF(C$10=$AY$10,VLOOKUP(C13,$AY$12:$BA$17,3,FALSE),IF(C$10=$BB$10,VLOOKUP(C13,$BB$12:$BD$17,3,FALSE),IF(C$10=$BE$10,VLOOKUP(C13,$BE$12:$BG$17,3,FALSE))))))) -> 0 | G13: Dicamba | H13: =IF(G$10=$AP$10,VLOOKUP(G13,$AP$12:$AQ$17,2,FALSE),IF(G$10=$AS$10,VLOOKUP(G13,$AS$12:$AT$17,2,FALSE),IF(G$10=$AV$10,VLOOKUP(G13,$AV$12:$AW$17,2,FALSE),IF(G$10=$AY$10,VLOOKUP(G13,$AY$12:$AZ$17,2,FALSE),IF(G$10=$BB$10,VLOOKUP(G13,$BB$12:$BC$17,2,FALSE),IF(G$10=$BE$10,VLOOKUP(G13,$BE$12:$BF$17,2,FALSE))))))) -> 76.8 | I13: =IF(G$10=$AP$10,VLOOKUP(G13,$AP$12:$AR$17,3,FALSE),IF(G$10=$AS$10,VLOOKUP(G13,$AS$12:$AU$17,3,FALSE),IF(G$10=$AV$10,VLOOKUP(G13,$AV$12:$AX$17,3,FALSE),IF(G$10=$AY$10,VLOOKUP(G13,$AY$12:$BA$17,3,FALSE),IF(G$10=$BB$10,VLOOKUP(G13,$BB$12:$BD$17,3,FALSE),IF(G$10=$BE$10,VLOOKUP(G13,$BE$12:$BG$17,3,FALSE))))))) -> 0 | K13: Dicamba | L13: =IF(K$10=$AP$10,VLOOKUP(K13,$AP$12:$AQ$17,2,FALSE),IF(K$10=$AS$10,VLOOKUP(K13,$AS$12:$AT$17,2,FALSE),IF(K$10=$AV$10,VLOOKUP(K13,$AV$12:$AW$17,2,FALSE),IF(K$10=$AY$10,VLOOKUP(K13,$AY$12:$AZ$17,2,FALSE),IF(K$10=$BB$10,VLOOKUP(K13,$BB$12:$BC$17,2,FALSE),IF(K$10=$BE$10,VLOOKUP(K13,$BE$12:$BF$17,2,FALSE))))))) -> 76.8 | M13: =IF(K$10=$AP$10,VLOOKUP(K13,$AP$12:$AR$17,3,FALSE),IF(K$10=$AS$10,VLOOKUP(K13,$AS$12:$AU$17,3,FALSE),IF(K$10=$AV$10,VLOOKUP(K13,$AV$12:$AX$17,3,FALSE),IF(K$10=$AY$10,VLOOKUP(K13,$AY$12:$BA$17,3,FALSE),IF(K$10=$BB$10,VLOOKUP(K13,$BB$12:$BD$17,3,FALSE),IF(K$10=$BE$10,VLOOKUP(K13,$BE$12:$BG$17,3,FALSE))))))) -> 0 | O13: Dicamba | P13: =IF(O$10=$AP$10,VLOOKUP(O13,$AP$12:$AQ$17,2,FALSE),IF(O$10=$AS$10,VLOOKUP(O13,$AS$12:$AT$17,2,FALSE),IF(O$10=$AV$10,VLOOKUP(O13,$AV$12:$AW$17,2,FALSE),IF(O$10=$AY$10,VLOOKUP(O13,$AY$12:$AZ$17,2,FALSE),IF(O$10=$BB$10,VLOOKUP(O13,$BB$12:$BC$17,2,FALSE),IF(O$10=$BE$10,VLOOKUP(O13,$BE$12:$BF$17,2,FALSE))))))) -> 76.8 | Q13: =IF(O$10=$AP$10,VLOOKUP(O13,$AP$12:$AR$17,3,FALSE),IF(O$10=$AS$10,VLOOKUP(O13,$AS$12:$AU$17,3,FALSE),IF(O$10=$AV$10,VLOOKUP(O13,$AV$12:$AX$17,3,FALSE),IF(O$10=$AY$10,VLOOKUP(O13,$AY$12:$BA$17,3,FALSE),IF(O$10=$BB$10,VLOOKUP(O13,$BB$12:$BD$17,3,FALSE),IF(O$10=$BE$10,VLOOKUP(O13,$BE$12:$BG$17,3,FALSE))))))) -> 0 | X13: =IF(X$10=$AP$10,$AP$13,IF(X$10=$AS$10,$AS$13,IF(X$10=$AV$10,$AV$13,IF(X$10=$AY$10,$AY$13,IF(X$10=$BB$10,$BB$13,IF(X$10=$BE$10,$BE$13,"")))))) -> Dicamba | Y13: =IF(C13=X13,0,1) -> 0 | Z13: =IF(Z$10=$AP$10,$AP$13,IF(Z$10=$AS$10,$AS$13,IF(Z$10=$AV$10,$AV$13,IF(Z$10=$AY$10,$AY$13,IF(Z$10=$BB$10,$BB$13,IF(Z$10=$BE$10,$BE$13,"")))))) -> Dicamba | AA13: =IF(G13=Z13,0,1) -> 0 | AB13: =IF(AB$10=$AP$10,$AP$13,IF(AB$10=$AS$10,$AS$13,IF(AB$10=$AV$10,$AV$13,IF(AB$10=$AY$10,$AY$13,IF(AB$10=$BB$10,$BB$13,IF(AB$10=$BE$10,$BE$13,"")))))) -> Dicamba | AC13: =IF(K13=AB13,0,1) -> 0 | AD13: =IF(AD$10=$AP$10,$AP$13,IF(AD$10=$AS$10,$AS$13,IF(AD$10=$AV$10,$AV$13,IF(AD$10=$AY$10,$AY$13,IF(AD$10=$BB$10,$BB$13,IF(AD$10=$BE$10,$BE$13,"")))))) -> Dicamba | AE13: =IF(O13=AD13,0,1) -> 0 | AG13: =IF(AG$10=$AP$10,$AP$13,IF(AG$10=$AS$10,$AS$13,IF(AG$10=$AV$10,$AV$13,IF(AG$10=$AY$10,$AY$13,IF(AG$10=$BB$10,$BB$13,IF(AG$10=$BE$10,$BE$13,"")))))) -> Dicamba | AI13: =IF(AI$10=$AP$10,$AP$13,IF(AI$10=$AS$10,$AS$13,IF(AI$10=$AV$10,$AV$13,IF(AI$10=$AY$10,$AY$13,IF(AI$10=$BB$10,$BB$13,IF(AI$10=$BE$10,$BE$13,"")))))) -> Dicamba | AK13: =IF(AK$10=$AP$10,$AP$13,IF(AK$10=$AS$10,$AS$13,IF(AK$10=$AV$10,$AV$13,IF(AK$10=$AY$10,$AY$13,IF(AK$10=$BB$10,$BB$13,IF(AK$10=$BE$10,$BE$13,"")))))) -> Dicamba | AM13: =IF(AM$10=$AP$10,$AP$13,IF(AM$10=$AS$10,$AS$13,IF(AM$10=$AV$10,$AV$13,IF(AM$10=$AY$10,$AY$13,IF(AM$10=$BB$10,$BB$13,IF(AM$10=$BE$10,$BE$13,"")))))) -> Dicamba | AP13: =Names!$Z7 -> Dicamba | AQ13: =VLOOKUP(AP13,Prices!$A$5:$J$38,10,FALSE) -> 76.8 | AS13: =Names!$AA7 -> Dicamba | AT13: =VLOOKUP(AS13,Prices!$A$5:$J$38,10,FALSE) -> 76.8 | AV13: =Names!$AB7 -> Dicamba | AW13: =VLOOKUP(AV13,Prices!$A$5:$J$38,10,FALSE) -> 76.8 | AY13: =Names!$AC7 -> Dicamba | AZ13: =VLOOKUP(AY13,Prices!$A$5:$J$38,10,FALSE) -> 76.8 | BB13: =Names!$AD7 -> Dicamba | BC13: =VLOOKUP(BB13,Prices!$A$5:$J$38,10,FALSE) -> 76.8 | BE13: =Names!$AE7 -> Dicamba | BF13: =VLOOKUP(BE13,Prices!$A$5:$J$38,10,FALSE) -> 76.8
C14: Gramoxone | D14: =IF(C$10=$AP$10,VLOOKUP(C14,$AP$12:$AQ$17,2,FALSE),IF(C$10=$AS$10,VLOOKUP(C14,$AS$12:$AT$17,2,FALSE),IF(C$10=$AV$10,VLOOKUP(C14,$AV$12:$AW$17,2,FALSE),IF(C$10=$AY$10,VLOOKUP(C14,$AY$12:$AZ$17,2,FALSE),IF(C$10=$BB$10,VLOOKUP(C14,$BB$12:$BC$17,2,FALSE),IF(C$10=$BE$10,VLOOKUP(C14,$BE$12:$BF$17,2,FALSE))))))) -> 33 | E14: =IF(C$10=$AP$10,VLOOKUP(C14,$AP$12:$AR$17,3,FALSE),IF(C$10=$AS$10,VLOOKUP(C14,$AS$12:$AU$17,3,FALSE),IF(C$10=$AV$10,VLOOKUP(C14,$AV$12:$AX$17,3,FALSE),IF(C$10=$AY$10,VLOOKUP(C14,$AY$12:$BA$17,3,FALSE),IF(C$10=$BB$10,VLOOKUP(C14,$BB$12:$BD$17,3,FALSE),IF(C$10=$BE$10,VLOOKUP(C14,$BE$12:$BG$17,3,FALSE))))))) -> 0 | G14: Gramoxone | H14: =IF(G$10=$AP$10,VLOOKUP(G14,$AP$12:$AQ$17,2,FALSE),IF(G$10=$AS$10,VLOOKUP(G14,$AS$12:$AT$17,2,FALSE),IF(G$10=$AV$10,VLOOKUP(G14,$AV$12:$AW$17,2,FALSE),IF(G$10=$AY$10,VLOOKUP(G14,$AY$12:$AZ$17,2,FALSE),IF(G$10=$BB$10,VLOOKUP(G14,$BB$12:$BC$17,2,FALSE),IF(G$10=$BE$10,VLOOKUP(G14,$BE$12:$BF$17,2,FALSE))))))) -> 33 | I14: =IF(G$10=$AP$10,VLOOKUP(G14,$AP$12:$AR$17,3,FALSE),IF(G$10=$AS$10,VLOOKUP(G14,$AS$12:$AU$17,3,FALSE),IF(G$10=$AV$10,VLOOKUP(G14,$AV$12:$AX$17,3,FALSE),IF(G$10=$AY$10,VLOOKUP(G14,$AY$12:$BA$17,3,FALSE),IF(G$10=$BB$10,VLOOKUP(G14,$BB$12:$BD$17,3,FALSE),IF(G$10=$BE$10,VLOOKUP(G14,$BE$12:$BG$17,3,FALSE))))))) -> 0 | K14: Gramoxone | L14: =IF(K$10=$AP$10,VLOOKUP(K14,$AP$12:$AQ$17,2,FALSE),IF(K$10=$AS$10,VLOOKUP(K14,$AS$12:$AT$17,2,FALSE),IF(K$10=$AV$10,VLOOKUP(K14,$AV$12:$AW$17,2,FALSE),IF(K$10=$AY$10,VLOOKUP(K14,$AY$12:$AZ$17,2,FALSE),IF(K$10=$BB$10,VLOOKUP(K14,$BB$12:$BC$17,2,FALSE),IF(K$10=$BE$10,VLOOKUP(K14,$BE$12:$BF$17,2,FALSE))))))) -> 33 | M14: =IF(K$10=$AP$10,VLOOKUP(K14,$AP$12:$AR$17,3,FALSE),IF(K$10=$AS$10,VLOOKUP(K14,$AS$12:$AU$17,3,FALSE),IF(K$10=$AV$10,VLOOKUP(K14,$AV$12:$AX$17,3,FALSE),IF(K$10=$AY$10,VLOOKUP(K14,$AY$12:$BA$17,3,FALSE),IF(K$10=$BB$10,VLOOKUP(K14,$BB$12:$BD$17,3,FALSE),IF(K$10=$BE$10,VLOOKUP(K14,$BE$12:$BG$17,3,FALSE))))))) -> 0 | O14: Gramoxone | P14: =IF(O$10=$AP$10,VLOOKUP(O14,$AP$12:$AQ$17,2,FALSE),IF(O$10=$AS$10,VLOOKUP(O14,$AS$12:$AT$17,2,FALSE),IF(O$10=$AV$10,VLOOKUP(O14,$AV$12:$AW$17,2,FALSE),IF(O$10=$AY$10,VLOOKUP(O14,$AY$12:$AZ$17,2,FALSE),IF(O$10=$BB$10,VLOOKUP(O14,$BB$12:$BC$17,2,FALSE),IF(O$10=$BE$10,VLOOKUP(O14,$BE$12:$BF$17,2,FALSE))))))) -> 33 | Q14: =IF(O$10=$AP$10,VLOOKUP(O14,$AP$12:$AR$17,3,FALSE),IF(O$10=$AS$10,VLOOKUP(O14,$AS$12:$AU$17,3,FALSE),IF(O$10=$AV$10,VLOOKUP(O14,$AV$12:$AX$17,3,FALSE),IF(O$10=$AY$10,VLOOKUP(O14,$AY$12:$BA$17,3,FALSE),IF(O$10=$BB$10,VLOOKUP(O14,$BB$12:$BD$17,3,FALSE),IF(O$10=$BE$10,VLOOKUP(O14,$BE$12:$BG$17,3,FALSE))))))) -> 0 | X14: =IF(X$10=$AP$10,$AP$14,IF(X$10=$AS$10,$AS$14,IF(X$10=$AV$10,$AV$14,IF(X$10=$AY$10,$AY$14,IF(X$10=$BB$10,$BB$14,IF(X$10=$BE$10,$BE$14,"")))))) -> Gramoxone | Y14: =IF(C14=X14,0,1) -> 0 | Z14: =IF(Z$10=$AP$10,$AP$14,IF(Z$10=$AS$10,$AS$14,IF(Z$10=$AV$10,$AV$14,IF(Z$10=$AY$10,$AY$14,IF(Z$10=$BB$10,$BB$14,IF(Z$10=$BE$10,$BE$14,"")))))) -> Gramoxone | AA14: =IF(G14=Z14,0,1) -> 0 | AB14: =IF(AB$10=$AP$10,$AP$14,IF(AB$10=$AS$10,$AS$14,IF(AB$10=$AV$10,$AV$14,IF(AB$10=$AY$10,$AY$14,IF(AB$10=$BB$10,$BB$14,IF(AB$10=$BE$10,$BE$14,"")))))) -> Gramoxone | AC14: =IF(K14=AB14,0,1) -> 0 | AD14: =IF(AD$10=$AP$10,$AP$14,IF(AD$10=$AS$10,$AS$14,IF(AD$10=$AV$10,$AV$14,IF(AD$10=$AY$10,$AY$14,IF(AD$10=$BB$10,$BB$14,IF(AD$10=$BE$10,$BE$14,"")))))) -> Gramoxone | AE14: =IF(O14=AD14,0,1) -> 0 | AG14: =IF(AG$10=$AP$10,$AP$14,IF(AG$10=$AS$10,$AS$14,IF(AG$10=$AV$10,$AV$14,IF(AG$10=$AY$10,$AY$14,IF(AG$10=$BB$10,$BB$14,IF(AG$10=$BE$10,$BE$14,"")))))) -> Gramoxone | AI14: =IF(AI$10=$AP$10,$AP$14,IF(AI$10=$AS$10,$AS$14,IF(AI$10=$AV$10,$AV$14,IF(AI$10=$AY$10,$AY$14,IF(AI$10=$BB$10,$BB$14,IF(AI$10=$BE$10,$BE$14,"")))))) -> Gramoxone | AK14: =IF(AK$10=$AP$10,$AP$14,IF(AK$10=$AS$10,$AS$14,IF(AK$10=$AV$10,$AV$14,IF(AK$10=$AY$10,$AY$14,IF(AK$10=$BB$10,$BB$14,IF(AK$10=$BE$10,$BE$14,"")))))) -> Gramoxone | AM14: =IF(AM$10=$AP$10,$AP$14,IF(AM$10=$AS$10,$AS$14,IF(AM$10=$AV$10,$AV$14,IF(AM$10=$AY$10,$AY$14,IF(AM$10=$BB$10,$BB$14,IF(AM$10=$BE$10,$BE$14,"")))))) -> Gramoxone | AP14: =Names!$Z8 -> Gramoxone | AQ14: =VLOOKUP(AP14,Prices!$A$5:$J$38,10,FALSE) -> 33 | AS14: =Names!$AA8 -> Gramoxone | AT14: =VLOOKUP(AS14,Prices!$A$5:$J$38,10,FALSE) -> 33 | AV14: =Names!$AB8 -> Gramoxone | AW14: =VLOOKUP(AV14,Prices!$A$5:$J$38,10,FALSE) -> 33 | AY14: =Names!$AC8 -> Gramoxone | AZ14: =VLOOKUP(AY14,Prices!$A$5:$J$38,10,FALSE) -> 33 | BB14: =Names!$AD8 -> Gramoxone | BC14: =VLOOKUP(BB14,Prices!$A$5:$J$38,10,FALSE) -> 33 | BE14: =Names!$AE8 -> Gramoxone | BF14: =VLOOKUP(BE14,Prices!$A$5:$J$38,10,FALSE) -> 33
C15: LibertyLink | D15: =IF(C$10=$AP$10,VLOOKUP(C15,$AP$12:$AQ$17,2,FALSE),IF(C$10=$AS$10,VLOOKUP(C15,$AS$12:$AT$17,2,FALSE),IF(C$10=$AV$10,VLOOKUP(C15,$AV$12:$AW$17,2,FALSE),IF(C$10=$AY$10,VLOOKUP(C15,$AY$12:$AZ$17,2,FALSE),IF(C$10=$BB$10,VLOOKUP(C15,$BB$12:$BC$17,2,FALSE),IF(C$10=$BE$10,VLOOKUP(C15,$BE$12:$BF$17,2,FALSE))))))) ->  | E15: =IF(C$10=$AP$10,VLOOKUP(C15,$AP$12:$AR$17,3,FALSE),IF(C$10=$AS$10,VLOOKUP(C15,$AS$12:$AU$17,3,FALSE),IF(C$10=$AV$10,VLOOKUP(C15,$AV$12:$AX$17,3,FALSE),IF(C$10=$AY$10,VLOOKUP(C15,$AY$12:$BA$17,3,FALSE),IF(C$10=$BB$10,VLOOKUP(C15,$BB$12:$BD$17,3,FALSE),IF(C$10=$BE$10,VLOOKUP(C15,$BE$12:$BG$17,3,FALSE))))))) ->  | G15: LibertyLink | H15: =IF(G$10=$AP$10,VLOOKUP(G15,$AP$12:$AQ$17,2,FALSE),IF(G$10=$AS$10,VLOOKUP(G15,$AS$12:$AT$17,2,FALSE),IF(G$10=$AV$10,VLOOKUP(G15,$AV$12:$AW$17,2,FALSE),IF(G$10=$AY$10,VLOOKUP(G15,$AY$12:$AZ$17,2,FALSE),IF(G$10=$BB$10,VLOOKUP(G15,$BB$12:$BC$17,2,FALSE),IF(G$10=$BE$10,VLOOKUP(G15,$BE$12:$BF$17,2,FALSE))))))) ->  | I15: =IF(G$10=$AP$10,VLOOKUP(G15,$AP$12:$AR$17,3,FALSE),IF(G$10=$AS$10,VLOOKUP(G15,$AS$12:$AU$17,3,FALSE),IF(G$10=$AV$10,VLOOKUP(G15,$AV$12:$AX$17,3,FALSE),IF(G$10=$AY$10,VLOOKUP(G15,$AY$12:$BA$17,3,FALSE),IF(G$10=$BB$10,VLOOKUP(G15,$BB$12:$BD$17,3,FALSE),IF(G$10=$BE$10,VLOOKUP(G15,$BE$12:$BG$17,3,FALSE))))))) ->  | K15: LibertyLink | L15: =IF(K$10=$AP$10,VLOOKUP(K15,$AP$12:$AQ$17,2,FALSE),IF(K$10=$AS$10,VLOOKUP(K15,$AS$12:$AT$17,2,FALSE),IF(K$10=$AV$10,VLOOKUP(K15,$AV$12:$AW$17,2,FALSE),IF(K$10=$AY$10,VLOOKUP(K15,$AY$12:$AZ$17,2,FALSE),IF(K$10=$BB$10,VLOOKUP(K15,$BB$12:$BC$17,2,FALSE),IF(K$10=$BE$10,VLOOKUP(K15,$BE$12:$BF$17,2,FALSE))))))) ->  | M15: =IF(K$10=$AP$10,VLOOKUP(K15,$AP$12:$AR$17,3,FALSE),IF(K$10=$AS$10,VLOOKUP(K15,$AS$12:$AU$17,3,FALSE),IF(K$10=$AV$10,VLOOKUP(K15,$AV$12:$AX$17,3,FALSE),IF(K$10=$AY$10,VLOOKUP(K15,$AY$12:$BA$17,3,FALSE),IF(K$10=$BB$10,VLOOKUP(K15,$BB$12:$BD$17,3,FALSE),IF(K$10=$BE$10,VLOOKUP(K15,$BE$12:$BG$17,3,FALSE))))))) ->  | O15: LibertyLink | P15: =IF(O$10=$AP$10,VLOOKUP(O15,$AP$12:$AQ$17,2,FALSE),IF(O$10=$AS$10,VLOOKUP(O15,$AS$12:$AT$17,2,FALSE),IF(O$10=$AV$10,VLOOKUP(O15,$AV$12:$AW$17,2,FALSE),IF(O$10=$AY$10,VLOOKUP(O15,$AY$12:$AZ$17,2,FALSE),IF(O$10=$BB$10,VLOOKUP(O15,$BB$12:$BC$17,2,FALSE),IF(O$10=$BE$10,VLOOKUP(O15,$BE$12:$BF$17,2,FALSE))))))) ->  | Q15: =IF(O$10=$AP$10,VLOOKUP(O15,$AP$12:$AR$17,3,FALSE),IF(O$10=$AS$10,VLOOKUP(O15,$AS$12:$AU$17,3,FALSE),IF(O$10=$AV$10,VLOOKUP(O15,$AV$12:$AX$17,3,FALSE),IF(O$10=$AY$10,VLOOKUP(O15,$AY$12:$BA$17,3,FALSE),IF(O$10=$BB$10,VLOOKUP(O15,$BB$12:$BD$17,3,FALSE),IF(O$10=$BE$10,VLOOKUP(O15,$BE$12:$BG$17,3,FALSE))))))) ->  | X15: =IF(X$10=$AP$10,$AP$15,IF(X$10=$AS$10,$AS$15,IF(X$10=$AV$10,$AV$15,IF(X$10=$AY$10,$AY$15,IF(X$10=$BB$10,$BB$15,IF(X$10=$BE$10,$BE$15,"")))))) -> Liberty | Y15: =IF(C15=X15,0,1) -> 1 | Z15: =IF(Z$10=$AP$10,$AP$15,IF(Z$10=$AS$10,$AS$15,IF(Z$10=$AV$10,$AV$15,IF(Z$10=$AY$10,$AY$15,IF(Z$10=$BB$10,$BB$15,IF(Z$10=$BE$10,$BE$15,"")))))) -> Liberty | AA15: =IF(G15=Z15,0,1) -> 1 | AB15: =IF(AB$10=$AP$10,$AP$15,IF(AB$10=$AS$10,$AS$15,IF(AB$10=$AV$10,$AV$15,IF(AB$10=$AY$10,$AY$15,IF(AB$10=$BB$10,$BB$15,IF(AB$10=$BE$10,$BE$15,"")))))) -> Liberty | AC15: =IF(K15=AB15,0,1) -> 1 | AD15: =IF(AD$10=$AP$10,$AP$15,IF(AD$10=$AS$10,$AS$15,IF(AD$10=$AV$10,$AV$15,IF(AD$10=$AY$10,$AY$15,IF(AD$10=$BB$10,$BB$15,IF(AD$10=$BE$10,$BE$15,"")))))) -> Liberty | AE15: =IF(O15=AD15,0,1) -> 1 | AG15: =IF(AG$10=$AP$10,$AP$15,IF(AG$10=$AS$10,$AS$15,IF(AG$10=$AV$10,$AV$15,IF(AG$10=$AY$10,$AY$15,IF(AG$10=$BB$10,$BB$15,IF(AG$10=$BE$10,$BE$15,"")))))) -> Liberty | AI15: =IF(AI$10=$AP$10,$AP$15,IF(AI$10=$AS$10,$AS$15,IF(AI$10=$AV$10,$AV$15,IF(AI$10=$AY$10,$AY$15,IF(AI$10=$BB$10,$BB$15,IF(AI$10=$BE$10,$BE$15,"")))))) -> Liberty | AK15: =IF(AK$10=$AP$10,$AP$15,IF(AK$10=$AS$10,$AS$15,IF(AK$10=$AV$10,$AV$15,IF(AK$10=$AY$10,$AY$15,IF(AK$10=$BB$10,$BB$15,IF(AK$10=$BE$10,$BE$15,"")))))) -> Liberty | AM15: =IF(AM$10=$AP$10,$AP$15,IF(AM$10=$AS$10,$AS$15,IF(AM$10=$AV$10,$AV$15,IF(AM$10=$AY$10,$AY$15,IF(AM$10=$BB$10,$BB$15,IF(AM$10=$BE$10,$BE$15,"")))))) -> Liberty | AP15: =Names!$Z9 -> Liberty | AQ15: =VLOOKUP(AP15,Prices!$A$5:$J$38,10,FALSE) -> 53.9 | AS15: =Names!$AA9 -> Liberty | AT15: =VLOOKUP(AS15,Prices!$A$5:$J$38,10,FALSE) -> 53.9 | AV15: =Names!$AB9 -> Liberty | AW15: =VLOOKUP(AV15,Prices!$A$5:$J$38,10,FALSE) -> 53.9 | AY15: =Names!$AC9 -> Liberty | AZ15: =VLOOKUP(AY15,Prices!$A$5:$J$38,10,FALSE) -> 53.9 | BB15: =Names!$AD9 -> Liberty | BC15: =VLOOKUP(BB15,Prices!$A$5:$J$38,10,FALSE) -> 53.9 | BE15: =Names!$AE9 -> Liberty | BF15: =VLOOKUP(BE15,Prices!$A$5:$J$38,10,FALSE) -> 53.9
AP16: =Names!$Z10 -> Roundup | AQ16: =VLOOKUP(AP16,Prices!$A$5:$J$38,10,FALSE) -> 20 | AS16: =Names!$AA10 -> Roundup | AT16: =VLOOKUP(AS16,Prices!$A$5:$J$38,10,FALSE) -> 20 | AV16: =Names!$AB10 -> Roundup | AW16: =VLOOKUP(AV16,Prices!$A$5:$J$38,10,FALSE) -> 20 | AY16: =Names!$AC10 -> Roundup | AZ16: =VLOOKUP(AY16,Prices!$A$5:$J$38,10,FALSE) -> 20 | BB16: =Names!$AD10 -> Roundup | BC16: =VLOOKUP(BB16,Prices!$A$5:$J$38,10,FALSE) -> 20 | BE16: =Names!$AE10 -> Roundup | BF16: =VLOOKUP(BE16,Prices!$A$5:$J$38,10,FALSE) -> 20
B17: Preplant | C17: Prowl | D17: =IF(C$10=$AP$10,VLOOKUP(C17,$AP$21:$AQ$22,2,FALSE),IF(C$10=$AS$10,VLOOKUP(C17,$AS$21:$AT$22,2,FALSE),IF(C$10=$AV$10,VLOOKUP(C17,$AV$21:$AW$22,2,FALSE),IF(C$10=$AY$10,VLOOKUP(C17,$AY$20:$AZ$23,2,FALSE),IF(C$10=$BB$10,VLOOKUP(C17,$BB$20:$BC$23,2,FALSE),IF(C$10=$BE$10,VLOOKUP(C17,$BE$21:$BF$22,2,FALSE))))))) -> 38.25 | E17: =IF(C$10=$AP$10,VLOOKUP(C17,$AP$21:$AR$22,3,FALSE),IF(C$10=$AS$10,VLOOKUP(C17,$AS$21:$AU$22,3,FALSE),IF(C$10=$AV$10,VLOOKUP(C17,$AV$21:$AX$22,3,FALSE),IF(C$10=$AY$10,VLOOKUP(C17,$AY$20:$BA$23,3,FALSE),IF(C$10=$BB$10,VLOOKUP(C17,$BB$20:$BD$23,3,FALSE),IF(C$10=$BE$10,VLOOKUP(C17,$BE$21:$BG$22,3,FALSE))))))) -> 0 | G17: Prowl | H17: =IF(G$10=$AP$10,VLOOKUP(G17,$AP$21:$AQ$22,2,FALSE),IF(G$10=$AS$10,VLOOKUP(G17,$AS$21:$AT$22,2,FALSE),IF(G$10=$AV$10,VLOOKUP(G17,$AV$21:$AW$22,2,FALSE),IF(G$10=$AY$10,VLOOKUP(G17,$AY$20:$AZ$23,2,FALSE),IF(G$10=$BB$10,VLOOKUP(G17,$BB$20:$BC$23,2,FALSE),IF(G$10=$BE$10,VLOOKUP(G17,$BE$21:$BF$22,2,FALSE))))))) -> 38.25 | I17: =IF(G$10=$AP$10,VLOOKUP(G17,$AP$21:$AR$22,3,FALSE),IF(G$10=$AS$10,VLOOKUP(G17,$AS$21:$AU$22,3,FALSE),IF(G$10=$AV$10,VLOOKUP(G17,$AV$21:$AX$22,3,FALSE),IF(G$10=$AY$10,VLOOKUP(G17,$AY$20:$BA$23,3,FALSE),IF(G$10=$BB$10,VLOOKUP(G17,$BB$20:$BD$23,3,FALSE),IF(G$10=$BE$10,VLOOKUP(G17,$BE$21:$BG$22,3,FALSE))))))) -> 0 | K17: Enlist Duo | L17: =IF(K$10=$AP$10,VLOOKUP(K17,$AP$21:$AQ$22,2,FALSE),IF(K$10=$AS$10,VLOOKUP(K17,$AS$21:$AT$22,2,FALSE),IF(K$10=$AV$10,VLOOKUP(K17,$AV$21:$AW$22,2,FALSE),IF(K$10=$AY$10,VLOOKUP(K17,$AY$20:$AZ$23,2,FALSE),IF(K$10=$BB$10,VLOOKUP(K17,$BB$20:$BC$23,2,FALSE),IF(K$10=$BE$10,VLOOKUP(K17,$BE$21:$BF$22,2,FALSE))))))) ->  | M17: =IF(K$10=$AP$10,VLOOKUP(K17,$AP$21:$AR$22,3,FALSE),IF(K$10=$AS$10,VLOOKUP(K17,$AS$21:$AU$22,3,FALSE),IF(K$10=$AV$10,VLOOKUP(K17,$AV$21:$AX$22,3,FALSE),IF(K$10=$AY$10,VLOOKUP(K17,$AY$20:$BA$23,3,FALSE),IF(K$10=$BB$10,VLOOKUP(K17,$BB$20:$BD$23,3,FALSE),IF(K$10=$BE$10,VLOOKUP(K17,$BE$21:$BG$22,3,FALSE))))))) ->  | O17: Prowl | P17: =IF(O$10=$AP$10,VLOOKUP(O17,$AP$21:$AQ$22,2,FALSE),IF(O$10=$AS$10,VLOOKUP(O17,$AS$21:$AT$22,2,FALSE),IF(O$10=$AV$10,VLOOKUP(O17,$AV$21:$AW$22,2,FALSE),IF(O$10=$AY$10,VLOOKUP(O17,$AY$20:$AZ$23,2,FALSE),IF(O$10=$BB$10,VLOOKUP(O17,$BB$20:$BC$23,2,FALSE),IF(O$10=$BE$10,VLOOKUP(O17,$BE$21:$BF$22,2,FALSE))))))) -> 38.25 | Q17: =IF(O$10=$AP$10,VLOOKUP(O17,$AP$21:$AR$22,3,FALSE),IF(O$10=$AS$10,VLOOKUP(O17,$AS$21:$AU$22,3,FALSE),IF(O$10=$AV$10,VLOOKUP(O17,$AV$21:$AX$22,3,FALSE),IF(O$10=$AY$10,VLOOKUP(O17,$AY$20:$BA$23,3,FALSE),IF(O$10=$BB$10,VLOOKUP(O17,$BB$20:$BD$23,3,FALSE),IF(O$10=$BE$10,VLOOKUP(O17,$BE$21:$BG$22,3,FALSE))))))) -> 0 | W17: Preplant | X17: =IF(X$10=$AP$10,$AP$20,IF(X$10=$AS$10,$AS$20,IF(X$10=$AV$10,$AV$20,IF(X$10=$AY$10,$AY$20,IF(X$10=$BB$10,$BB$20,IF(X$10=$BE$10,$BE$20,"")))))) -> Prowl | Y17: =IF(C17=X17,0,1) -> 0 | Z17: =IF(Z$10=$AP$10,$AP$20,IF(Z$10=$AS$10,$AS$20,IF(Z$10=$AV$10,$AV$20,IF(Z$10=$AY$10,$AY$20,IF(Z$10=$BB$10,$BB$20,IF(Z$10=$BE$10,$BE$20,"")))))) -> Prowl | AA17: =IF(G17=Z17,0,1) -> 0 | AB17: =IF(AB$10=$AP$10,$AP$20,IF(AB$10=$AS$10,$AS$20,IF(AB$10=$AV$10,$AV$20,IF(AB$10=$AY$10,$AY$20,IF(AB$10=$BB$10,$BB$20,IF(AB$10=$BE$10,$BE$20,"")))))) -> Enlist Duo | AC17: =IF(K17=AB17,0,1) -> 0 | AD17: =IF(AD$10=$AP$10,$AP$20,IF(AD$10=$AS$10,$AS$20,IF(AD$10=$AV$10,$AV$20,IF(AD$10=$AY$10,$AY$20,IF(AD$10=$BB$10,$BB$20,IF(AD$10=$BE$10,$BE$20,"")))))) -> Prowl | AE17: =IF(O17=AD17,0,1) -> 0 | AF17: Preplant | AG17: =IF(AG$10=$AP$10,$AP$20,IF(AG$10=$AS$10,$AS$20,IF(AG$10=$AV$10,$AV$20,IF(AG$10=$AY$10,$AY$20,IF(AG$10=$BB$10,$BB$20,IF(AG$10=$BE$10,$BE$20,"")))))) -> Prowl | AI17: =IF(AI$10=$AP$10,$AP$20,IF(AI$10=$AS$10,$AS$20,IF(AI$10=$AV$10,$AV$20,IF(AI$10=$AY$10,$AY$20,IF(AI$10=$BB$10,$BB$20,IF(AI$10=$BE$10,$BE$20,"")))))) -> Prowl | AK17: =IF(AK$10=$AP$10,$AP$20,IF(AK$10=$AS$10,$AS$20,IF(AK$10=$AV$10,$AV$20,IF(AK$10=$AY$10,$AY$20,IF(AK$10=$BB$10,$BB$20,IF(AK$10=$BE$10,$BE$20,"")))))) -> Enlist Duo | AM17: =IF(AM$10=$AP$10,$AP$20,IF(AM$10=$AS$10,$AS$20,IF(AM$10=$AV$10,$AV$20,IF(AM$10=$AY$10,$AY$20,IF(AM$10=$BB$10,$BB$20,IF(AM$10=$BE$10,$BE$20,"")))))) -> Prowl | AP17: =Names!$Z11 -> Valor | AQ17: =VLOOKUP(AP17,Prices!$A$5:$J$38,10,FALSE) -> 4.38 | AS17: =Names!$AA11 -> Valor | AT17: =VLOOKUP(AS17,Prices!$A$5:$J$38,10,FALSE) -> 4.38 | AV17: =Names!$AB11 -> Valor | AW17: =VLOOKUP(AV17,Prices!$A$5:$J$38,10,FALSE) -> 4.38 | AY17: =Names!$AC11 -> Valor | AZ17: =VLOOKUP(AY17,Prices!$A$5:$J$38,10,FALSE) -> 4.38 | BB17: =Names!$AD11 -> Valor | BC17: =VLOOKUP(BB17,Prices!$A$5:$J$38,10,FALSE) -> 4.38 | BE17: =Names!$AE11 -> Valor | BF17: =VLOOKUP(BE17,Prices!$A$5:$J$38,10,FALSE) -> 4.38
C18: Reflex | D18: =IF(C$10=$AP$10,VLOOKUP(C18,$AP$21:$AQ$22,2,FALSE),IF(C$10=$AS$10,VLOOKUP(C18,$AS$21:$AT$22,2,FALSE),IF(C$10=$AV$10,VLOOKUP(C18,$AV$21:$AW$22,2,FALSE),IF(C$10=$AY$10,VLOOKUP(C18,$AY$20:$AZ$23,2,FALSE),IF(C$10=$BB$10,VLOOKUP(C18,$BB$20:$BC$23,2,FALSE),IF(C$10=$BE$10,VLOOKUP(C18,$BE$21:$BF$22,2,FALSE))))))) -> 103 | E18: =IF(C$10=$AP$10,VLOOKUP(C18,$AP$21:$AR$22,3,FALSE),IF(C$10=$AS$10,VLOOKUP(C18,$AS$21:$AU$22,3,FALSE),IF(C$10=$AV$10,VLOOKUP(C18,$AV$21:$AX$22,3,FALSE),IF(C$10=$AY$10,VLOOKUP(C18,$AY$20:$BA$23,3,FALSE),IF(C$10=$BB$10,VLOOKUP(C18,$BB$20:$BD$23,3,FALSE),IF(C$10=$BE$10,VLOOKUP(C18,$BE$21:$BG$22,3,FALSE))))))) -> 0 | G18: Reflex | H18: =IF(G$10=$AP$10,VLOOKUP(G18,$AP$21:$AQ$22,2,FALSE),IF(G$10=$AS$10,VLOOKUP(G18,$AS$21:$AT$22,2,FALSE),IF(G$10=$AV$10,VLOOKUP(G18,$AV$21:$AW$22,2,FALSE),IF(G$10=$AY$10,VLOOKUP(G18,$AY$20:$AZ$23,2,FALSE),IF(G$10=$BB$10,VLOOKUP(G18,$BB$20:$BC$23,2,FALSE),IF(G$10=$BE$10,VLOOKUP(G18,$BE$21:$BF$22,2,FALSE))))))) -> 103 | I18: =IF(G$10=$AP$10,VLOOKUP(G18,$AP$21:$AR$22,3,FALSE),IF(G$10=$AS$10,VLOOKUP(G18,$AS$21:$AU$22,3,FALSE),IF(G$10=$AV$10,VLOOKUP(G18,$AV$21:$AX$22,3,FALSE),IF(G$10=$AY$10,VLOOKUP(G18,$AY$20:$BA$23,3,FALSE),IF(G$10=$BB$10,VLOOKUP(G18,$BB$20:$BD$23,3,FALSE),IF(G$10=$BE$10,VLOOKUP(G18,$BE$21:$BG$22,3,FALSE))))))) -> 0 | K18: Prowl | L18: =IF(K$10=$AP$10,VLOOKUP(K18,$AP$21:$AQ$22,2,FALSE),IF(K$10=$AS$10,VLOOKUP(K18,$AS$21:$AT$22,2,FALSE),IF(K$10=$AV$10,VLOOKUP(K18,$AV$21:$AW$22,2,FALSE),IF(K$10=$AY$10,VLOOKUP(K18,$AY$20:$AZ$23,2,FALSE),IF(K$10=$BB$10,VLOOKUP(K18,$BB$20:$BC$23,2,FALSE),IF(K$10=$BE$10,VLOOKUP(K18,$BE$21:$BF$22,2,FALSE))))))) -> 38.25 | M18: =IF(K$10=$AP$10,VLOOKUP(K18,$AP$21:$AR$22,3,FALSE),IF(K$10=$AS$10,VLOOKUP(K18,$AS$21:$AU$22,3,FALSE),IF(K$10=$AV$10,VLOOKUP(K18,$AV$21:$AX$22,3,FALSE),IF(K$10=$AY$10,VLOOKUP(K18,$AY$20:$BA$23,3,FALSE),IF(K$10=$BB$10,VLOOKUP(K18,$BB$20:$BD$23,3,FALSE),IF(K$10=$BE$10,VLOOKUP(K18,$BE$21:$BG$22,3,FALSE))))))) -> 0 | O18: Reflex | P18: =IF(O$10=$AP$10,VLOOKUP(O18,$AP$21:$AQ$22,2,FALSE),IF(O$10=$AS$10,VLOOKUP(O18,$AS$21:$AT$22,2,FALSE),IF(O$10=$AV$10,VLOOKUP(O18,$AV$21:$AW$22,2,FALSE),IF(O$10=$AY$10,VLOOKUP(O18,$AY$20:$AZ$23,2,FALSE),IF(O$10=$BB$10,VLOOKUP(O18,$BB$20:$BC$23,2,FALSE),IF(O$10=$BE$10,VLOOKUP(O18,$BE$21:$BF$22,2,FALSE))))))) -> 103 | Q18: =IF(O$10=$AP$10,VLOOKUP(O18,$AP$21:$AR$22,3,FALSE),IF(O$10=$AS$10,VLOOKUP(O18,$AS$21:$AU$22,3,FALSE),IF(O$10=$AV$10,VLOOKUP(O18,$AV$21:$AX$22,3,FALSE),IF(O$10=$AY$10,VLOOKUP(O18,$AY$20:$BA$23,3,FALSE),IF(O$10=$BB$10,VLOOKUP(O18,$BB$20:$BD$23,3,FALSE),IF(O$10=$BE$10,VLOOKUP(O18,$BE$21:$BG$22,3,FALSE))))))) -> 0 | X18: =IF(X$10=$AP$10,$AP$21,IF(X$10=$AS$10,$AS$21,IF(X$10=$AV$10,$AV$21,IF(X$10=$AY$10,$AY$21,IF(X$10=$BB$10,$BB$21,IF(X$10=$BE$10,$BE$21,"")))))) -> Reflex | Y18: =IF(C18=X18,0,1) -> 0 | Z18: =IF(Z$10=$AP$10,$AP$21,IF(Z$10=$AS$10,$AS$21,IF(Z$10=$AV$10,$AV$21,IF(Z$10=$AY$10,$AY$21,IF(Z$10=$BB$10,$BB$21,IF(Z$10=$BE$10,$BE$21,"")))))) -> Reflex | AA18: =IF(G18=Z18,0,1) -> 0 | AB18: =IF(AB$10=$AP$10,$AP$21,IF(AB$10=$AS$10,$AS$21,IF(AB$10=$AV$10,$AV$21,IF(AB$10=$AY$10,$AY$21,IF(AB$10=$BB$10,$BB$21,IF(AB$10=$BE$10,$BE$21,"")))))) -> Prowl | AC18: =IF(K18=AB18,0,1) -> 0 | AD18: =IF(AD$10=$AP$10,$AP$21,IF(AD$10=$AS$10,$AS$21,IF(AD$10=$AV$10,$AV$21,IF(AD$10=$AY$10,$AY$21,IF(AD$10=$BB$10,$BB$21,IF(AD$10=$BE$10,$BE$21,"")))))) -> Reflex | AE18: =IF(O18=AD18,0,1) -> 0 | AG18: =IF(AG$10=$AP$10,$AP$21,IF(AG$10=$AS$10,$AS$21,IF(AG$10=$AV$10,$AV$21,IF(AG$10=$AY$10,$AY$21,IF(AG$10=$BB$10,$BB$21,IF(AG$10=$BE$10,$BE$21,"")))))) -> Reflex | AI18: =IF(AI$10=$AP$10,$AP$21,IF(AI$10=$AS$10,$AS$21,IF(AI$10=$AV$10,$AV$21,IF(AI$10=$AY$10,$AY$21,IF(AI$10=$BB$10,$BB$21,IF(AI$10=$BE$10,$BE$21,"")))))) -> Reflex | AK18: =IF(AK$10=$AP$10,$AP$21,IF(AK$10=$AS$10,$AS$21,IF(AK$10=$AV$10,$AV$21,IF(AK$10=$AY$10,$AY$21,IF(AK$10=$BB$10,$BB$21,IF(AK$10=$BE$10,$BE$21,"")))))) -> Prowl | AM18: =IF(AM$10=$AP$10,$AP$21,IF(AM$10=$AS$10,$AS$21,IF(AM$10=$AV$10,$AV$21,IF(AM$10=$AY$10,$AY$21,IF(AM$10=$BB$10,$BB$21,IF(AM$10=$BE$10,$BE$21,"")))))) -> Reflex
AP19: =Names!$N$5 -> CottonPPCv | AS19: =Names!$N$6 -> CottonPPEn | AV19: =Names!$N$7 -> CottonPPGL | AY19: =Names!$N$8 -> CottonPPLL | BB19: =Names!$N$9 -> CottonPPRR | BE19: =Names!$N$10 -> CottonPPXt
B20: Pre emergence | C20: Cotoran | D20: =IF(C$10=$AP$10,VLOOKUP(C20,$AP$27:$AQ$31,2,FALSE),IF(C$10=$AS$10,VLOOKUP(C20,$AS$27:$AT$31,2,FALSE),IF(C$10=$AV$10,VLOOKUP(C20,$AV$27:$AW$31,2,FALSE),IF(C$10=$AY$10,VLOOKUP(C20,$AY$27:$AZ$31,2,FALSE),IF(C$10=$BB$10,VLOOKUP(C20,$BB$27:$BC$32,2,FALSE),IF(C$10=$BE$10,VLOOKUP(C20,$BE$27:$BF$31,2,FALSE))))))) -> 42 | E20: =IF(C$10=$AP$10,VLOOKUP(C20,$AP$27:$AR$31,3,FALSE),IF(C$10=$AS$10,VLOOKUP(C20,$AS$27:$AU$31,3,FALSE),IF(C$10=$AV$10,VLOOKUP(C20,$AV$27:$AX$31,3,FALSE),IF(C$10=$AY$10,VLOOKUP(C20,$AY$27:$BA$31,3,FALSE),IF(C$10=$BB$10,VLOOKUP(C20,$BB$27:$BD$32,3,FALSE),IF(C$10=$BE$10,VLOOKUP(C20,$BE$27:$BG$31,3,FALSE))))))) -> 0 | G20: Cotoran | H20: =IF(G$10=$AP$10,VLOOKUP(G20,$AP$27:$AQ$31,2,FALSE),IF(G$10=$AS$10,VLOOKUP(G20,$AS$27:$AT$31,2,FALSE),IF(G$10=$AV$10,VLOOKUP(G20,$AV$27:$AW$31,2,FALSE),IF(G$10=$AY$10,VLOOKUP(G20,$AY$27:$AZ$31,2,FALSE),IF(G$10=$BB$10,VLOOKUP(G20,$BB$27:$BC$32,2,FALSE),IF(G$10=$BE$10,VLOOKUP(G20,$BE$27:$BF$31,2,FALSE))))))) -> 42 | I20: =IF(G$10=$AP$10,VLOOKUP(G20,$AP$27:$AR$31,3,FALSE),IF(G$10=$AS$10,VLOOKUP(G20,$AS$27:$AU$31,3,FALSE),IF(G$10=$AV$10,VLOOKUP(G20,$AV$27:$AX$31,3,FALSE),IF(G$10=$AY$10,VLOOKUP(G20,$AY$27:$BA$31,3,FALSE),IF(G$10=$BB$10,VLOOKUP(G20,$BB$27:$BD$32,3,FALSE),IF(G$10=$BE$10,VLOOKUP(G20,$BE$27:$BG$31,3,FALSE))))))) -> 0 | K20: Cotoran | L20: =IF(K$10=$AP$10,VLOOKUP(K20,$AP$27:$AQ$31,2,FALSE),IF(K$10=$AS$10,VLOOKUP(K20,$AS$27:$AT$31,2,FALSE),IF(K$10=$AV$10,VLOOKUP(K20,$AV$27:$AW$31,2,FALSE),IF(K$10=$AY$10,VLOOKUP(K20,$AY$27:$AZ$31,2,FALSE),IF(K$10=$BB$10,VLOOKUP(K20,$BB$27:$BC$32,2,FALSE),IF(K$10=$BE$10,VLOOKUP(K20,$BE$27:$BF$31,2,FALSE))))))) -> 42 | M20: =IF(K$10=$AP$10,VLOOKUP(K20,$AP$27:$AR$31,3,FALSE),IF(K$10=$AS$10,VLOOKUP(K20,$AS$27:$AU$31,3,FALSE),IF(K$10=$AV$10,VLOOKUP(K20,$AV$27:$AX$31,3,FALSE),IF(K$10=$AY$10,VLOOKUP(K20,$AY$27:$BA$31,3,FALSE),IF(K$10=$BB$10,VLOOKUP(K20,$BB$27:$BD$32,3,FALSE),IF(K$10=$BE$10,VLOOKUP(K20,$BE$27:$BG$31,3,FALSE))))))) -> 0 | O20: Cotoran | P20: =IF(O$10=$AP$10,VLOOKUP(O20,$AP$27:$AQ$31,2,FALSE),IF(O$10=$AS$10,VLOOKUP(O20,$AS$27:$AT$31,2,FALSE),IF(O$10=$AV$10,VLOOKUP(O20,$AV$27:$AW$31,2,FALSE),IF(O$10=$AY$10,VLOOKUP(O20,$AY$27:$AZ$31,2,FALSE),IF(O$10=$BB$10,VLOOKUP(O20,$BB$27:$BC$32,2,FALSE),IF(O$10=$BE$10,VLOOKUP(O20,$BE$27:$BF$31,2,FALSE))))))) -> 42 | Q20: =IF(O$10=$AP$10,VLOOKUP(O20,$AP$27:$AR$31,3,FALSE),IF(O$10=$AS$10,VLOOKUP(O20,$AS$27:$AU$31,3,FALSE),IF(O$10=$AV$10,VLOOKUP(O20,$AV$27:$AX$31,3,FALSE),IF(O$10=$AY$10,VLOOKUP(O20,$AY$27:$BA$31,3,FALSE),IF(O$10=$BB$10,VLOOKUP(O20,$BB$27:$BD$32,3,FALSE),IF(O$10=$BE$10,VLOOKUP(O20,$BE$27:$BG$31,3,FALSE))))))) -> 0 | W20: Pre emergence | X20: =IF(X$10=$AP$10,$AP$27,IF(X$10=$AS$10,$AS$27,IF(X$10=$AV$10,$AV$27,IF(X$10=$AY$10,$AY$27,IF(X$10=$BB$10,$BB$27,IF(X$10=$BE$10,$BE$27,"")))))) -> Cotoran | Y20: =IF(C20=X20,0,1) -> 0 | Z20: =IF(Z$10=$AP$10,$AP$27,IF(Z$10=$AS$10,$AS$27,IF(Z$10=$AV$10,$AV$27,IF(Z$10=$AY$10,$AY$27,IF(Z$10=$BB$10,$BB$27,IF(Z$10=$BE$10,$BE$27,"")))))) -> Cotoran | AA20: =IF(G20=Z20,0,1) -> 0 | AB20: =IF(AB$10=$AP$10,$AP$27,IF(AB$10=$AS$10,$AS$27,IF(AB$10=$AV$10,$AV$27,IF(AB$10=$AY$10,$AY$27,IF(AB$10=$BB$10,$BB$27,IF(AB$10=$BE$10,$BE$27,"")))))) -> Cotoran | AC20: =IF(K20=AB20,0,1) -> 0 | AD20: =IF(AD$10=$AP$10,$AP$27,IF(AD$10=$AS$10,$AS$27,IF(AD$10=$AV$10,$AV$27,IF(AD$10=$AY$10,$AY$27,IF(AD$10=$BB$10,$BB$27,IF(AD$10=$BE$10,$BE$27,"")))))) -> Cotoran | AE20: =IF(O20=AD20,0,1) -> 0 | AF20: Pre emergence | AG20: =IF(AG$10=$AP$10,$AP$27,IF(AG$10=$AS$10,$AS$27,IF(AG$10=$AV$10,$AV$27,IF(AG$10=$AY$10,$AY$27,IF(AG$10=$BB$10,$BB$27,IF(AG$10=$BE$10,$BE$27,"")))))) -> Cotoran | AI20: =IF(AI$10=$AP$10,$AP$27,IF(AI$10=$AS$10,$AS$27,IF(AI$10=$AV$10,$AV$27,IF(AI$10=$AY$10,$AY$27,IF(AI$10=$BB$10,$BB$27,IF(AI$10=$BE$10,$BE$27,"")))))) -> Cotoran | AK20: =IF(AK$10=$AP$10,$AP$27,IF(AK$10=$AS$10,$AS$27,IF(AK$10=$AV$10,$AV$27,IF(AK$10=$AY$10,$AY$27,IF(AK$10=$BB$10,$BB$27,IF(AK$10=$BE$10,$BE$27,"")))))) -> Cotoran | AM20: =IF(AM$10=$AP$10,$AP$27,IF(AM$10=$AS$10,$AS$27,IF(AM$10=$AV$10,$AV$27,IF(AM$10=$AY$10,$AY$27,IF(AM$10=$BB$10,$BB$27,IF(AM$10=$BE$10,$BE$27,"")))))) -> Cotoran | AO20: PP | AP20: =Names!$Z14 -> Prowl | AQ20: =VLOOKUP(AP20,Prices!$A$5:$J$38,10,FALSE) -> 38.25 | AS20: =Names!$AA14 -> Enlist Duo | AT20: =VLOOKUP(AS20,Prices!$A$5:$J$38,10,FALSE) -> 11 | AV20: =Names!$AB14 -> Prowl | AW20: =VLOOKUP(AV20,Prices!$A$5:$J$38,10,FALSE) -> 38.25 | AY20: =Names!$AC14 -> Prowl | AZ20: =VLOOKUP(AY20,Prices!$A$5:$J$38,10,FALSE) -> 38.25 | BB20: =Names!$AD14 -> Prowl | BC20: =VLOOKUP(BB20,Prices!$A$5:$J$38,10,FALSE) -> 38.25 | BE20: =Names!$AE14 -> Dicamba | BF20: =VLOOKUP(BE20,Prices!$A$5:$J$38,10,FALSE) -> 76.8
C21: Gramoxone | D21: =IF(C$10=$AP$10,VLOOKUP(C21,$AP$27:$AQ$31,2,FALSE),IF(C$10=$AS$10,VLOOKUP(C21,$AS$27:$AT$31,2,FALSE),IF(C$10=$AV$10,VLOOKUP(C21,$AV$27:$AW$31,2,FALSE),IF(C$10=$AY$10,VLOOKUP(C21,$AY$27:$AZ$31,2,FALSE),IF(C$10=$BB$10,VLOOKUP(C21,$BB$27:$BC$32,2,FALSE),IF(C$10=$BE$10,VLOOKUP(C21,$BE$27:$BF$31,2,FALSE))))))) -> 33 | E21: =IF(C$10=$AP$10,VLOOKUP(C21,$AP$27:$AR$31,3,FALSE),IF(C$10=$AS$10,VLOOKUP(C21,$AS$27:$AU$31,3,FALSE),IF(C$10=$AV$10,VLOOKUP(C21,$AV$27:$AX$31,3,FALSE),IF(C$10=$AY$10,VLOOKUP(C21,$AY$27:$BA$31,3,FALSE),IF(C$10=$BB$10,VLOOKUP(C21,$BB$27:$BD$32,3,FALSE),IF(C$10=$BE$10,VLOOKUP(C21,$BE$27:$BG$31,3,FALSE))))))) -> 0 | G21: Gramoxone | H21: =IF(G$10=$AP$10,VLOOKUP(G21,$AP$27:$AQ$31,2,FALSE),IF(G$10=$AS$10,VLOOKUP(G21,$AS$27:$AT$31,2,FALSE),IF(G$10=$AV$10,VLOOKUP(G21,$AV$27:$AW$31,2,FALSE),IF(G$10=$AY$10,VLOOKUP(G21,$AY$27:$AZ$31,2,FALSE),IF(G$10=$BB$10,VLOOKUP(G21,$BB$27:$BC$32,2,FALSE),IF(G$10=$BE$10,VLOOKUP(G21,$BE$27:$BF$31,2,FALSE))))))) -> 33 | I21: =IF(G$10=$AP$10,VLOOKUP(G21,$AP$27:$AR$31,3,FALSE),IF(G$10=$AS$10,VLOOKUP(G21,$AS$27:$AU$31,3,FALSE),IF(G$10=$AV$10,VLOOKUP(G21,$AV$27:$AX$31,3,FALSE),IF(G$10=$AY$10,VLOOKUP(G21,$AY$27:$BA$31,3,FALSE),IF(G$10=$BB$10,VLOOKUP(G21,$BB$27:$BD$32,3,FALSE),IF(G$10=$BE$10,VLOOKUP(G21,$BE$27:$BG$31,3,FALSE))))))) -> 0 | K21: Gramoxone | L21: =IF(K$10=$AP$10,VLOOKUP(K21,$AP$27:$AQ$31,2,FALSE),IF(K$10=$AS$10,VLOOKUP(K21,$AS$27:$AT$31,2,FALSE),IF(K$10=$AV$10,VLOOKUP(K21,$AV$27:$AW$31,2,FALSE),IF(K$10=$AY$10,VLOOKUP(K21,$AY$27:$AZ$31,2,FALSE),IF(K$10=$BB$10,VLOOKUP(K21,$BB$27:$BC$32,2,FALSE),IF(K$10=$BE$10,VLOOKUP(K21,$BE$27:$BF$31,2,FALSE))))))) -> 33 | M21: =IF(K$10=$AP$10,VLOOKUP(K21,$AP$27:$AR$31,3,FALSE),IF(K$10=$AS$10,VLOOKUP(K21,$AS$27:$AU$31,3,FALSE),IF(K$10=$AV$10,VLOOKUP(K21,$AV$27:$AX$31,3,FALSE),IF(K$10=$AY$10,VLOOKUP(K21,$AY$27:$BA$31,3,FALSE),IF(K$10=$BB$10,VLOOKUP(K21,$BB$27:$BD$32,3,FALSE),IF(K$10=$BE$10,VLOOKUP(K21,$BE$27:$BG$31,3,FALSE))))))) -> 0 | O21: Gramoxone | P21: =IF(O$10=$AP$10,VLOOKUP(O21,$AP$27:$AQ$31,2,FALSE),IF(O$10=$AS$10,VLOOKUP(O21,$AS$27:$AT$31,2,FALSE),IF(O$10=$AV$10,VLOOKUP(O21,$AV$27:$AW$31,2,FALSE),IF(O$10=$AY$10,VLOOKUP(O21,$AY$27:$AZ$31,2,FALSE),IF(O$10=$BB$10,VLOOKUP(O21,$BB$27:$BC$32,2,FALSE),IF(O$10=$BE$10,VLOOKUP(O21,$BE$27:$BF$31,2,FALSE))))))) -> 33 | Q21: =IF(O$10=$AP$10,VLOOKUP(O21,$AP$27:$AR$31,3,FALSE),IF(O$10=$AS$10,VLOOKUP(O21,$AS$27:$AU$31,3,FALSE),IF(O$10=$AV$10,VLOOKUP(O21,$AV$27:$AX$31,3,FALSE),IF(O$10=$AY$10,VLOOKUP(O21,$AY$27:$BA$31,3,FALSE),IF(O$10=$BB$10,VLOOKUP(O21,$BB$27:$BD$32,3,FALSE),IF(O$10=$BE$10,VLOOKUP(O21,$BE$27:$BG$31,3,FALSE))))))) -> 0 | X21: =IF(X$10=$AP$10,$AP$28,IF(X$10=$AS$10,$AS$28,IF(X$10=$AV$10,$AV$28,IF(X$10=$AY$10,$AY$28,IF(X$10=$BB$10,$BB$28,IF(X$10=$BE$10,$BE$28,"")))))) -> Gramoxone | Y21: =IF(C21=X21,0,1) -> 0 | Z21: =IF(Z$10=$AP$10,$AP$28,IF(Z$10=$AS$10,$AS$28,IF(Z$10=$AV$10,$AV$28,IF(Z$10=$AY$10,$AY$28,IF(Z$10=$BB$10,$BB$28,IF(Z$10=$BE$10,$BE$28,"")))))) -> Gramoxone | AA21: =IF(G21=Z21,0,1) -> 0 | AB21: =IF(AB$10=$AP$10,$AP$28,IF(AB$10=$AS$10,$AS$28,IF(AB$10=$AV$10,$AV$28,IF(AB$10=$AY$10,$AY$28,IF(AB$10=$BB$10,$BB$28,IF(AB$10=$BE$10,$BE$28,"")))))) -> Gramoxone | AC21: =IF(K21=AB21,0,1) -> 0 | AD21: =IF(AD$10=$AP$10,$AP$28,IF(AD$10=$AS$10,$AS$28,IF(AD$10=$AV$10,$AV$28,IF(AD$10=$AY$10,$AY$28,IF(AD$10=$BB$10,$BB$28,IF(AD$10=$BE$10,$BE$28,"")))))) -> Gramoxone | AE21: =IF(O21=AD21,0,1) -> 0 | AG21: =IF(AG$10=$AP$10,$AP$28,IF(AG$10=$AS$10,$AS$28,IF(AG$10=$AV$10,$AV$28,IF(AG$10=$AY$10,$AY$28,IF(AG$10=$BB$10,$BB$28,IF(AG$10=$BE$10,$BE$28,"")))))) -> Gramoxone | AI21: =IF(AI$10=$AP$10,$AP$28,IF(AI$10=$AS$10,$AS$28,IF(AI$10=$AV$10,$AV$28,IF(AI$10=$AY$10,$AY$28,IF(AI$10=$BB$10,$BB$28,IF(AI$10=$BE$10,$BE$28,"")))))) -> Gramoxone | AK21: =IF(AK$10=$AP$10,$AP$28,IF(AK$10=$AS$10,$AS$28,IF(AK$10=$AV$10,$AV$28,IF(AK$10=$AY$10,$AY$28,IF(AK$10=$BB$10,$BB$28,IF(AK$10=$BE$10,$BE$28,"")))))) -> Gramoxone | AM21: =IF(AM$10=$AP$10,$AP$28,IF(AM$10=$AS$10,$AS$28,IF(AM$10=$AV$10,$AV$28,IF(AM$10=$AY$10,$AY$28,IF(AM$10=$BB$10,$BB$28,IF(AM$10=$BE$10,$BE$28,"")))))) -> Gramoxone | AP21: =Names!$Z15 -> Reflex | AQ21: =VLOOKUP(AP21,Prices!$A$5:$J$38,10,FALSE) -> 103 | AS21: =Names!$AA15 -> Prowl | AT21: =VLOOKUP(AS21,Prices!$A$5:$J$38,10,FALSE) -> 38.25 | AV21: =Names!$AB15 -> Reflex | AW21: =VLOOKUP(AV21,Prices!$A$5:$J$38,10,FALSE) -> 103 | AY21: =Names!$AC15 -> Reflex | AZ21: =VLOOKUP(AY21,Prices!$A$5:$J$38,10,FALSE) -> 103 | BB21: =Names!$AD15 -> Reflex | BC21: =VLOOKUP(BB21,Prices!$A$5:$J$38,10,FALSE) -> 103 | BE21: =Names!$AE15 -> Prowl | BF21: =VLOOKUP(BE21,Prices!$A$5:$J$38,10,FALSE) -> 38.25
C22: Prowl | D22: =IF(C$10=$AP$10,VLOOKUP(C22,$AP$27:$AQ$31,2,FALSE),IF(C$10=$AS$10,VLOOKUP(C22,$AS$27:$AT$31,2,FALSE),IF(C$10=$AV$10,VLOOKUP(C22,$AV$27:$AW$31,2,FALSE),IF(C$10=$AY$10,VLOOKUP(C22,$AY$27:$AZ$31,2,FALSE),IF(C$10=$BB$10,VLOOKUP(C22,$BB$27:$BC$32,2,FALSE),IF(C$10=$BE$10,VLOOKUP(C22,$BE$27:$BF$31,2,FALSE))))))) -> 38.25 | E22: =IF(C$10=$AP$10,VLOOKUP(C22,$AP$27:$AR$31,3,FALSE),IF(C$10=$AS$10,VLOOKUP(C22,$AS$27:$AU$31,3,FALSE),IF(C$10=$AV$10,VLOOKUP(C22,$AV$27:$AX$31,3,FALSE),IF(C$10=$AY$10,VLOOKUP(C22,$AY$27:$BA$31,3,FALSE),IF(C$10=$BB$10,VLOOKUP(C22,$BB$27:$BD$32,3,FALSE),IF(C$10=$BE$10,VLOOKUP(C22,$BE$27:$BG$31,3,FALSE))))))) -> 0 | G22: Prowl | H22: =IF(G$10=$AP$10,VLOOKUP(G22,$AP$27:$AQ$31,2,FALSE),IF(G$10=$AS$10,VLOOKUP(G22,$AS$27:$AT$31,2,FALSE),IF(G$10=$AV$10,VLOOKUP(G22,$AV$27:$AW$31,2,FALSE),IF(G$10=$AY$10,VLOOKUP(G22,$AY$27:$AZ$31,2,FALSE),IF(G$10=$BB$10,VLOOKUP(G22,$BB$27:$BC$32,2,FALSE),IF(G$10=$BE$10,VLOOKUP(G22,$BE$27:$BF$31,2,FALSE))))))) -> 38.25 | I22: =IF(G$10=$AP$10,VLOOKUP(G22,$AP$27:$AR$31,3,FALSE),IF(G$10=$AS$10,VLOOKUP(G22,$AS$27:$AU$31,3,FALSE),IF(G$10=$AV$10,VLOOKUP(G22,$AV$27:$AX$31,3,FALSE),IF(G$10=$AY$10,VLOOKUP(G22,$AY$27:$BA$31,3,FALSE),IF(G$10=$BB$10,VLOOKUP(G22,$BB$27:$BD$32,3,FALSE),IF(G$10=$BE$10,VLOOKUP(G22,$BE$27:$BG$31,3,FALSE))))))) -> 0 | K22: Prowl | L22: =IF(K$10=$AP$10,VLOOKUP(K22,$AP$27:$AQ$31,2,FALSE),IF(K$10=$AS$10,VLOOKUP(K22,$AS$27:$AT$31,2,FALSE),IF(K$10=$AV$10,VLOOKUP(K22,$AV$27:$AW$31,2,FALSE),IF(K$10=$AY$10,VLOOKUP(K22,$AY$27:$AZ$31,2,FALSE),IF(K$10=$BB$10,VLOOKUP(K22,$BB$27:$BC$32,2,FALSE),IF(K$10=$BE$10,VLOOKUP(K22,$BE$27:$BF$31,2,FALSE))))))) -> 38.25 | M22: =IF(K$10=$AP$10,VLOOKUP(K22,$AP$27:$AR$31,3,FALSE),IF(K$10=$AS$10,VLOOKUP(K22,$AS$27:$AU$31,3,FALSE),IF(K$10=$AV$10,VLOOKUP(K22,$AV$27:$AX$31,3,FALSE),IF(K$10=$AY$10,VLOOKUP(K22,$AY$27:$BA$31,3,FALSE),IF(K$10=$BB$10,VLOOKUP(K22,$BB$27:$BD$32,3,FALSE),IF(K$10=$BE$10,VLOOKUP(K22,$BE$27:$BG$31,3,FALSE))))))) -> 0 | O22: Prowl | P22: =IF(O$10=$AP$10,VLOOKUP(O22,$AP$27:$AQ$31,2,FALSE),IF(O$10=$AS$10,VLOOKUP(O22,$AS$27:$AT$31,2,FALSE),IF(O$10=$AV$10,VLOOKUP(O22,$AV$27:$AW$31,2,FALSE),IF(O$10=$AY$10,VLOOKUP(O22,$AY$27:$AZ$31,2,FALSE),IF(O$10=$BB$10,VLOOKUP(O22,$BB$27:$BC$32,2,FALSE),IF(O$10=$BE$10,VLOOKUP(O22,$BE$27:$BF$31,2,FALSE))))))) -> 38.25 | Q22: =IF(O$10=$AP$10,VLOOKUP(O22,$AP$27:$AR$31,3,FALSE),IF(O$10=$AS$10,VLOOKUP(O22,$AS$27:$AU$31,3,FALSE),IF(O$10=$AV$10,VLOOKUP(O22,$AV$27:$AX$31,3,FALSE),IF(O$10=$AY$10,VLOOKUP(O22,$AY$27:$BA$31,3,FALSE),IF(O$10=$BB$10,VLOOKUP(O22,$BB$27:$BD$32,3,FALSE),IF(O$10=$BE$10,VLOOKUP(O22,$BE$27:$BG$31,3,FALSE))))))) -> 0 | X22: =IF(X$10=$AP$10,$AP$29,IF(X$10=$AS$10,$AS$29,IF(X$10=$AV$10,$AV$29,IF(X$10=$AY$10,$AY$29,IF(X$10=$BB$10,$BB$29,IF(X$10=$BE$10,$BE$29,"")))))) -> Prowl | Y22: =IF(C22=X22,0,1) -> 0 | Z22: =IF(Z$10=$AP$10,$AP$29,IF(Z$10=$AS$10,$AS$29,IF(Z$10=$AV$10,$AV$29,IF(Z$10=$AY$10,$AY$29,IF(Z$10=$BB$10,$BB$29,IF(Z$10=$BE$10,$BE$29,"")))))) -> Prowl | AA22: =IF(G22=Z22,0,1) -> 0 | AB22: =IF(AB$10=$AP$10,$AP$29,IF(AB$10=$AS$10,$AS$29,IF(AB$10=$AV$10,$AV$29,IF(AB$10=$AY$10,$AY$29,IF(AB$10=$BB$10,$BB$29,IF(AB$10=$BE$10,$BE$29,"")))))) -> Prowl | AC22: =IF(K22=AB22,0,1) -> 0 | AD22: =IF(AD$10=$AP$10,$AP$29,IF(AD$10=$AS$10,$AS$29,IF(AD$10=$AV$10,$AV$29,IF(AD$10=$AY$10,$AY$29,IF(AD$10=$BB$10,$BB$29,IF(AD$10=$BE$10,$BE$29,"")))))) -> Prowl | AE22: =IF(O22=AD22,0,1) -> 0 | AG22: =IF(AG$10=$AP$10,$AP$29,IF(AG$10=$AS$10,$AS$29,IF(AG$10=$AV$10,$AV$29,IF(AG$10=$AY$10,$AY$29,IF(AG$10=$BB$10,$BB$29,IF(AG$10=$BE$10,$BE$29,"")))))) -> Prowl | AI22: =IF(AI$10=$AP$10,$AP$29,IF(AI$10=$AS$10,$AS$29,IF(AI$10=$AV$10,$AV$29,IF(AI$10=$AY$10,$AY$29,IF(AI$10=$BB$10,$BB$29,IF(AI$10=$BE$10,$BE$29,"")))))) -> Prowl | AK22: =IF(AK$10=$AP$10,$AP$29,IF(AK$10=$AS$10,$AS$29,IF(AK$10=$AV$10,$AV$29,IF(AK$10=$AY$10,$AY$29,IF(AK$10=$BB$10,$BB$29,IF(AK$10=$BE$10,$BE$29,"")))))) -> Prowl | AM22: =IF(AM$10=$AP$10,$AP$29,IF(AM$10=$AS$10,$AS$29,IF(AM$10=$AV$10,$AV$29,IF(AM$10=$AY$10,$AY$29,IF(AM$10=$BB$10,$BB$29,IF(AM$10=$BE$10,$BE$29,"")))))) -> Prowl | AP22: =Names!$Z16 -> Roundup | AQ22: =VLOOKUP(AP22,Prices!$A$5:$J$38,10,FALSE) -> 20 | AS22: =Names!$AA16 -> Reflex | AT22: =VLOOKUP(AS22,Prices!$A$5:$J$38,10,FALSE) -> 103 | AV22: =Names!$AB16 -> Roundup | AW22: =VLOOKUP(AV22,Prices!$A$5:$J$38,10,FALSE) -> 20 | AY22: =Names!$AC16 -> Roundup | AZ22: =VLOOKUP(AY22,Prices!$A$5:$J$38,10,FALSE) -> 20 | BB22: =Names!$AD16 -> Roundup | BC22: =VLOOKUP(BB22,Prices!$A$5:$J$38,10,FALSE) -> 20 | BE22: =Names!$AE16 -> Reflex | BF22: =VLOOKUP(BE22,Prices!$A$5:$J$38,10,FALSE) -> 103
D23: =IF(C$10=$AP$10,VLOOKUP(C23,$AP$27:$AQ$31,2,FALSE),IF(C$10=$AS$10,VLOOKUP(C23,$AS$27:$AT$31,2,FALSE),IF(C$10=$AV$10,VLOOKUP(C23,$AV$27:$AW$31,2,FALSE),IF(C$10=$AY$10,VLOOKUP(C23,$AY$27:$AZ$31,2,FALSE),IF(C$10=$BB$10,VLOOKUP(C23,$BB$27:$BC$32,2,FALSE),IF(C$10=$BE$10,VLOOKUP(C23,$BE$27:$BF$31,2,FALSE))))))) ->  | E23: =IF(C$10=$AP$10,VLOOKUP(C23,$AP$27:$AR$31,3,FALSE),IF(C$10=$AS$10,VLOOKUP(C23,$AS$27:$AU$31,3,FALSE),IF(C$10=$AV$10,VLOOKUP(C23,$AV$27:$AX$31,3,FALSE),IF(C$10=$AY$10,VLOOKUP(C23,$AY$27:$BA$31,3,FALSE),IF(C$10=$BB$10,VLOOKUP(C23,$BB$27:$BD$32,3,FALSE),IF(C$10=$BE$10,VLOOKUP(C23,$BE$27:$BG$31,3,FALSE))))))) ->  | H23: =IF(G$10=$AP$10,VLOOKUP(G23,$AP$27:$AQ$31,2,FALSE),IF(G$10=$AS$10,VLOOKUP(G23,$AS$27:$AT$31,2,FALSE),IF(G$10=$AV$10,VLOOKUP(G23,$AV$27:$AW$31,2,FALSE),IF(G$10=$AY$10,VLOOKUP(G23,$AY$27:$AZ$31,2,FALSE),IF(G$10=$BB$10,VLOOKUP(G23,$BB$27:$BC$32,2,FALSE),IF(G$10=$BE$10,VLOOKUP(G23,$BE$27:$BF$31,2,FALSE))))))) ->  | I23: =IF(G$10=$AP$10,VLOOKUP(G23,$AP$27:$AR$31,3,FALSE),IF(G$10=$AS$10,VLOOKUP(G23,$AS$27:$AU$31,3,FALSE),IF(G$10=$AV$10,VLOOKUP(G23,$AV$27:$AX$31,3,FALSE),IF(G$10=$AY$10,VLOOKUP(G23,$AY$27:$BA$31,3,FALSE),IF(G$10=$BB$10,VLOOKUP(G23,$BB$27:$BD$32,3,FALSE),IF(G$10=$BE$10,VLOOKUP(G23,$BE$27:$BG$31,3,FALSE))))))) ->  | L23: =IF(K$10=$AP$10,VLOOKUP(K23,$AP$27:$AQ$31,2,FALSE),IF(K$10=$AS$10,VLOOKUP(K23,$AS$27:$AT$31,2,FALSE),IF(K$10=$AV$10,VLOOKUP(K23,$AV$27:$AW$31,2,FALSE),IF(K$10=$AY$10,VLOOKUP(K23,$AY$27:$AZ$31,2,FALSE),IF(K$10=$BB$10,VLOOKUP(K23,$BB$27:$BC$32,2,FALSE),IF(K$10=$BE$10,VLOOKUP(K23,$BE$27:$BF$31,2,FALSE))))))) ->  | M23: =IF(K$10=$AP$10,VLOOKUP(K23,$AP$27:$AR$31,3,FALSE),IF(K$10=$AS$10,VLOOKUP(K23,$AS$27:$AU$31,3,FALSE),IF(K$10=$AV$10,VLOOKUP(K23,$AV$27:$AX$31,3,FALSE),IF(K$10=$AY$10,VLOOKUP(K23,$AY$27:$BA$31,3,FALSE),IF(K$10=$BB$10,VLOOKUP(K23,$BB$27:$BD$32,3,FALSE),IF(K$10=$BE$10,VLOOKUP(K23,$BE$27:$BG$31,3,FALSE))))))) ->  | P23: =IF(O$10=$AP$10,VLOOKUP(O23,$AP$27:$AQ$31,2,FALSE),IF(O$10=$AS$10,VLOOKUP(O23,$AS$27:$AT$31,2,FALSE),IF(O$10=$AV$10,VLOOKUP(O23,$AV$27:$AW$31,2,FALSE),IF(O$10=$AY$10,VLOOKUP(O23,$AY$27:$AZ$31,2,FALSE),IF(O$10=$BB$10,VLOOKUP(O23,$BB$27:$BC$32,2,FALSE),IF(O$10=$BE$10,VLOOKUP(O23,$BE$27:$BF$31,2,FALSE))))))) ->  | Q23: =IF(O$10=$AP$10,VLOOKUP(O23,$AP$27:$AR$31,3,FALSE),IF(O$10=$AS$10,VLOOKUP(O23,$AS$27:$AU$31,3,FALSE),IF(O$10=$AV$10,VLOOKUP(O23,$AV$27:$AX$31,3,FALSE),IF(O$10=$AY$10,VLOOKUP(O23,$AY$27:$BA$31,3,FALSE),IF(O$10=$BB$10,VLOOKUP(O23,$BB$27:$BD$32,3,FALSE),IF(O$10=$BE$10,VLOOKUP(O23,$BE$27:$BG$31,3,FALSE))))))) ->  | X23: ="" ->  | Y23: =IF(C23=X23,0,1) -> 0 | Z23: ="" ->  | AA23: =IF(G23=Z23,0,1) -> 0 | AB23: ="" ->  | AC23: =IF(K23=AB23,0,1) -> 0 | AD23: ="" ->  | AE23: =IF(O23=AD23,0,1) -> 0 | AG23: ="" ->  | AI23: ="" ->  | AK23: ="" ->  | AM23: ="" ->  | AP23: =Names!$Z17 -> Treflan | AQ23: =VLOOKUP(AP23,Prices!$A$5:$J$38,10,FALSE) -> 25.92 | AS23: =Names!$AA17 -> Roundup | AT23: =VLOOKUP(AS23,Prices!$A$5:$J$38,10,FALSE) -> 20 | AV23: =Names!$AB17 -> Treflan | AW23: =VLOOKUP(AV23,Prices!$A$5:$J$38,10,FALSE) -> 25.92 | AY23: =Names!$AC17 -> Treflan | AZ23: =VLOOKUP(AY23,Prices!$A$5:$J$38,10,FALSE) -> 25.92 | BB23: =Names!$AD17 -> Treflan | BC23: =VLOOKUP(BB23,Prices!$A$5:$J$38,10,FALSE) -> 25.92 | BE23: =Names!$AE17 -> Roundup | BF23: =VLOOKUP(BE23,Prices!$A$5:$J$38,10,FALSE) -> 20
D24: =IF(C$10=$AP$10,VLOOKUP(C24,$AP$27:$AQ$31,2,FALSE),IF(C$10=$AS$10,VLOOKUP(C24,$AS$27:$AT$31,2,FALSE),IF(C$10=$AV$10,VLOOKUP(C24,$AV$27:$AW$31,2,FALSE),IF(C$10=$AY$10,VLOOKUP(C24,$AY$27:$AZ$31,2,FALSE),IF(C$10=$BB$10,VLOOKUP(C24,$BB$27:$BC$32,2,FALSE),IF(C$10=$BE$10,VLOOKUP(C24,$BE$27:$BF$31,2,FALSE))))))) ->  | E24: =IF(C$10=$AP$10,VLOOKUP(C24,$AP$27:$AR$31,3,FALSE),IF(C$10=$AS$10,VLOOKUP(C24,$AS$27:$AU$31,3,FALSE),IF(C$10=$AV$10,VLOOKUP(C24,$AV$27:$AX$31,3,FALSE),IF(C$10=$AY$10,VLOOKUP(C24,$AY$27:$BA$31,3,FALSE),IF(C$10=$BB$10,VLOOKUP(C24,$BB$27:$BD$32,3,FALSE),IF(C$10=$BE$10,VLOOKUP(C24,$BE$27:$BG$31,3,FALSE))))))) ->  | H24: =IF(G$10=$AP$10,VLOOKUP(G24,$AP$27:$AQ$31,2,FALSE),IF(G$10=$AS$10,VLOOKUP(G24,$AS$27:$AT$31,2,FALSE),IF(G$10=$AV$10,VLOOKUP(G24,$AV$27:$AW$31,2,FALSE),IF(G$10=$AY$10,VLOOKUP(G24,$AY$27:$AZ$31,2,FALSE),IF(G$10=$BB$10,VLOOKUP(G24,$BB$27:$BC$32,2,FALSE),IF(G$10=$BE$10,VLOOKUP(G24,$BE$27:$BF$31,2,FALSE))))))) ->  | I24: =IF(G$10=$AP$10,VLOOKUP(G24,$AP$27:$AR$31,3,FALSE),IF(G$10=$AS$10,VLOOKUP(G24,$AS$27:$AU$31,3,FALSE),IF(G$10=$AV$10,VLOOKUP(G24,$AV$27:$AX$31,3,FALSE),IF(G$10=$AY$10,VLOOKUP(G24,$AY$27:$BA$31,3,FALSE),IF(G$10=$BB$10,VLOOKUP(G24,$BB$27:$BD$32,3,FALSE),IF(G$10=$BE$10,VLOOKUP(G24,$BE$27:$BG$31,3,FALSE))))))) ->  | L24: =IF(K$10=$AP$10,VLOOKUP(K24,$AP$27:$AQ$31,2,FALSE),IF(K$10=$AS$10,VLOOKUP(K24,$AS$27:$AT$31,2,FALSE),IF(K$10=$AV$10,VLOOKUP(K24,$AV$27:$AW$31,2,FALSE),IF(K$10=$AY$10,VLOOKUP(K24,$AY$27:$AZ$31,2,FALSE),IF(K$10=$BB$10,VLOOKUP(K24,$BB$27:$BC$32,2,FALSE),IF(K$10=$BE$10,VLOOKUP(K24,$BE$27:$BF$31,2,FALSE))))))) ->  | M24: =IF(K$10=$AP$10,VLOOKUP(K24,$AP$27:$AR$31,3,FALSE),IF(K$10=$AS$10,VLOOKUP(K24,$AS$27:$AU$31,3,FALSE),IF(K$10=$AV$10,VLOOKUP(K24,$AV$27:$AX$31,3,FALSE),IF(K$10=$AY$10,VLOOKUP(K24,$AY$27:$BA$31,3,FALSE),IF(K$10=$BB$10,VLOOKUP(K24,$BB$27:$BD$32,3,FALSE),IF(K$10=$BE$10,VLOOKUP(K24,$BE$27:$BG$31,3,FALSE))))))) ->  | P24: =IF(O$10=$AP$10,VLOOKUP(O24,$AP$27:$AQ$31,2,FALSE),IF(O$10=$AS$10,VLOOKUP(O24,$AS$27:$AT$31,2,FALSE),IF(O$10=$AV$10,VLOOKUP(O24,$AV$27:$AW$31,2,FALSE),IF(O$10=$AY$10,VLOOKUP(O24,$AY$27:$AZ$31,2,FALSE),IF(O$10=$BB$10,VLOOKUP(O24,$BB$27:$BC$32,2,FALSE),IF(O$10=$BE$10,VLOOKUP(O24,$BE$27:$BF$31,2,FALSE))))))) ->  | Q24: =IF(O$10=$AP$10,VLOOKUP(O24,$AP$27:$AR$31,3,FALSE),IF(O$10=$AS$10,VLOOKUP(O24,$AS$27:$AU$31,3,FALSE),IF(O$10=$AV$10,VLOOKUP(O24,$AV$27:$AX$31,3,FALSE),IF(O$10=$AY$10,VLOOKUP(O24,$AY$27:$BA$31,3,FALSE),IF(O$10=$BB$10,VLOOKUP(O24,$BB$27:$BD$32,3,FALSE),IF(O$10=$BE$10,VLOOKUP(O24,$BE$27:$BG$31,3,FALSE))))))) ->  | X24: ="" ->  | Y24: =IF(C24=X24,0,1) -> 0 | Z24: ="" ->  | AA24: =IF(G24=Z24,0,1) -> 0 | AB24: ="" ->  | AC24: =IF(K24=AB24,0,1) -> 0 | AD24: ="" ->  | AE24: =IF(O24=AD24,0,1) -> 0 | AG24: ="" ->  | AI24: ="" ->  | AK24: ="" ->  | AM24: ="" ->  | AP24: ="" ->  | AS24: =Names!$AA18 -> Treflan | AT24: =VLOOKUP(AS24,Prices!$A$5:$J$38,10,FALSE) -> 25.92 | BE24: =Names!$AE18 -> Treflan | BF24: =VLOOKUP(BE24,Prices!$A$5:$J$38,10,FALSE) -> 25.92
B26: Post emergence | C26: Dual Magnum | D26: =IF(C$10=$AP$10,VLOOKUP(C26,$AP$36:$AQ$39,2,FALSE),IF(C$10=$AS$10,VLOOKUP(C26,$AS$36:$AT$39,2,FALSE),IF(C$10=$AV$10,VLOOKUP(C26,$AV$36:$AW$40,2,FALSE),IF(C$10=$AY$10,VLOOKUP(C26,$AY$36:$AZ$41,2,FALSE),IF(C$10=$BB$10,VLOOKUP(C26,$BB$36:$BC$41,2,FALSE),IF(C$10=$BE$10,VLOOKUP(C26,$BE$36:$BF$38,2,FALSE))))))) -> 109 | E26: =IF(C$10=$AP$10,VLOOKUP(C26,$AP$36:$AR$39,3,FALSE),IF(C$10=$AS$10,VLOOKUP(C26,$AS$36:$AU$39,3,FALSE),IF(C$10=$AV$10,VLOOKUP(C26,$AV$36:$AX$40,3,FALSE),IF(C$10=$AY$10,VLOOKUP(C26,$AY$36:$BA$41,3,FALSE),IF(C$10=$BB$10,VLOOKUP(C26,$BB$36:$BD$41,3,FALSE),IF(C$10=$BE$10,VLOOKUP(C26,$BE$36:$BG$38,3,FALSE))))))) -> 0 | G26: Dual Magnum | H26: =IF(G$10=$AP$10,VLOOKUP(G26,$AP$36:$AQ$39,2,FALSE),IF(G$10=$AS$10,VLOOKUP(G26,$AS$36:$AT$39,2,FALSE),IF(G$10=$AV$10,VLOOKUP(G26,$AV$36:$AW$40,2,FALSE),IF(G$10=$AY$10,VLOOKUP(G26,$AY$36:$AZ$41,2,FALSE),IF(G$10=$BB$10,VLOOKUP(G26,$BB$36:$BC$41,2,FALSE),IF(G$10=$BE$10,VLOOKUP(G26,$BE$36:$BF$38,2,FALSE))))))) -> 109 | I26: =IF(G$10=$AP$10,VLOOKUP(G26,$AP$36:$AR$39,3,FALSE),IF(G$10=$AS$10,VLOOKUP(G26,$AS$36:$AU$39,3,FALSE),IF(G$10=$AV$10,VLOOKUP(G26,$AV$36:$AX$40,3,FALSE),IF(G$10=$AY$10,VLOOKUP(G26,$AY$36:$BA$41,3,FALSE),IF(G$10=$BB$10,VLOOKUP(G26,$BB$36:$BD$41,3,FALSE),IF(G$10=$BE$10,VLOOKUP(G26,$BE$36:$BG$38,3,FALSE))))))) -> 0 | K26: Dual Magnum | L26: =IF(K$10=$AP$10,VLOOKUP(K26,$AP$36:$AQ$39,2,FALSE),IF(K$10=$AS$10,VLOOKUP(K26,$AS$36:$AT$39,2,FALSE),IF(K$10=$AV$10,VLOOKUP(K26,$AV$36:$AW$40,2,FALSE),IF(K$10=$AY$10,VLOOKUP(K26,$AY$36:$AZ$41,2,FALSE),IF(K$10=$BB$10,VLOOKUP(K26,$BB$36:$BC$41,2,FALSE),IF(K$10=$BE$10,VLOOKUP(K26,$BE$36:$BF$38,2,FALSE))))))) -> 109 | M26: =IF(K$10=$AP$10,VLOOKUP(K26,$AP$36:$AR$39,3,FALSE),IF(K$10=$AS$10,VLOOKUP(K26,$AS$36:$AU$39,3,FALSE),IF(K$10=$AV$10,VLOOKUP(K26,$AV$36:$AX$40,3,FALSE),IF(K$10=$AY$10,VLOOKUP(K26,$AY$36:$BA$41,3,FALSE),IF(K$10=$BB$10,VLOOKUP(K26,$BB$36:$BD$41,3,FALSE),IF(K$10=$BE$10,VLOOKUP(K26,$BE$36:$BG$38,3,FALSE))))))) -> 0 | O26: Dual Magnum | P26: =IF(O$10=$AP$10,VLOOKUP(O26,$AP$36:$AQ$39,2,FALSE),IF(O$10=$AS$10,VLOOKUP(O26,$AS$36:$AT$39,2,FALSE),IF(O$10=$AV$10,VLOOKUP(O26,$AV$36:$AW$40,2,FALSE),IF(O$10=$AY$10,VLOOKUP(O26,$AY$36:$AZ$41,2,FALSE),IF(O$10=$BB$10,VLOOKUP(O26,$BB$36:$BC$41,2,FALSE),IF(O$10=$BE$10,VLOOKUP(O26,$BE$36:$BF$38,2,FALSE))))))) -> 109 | Q26: =IF(O$10=$AP$10,VLOOKUP(O26,$AP$36:$AR$39,3,FALSE),IF(O$10=$AS$10,VLOOKUP(O26,$AS$36:$AU$39,3,FALSE),IF(O$10=$AV$10,VLOOKUP(O26,$AV$36:$AX$40,3,FALSE),IF(O$10=$AY$10,VLOOKUP(O26,$AY$36:$BA$41,3,FALSE),IF(O$10=$BB$10,VLOOKUP(O26,$BB$36:$BD$41,3,FALSE),IF(O$10=$BE$10,VLOOKUP(O26,$BE$36:$BG$38,3,FALSE))))))) -> 0 | W26: Post emergence | X26: =IF(X$10=$AP$10,$AP$36,IF(X$10=$AS$10,$AS$36,IF(X$10=$AV$10,$AV$36,IF(X$10=$AY$10,$AY$36,IF(X$10=$BB$10,$BB$36,IF(X$10=$BE$10,$BE$36,"")))))) -> Dual Magnum | Y26: =IF(C26=X26,0,1) -> 0 | Z26: =IF(Z$10=$AP$10,$AP$36,IF(Z$10=$AS$10,$AS$36,IF(Z$10=$AV$10,$AV$36,IF(Z$10=$AY$10,$AY$36,IF(Z$10=$BB$10,$BB$36,IF(Z$10=$BE$10,$BE$36,"")))))) -> Dual Magnum | AA26: =IF(G26=Z26,0,1) -> 0 | AB26: =IF(AB$10=$AP$10,$AP$36,IF(AB$10=$AS$10,$AS$36,IF(AB$10=$AV$10,$AV$36,IF(AB$10=$AY$10,$AY$36,IF(AB$10=$BB$10,$BB$36,IF(AB$10=$BE$10,$BE$36,"")))))) -> Dual Magnum | AC26: =IF(K26=AB26,0,1) -> 0 | AD26: =IF(AD$10=$AP$10,$AP$36,IF(AD$10=$AS$10,$AS$36,IF(AD$10=$AV$10,$AV$36,IF(AD$10=$AY$10,$AY$36,IF(AD$10=$BB$10,$BB$36,IF(AD$10=$BE$10,$BE$36,"")))))) -> Dual Magnum | AE26: =IF(O26=AD26,0,1) -> 0 | AF26: Post emergence | AG26: =IF(AG$10=$AP$10,$AP$36,IF(AG$10=$AS$10,$AS$36,IF(AG$10=$AV$10,$AV$36,IF(AG$10=$AY$10,$AY$36,IF(AG$10=$BB$10,$BB$36,IF(AG$10=$BE$10,$BE$36,"")))))) -> Dual Magnum | AI26: =IF(AI$10=$AP$10,$AP$36,IF(AI$10=$AS$10,$AS$36,IF(AI$10=$AV$10,$AV$36,IF(AI$10=$AY$10,$AY$36,IF(AI$10=$BB$10,$BB$36,IF(AI$10=$BE$10,$BE$36,"")))))) -> Dual Magnum | AK26: =IF(AK$10=$AP$10,$AP$36,IF(AK$10=$AS$10,$AS$36,IF(AK$10=$AV$10,$AV$36,IF(AK$10=$AY$10,$AY$36,IF(AK$10=$BB$10,$BB$36,IF(AK$10=$BE$10,$BE$36,"")))))) -> Dual Magnum | AM26: =IF(AM$10=$AP$10,$AP$36,IF(AM$10=$AS$10,$AS$36,IF(AM$10=$AV$10,$AV$36,IF(AM$10=$AY$10,$AY$36,IF(AM$10=$BB$10,$BB$36,IF(AM$10=$BE$10,$BE$36,"")))))) -> Dual Magnum | AP26: =Names!$O$5 -> CottonPreCv | AS26: =Names!$O$6 -> CottonPreEn | AV26: =Names!$O$7 -> CottonPreGL | AY26: =Names!$O$8 -> CottonPreLL | BB26: =Names!$O$9 -> CottonPreRR | BE26: =Names!$O$10 -> CottonPreXt
C27: Roundup | D27: =IF(C$10=$AP$10,VLOOKUP(C27,$AP$36:$AQ$39,2,FALSE),IF(C$10=$AS$10,VLOOKUP(C27,$AS$36:$AT$39,2,FALSE),IF(C$10=$AV$10,VLOOKUP(C27,$AV$36:$AW$40,2,FALSE),IF(C$10=$AY$10,VLOOKUP(C27,$AY$36:$AZ$41,2,FALSE),IF(C$10=$BB$10,VLOOKUP(C27,$BB$36:$BC$41,2,FALSE),IF(C$10=$BE$10,VLOOKUP(C27,$BE$36:$BF$38,2,FALSE))))))) -> 20 | E27: =IF(C$10=$AP$10,VLOOKUP(C27,$AP$36:$AR$39,3,FALSE),IF(C$10=$AS$10,VLOOKUP(C27,$AS$36:$AU$39,3,FALSE),IF(C$10=$AV$10,VLOOKUP(C27,$AV$36:$AX$40,3,FALSE),IF(C$10=$AY$10,VLOOKUP(C27,$AY$36:$BA$41,3,FALSE),IF(C$10=$BB$10,VLOOKUP(C27,$BB$36:$BD$41,3,FALSE),IF(C$10=$BE$10,VLOOKUP(C27,$BE$36:$BG$38,3,FALSE))))))) -> 0 | G27: LibertyLink | H27: =IF(G$10=$AP$10,VLOOKUP(G27,$AP$36:$AQ$39,2,FALSE),IF(G$10=$AS$10,VLOOKUP(G27,$AS$36:$AT$39,2,FALSE),IF(G$10=$AV$10,VLOOKUP(G27,$AV$36:$AW$40,2,FALSE),IF(G$10=$AY$10,VLOOKUP(G27,$AY$36:$AZ$41,2,FALSE),IF(G$10=$BB$10,VLOOKUP(G27,$BB$36:$BC$41,2,FALSE),IF(G$10=$BE$10,VLOOKUP(G27,$BE$36:$BF$38,2,FALSE))))))) ->  | I27: =IF(G$10=$AP$10,VLOOKUP(G27,$AP$36:$AR$39,3,FALSE),IF(G$10=$AS$10,VLOOKUP(G27,$AS$36:$AU$39,3,FALSE),IF(G$10=$AV$10,VLOOKUP(G27,$AV$36:$AX$40,3,FALSE),IF(G$10=$AY$10,VLOOKUP(G27,$AY$36:$BA$41,3,FALSE),IF(G$10=$BB$10,VLOOKUP(G27,$BB$36:$BD$41,3,FALSE),IF(G$10=$BE$10,VLOOKUP(G27,$BE$36:$BG$38,3,FALSE))))))) ->  | K27: Enlist Duo | L27: =IF(K$10=$AP$10,VLOOKUP(K27,$AP$36:$AQ$39,2,FALSE),IF(K$10=$AS$10,VLOOKUP(K27,$AS$36:$AT$39,2,FALSE),IF(K$10=$AV$10,VLOOKUP(K27,$AV$36:$AW$40,2,FALSE),IF(K$10=$AY$10,VLOOKUP(K27,$AY$36:$AZ$41,2,FALSE),IF(K$10=$BB$10,VLOOKUP(K27,$BB$36:$BC$41,2,FALSE),IF(K$10=$BE$10,VLOOKUP(K27,$BE$36:$BF$38,2,FALSE))))))) -> 11 | M27: =IF(K$10=$AP$10,VLOOKUP(K27,$AP$36:$AR$39,3,FALSE),IF(K$10=$AS$10,VLOOKUP(K27,$AS$36:$AU$39,3,FALSE),IF(K$10=$AV$10,VLOOKUP(K27,$AV$36:$AX$40,3,FALSE),IF(K$10=$AY$10,VLOOKUP(K27,$AY$36:$BA$41,3,FALSE),IF(K$10=$BB$10,VLOOKUP(K27,$BB$36:$BD$41,3,FALSE),IF(K$10=$BE$10,VLOOKUP(K27,$BE$36:$BG$38,3,FALSE))))))) -> 0 | O27: Roundup | P27: =IF(O$10=$AP$10,VLOOKUP(O27,$AP$36:$AQ$39,2,FALSE),IF(O$10=$AS$10,VLOOKUP(O27,$AS$36:$AT$39,2,FALSE),IF(O$10=$AV$10,VLOOKUP(O27,$AV$36:$AW$40,2,FALSE),IF(O$10=$AY$10,VLOOKUP(O27,$AY$36:$AZ$41,2,FALSE),IF(O$10=$BB$10,VLOOKUP(O27,$BB$36:$BC$41,2,FALSE),IF(O$10=$BE$10,VLOOKUP(O27,$BE$36:$BF$38,2,FALSE))))))) -> 20 | Q27: =IF(O$10=$AP$10,VLOOKUP(O27,$AP$36:$AR$39,3,FALSE),IF(O$10=$AS$10,VLOOKUP(O27,$AS$36:$AU$39,3,FALSE),IF(O$10=$AV$10,VLOOKUP(O27,$AV$36:$AX$40,3,FALSE),IF(O$10=$AY$10,VLOOKUP(O27,$AY$36:$BA$41,3,FALSE),IF(O$10=$BB$10,VLOOKUP(O27,$BB$36:$BD$41,3,FALSE),IF(O$10=$BE$10,VLOOKUP(O27,$BE$36:$BG$38,3,FALSE))))))) -> 0 | X27: =IF(X$10=$AP$10,$AP$37,IF(X$10=$AS$10,$AS$37,IF(X$10=$AV$10,$AV$37,IF(X$10=$AY$10,$AY$37,IF(X$10=$BB$10,$BB$37,IF(X$10=$BE$10,$BE$37,"")))))) -> Roundup | Y27: =IF(C27=X27,0,1) -> 0 | Z27: =IF(Z$10=$AP$10,$AP$37,IF(Z$10=$AS$10,$AS$37,IF(Z$10=$AV$10,$AV$37,IF(Z$10=$AY$10,$AY$37,IF(Z$10=$BB$10,$BB$37,IF(Z$10=$BE$10,$BE$37,"")))))) -> Liberty | AA27: =IF(G27=Z27,0,1) -> 1 | AB27: =IF(AB$10=$AP$10,$AP$37,IF(AB$10=$AS$10,$AS$37,IF(AB$10=$AV$10,$AV$37,IF(AB$10=$AY$10,$AY$37,IF(AB$10=$BB$10,$BB$37,IF(AB$10=$BE$10,$BE$37,"")))))) -> Enlist Duo | AC27: =IF(K27=AB27,0,1) -> 0 | AD27: =IF(AD$10=$AP$10,$AP$37,IF(AD$10=$AS$10,$AS$37,IF(AD$10=$AV$10,$AV$37,IF(AD$10=$AY$10,$AY$37,IF(AD$10=$BB$10,$BB$37,IF(AD$10=$BE$10,$BE$37,"")))))) -> Roundup | AE27: =IF(O27=AD27,0,1) -> 0 | AG27: =IF(AG$10=$AP$10,$AP$37,IF(AG$10=$AS$10,$AS$37,IF(AG$10=$AV$10,$AV$37,IF(AG$10=$AY$10,$AY$37,IF(AG$10=$BB$10,$BB$37,IF(AG$10=$BE$10,$BE$37,"")))))) -> Roundup | AI27: =IF(AI$10=$AP$10,$AP$37,IF(AI$10=$AS$10,$AS$37,IF(AI$10=$AV$10,$AV$37,IF(AI$10=$AY$10,$AY$37,IF(AI$10=$BB$10,$BB$37,IF(AI$10=$BE$10,$BE$37,"")))))) -> Liberty | AK27: =IF(AK$10=$AP$10,$AP$37,IF(AK$10=$AS$10,$AS$37,IF(AK$10=$AV$10,$AV$37,IF(AK$10=$AY$10,$AY$37,IF(AK$10=$BB$10,$BB$37,IF(AK$10=$BE$10,$BE$37,"")))))) -> Enlist Duo | AM27: =IF(AM$10=$AP$10,$AP$37,IF(AM$10=$AS$10,$AS$37,IF(AM$10=$AV$10,$AV$37,IF(AM$10=$AY$10,$AY$37,IF(AM$10=$BB$10,$BB$37,IF(AM$10=$BE$10,$BE$37,"")))))) -> Roundup | AO27: Pre | AP27: =Names!$Z21 -> Cotoran | AQ27: =VLOOKUP(AP27,Prices!$A$5:$J$38,10,FALSE) -> 42 | AS27: =Names!$AA21 -> Cotoran | AT27: =VLOOKUP(AS27,Prices!$A$5:$J$38,10,FALSE) -> 42 | AV27: =Names!$AB21 -> Cotoran | AW27: =VLOOKUP(AV27,Prices!$A$5:$J$38,10,FALSE) -> 42 | AY27: =Names!$AC21 -> Cotoran | AZ27: =VLOOKUP(AY27,Prices!$A$5:$J$38,10,FALSE) -> 42 | BB27: =Names!$AD21 -> Cotoran | BC27: =VLOOKUP(BB27,Prices!$A$5:$J$38,10,FALSE) -> 42 | BE27: =Names!$AE21 -> Cotoran | BF27: =VLOOKUP(BE27,Prices!$A$5:$J$38,10,FALSE) -> 42
C28: Staple | D28: =IF(C$10=$AP$10,VLOOKUP(C28,$AP$36:$AQ$39,2,FALSE),IF(C$10=$AS$10,VLOOKUP(C28,$AS$36:$AT$39,2,FALSE),IF(C$10=$AV$10,VLOOKUP(C28,$AV$36:$AW$40,2,FALSE),IF(C$10=$AY$10,VLOOKUP(C28,$AY$36:$AZ$41,2,FALSE),IF(C$10=$BB$10,VLOOKUP(C28,$BB$36:$BC$41,2,FALSE),IF(C$10=$BE$10,VLOOKUP(C28,$BE$36:$BF$38,2,FALSE))))))) -> 7 | E28: =IF(C$10=$AP$10,VLOOKUP(C28,$AP$36:$AR$39,3,FALSE),IF(C$10=$AS$10,VLOOKUP(C28,$AS$36:$AU$39,3,FALSE),IF(C$10=$AV$10,VLOOKUP(C28,$AV$36:$AX$40,3,FALSE),IF(C$10=$AY$10,VLOOKUP(C28,$AY$36:$BA$41,3,FALSE),IF(C$10=$BB$10,VLOOKUP(C28,$BB$36:$BD$41,3,FALSE),IF(C$10=$BE$10,VLOOKUP(C28,$BE$36:$BG$38,3,FALSE))))))) -> 0 | G28: Staple | H28: =IF(G$10=$AP$10,VLOOKUP(G28,$AP$36:$AQ$39,2,FALSE),IF(G$10=$AS$10,VLOOKUP(G28,$AS$36:$AT$39,2,FALSE),IF(G$10=$AV$10,VLOOKUP(G28,$AV$36:$AW$40,2,FALSE),IF(G$10=$AY$10,VLOOKUP(G28,$AY$36:$AZ$41,2,FALSE),IF(G$10=$BB$10,VLOOKUP(G28,$BB$36:$BC$41,2,FALSE),IF(G$10=$BE$10,VLOOKUP(G28,$BE$36:$BF$38,2,FALSE))))))) -> 7 | I28: =IF(G$10=$AP$10,VLOOKUP(G28,$AP$36:$AR$39,3,FALSE),IF(G$10=$AS$10,VLOOKUP(G28,$AS$36:$AU$39,3,FALSE),IF(G$10=$AV$10,VLOOKUP(G28,$AV$36:$AX$40,3,FALSE),IF(G$10=$AY$10,VLOOKUP(G28,$AY$36:$BA$41,3,FALSE),IF(G$10=$BB$10,VLOOKUP(G28,$BB$36:$BD$41,3,FALSE),IF(G$10=$BE$10,VLOOKUP(G28,$BE$36:$BG$38,3,FALSE))))))) -> 0 | K28: LibertyLink | L28: =IF(K$10=$AP$10,VLOOKUP(K28,$AP$36:$AQ$39,2,FALSE),IF(K$10=$AS$10,VLOOKUP(K28,$AS$36:$AT$39,2,FALSE),IF(K$10=$AV$10,VLOOKUP(K28,$AV$36:$AW$40,2,FALSE),IF(K$10=$AY$10,VLOOKUP(K28,$AY$36:$AZ$41,2,FALSE),IF(K$10=$BB$10,VLOOKUP(K28,$BB$36:$BC$41,2,FALSE),IF(K$10=$BE$10,VLOOKUP(K28,$BE$36:$BF$38,2,FALSE))))))) ->  | M28: =IF(K$10=$AP$10,VLOOKUP(K28,$AP$36:$AR$39,3,FALSE),IF(K$10=$AS$10,VLOOKUP(K28,$AS$36:$AU$39,3,FALSE),IF(K$10=$AV$10,VLOOKUP(K28,$AV$36:$AX$40,3,FALSE),IF(K$10=$AY$10,VLOOKUP(K28,$AY$36:$BA$41,3,FALSE),IF(K$10=$BB$10,VLOOKUP(K28,$BB$36:$BD$41,3,FALSE),IF(K$10=$BE$10,VLOOKUP(K28,$BE$36:$BG$38,3,FALSE))))))) ->  | O28: Staple | P28: =IF(O$10=$AP$10,VLOOKUP(O28,$AP$36:$AQ$39,2,FALSE),IF(O$10=$AS$10,VLOOKUP(O28,$AS$36:$AT$39,2,FALSE),IF(O$10=$AV$10,VLOOKUP(O28,$AV$36:$AW$40,2,FALSE),IF(O$10=$AY$10,VLOOKUP(O28,$AY$36:$AZ$41,2,FALSE),IF(O$10=$BB$10,VLOOKUP(O28,$BB$36:$BC$41,2,FALSE),IF(O$10=$BE$10,VLOOKUP(O28,$BE$36:$BF$38,2,FALSE))))))) -> 7 | Q28: =IF(O$10=$AP$10,VLOOKUP(O28,$AP$36:$AR$39,3,FALSE),IF(O$10=$AS$10,VLOOKUP(O28,$AS$36:$AU$39,3,FALSE),IF(O$10=$AV$10,VLOOKUP(O28,$AV$36:$AX$40,3,FALSE),IF(O$10=$AY$10,VLOOKUP(O28,$AY$36:$BA$41,3,FALSE),IF(O$10=$BB$10,VLOOKUP(O28,$BB$36:$BD$41,3,FALSE),IF(O$10=$BE$10,VLOOKUP(O28,$BE$36:$BG$38,3,FALSE))))))) -> 0 | X28: =IF(X$10=$AP$10,$AP$38,IF(X$10=$AS$10,$AS$38,IF(X$10=$AV$10,$AV$38,IF(X$10=$AY$10,$AY$38,IF(X$10=$BB$10,$BB$38,IF(X$10=$BE$10,$BE$38,"")))))) -> Staple | Y28: =IF(C28=X28,0,1) -> 0 | Z28: =IF(Z$10=$AP$10,$AP$38,IF(Z$10=$AS$10,$AS$38,IF(Z$10=$AV$10,$AV$38,IF(Z$10=$AY$10,$AY$38,IF(Z$10=$BB$10,$BB$38,IF(Z$10=$BE$10,$BE$38,"")))))) -> Staple | AA28: =IF(G28=Z28,0,1) -> 0 | AB28: =IF(AB$10=$AP$10,$AP$38,IF(AB$10=$AS$10,$AS$38,IF(AB$10=$AV$10,$AV$38,IF(AB$10=$AY$10,$AY$38,IF(AB$10=$BB$10,$BB$38,IF(AB$10=$BE$10,$BE$38,"")))))) -> Liberty | AC28: =IF(K28=AB28,0,1) -> 1 | AD28: =IF(AD$10=$AP$10,$AP$38,IF(AD$10=$AS$10,$AS$38,IF(AD$10=$AV$10,$AV$38,IF(AD$10=$AY$10,$AY$38,IF(AD$10=$BB$10,$BB$38,IF(AD$10=$BE$10,$BE$38,"")))))) -> Staple | AE28: =IF(O28=AD28,0,1) -> 0 | AG28: =IF(AG$10=$AP$10,$AP$38,IF(AG$10=$AS$10,$AS$38,IF(AG$10=$AV$10,$AV$38,IF(AG$10=$AY$10,$AY$38,IF(AG$10=$BB$10,$BB$38,IF(AG$10=$BE$10,$BE$38,"")))))) -> Staple | AI28: =IF(AI$10=$AP$10,$AP$38,IF(AI$10=$AS$10,$AS$38,IF(AI$10=$AV$10,$AV$38,IF(AI$10=$AY$10,$AY$38,IF(AI$10=$BB$10,$BB$38,IF(AI$10=$BE$10,$BE$38,"")))))) -> Staple | AK28: =IF(AK$10=$AP$10,$AP$38,IF(AK$10=$AS$10,$AS$38,IF(AK$10=$AV$10,$AV$38,IF(AK$10=$AY$10,$AY$38,IF(AK$10=$BB$10,$BB$38,IF(AK$10=$BE$10,$BE$38,"")))))) -> Liberty | AM28: =IF(AM$10=$AP$10,$AP$38,IF(AM$10=$AS$10,$AS$38,IF(AM$10=$AV$10,$AV$38,IF(AM$10=$AY$10,$AY$38,IF(AM$10=$BB$10,$BB$38,IF(AM$10=$BE$10,$BE$38,"")))))) -> Staple | AP28: =Names!$Z22 -> Gramoxone | AQ28: =VLOOKUP(AP28,Prices!$A$5:$J$38,10,FALSE) -> 33 | AS28: =Names!$AA22 -> Gramoxone | AT28: =VLOOKUP(AS28,Prices!$A$5:$J$38,10,FALSE) -> 33 | AV28: =Names!$AB22 -> Gramoxone | AW28: =VLOOKUP(AV28,Prices!$A$5:$J$38,10,FALSE) -> 33 | AY28: =Names!$AC22 -> Gramoxone | AZ28: =VLOOKUP(AY28,Prices!$A$5:$J$38,10,FALSE) -> 33 | BB28: =Names!$AD22 -> Gramoxone | BC28: =VLOOKUP(BB28,Prices!$A$5:$J$38,10,FALSE) -> 33 | BE28: =Names!$AE23 -> Gramoxone | BF28: =VLOOKUP(BE28,Prices!$A$5:$J$38,10,FALSE) -> 33
C29: Warrant | D29: =IF(C$10=$AP$10,VLOOKUP(C29,$AP$36:$AQ$39,2,FALSE),IF(C$10=$AS$10,VLOOKUP(C29,$AS$36:$AT$39,2,FALSE),IF(C$10=$AV$10,VLOOKUP(C29,$AV$36:$AW$40,2,FALSE),IF(C$10=$AY$10,VLOOKUP(C29,$AY$36:$AZ$41,2,FALSE),IF(C$10=$BB$10,VLOOKUP(C29,$BB$36:$BC$41,2,FALSE),IF(C$10=$BE$10,VLOOKUP(C29,$BE$36:$BF$38,2,FALSE))))))) -> 36.73 | E29: =IF(C$10=$AP$10,VLOOKUP(C29,$AP$36:$AR$39,3,FALSE),IF(C$10=$AS$10,VLOOKUP(C29,$AS$36:$AU$39,3,FALSE),IF(C$10=$AV$10,VLOOKUP(C29,$AV$36:$AX$40,3,FALSE),IF(C$10=$AY$10,VLOOKUP(C29,$AY$36:$BA$41,3,FALSE),IF(C$10=$BB$10,VLOOKUP(C29,$BB$36:$BD$41,3,FALSE),IF(C$10=$BE$10,VLOOKUP(C29,$BE$36:$BG$38,3,FALSE))))))) -> 0 | G29: Warrant | H29: =IF(G$10=$AP$10,VLOOKUP(G29,$AP$36:$AQ$39,2,FALSE),IF(G$10=$AS$10,VLOOKUP(G29,$AS$36:$AT$39,2,FALSE),IF(G$10=$AV$10,VLOOKUP(G29,$AV$36:$AW$40,2,FALSE),IF(G$10=$AY$10,VLOOKUP(G29,$AY$36:$AZ$41,2,FALSE),IF(G$10=$BB$10,VLOOKUP(G29,$BB$36:$BC$41,2,FALSE),IF(G$10=$BE$10,VLOOKUP(G29,$BE$36:$BF$38,2,FALSE))))))) -> 36.73 | I29: =IF(G$10=$AP$10,VLOOKUP(G29,$AP$36:$AR$39,3,FALSE),IF(G$10=$AS$10,VLOOKUP(G29,$AS$36:$AU$39,3,FALSE),IF(G$10=$AV$10,VLOOKUP(G29,$AV$36:$AX$40,3,FALSE),IF(G$10=$AY$10,VLOOKUP(G29,$AY$36:$BA$41,3,FALSE),IF(G$10=$BB$10,VLOOKUP(G29,$BB$36:$BD$41,3,FALSE),IF(G$10=$BE$10,VLOOKUP(G29,$BE$36:$BG$38,3,FALSE))))))) -> 0 | K29: Roundup | L29: =IF(K$10=$AP$10,VLOOKUP(K29,$AP$36:$AQ$39,2,FALSE),IF(K$10=$AS$10,VLOOKUP(K29,$AS$36:$AT$39,2,FALSE),IF(K$10=$AV$10,VLOOKUP(K29,$AV$36:$AW$40,2,FALSE),IF(K$10=$AY$10,VLOOKUP(K29,$AY$36:$AZ$41,2,FALSE),IF(K$10=$BB$10,VLOOKUP(K29,$BB$36:$BC$41,2,FALSE),IF(K$10=$BE$10,VLOOKUP(K29,$BE$36:$BF$38,2,FALSE))))))) -> 20 | M29: =IF(K$10=$AP$10,VLOOKUP(K29,$AP$36:$AR$39,3,FALSE),IF(K$10=$AS$10,VLOOKUP(K29,$AS$36:$AU$39,3,FALSE),IF(K$10=$AV$10,VLOOKUP(K29,$AV$36:$AX$40,3,FALSE),IF(K$10=$AY$10,VLOOKUP(K29,$AY$36:$BA$41,3,FALSE),IF(K$10=$BB$10,VLOOKUP(K29,$BB$36:$BD$41,3,FALSE),IF(K$10=$BE$10,VLOOKUP(K29,$BE$36:$BG$38,3,FALSE))))))) -> 0 | O29: Warrant | P29: =IF(O$10=$AP$10,VLOOKUP(O29,$AP$36:$AQ$39,2,FALSE),IF(O$10=$AS$10,VLOOKUP(O29,$AS$36:$AT$39,2,FALSE),IF(O$10=$AV$10,VLOOKUP(O29,$AV$36:$AW$40,2,FALSE),IF(O$10=$AY$10,VLOOKUP(O29,$AY$36:$AZ$41,2,FALSE),IF(O$10=$BB$10,VLOOKUP(O29,$BB$36:$BC$41,2,FALSE),IF(O$10=$BE$10,VLOOKUP(O29,$BE$36:$BF$38,2,FALSE))))))) -> 36.73 | Q29: =IF(O$10=$AP$10,VLOOKUP(O29,$AP$36:$AR$39,3,FALSE),IF(O$10=$AS$10,VLOOKUP(O29,$AS$36:$AU$39,3,FALSE),IF(O$10=$AV$10,VLOOKUP(O29,$AV$36:$AX$40,3,FALSE),IF(O$10=$AY$10,VLOOKUP(O29,$AY$36:$BA$41,3,FALSE),IF(O$10=$BB$10,VLOOKUP(O29,$BB$36:$BD$41,3,FALSE),IF(O$10=$BE$10,VLOOKUP(O29,$BE$36:$BG$38,3,FALSE))))))) -> 0 | X29: =IF(X$10=$AP$10,$AP$39,IF(X$10=$AS$10,$AS$39,IF(X$10=$AV$10,$AV$39,IF(X$10=$AY$10,$AY$39,IF(X$10=$BB$10,$BB$39,""))))) -> Warrant | Y29: =IF(C29=X29,0,1) -> 0 | Z29: =IF(Z$10=$AP$10,$AP$39,IF(Z$10=$AS$10,$AS$39,IF(Z$10=$AV$10,$AV$39,IF(Z$10=$AY$10,$AY$39,IF(Z$10=$BB$10,$BB$39,""))))) -> Warrant | AA29: =IF(G29=Z29,0,1) -> 0 | AB29: =IF(AB$10=$AP$10,$AP$39,IF(AB$10=$AS$10,$AS$39,IF(AB$10=$AV$10,$AV$39,IF(AB$10=$AY$10,$AY$39,IF(AB$10=$BB$10,$BB$39,""))))) -> Roundup | AC29: =IF(K29=AB29,0,1) -> 0 | AD29: =IF(AD$10=$AP$10,$AP$39,IF(AD$10=$AS$10,$AS$39,IF(AD$10=$AV$10,$AV$39,IF(AD$10=$AY$10,$AY$39,IF(AD$10=$BB$10,$BB$39,""))))) -> Warrant | AE29: =IF(O29=AD29,0,1) -> 0 | AG29: =IF(AG$10=$AP$10,$AP$39,IF(AG$10=$AS$10,$AS$39,IF(AG$10=$AV$10,$AV$39,IF(AG$10=$AY$10,$AY$39,IF(AG$10=$BB$10,$BB$39,""))))) -> Warrant | AI29: =IF(AI$10=$AP$10,$AP$39,IF(AI$10=$AS$10,$AS$39,IF(AI$10=$AV$10,$AV$39,IF(AI$10=$AY$10,$AY$39,IF(AI$10=$BB$10,$BB$39,""))))) -> Warrant | AK29: =IF(AK$10=$AP$10,$AP$39,IF(AK$10=$AS$10,$AS$39,IF(AK$10=$AV$10,$AV$39,IF(AK$10=$AY$10,$AY$39,IF(AK$10=$BB$10,$BB$39,""))))) -> Roundup | AM29: =IF(AM$10=$AP$10,$AP$39,IF(AM$10=$AS$10,$AS$39,IF(AM$10=$AV$10,$AV$39,IF(AM$10=$AY$10,$AY$39,IF(AM$10=$BB$10,$BB$39,""))))) -> Warrant | AP29: =Names!$Z23 -> Prowl | AQ29: =VLOOKUP(AP29,Prices!$A$5:$J$38,10,FALSE) -> 38.25 | AS29: =Names!$AA23 -> Prowl | AT29: =VLOOKUP(AS29,Prices!$A$5:$J$38,10,FALSE) -> 38.25 | AV29: =Names!$AB23 -> Prowl | AW29: =VLOOKUP(AV29,Prices!$A$5:$J$38,10,FALSE) -> 38.25 | AY29: =Names!$AC23 -> Prowl | AZ29: =VLOOKUP(AY29,Prices!$A$5:$J$38,10,FALSE) -> 38.25 | BB29: =Names!$AD23 -> Prowl | BC29: =VLOOKUP(BB29,Prices!$A$5:$J$38,10,FALSE) -> 38.25 | BE29: =Names!$AE24 -> Prowl | BF29: =VLOOKUP(BE29,Prices!$A$5:$J$38,10,FALSE) -> 38.25
C30: 0 | D30: =IF(C$10=$AP$10,VLOOKUP(C30,$AP$36:$AQ$39,2,FALSE),IF(C$10=$AS$10,VLOOKUP(C30,$AS$36:$AT$39,2,FALSE),IF(C$10=$AV$10,VLOOKUP(C30,$AV$36:$AW$40,2,FALSE),IF(C$10=$AY$10,VLOOKUP(C30,$AY$36:$AZ$41,2,FALSE),IF(C$10=$BB$10,VLOOKUP(C30,$BB$36:$BC$41,2,FALSE),IF(C$10=$BE$10,VLOOKUP(C30,$BE$36:$BF$38,2,FALSE))))))) ->  | E30: =IF(C$10=$AP$10,VLOOKUP(C30,$AP$36:$AR$39,3,FALSE),IF(C$10=$AS$10,VLOOKUP(C30,$AS$36:$AU$39,3,FALSE),IF(C$10=$AV$10,VLOOKUP(C30,$AV$36:$AX$40,3,FALSE),IF(C$10=$AY$10,VLOOKUP(C30,$AY$36:$BA$41,3,FALSE),IF(C$10=$BB$10,VLOOKUP(C30,$BB$36:$BD$41,3,FALSE),IF(C$10=$BE$10,VLOOKUP(C30,$BE$36:$BG$38,3,FALSE))))))) ->  | G30: 0 | H30: =IF(G$10=$AP$10,VLOOKUP(G30,$AP$36:$AQ$39,2,FALSE),IF(G$10=$AS$10,VLOOKUP(G30,$AS$36:$AT$39,2,FALSE),IF(G$10=$AV$10,VLOOKUP(G30,$AV$36:$AW$40,2,FALSE),IF(G$10=$AY$10,VLOOKUP(G30,$AY$36:$AZ$41,2,FALSE),IF(G$10=$BB$10,VLOOKUP(G30,$BB$36:$BC$41,2,FALSE),IF(G$10=$BE$10,VLOOKUP(G30,$BE$36:$BF$38,2,FALSE))))))) ->  | I30: =IF(G$10=$AP$10,VLOOKUP(G30,$AP$36:$AR$39,3,FALSE),IF(G$10=$AS$10,VLOOKUP(G30,$AS$36:$AU$39,3,FALSE),IF(G$10=$AV$10,VLOOKUP(G30,$AV$36:$AX$40,3,FALSE),IF(G$10=$AY$10,VLOOKUP(G30,$AY$36:$BA$41,3,FALSE),IF(G$10=$BB$10,VLOOKUP(G30,$BB$36:$BD$41,3,FALSE),IF(G$10=$BE$10,VLOOKUP(G30,$BE$36:$BG$38,3,FALSE))))))) ->  | L30: =IF(K$10=$AP$10,VLOOKUP(K30,$AP$36:$AQ$39,2,FALSE),IF(K$10=$AS$10,VLOOKUP(K30,$AS$36:$AT$39,2,FALSE),IF(K$10=$AV$10,VLOOKUP(K30,$AV$36:$AW$40,2,FALSE),IF(K$10=$AY$10,VLOOKUP(K30,$AY$36:$AZ$41,2,FALSE),IF(K$10=$BB$10,VLOOKUP(K30,$BB$36:$BC$41,2,FALSE),IF(K$10=$BE$10,VLOOKUP(K30,$BE$36:$BF$38,2,FALSE))))))) ->  | M30: =IF(K$10=$AP$10,VLOOKUP(K30,$AP$36:$AR$39,3,FALSE),IF(K$10=$AS$10,VLOOKUP(K30,$AS$36:$AU$39,3,FALSE),IF(K$10=$AV$10,VLOOKUP(K30,$AV$36:$AX$40,3,FALSE),IF(K$10=$AY$10,VLOOKUP(K30,$AY$36:$BA$41,3,FALSE),IF(K$10=$BB$10,VLOOKUP(K30,$BB$36:$BD$41,3,FALSE),IF(K$10=$BE$10,VLOOKUP(K30,$BE$36:$BG$38,3,FALSE))))))) ->  | O30: 0 | P30: =IF(O$10=$AP$10,VLOOKUP(O30,$AP$36:$AQ$39,2,FALSE),IF(O$10=$AS$10,VLOOKUP(O30,$AS$36:$AT$39,2,FALSE),IF(O$10=$AV$10,VLOOKUP(O30,$AV$36:$AW$40,2,FALSE),IF(O$10=$AY$10,VLOOKUP(O30,$AY$36:$AZ$41,2,FALSE),IF(O$10=$BB$10,VLOOKUP(O30,$BB$36:$BC$41,2,FALSE),IF(O$10=$BE$10,VLOOKUP(O30,$BE$36:$BF$38,2,FALSE))))))) ->  | Q30: =IF(O$10=$AP$10,VLOOKUP(O30,$AP$36:$AR$39,3,FALSE),IF(O$10=$AS$10,VLOOKUP(O30,$AS$36:$AU$39,3,FALSE),IF(O$10=$AV$10,VLOOKUP(O30,$AV$36:$AX$40,3,FALSE),IF(O$10=$AY$10,VLOOKUP(O30,$AY$36:$BA$41,3,FALSE),IF(O$10=$BB$10,VLOOKUP(O30,$BB$36:$BD$41,3,FALSE),IF(O$10=$BE$10,VLOOKUP(O30,$BE$36:$BG$38,3,FALSE))))))) ->  | X30: =IF(X$10=$AV$10,$AV$40,IF(X$10=$AY$10,$AY$40,IF(X$10=$BB$10,$BB$40,""))) -> 0 | Y30: =IF(C30=X30,0,1) -> 0 | Z30: =IF(Z$10=$AV$10,$AV$40,IF(Z$10=$AY$10,$AY$40,IF(Z$10=$BB$10,$BB$40,""))) -> 0 | AA30: =IF(G30=Z30,0,1) -> 0 | AB30: =IF(AB$10=$AV$10,$AV$40,IF(AB$10=$AY$10,$AY$40,IF(AB$10=$BB$10,$BB$40,""))) ->  | AC30: =IF(K30=AB30,0,1) -> 0 | AD30: =IF(AD$10=$AV$10,$AV$40,IF(AD$10=$AY$10,$AY$40,IF(AD$10=$BB$10,$BB$40,""))) -> 0 | AE30: =IF(O30=AD30,0,1) -> 0 | AG30: =IF(AG$10=$AV$10,$AV$40,IF(AG$10=$AY$10,$AY$40,IF(AG$10=$BB$10,$BB$40,""))) -> 0 | AI30: =IF(AI$10=$AV$10,$AV$40,IF(AI$10=$AY$10,$AY$40,IF(AI$10=$BB$10,$BB$40,""))) -> 0 | AK30: =IF(AK$10=$AV$10,$AV$40,IF(AK$10=$AY$10,$AY$40,IF(AK$10=$BB$10,$BB$40,""))) ->  | AM30: =IF(AM$10=$AV$10,$AV$40,IF(AM$10=$AY$10,$AY$40,IF(AM$10=$BB$10,$BB$40,""))) -> 0 | AP30: =Names!$Z24 -> Treflan | AQ30: =VLOOKUP(AP30,Prices!$A$5:$J$38,10,FALSE) -> 25.92 | AS30: =Names!$AA24 -> Treflan | AT30: =VLOOKUP(AS30,Prices!$A$5:$J$38,10,FALSE) -> 25.92 | AV30: =Names!$AB24 -> Treflan | AW30: =VLOOKUP(AV30,Prices!$A$5:$J$38,10,FALSE) -> 25.92 | AY30: =Names!$AC24 -> Treflan | AZ30: =VLOOKUP(AY30,Prices!$A$5:$J$38,10,FALSE) -> 25.92 | BB30: =Names!$AD24 -> Treflan | BC30: =VLOOKUP(BB30,Prices!$A$5:$J$38,10,FALSE) -> 25.92 | BE30: =Names!$AE25 -> Treflan | BF30: =VLOOKUP(BE30,Prices!$A$5:$J$38,10,FALSE) -> 25.92
AP31: =Names!$Z25 -> Warrant | AQ31: =VLOOKUP(AP31,Prices!$A$5:$J$38,10,FALSE) -> 36.73 | AS31: =Names!$AA25 -> Warrant | AT31: =VLOOKUP(AS31,Prices!$A$5:$J$38,10,FALSE) -> 36.73 | AV31: =Names!$AB25 -> Warrant | AW31: =VLOOKUP(AV31,Prices!$A$5:$J$38,10,FALSE) -> 36.73 | AY31: =Names!$AC25 -> Warrant | AZ31: =VLOOKUP(AY31,Prices!$A$5:$J$38,10,FALSE) -> 36.73 | BB31: =Names!$AD25 -> Warrant | BC31: =VLOOKUP(BB31,Prices!$A$5:$J$38,10,FALSE) -> 36.73 | BE31: =Names!$AE26 -> Warrant | BF31: =VLOOKUP(BE31,Prices!$A$5:$J$38,10,FALSE) -> 36.73
B32: Layby | C32: Direx | D32: =IF(C$10=$AP$10,VLOOKUP(C32,$AP$44:$AQ$47,2,FALSE),IF(C$10=$AS$10,VLOOKUP(C32,$AS$44:$AT$46,2,FALSE),IF(C$10=$AV$10,VLOOKUP(C32,$AV$44:$AW$47,2,FALSE),IF(C$10=$AY$10,VLOOKUP(C32,$AY$44:$AZ$47,2,FALSE),IF(C$10=$BB$10,VLOOKUP(C32,$BB$44:$BC$47,2,FALSE),IF(C$10=$BE$10,VLOOKUP(C32,$BE$44:$BF$46,2,FALSE))))))) -> 25 | E32: =IF(C$10=$AP$10,VLOOKUP(C32,$AP$44:$AR$45,3,FALSE),IF(C$10=$AS$10,VLOOKUP(C32,$AS$44:$AU$46,3,FALSE),IF(C$10=$AV$10,VLOOKUP(C32,$AV$44:$AX$47,3,FALSE),IF(C$10=$AY$10,VLOOKUP(C32,$AY$44:$BA$47,3,FALSE),IF(C$10=$BB$10,VLOOKUP(C32,$BB$44:$BD$47,3,FALSE),IF(C$10=$BE$10,VLOOKUP(C32,$BE$44:$BG$46,3,FALSE))))))) -> 0 | G32: Direx | H32: =IF(G$10=$AP$10,VLOOKUP(G32,$AP$44:$AQ$47,2,FALSE),IF(G$10=$AS$10,VLOOKUP(G32,$AS$44:$AT$46,2,FALSE),IF(G$10=$AV$10,VLOOKUP(G32,$AV$44:$AW$47,2,FALSE),IF(G$10=$AY$10,VLOOKUP(G32,$AY$44:$AZ$47,2,FALSE),IF(G$10=$BB$10,VLOOKUP(G32,$BB$44:$BC$47,2,FALSE),IF(G$10=$BE$10,VLOOKUP(G32,$BE$44:$BF$46,2,FALSE))))))) -> 25 | I32: =IF(G$10=$AP$10,VLOOKUP(G32,$AP$44:$AR$45,3,FALSE),IF(G$10=$AS$10,VLOOKUP(G32,$AS$44:$AU$46,3,FALSE),IF(G$10=$AV$10,VLOOKUP(G32,$AV$44:$AX$47,3,FALSE),IF(G$10=$AY$10,VLOOKUP(G32,$AY$44:$BA$47,3,FALSE),IF(G$10=$BB$10,VLOOKUP(G32,$BB$44:$BD$47,3,FALSE),IF(G$10=$BE$10,VLOOKUP(G32,$BE$44:$BG$46,3,FALSE))))))) -> 0 | K32: Direx | L32: =IF(K$10=$AP$10,VLOOKUP(K32,$AP$44:$AQ$47,2,FALSE),IF(K$10=$AS$10,VLOOKUP(K32,$AS$44:$AT$46,2,FALSE),IF(K$10=$AV$10,VLOOKUP(K32,$AV$44:$AW$47,2,FALSE),IF(K$10=$AY$10,VLOOKUP(K32,$AY$44:$AZ$47,2,FALSE),IF(K$10=$BB$10,VLOOKUP(K32,$BB$44:$BC$47,2,FALSE),IF(K$10=$BE$10,VLOOKUP(K32,$BE$44:$BF$46,2,FALSE))))))) -> 25 | M32: =IF(K$10=$AP$10,VLOOKUP(K32,$AP$44:$AR$45,3,FALSE),IF(K$10=$AS$10,VLOOKUP(K32,$AS$44:$AU$46,3,FALSE),IF(K$10=$AV$10,VLOOKUP(K32,$AV$44:$AX$47,3,FALSE),IF(K$10=$AY$10,VLOOKUP(K32,$AY$44:$BA$47,3,FALSE),IF(K$10=$BB$10,VLOOKUP(K32,$BB$44:$BD$47,3,FALSE),IF(K$10=$BE$10,VLOOKUP(K32,$BE$44:$BG$46,3,FALSE))))))) -> 0 | O32: Direx | P32: =IF(O$10=$AP$10,VLOOKUP(O32,$AP$44:$AQ$47,2,FALSE),IF(O$10=$AS$10,VLOOKUP(O32,$AS$44:$AT$46,2,FALSE),IF(O$10=$AV$10,VLOOKUP(O32,$AV$44:$AW$47,2,FALSE),IF(O$10=$AY$10,VLOOKUP(O32,$AY$44:$AZ$47,2,FALSE),IF(O$10=$BB$10,VLOOKUP(O32,$BB$44:$BC$47,2,FALSE),IF(O$10=$BE$10,VLOOKUP(O32,$BE$44:$BF$46,2,FALSE))))))) -> 25 | Q32: =IF(O$10=$AP$10,VLOOKUP(O32,$AP$44:$AR$45,3,FALSE),IF(O$10=$AS$10,VLOOKUP(O32,$AS$44:$AU$46,3,FALSE),IF(O$10=$AV$10,VLOOKUP(O32,$AV$44:$AX$47,3,FALSE),IF(O$10=$AY$10,VLOOKUP(O32,$AY$44:$BA$47,3,FALSE),IF(O$10=$BB$10,VLOOKUP(O32,$BB$44:$BD$47,3,FALSE),IF(O$10=$BE$10,VLOOKUP(O32,$BE$44:$BG$46,3,FALSE))))))) -> 0 | W32: Layby | X32: =IF(X$10=$AP$10,$AP$44,IF(X$10=$AS$10,$AS$44,IF(X$10=$AV$10,$AV$44,IF(X$10=$AY$10,$AY$44,IF(X$10=$BB$10,BB44,IF(X$10=$BE$10,$BE$44,"")))))) -> Direx | Y32: =IF(C32=X32,0,1) -> 0 | Z32: =IF(Z$10=$AP$10,$AP$44,IF(Z$10=$AS$10,$AS$44,IF(Z$10=$AV$10,$AV$44,IF(Z$10=$AY$10,$AY$44,IF(Z$10=$BB$10,BB44,IF(Z$10=$BE$10,$BE$44,"")))))) -> Direx | AA32: =IF(G32=Z32,0,1) -> 0 | AB32: =IF(AB$10=$AP$10,$AP$44,IF(AB$10=$AS$10,$AS$44,IF(AB$10=$AV$10,$AV$44,IF(AB$10=$AY$10,$AY$44,IF(AB$10=$BB$10,BB44,IF(AB$10=$BE$10,$BE$44,"")))))) -> Direx | AC32: =IF(K32=AB32,0,1) -> 0 | AD32: =IF(AD$10=$AP$10,$AP$44,IF(AD$10=$AS$10,$AS$44,IF(AD$10=$AV$10,$AV$44,IF(AD$10=$AY$10,$AY$44,IF(AD$10=$BB$10,BB44,IF(AD$10=$BE$10,$BE$44,"")))))) -> Direx | AE32: =IF(O32=AD32,0,1) -> 0 | AF32: Layby | AG32: =IF(AG$10=$AP$10,$AP$44,IF(AG$10=$AS$10,$AS$44,IF(AG$10=$AV$10,$AV$44,IF(AG$10=$AY$10,$AY$44,IF(AG$10=$BB$10,BB44,IF(AG$10=$BE$10,$BE$44,"")))))) -> Direx | AI32: =IF(AI$10=$AP$10,$AP$44,IF(AI$10=$AS$10,$AS$44,IF(AI$10=$AV$10,$AV$44,IF(AI$10=$AY$10,$AY$44,IF(AI$10=$BB$10,BB44,IF(AI$10=$BE$10,$BE$44,"")))))) -> Direx | AK32: =IF(AK$10=$AP$10,$AP$44,IF(AK$10=$AS$10,$AS$44,IF(AK$10=$AV$10,$AV$44,IF(AK$10=$AY$10,$AY$44,IF(AK$10=$BB$10,BB44,IF(AK$10=$BE$10,$BE$44,"")))))) -> Direx | AM32: =IF(AM$10=$AP$10,$AP$44,IF(AM$10=$AS$10,$AS$44,IF(AM$10=$AV$10,$AV$44,IF(AM$10=$AY$10,$AY$44,IF(AM$10=$BB$10,BB44,IF(AM$10=$BE$10,$BE$44,"")))))) -> Direx | AP32: ="" -> 
C33: MSMA | D33: =IF(C$10=$AP$10,VLOOKUP(C33,$AP$44:$AQ$47,2,FALSE),IF(C$10=$AS$10,VLOOKUP(C33,$AS$44:$AT$46,2,FALSE),IF(C$10=$AV$10,VLOOKUP(C33,$AV$44:$AW$47,2,FALSE),IF(C$10=$AY$10,VLOOKUP(C33,$AY$44:$AZ$47,2,FALSE),IF(C$10=$BB$10,VLOOKUP(C33,$BB$44:$BC$47,2,FALSE),IF(C$10=$BE$10,VLOOKUP(C33,$BE$44:$BF$46,2,FALSE))))))) -> 25 | E33: =IF(C$10=$AP$10,VLOOKUP(C33,$AP$44:$AR$45,3,FALSE),IF(C$10=$AS$10,VLOOKUP(C33,$AS$44:$AU$46,3,FALSE),IF(C$10=$AV$10,VLOOKUP(C33,$AV$44:$AX$47,3,FALSE),IF(C$10=$AY$10,VLOOKUP(C33,$AY$44:$BA$47,3,FALSE),IF(C$10=$BB$10,VLOOKUP(C33,$BB$44:$BD$47,3,FALSE),IF(C$10=$BE$10,VLOOKUP(C33,$BE$44:$BG$46,3,FALSE))))))) -> 0 | G33: MSMA | H33: =IF(G$10=$AP$10,VLOOKUP(G33,$AP$44:$AQ$47,2,FALSE),IF(G$10=$AS$10,VLOOKUP(G33,$AS$44:$AT$46,2,FALSE),IF(G$10=$AV$10,VLOOKUP(G33,$AV$44:$AW$47,2,FALSE),IF(G$10=$AY$10,VLOOKUP(G33,$AY$44:$AZ$47,2,FALSE),IF(G$10=$BB$10,VLOOKUP(G33,$BB$44:$BC$47,2,FALSE),IF(G$10=$BE$10,VLOOKUP(G33,$BE$44:$BF$46,2,FALSE))))))) -> 25 | I33: =IF(G$10=$AP$10,VLOOKUP(G33,$AP$44:$AR$45,3,FALSE),IF(G$10=$AS$10,VLOOKUP(G33,$AS$44:$AU$46,3,FALSE),IF(G$10=$AV$10,VLOOKUP(G33,$AV$44:$AX$47,3,FALSE),IF(G$10=$AY$10,VLOOKUP(G33,$AY$44:$BA$47,3,FALSE),IF(G$10=$BB$10,VLOOKUP(G33,$BB$44:$BD$47,3,FALSE),IF(G$10=$BE$10,VLOOKUP(G33,$BE$44:$BG$46,3,FALSE))))))) -> 0 | K33: MSMA | L33: =IF(K$10=$AP$10,VLOOKUP(K33,$AP$44:$AQ$47,2,FALSE),IF(K$10=$AS$10,VLOOKUP(K33,$AS$44:$AT$46,2,FALSE),IF(K$10=$AV$10,VLOOKUP(K33,$AV$44:$AW$47,2,FALSE),IF(K$10=$AY$10,VLOOKUP(K33,$AY$44:$AZ$47,2,FALSE),IF(K$10=$BB$10,VLOOKUP(K33,$BB$44:$BC$47,2,FALSE),IF(K$10=$BE$10,VLOOKUP(K33,$BE$44:$BF$46,2,FALSE))))))) -> 25 | M33: =IF(K$10=$AP$10,VLOOKUP(K33,$AP$44:$AR$45,3,FALSE),IF(K$10=$AS$10,VLOOKUP(K33,$AS$44:$AU$46,3,FALSE),IF(K$10=$AV$10,VLOOKUP(K33,$AV$44:$AX$47,3,FALSE),IF(K$10=$AY$10,VLOOKUP(K33,$AY$44:$BA$47,3,FALSE),IF(K$10=$BB$10,VLOOKUP(K33,$BB$44:$BD$47,3,FALSE),IF(K$10=$BE$10,VLOOKUP(K33,$BE$44:$BG$46,3,FALSE))))))) -> 0 | O33: MSMA | P33: =IF(O$10=$AP$10,VLOOKUP(O33,$AP$44:$AQ$47,2,FALSE),IF(O$10=$AS$10,VLOOKUP(O33,$AS$44:$AT$46,2,FALSE),IF(O$10=$AV$10,VLOOKUP(O33,$AV$44:$AW$47,2,FALSE),IF(O$10=$AY$10,VLOOKUP(O33,$AY$44:$AZ$47,2,FALSE),IF(O$10=$BB$10,VLOOKUP(O33,$BB$44:$BC$47,2,FALSE),IF(O$10=$BE$10,VLOOKUP(O33,$BE$44:$BF$46,2,FALSE))))))) -> 25 | Q33: =IF(O$10=$AP$10,VLOOKUP(O33,$AP$44:$AR$45,3,FALSE),IF(O$10=$AS$10,VLOOKUP(O33,$AS$44:$AU$46,3,FALSE),IF(O$10=$AV$10,VLOOKUP(O33,$AV$44:$AX$47,3,FALSE),IF(O$10=$AY$10,VLOOKUP(O33,$AY$44:$BA$47,3,FALSE),IF(O$10=$BB$10,VLOOKUP(O33,$BB$44:$BD$47,3,FALSE),IF(O$10=$BE$10,VLOOKUP(O33,$BE$44:$BG$46,3,FALSE))))))) -> 0 | X33: =IF(X$10=$AP$10,$AP$45,IF(X$10=$AS$10,$AS$45,IF(X$10=$AV$10,$AV$45,IF(X$10=$AY$10,AY45,IF(X$10=$BB$10,$BB$45,IF(X$10=$BE$10,$BE$45,"")))))) -> MSMA | Y33: =IF(C33=X33,0,1) -> 0 | Z33: =IF(Z$10=$AP$10,$AP$45,IF(Z$10=$AS$10,$AS$45,IF(Z$10=$AV$10,$AV$45,IF(Z$10=$AY$10,AY45,IF(Z$10=$BB$10,$BB$45,IF(Z$10=$BE$10,$BE$45,"")))))) -> MSMA | AA33: =IF(G33=Z33,0,1) -> 0 | AB33: =IF(AB$10=$AP$10,$AP$45,IF(AB$10=$AS$10,$AS$45,IF(AB$10=$AV$10,$AV$45,IF(AB$10=$AY$10,AY45,IF(AB$10=$BB$10,$BB$45,IF(AB$10=$BE$10,$BE$45,"")))))) -> MSMA | AC33: =IF(K33=AB33,0,1) -> 0 | AD33: =IF(AD$10=$AP$10,$AP$45,IF(AD$10=$AS$10,$AS$45,IF(AD$10=$AV$10,$AV$45,IF(AD$10=$AY$10,AY45,IF(AD$10=$BB$10,$BB$45,IF(AD$10=$BE$10,$BE$45,"")))))) -> MSMA | AE33: =IF(O33=AD33,0,1) -> 0 | AG33: =IF(AG$10=$AP$10,$AP$45,IF(AG$10=$AS$10,$AS$45,IF(AG$10=$AV$10,$AV$45,IF(AG$10=$AY$10,AY45,IF(AG$10=$BB$10,$BB$45,IF(AG$10=$BE$10,$BE$45,"")))))) -> MSMA | AI33: =IF(AI$10=$AP$10,$AP$45,IF(AI$10=$AS$10,$AS$45,IF(AI$10=$AV$10,$AV$45,IF(AI$10=$AY$10,AY45,IF(AI$10=$BB$10,$BB$45,IF(AI$10=$BE$10,$BE$45,"")))))) -> MSMA | AK33: =IF(AK$10=$AP$10,$AP$45,IF(AK$10=$AS$10,$AS$45,IF(AK$10=$AV$10,$AV$45,IF(AK$10=$AY$10,AY45,IF(AK$10=$BB$10,$BB$45,IF(AK$10=$BE$10,$BE$45,"")))))) -> MSMA | AM33: =IF(AM$10=$AP$10,$AP$45,IF(AM$10=$AS$10,$AS$45,IF(AM$10=$AV$10,$AV$45,IF(AM$10=$AY$10,AY45,IF(AM$10=$BB$10,$BB$45,IF(AM$10=$BE$10,$BE$45,"")))))) -> MSMA
C34: Roundup | D34: =IF(C$10=$AP$10,VLOOKUP(C34,$AP$44:$AQ$47,2,FALSE),IF(C$10=$AS$10,VLOOKUP(C34,$AS$44:$AT$46,2,FALSE),IF(C$10=$AV$10,VLOOKUP(C34,$AV$44:$AW$47,2,FALSE),IF(C$10=$AY$10,VLOOKUP(C34,$AY$44:$AZ$47,2,FALSE),IF(C$10=$BB$10,VLOOKUP(C34,$BB$44:$BC$47,2,FALSE),IF(C$10=$BE$10,VLOOKUP(C34,$BE$44:$BF$46,2,FALSE))))))) -> 20 | E34: =IF(C$10=$AP$10,VLOOKUP(C34,$AP$44:$AR$45,3,FALSE),IF(C$10=$AS$10,VLOOKUP(C34,$AS$44:$AU$46,3,FALSE),IF(C$10=$AV$10,VLOOKUP(C34,$AV$44:$AX$47,3,FALSE),IF(C$10=$AY$10,VLOOKUP(C34,$AY$44:$BA$47,3,FALSE),IF(C$10=$BB$10,VLOOKUP(C34,$BB$44:$BD$47,3,FALSE),IF(C$10=$BE$10,VLOOKUP(C34,$BE$44:$BG$46,3,FALSE))))))) -> 0 | G34: Valor | H34: =IF(G$10=$AP$10,VLOOKUP(G34,$AP$44:$AQ$47,2,FALSE),IF(G$10=$AS$10,VLOOKUP(G34,$AS$44:$AT$46,2,FALSE),IF(G$10=$AV$10,VLOOKUP(G34,$AV$44:$AW$47,2,FALSE),IF(G$10=$AY$10,VLOOKUP(G34,$AY$44:$AZ$47,2,FALSE),IF(G$10=$BB$10,VLOOKUP(G34,$BB$44:$BC$47,2,FALSE),IF(G$10=$BE$10,VLOOKUP(G34,$BE$44:$BF$46,2,FALSE))))))) -> 4.38 | I34: =IF(G$10=$AP$10,VLOOKUP(G34,$AP$44:$AR$45,3,FALSE),IF(G$10=$AS$10,VLOOKUP(G34,$AS$44:$AU$46,3,FALSE),IF(G$10=$AV$10,VLOOKUP(G34,$AV$44:$AX$47,3,FALSE),IF(G$10=$AY$10,VLOOKUP(G34,$AY$44:$BA$47,3,FALSE),IF(G$10=$BB$10,VLOOKUP(G34,$BB$44:$BD$47,3,FALSE),IF(G$10=$BE$10,VLOOKUP(G34,$BE$44:$BG$46,3,FALSE))))))) -> 0 | K34: Roundup | L34: =IF(K$10=$AP$10,VLOOKUP(K34,$AP$44:$AQ$47,2,FALSE),IF(K$10=$AS$10,VLOOKUP(K34,$AS$44:$AT$46,2,FALSE),IF(K$10=$AV$10,VLOOKUP(K34,$AV$44:$AW$47,2,FALSE),IF(K$10=$AY$10,VLOOKUP(K34,$AY$44:$AZ$47,2,FALSE),IF(K$10=$BB$10,VLOOKUP(K34,$BB$44:$BC$47,2,FALSE),IF(K$10=$BE$10,VLOOKUP(K34,$BE$44:$BF$46,2,FALSE))))))) -> 20 | M34: =IF(K$10=$AP$10,VLOOKUP(K34,$AP$44:$AR$45,3,FALSE),IF(K$10=$AS$10,VLOOKUP(K34,$AS$44:$AU$46,3,FALSE),IF(K$10=$AV$10,VLOOKUP(K34,$AV$44:$AX$47,3,FALSE),IF(K$10=$AY$10,VLOOKUP(K34,$AY$44:$BA$47,3,FALSE),IF(K$10=$BB$10,VLOOKUP(K34,$BB$44:$BD$47,3,FALSE),IF(K$10=$BE$10,VLOOKUP(K34,$BE$44:$BG$46,3,FALSE))))))) -> 0 | O34: Roundup | P34: =IF(O$10=$AP$10,VLOOKUP(O34,$AP$44:$AQ$47,2,FALSE),IF(O$10=$AS$10,VLOOKUP(O34,$AS$44:$AT$46,2,FALSE),IF(O$10=$AV$10,VLOOKUP(O34,$AV$44:$AW$47,2,FALSE),IF(O$10=$AY$10,VLOOKUP(O34,$AY$44:$AZ$47,2,FALSE),IF(O$10=$BB$10,VLOOKUP(O34,$BB$44:$BC$47,2,FALSE),IF(O$10=$BE$10,VLOOKUP(O34,$BE$44:$BF$46,2,FALSE))))))) -> 20 | Q34: =IF(O$10=$AP$10,VLOOKUP(O34,$AP$44:$AR$45,3,FALSE),IF(O$10=$AS$10,VLOOKUP(O34,$AS$44:$AU$46,3,FALSE),IF(O$10=$AV$10,VLOOKUP(O34,$AV$44:$AX$47,3,FALSE),IF(O$10=$AY$10,VLOOKUP(O34,$AY$44:$BA$47,3,FALSE),IF(O$10=$BB$10,VLOOKUP(O34,$BB$44:$BD$47,3,FALSE),IF(O$10=$BE$10,VLOOKUP(O34,$BE$44:$BG$46,3,FALSE))))))) -> 0 | X34: =IF(X$10=$AP$10,$AP$46,IF(X$10=$AS$10,$AS$46,IF(X$10=$AV$10,$AV$46,IF(X$10=$AY$10,$AY$46,IF(X$10=$BB$10,$BB$46,IF(X$10=$BE$10,$BE$46,"")))))) -> Roundup | Y34: =IF(C34=X34,0,1) -> 0 | Z34: =IF(Z$10=$AP$10,$AP$46,IF(Z$10=$AS$10,$AS$46,IF(Z$10=$AV$10,$AV$46,IF(Z$10=$AY$10,$AY$46,IF(Z$10=$BB$10,$BB$46,IF(Z$10=$BE$10,$BE$46,"")))))) -> Valor | AA34: =IF(G34=Z34,0,1) -> 0 | AB34: =IF(AB$10=$AP$10,$AP$46,IF(AB$10=$AS$10,$AS$46,IF(AB$10=$AV$10,$AV$46,IF(AB$10=$AY$10,$AY$46,IF(AB$10=$BB$10,$BB$46,IF(AB$10=$BE$10,$BE$46,"")))))) -> Roundup | AC34: =IF(K34=AB34,0,1) -> 0 | AD34: =IF(AD$10=$AP$10,$AP$46,IF(AD$10=$AS$10,$AS$46,IF(AD$10=$AV$10,$AV$46,IF(AD$10=$AY$10,$AY$46,IF(AD$10=$BB$10,$BB$46,IF(AD$10=$BE$10,$BE$46,"")))))) -> Roundup | AE34: =IF(O34=AD34,0,1) -> 0 | AG34: =IF(AG$10=$AP$10,$AP$46,IF(AG$10=$AS$10,$AS$46,IF(AG$10=$AV$10,$AV$46,IF(AG$10=$AY$10,$AY$46,IF(AG$10=$BB$10,$BB$46,IF(AG$10=$BE$10,$BE$46,"")))))) -> Roundup | AI34: =IF(AI$10=$AP$10,$AP$46,IF(AI$10=$AS$10,$AS$46,IF(AI$10=$AV$10,$AV$46,IF(AI$10=$AY$10,$AY$46,IF(AI$10=$BB$10,$BB$46,IF(AI$10=$BE$10,$BE$46,"")))))) -> Valor | AK34: =IF(AK$10=$AP$10,$AP$46,IF(AK$10=$AS$10,$AS$46,IF(AK$10=$AV$10,$AV$46,IF(AK$10=$AY$10,$AY$46,IF(AK$10=$BB$10,$BB$46,IF(AK$10=$BE$10,$BE$46,"")))))) -> Roundup | AM34: =IF(AM$10=$AP$10,$AP$46,IF(AM$10=$AS$10,$AS$46,IF(AM$10=$AV$10,$AV$46,IF(AM$10=$AY$10,$AY$46,IF(AM$10=$BB$10,$BB$46,IF(AM$10=$BE$10,$BE$46,"")))))) -> Roundup
C35: Valor | D35: =IF(C$10=$AP$10,VLOOKUP(C35,$AP$44:$AQ$47,2,FALSE),IF(C$10=$AS$10,VLOOKUP(C35,$AS$44:$AT$46,2,FALSE),IF(C$10=$AV$10,VLOOKUP(C35,$AV$44:$AW$47,2,FALSE),IF(C$10=$AY$10,VLOOKUP(C35,$AY$44:$AZ$47,2,FALSE),IF(C$10=$BB$10,VLOOKUP(C35,$BB$44:$BC$47,2,FALSE),IF(C$10=$BE$10,VLOOKUP(C35,$BE$44:$BF$46,2,FALSE))))))) -> 4.38 | E35: =IF(C$10=$AP$10,VLOOKUP(C35,$AP$44:$AR$45,3,FALSE),IF(C$10=$AS$10,VLOOKUP(C35,$AS$44:$AU$46,3,FALSE),IF(C$10=$AV$10,VLOOKUP(C35,$AV$44:$AX$47,3,FALSE),IF(C$10=$AY$10,VLOOKUP(C35,$AY$44:$BA$47,3,FALSE),IF(C$10=$BB$10,VLOOKUP(C35,$BB$44:$BD$47,3,FALSE),IF(C$10=$BE$10,VLOOKUP(C35,$BE$44:$BG$46,3,FALSE))))))) -> 0 | G35: 0 | H35: =IF(G$10=$AP$10,VLOOKUP(G35,$AP$44:$AQ$47,2,FALSE),IF(G$10=$AS$10,VLOOKUP(G35,$AS$44:$AT$46,2,FALSE),IF(G$10=$AV$10,VLOOKUP(G35,$AV$44:$AW$47,2,FALSE),IF(G$10=$AY$10,VLOOKUP(G35,$AY$44:$AZ$47,2,FALSE),IF(G$10=$BB$10,VLOOKUP(G35,$BB$44:$BC$47,2,FALSE),IF(G$10=$BE$10,VLOOKUP(G35,$BE$44:$BF$46,2,FALSE))))))) ->  | I35: =IF(G$10=$AP$10,VLOOKUP(G35,$AP$44:$AR$45,3,FALSE),IF(G$10=$AS$10,VLOOKUP(G35,$AS$44:$AU$46,3,FALSE),IF(G$10=$AV$10,VLOOKUP(G35,$AV$44:$AX$47,3,FALSE),IF(G$10=$AY$10,VLOOKUP(G35,$AY$44:$BA$47,3,FALSE),IF(G$10=$BB$10,VLOOKUP(G35,$BB$44:$BD$47,3,FALSE),IF(G$10=$BE$10,VLOOKUP(G35,$BE$44:$BG$46,3,FALSE))))))) ->  | L35: =IF(K$10=$AP$10,VLOOKUP(K35,$AP$44:$AQ$47,2,FALSE),IF(K$10=$AS$10,VLOOKUP(K35,$AS$44:$AT$46,2,FALSE),IF(K$10=$AV$10,VLOOKUP(K35,$AV$44:$AW$47,2,FALSE),IF(K$10=$AY$10,VLOOKUP(K35,$AY$44:$AZ$47,2,FALSE),IF(K$10=$BB$10,VLOOKUP(K35,$BB$44:$BC$47,2,FALSE),IF(K$10=$BE$10,VLOOKUP(K35,$BE$44:$BF$46,2,FALSE))))))) ->  | M35: =IF(K$10=$AP$10,VLOOKUP(K35,$AP$44:$AR$45,3,FALSE),IF(K$10=$AS$10,VLOOKUP(K35,$AS$44:$AU$46,3,FALSE),IF(K$10=$AV$10,VLOOKUP(K35,$AV$44:$AX$47,3,FALSE),IF(K$10=$AY$10,VLOOKUP(K35,$AY$44:$BA$47,3,FALSE),IF(K$10=$BB$10,VLOOKUP(K35,$BB$44:$BD$47,3,FALSE),IF(K$10=$BE$10,VLOOKUP(K35,$BE$44:$BG$46,3,FALSE))))))) ->  | O35: Valor | P35: =IF(O$10=$AP$10,VLOOKUP(O35,$AP$44:$AQ$47,2,FALSE),IF(O$10=$AS$10,VLOOKUP(O35,$AS$44:$AT$46,2,FALSE),IF(O$10=$AV$10,VLOOKUP(O35,$AV$44:$AW$47,2,FALSE),IF(O$10=$AY$10,VLOOKUP(O35,$AY$44:$AZ$47,2,FALSE),IF(O$10=$BB$10,VLOOKUP(O35,$BB$44:$BC$47,2,FALSE),IF(O$10=$BE$10,VLOOKUP(O35,$BE$44:$BF$46,2,FALSE))))))) -> 4.38 | Q35: =IF(O$10=$AP$10,VLOOKUP(O35,$AP$44:$AR$45,3,FALSE),IF(O$10=$AS$10,VLOOKUP(O35,$AS$44:$AU$46,3,FALSE),IF(O$10=$AV$10,VLOOKUP(O35,$AV$44:$AX$47,3,FALSE),IF(O$10=$AY$10,VLOOKUP(O35,$AY$44:$BA$47,3,FALSE),IF(O$10=$BB$10,VLOOKUP(O35,$BB$44:$BD$47,3,FALSE),IF(O$10=$BE$10,VLOOKUP(O35,$BE$44:$BG$46,3,FALSE))))))) -> 0 | X35: =IF(X$10=$AP$10,$AP$47,IF(X$10=$AV$10,$AV$47,IF(X$10=$AY$10,$AY$47,IF(X$10=$BB$10,$BB$47,"")))) -> Valor | Y35: =IF(C35=X35,0,1) -> 0 | Z35: =IF(Z$10=$AP$10,$AP$47,IF(Z$10=$AV$10,$AV$47,IF(Z$10=$AY$10,$AY$47,IF(Z$10=$BB$10,$BB$47,"")))) -> 0 | AA35: =IF(G35=Z35,0,1) -> 0 | AB35: =IF(AB$10=$AP$10,$AP$47,IF(AB$10=$AV$10,$AV$47,IF(AB$10=$AY$10,$AY$47,IF(AB$10=$BB$10,$BB$47,"")))) ->  | AC35: =IF(K35=AB35,0,1) -> 0 | AD35: =IF(AD$10=$AP$10,$AP$47,IF(AD$10=$AV$10,$AV$47,IF(AD$10=$AY$10,$AY$47,IF(AD$10=$BB$10,$BB$47,"")))) -> Valor | AE35: =IF(O35=AD35,0,1) -> 0 | AG35: =IF(AG$10=$AP$10,$AP$47,IF(AG$10=$AV$10,$AV$47,IF(AG$10=$AY$10,$AY$47,IF(AG$10=$BB$10,$BB$47,"")))) -> Valor | AI35: =IF(AI$10=$AP$10,$AP$47,IF(AI$10=$AV$10,$AV$47,IF(AI$10=$AY$10,$AY$47,IF(AI$10=$BB$10,$BB$47,"")))) -> 0 | AK35: =IF(AK$10=$AP$10,$AP$47,IF(AK$10=$AV$10,$AV$47,IF(AK$10=$AY$10,$AY$47,IF(AK$10=$BB$10,$BB$47,"")))) ->  | AM35: =IF(AM$10=$AP$10,$AP$47,IF(AM$10=$AV$10,$AV$47,IF(AM$10=$AY$10,$AY$47,IF(AM$10=$BB$10,$BB$47,"")))) -> Valor | AP35: =Names!$P$5 -> CottonPostCv | AS35: =Names!$P$6 -> CottonPostEn | AV35: =Names!$P$7 -> CottonPostGL | AY35: =Names!$P$8 -> CottonPostLL | BB35: =Names!$P$9 -> CottonPostRR | BE35: =Names!$P$10 -> CottonPostXt
AO36: Post | AP36: =Names!$Z29 -> Dual Magnum | AQ36: =VLOOKUP(AP36,Prices!$A$5:$J$38,10,FALSE) -> 109 | AS36: =Names!$AA29 -> Dual Magnum | AT36: =VLOOKUP(AS36,Prices!$A$5:$J$38,10,FALSE) -> 109 | AV36: =Names!$AB29 -> Dual Magnum | AW36: =VLOOKUP(AV36,Prices!$A$5:$J$38,10,FALSE) -> 109 | AY36: =Names!$AC29 -> Dual Magnum | AZ36: =VLOOKUP(AY36,Prices!$A$5:$J$38,10,FALSE) -> 109 | BB36: =Names!$AD29 -> Dual Magnum | BC36: =VLOOKUP(BB36,Prices!$A$5:$J$38,10,FALSE) -> 109 | BE36: =Names!$AE30 -> Dual Magnum | BF36: =VLOOKUP(BE36,Prices!$A$5:$J$38,10,FALSE) -> 109
AP37: =Names!$Z30 -> Staple | AQ37: =VLOOKUP(AP37,Prices!$A$5:$J$38,10,FALSE) -> 7 | AS37: =Names!$AA30 -> Enlist Duo | AT37: =VLOOKUP(AS37,Prices!$A$5:$J$38,10,FALSE) -> 11 | AV37: =Names!$AB30 -> Liberty | AW37: =VLOOKUP(AV37,Prices!$A$5:$J$38,10,FALSE) -> 53.9 | AY37: =Names!$AC30 -> Liberty | AZ37: =VLOOKUP(AY37,Prices!$A$5:$J$38,10,FALSE) -> 53.9 | BB37: =Names!$AD30 -> Roundup | BC37: =VLOOKUP(BB37,Prices!$A$5:$J$38,10,FALSE) -> 20 | BE37: =Names!$AE31 -> Liberty | BF37: =VLOOKUP(BE37,Prices!$A$5:$J$38,10,FALSE) -> 53.9
AP38: =Names!$Z31 -> Warrant | AQ38: =VLOOKUP(AP38,Prices!$A$5:$J$38,10,FALSE) -> 36.73 | AS38: =Names!$AA31 -> Liberty | AT38: =VLOOKUP(AS38,Prices!$A$5:$J$38,10,FALSE) -> 53.9 | AV38: =Names!$AB31 -> Roundup | AW38: =VLOOKUP(AV38,Prices!$A$5:$J$38,10,FALSE) -> 20 | AY38: =Names!$AC31 -> Staple | AZ38: =VLOOKUP(AY38,Prices!$A$5:$J$38,10,FALSE) -> 7 | BB38: =Names!$AD31 -> Staple | BC38: =VLOOKUP(BB38,Prices!$A$5:$J$38,10,FALSE) -> 7 | BE38: =Names!$AE32 -> Roundup | BF38: =VLOOKUP(BE38,Prices!$A$5:$J$38,10,FALSE) -> 20
AS39: =Names!$AA32 -> Roundup | AT39: =VLOOKUP(AS39,Prices!$A$5:$J$38,10,FALSE) -> 20 | AV39: =Names!$AB32 -> Staple | AW39: =VLOOKUP(AV39,Prices!$A$5:$J$38,10,FALSE) -> 7 | AY39: =Names!$AC32 -> Warrant | AZ39: =VLOOKUP(AY39,Prices!$A$5:$J$38,10,FALSE) -> 36.73 | BB39: =Names!$AD32 -> Warrant | BC39: =VLOOKUP(BB39,Prices!$A$5:$J$38,10,FALSE) -> 36.73 | BE39: =Names!$AE33 -> Staple | BF39: =VLOOKUP(BE39,Prices!$A$5:$J$38,10,FALSE) -> 7
AS40: =Names!$AA33 -> Staple | AT40: =VLOOKUP(AS40,Prices!$A$5:$J$38,10,FALSE) -> 7 | AV40: =Names!$AB33 -> Warrant | AW40: =VLOOKUP(AV40,Prices!$A$5:$J$38,10,FALSE) -> 36.73 | BE40: =Names!$AE34 -> Warrant | BF40: =VLOOKUP(BE40,Prices!$A$5:$J$38,10,FALSE) -> 36.73
AS41: =Names!$AA34 -> Warrant | AT41: =VLOOKUP(AS41,Prices!$A$5:$J$38,10,FALSE) -> 36.73
AP43: =Names!$Q$5 -> CottonLayCv | AS43: =Names!$Q$6 -> CottonLayEn | AV43: =Names!$Q$7 -> CottonLayGL | AY43: =Names!$Q$8 -> CottonLayLL | BB43: =Names!$Q$9 -> CottonLayRR | BE43: =Names!$Q$10 -> CottonLayXt
AO44: Lay | AP44: =Names!$Z38 -> Direx | AQ44: =VLOOKUP(AP44,Prices!$A$5:$J$38,10,FALSE) -> 25 | AS44: =Names!$AA38 -> Direx | AT44: =VLOOKUP(AS44,Prices!$A$5:$J$38,10,FALSE) -> 25 | AV44: =Names!$AB$38 -> Direx | AW44: =VLOOKUP(AV44,Prices!$A$5:$J$38,10,FALSE) -> 25 | AY44: =Names!$AC38 -> Direx | AZ44: =VLOOKUP(AY44,Prices!$A$5:$J$38,10,FALSE) -> 25 | BB44: =Names!$AD38 -> Direx | BC44: =VLOOKUP(BB44,Prices!$A$5:$J$38,10,FALSE) -> 25 | BE44: =Names!$AE38 -> Direx | BF44: =VLOOKUP(BE44,Prices!$A$5:$J$38,10,FALSE) -> 25
AP45: =Names!$Z39 -> MSMA | AQ45: =VLOOKUP(AP45,Prices!$A$5:$J$38,10,FALSE) -> 25 | AS45: =Names!$AA39 -> MSMA | AT45: =VLOOKUP(AS45,Prices!$A$5:$J$38,10,FALSE) -> 25 | AV45: =Names!$AB$39 -> MSMA | AW45: =VLOOKUP(AV45,Prices!$A$5:$J$38,10,FALSE) -> 25 | AY45: =Names!$AC39 -> MSMA | AZ45: =VLOOKUP(AY45,Prices!$A$5:$J$38,10,FALSE) -> 25 | BB45: =Names!$AD39 -> MSMA | BC45: =VLOOKUP(BB45,Prices!$A$5:$J$38,10,FALSE) -> 25 | BE45: =Names!$AE39 -> MSMA | BF45: =VLOOKUP(BE45,Prices!$A$5:$J$38,10,FALSE) -> 25
AP46: =Names!$Z40 -> Valor | AQ46: =VLOOKUP(AP46,Prices!$A$5:$J$38,10,FALSE) -> 4.38 | AS46: =Names!$AA40 -> Roundup | AT46: =VLOOKUP(AS46,Prices!$A$5:$J$38,10,FALSE) -> 20 | AV46: =Names!$AB$40 -> Roundup | AW46: =VLOOKUP(AV46,Prices!$A$5:$J$38,10,FALSE) -> 20 | AY46: =Names!$AC40 -> Valor | AZ46: =VLOOKUP(AY46,Prices!$A$5:$J$38,10,FALSE) -> 4.38 | BB46: =Names!$AD40 -> Roundup | BC46: =VLOOKUP(BB46,Prices!$A$5:$J$38,10,FALSE) -> 20 | BE46: =Names!$AE40 -> Roundup | BF46: =VLOOKUP(BE46,Prices!$A$5:$J$38,10,FALSE) -> 20
AS47: =Names!$AA41 -> Valor | AT47: =VLOOKUP(AS47,Prices!$A$5:$J$38,10,FALSE) -> 4.38 | AV47: =Names!$AB$41 -> Valor | AW47: =VLOOKUP(AV47,Prices!$A$5:$J$38,10,FALSE) -> 4.38 | BB47: =Names!$AD41 -> Valor | BC47: =VLOOKUP(BB47,Prices!$A$5:$J$38,10,FALSE) -> 4.38 | BE47: =Names!$AE41 -> Valor | BF47: =VLOOKUP(BE47,Prices!$A$5:$J$38,10,FALSE) -> 4.38
G67: 7 | J67: 10 | N67: 14
B68: Corn | C68: Roundup Ready | G68: Roundup/LibertyLink | K68: Enlist | O68: Conventional | W68: Corn | X68: Roundup Ready | Y68: =IF(C68=X68,0,1) -> 0 | Z68: Roundup/LibertyLink | AA68: =IF(G68=Z68,0,1) -> 0 | AB68: Enlist | AC68: =IF(K68=AB68,0,1) -> 0 | AD68: Conventional | AE68: =IF(O68=AD68,0,1) -> 0 | AF68: Corn | AG68: =IF(C68=0,"",C68) -> Roundup Ready | AI68: =IF(G68=0,"",G68) -> Roundup/LibertyLink | AK68: =IF(K68=0,"",K68) -> Enlist | AM68: =IF(O68=0,"",O68) -> Conventional | AO68: =B68 -> Corn | AP68: =Names!J13 -> Conventional | AS68: =Names!J14 -> Enlist | AV68: =Names!J15 -> Roundup Ready | AY68: =Names!J16 -> Roundup/LibertyLink
B69: Timing | C69: Crop Trait Options | D69: Price ($/ac) | E69: Efficiacy | G69: Crop Trait Options | H69: Price ($/ac) | I69: Efficiacy | K69: Crop Trait Options | L69: Price ($/ac) | M69: Efficiacy | O69: Crop Trait Options | P69: Price ($/ac) | Q69: Efficiacy | W69: Timing | X69: Crop Trait Options | Z69: Crop Trait Options | AB69: Crop Trait Options | AD69: Crop Trait Options | AF69: Timing | AG69: Crop Trait Options | AI69: Crop Trait Options | AK69: Crop Trait Options | AM69: Crop Trait Options | AO69: Timing | AP69: =Names!$M$13 -> CornBDCv | AQ69: Cost | AS69: =Names!$M$14 -> CornBDEn | AT69: Cost | AV69: =Names!$M$15 -> CornBDRR | AW69: Cost | AY69: =Names!$M$16 -> CornBDRRLL | AZ69: Cost
B70: Burndown | C70: 2,4-D | D70: =IF(C$68=$AP$68,VLOOKUP(C70,$AP$70:$AQ$74,2,FALSE),IF(C$68=$AS$68,VLOOKUP(C70,$AS$70:$AT$74,2,FALSE),IF(C$68=$AV$68,VLOOKUP(C70,$AV$70:$AW$74,2,FALSE),IF(C$68=$AY$68,VLOOKUP(C70,$AY$70:$AZ$74,2,FALSE))))) -> 15.4 | E70: =IF(C$68=$AP$68,VLOOKUP(C70,$AP$70:$AR$74,3,FALSE),IF(C$68=$AS$68,VLOOKUP(C70,$AS$70:$AU$74,3,FALSE),IF(C$68=$AV$68,VLOOKUP(C70,$AV$70:$AX$74,3,FALSE),IF(C$68=$AY$68,VLOOKUP(C70,$AY$70:$BA$74,3,FALSE))))) -> 0 | G70: 2,4-D | H70: =IF(G$68=$AP$68,VLOOKUP(G70,$AP$70:$AQ$74,2,FALSE),IF(G$68=$AS$68,VLOOKUP(G70,$AS$70:$AT$74,2,FALSE),IF(G$68=$AV$68,VLOOKUP(G70,$AV$70:$AW$74,2,FALSE),IF(G$68=$AY$68,VLOOKUP(G70,$AY$70:$AZ$74,2,FALSE))))) -> 15.4 | I70: =IF(G$68=$AP$68,VLOOKUP(G70,$AP$70:$AR$74,3,FALSE),IF(G$68=$AS$68,VLOOKUP(G70,$AS$70:$AU$74,3,FALSE),IF(G$68=$AV$68,VLOOKUP(G70,$AV$70:$AX$74,3,FALSE),IF(G$68=$AY$68,VLOOKUP(G70,$AY$70:$BA$74,3,FALSE))))) -> 0 | K70: 2,4-D | L70: =IF(K$68=$AP$68,VLOOKUP(K70,$AP$70:$AQ$74,2,FALSE),IF(K$68=$AS$68,VLOOKUP(K70,$AS$70:$AT$74,2,FALSE),IF(K$68=$AV$68,VLOOKUP(K70,$AV$70:$AW$74,2,FALSE),IF(K$68=$AY$68,VLOOKUP(K70,$AY$70:$AZ$74,2,FALSE))))) -> 15.4 | M70: =IF(K$68=$AP$68,VLOOKUP(K70,$AP$70:$AR$74,3,FALSE),IF(K$68=$AS$68,VLOOKUP(K70,$AS$70:$AU$74,3,FALSE),IF(K$68=$AV$68,VLOOKUP(K70,$AV$70:$AX$74,3,FALSE),IF(K$68=$AY$68,VLOOKUP(K70,$AY$70:$BA$74,3,FALSE))))) -> 0 | O70: 2,4-D | P70: =IF(O$68=$AP$68,VLOOKUP(O70,$AP$70:$AQ$74,2,FALSE),IF(O$68=$AS$68,VLOOKUP(O70,$AS$70:$AT$74,2,FALSE),IF(O$68=$AV$68,VLOOKUP(O70,$AV$70:$AW$74,2,FALSE),IF(O$68=$AY$68,VLOOKUP(O70,$AY$70:$AZ$74,2,FALSE))))) -> 15.4 | Q70: =IF(O$68=$AP$68,VLOOKUP(O70,$AP$70:$AR$74,3,FALSE),IF(O$68=$AS$68,VLOOKUP(O70,$AS$70:$AU$74,3,FALSE),IF(O$68=$AV$68,VLOOKUP(O70,$AV$70:$AX$74,3,FALSE),IF(O$68=$AY$68,VLOOKUP(O70,$AY$70:$BA$74,3,FALSE))))) -> 0 | W70: Burndown | X70: =IF(X$68=$AP$68,$AP$70,IF(X$68=$AS$68,$AS$70,IF(X$68=$AV$68,$AV$70,IF(X$68=$AY$68,$AY$70,"")))) -> 2,4-D | Y70: =IF(C70=X70,0,1) -> 0 | Z70: =IF(Z$68=$AP$68,$AP$70,IF(Z$68=$AS$68,$AS$70,IF(Z$68=$AV$68,$AV$70,IF(Z$68=$AY$68,$AY$70,"")))) -> 2,4-D | AA70: =IF(G70=Z70,0,1) -> 0 | AB70: =IF(AB$68=$AP$68,$AP$70,IF(AB$68=$AS$68,$AS$70,IF(AB$68=$AV$68,$AV$70,IF(AB$68=$AY$68,$AY$70,"")))) -> 2,4-D | AC70: =IF(K70=AB70,0,1) -> 0 | AD70: =IF(AD$68=$AP$68,$AP$70,IF(AD$68=$AS$68,$AS$70,IF(AD$68=$AV$68,$AV$70,IF(AD$68=$AY$68,$AY$70,"")))) -> 2,4-D | AE70: =IF(O70=AD70,0,1) -> 0 | AF70: Burndown | AG70: =IF(AG$68=$AP$68,$AP$70,IF(AG$68=$AS$68,$AS$70,IF(AG$68=$AV$68,$AV$70,IF(AG$68=$AY$68,$AY$70,"")))) -> 2,4-D | AI70: =IF(AI$68=$AP$68,$AP$70,IF(AI$68=$AS$68,$AS$70,IF(AI$68=$AV$68,$AV$70,IF(AI$68=$AY$68,$AY$70,"")))) -> 2,4-D | AK70: =IF(AK$68=$AP$68,$AP$70,IF(AK$68=$AS$68,$AS$70,IF(AK$68=$AV$68,$AV$70,IF(AK$68=$AY$68,$AY$70,"")))) -> 2,4-D | AM70: =IF(AM$68=$AP$68,$AP$70,IF(AM$68=$AS$68,$AS$70,IF(AM$68=$AV$68,$AV$70,IF(AM$68=$AY$68,$AY$70,"")))) -> 2,4-D | AO70: BD | AP70: =Names!$T6 -> 2,4-D | AQ70: =VLOOKUP(AP70,Prices!$A$5:$J$38,10,FALSE) -> 15.4 | AS70: =Names!$U6 -> 2,4-D | AT70: =VLOOKUP(AS70,Prices!$A$5:$J$38,10,FALSE) -> 15.4 | AV70: =Names!$V6 -> 2,4-D | AW70: =VLOOKUP(AV70,Prices!$A$5:$J$38,10,FALSE) -> 15.4 | AY70: =Names!$W6 -> 2,4-D | AZ70: =VLOOKUP(AY70,Prices!$A$5:$J$38,10,FALSE) -> 15.4
C71: Dicamba | D71: =IF(C$68=$AP$68,VLOOKUP(C71,$AP$70:$AQ$74,2,FALSE),IF(C$68=$AS$68,VLOOKUP(C71,$AS$70:$AT$74,2,FALSE),IF(C$68=$AV$68,VLOOKUP(C71,$AV$70:$AW$74,2,FALSE),IF(C$68=$AY$68,VLOOKUP(C71,$AY$70:$AZ$74,2,FALSE))))) -> 76.8 | E71: =IF(C$68=$AP$68,VLOOKUP(C71,$AP$70:$AR$74,3,FALSE),IF(C$68=$AS$68,VLOOKUP(C71,$AS$70:$AU$74,3,FALSE),IF(C$68=$AV$68,VLOOKUP(C71,$AV$70:$AX$74,3,FALSE),IF(C$68=$AY$68,VLOOKUP(C71,$AY$70:$BA$74,3,FALSE))))) -> 0 | G71: Dicamba | H71: =IF(G$68=$AP$68,VLOOKUP(G71,$AP$70:$AQ$74,2,FALSE),IF(G$68=$AS$68,VLOOKUP(G71,$AS$70:$AT$74,2,FALSE),IF(G$68=$AV$68,VLOOKUP(G71,$AV$70:$AW$74,2,FALSE),IF(G$68=$AY$68,VLOOKUP(G71,$AY$70:$AZ$74,2,FALSE))))) -> 76.8 | I71: =IF(G$68=$AP$68,VLOOKUP(G71,$AP$70:$AR$74,3,FALSE),IF(G$68=$AS$68,VLOOKUP(G71,$AS$70:$AU$74,3,FALSE),IF(G$68=$AV$68,VLOOKUP(G71,$AV$70:$AX$74,3,FALSE),IF(G$68=$AY$68,VLOOKUP(G71,$AY$70:$BA$74,3,FALSE))))) -> 0 | K71: Dicamba | L71: =IF(K$68=$AP$68,VLOOKUP(K71,$AP$70:$AQ$74,2,FALSE),IF(K$68=$AS$68,VLOOKUP(K71,$AS$70:$AT$74,2,FALSE),IF(K$68=$AV$68,VLOOKUP(K71,$AV$70:$AW$74,2,FALSE),IF(K$68=$AY$68,VLOOKUP(K71,$AY$70:$AZ$74,2,FALSE))))) -> 76.8 | M71: =IF(K$68=$AP$68,VLOOKUP(K71,$AP$70:$AR$74,3,FALSE),IF(K$68=$AS$68,VLOOKUP(K71,$AS$70:$AU$74,3,FALSE),IF(K$68=$AV$68,VLOOKUP(K71,$AV$70:$AX$74,3,FALSE),IF(K$68=$AY$68,VLOOKUP(K71,$AY$70:$BA$74,3,FALSE))))) -> 0 | O71: Dicamba | P71: =IF(O$68=$AP$68,VLOOKUP(O71,$AP$70:$AQ$74,2,FALSE),IF(O$68=$AS$68,VLOOKUP(O71,$AS$70:$AT$74,2,FALSE),IF(O$68=$AV$68,VLOOKUP(O71,$AV$70:$AW$74,2,FALSE),IF(O$68=$AY$68,VLOOKUP(O71,$AY$70:$AZ$74,2,FALSE))))) -> 76.8 | Q71: =IF(O$68=$AP$68,VLOOKUP(O71,$AP$70:$AR$74,3,FALSE),IF(O$68=$AS$68,VLOOKUP(O71,$AS$70:$AU$74,3,FALSE),IF(O$68=$AV$68,VLOOKUP(O71,$AV$70:$AX$74,3,FALSE),IF(O$68=$AY$68,VLOOKUP(O71,$AY$70:$BA$74,3,FALSE))))) -> 0 | X71: =IF(X$68=$AP$68,$AP$71,IF(X$68=$AS$68,$AS$71,IF(X$68=$AV$68,$AV$71,IF(X$68=$AY$68,$AY$71,"")))) -> Dicamba | Y71: 0 | Z71: =IF(Z$68=$AP$68,$AP$71,IF(Z$68=$AS$68,$AS$71,IF(Z$68=$AV$68,$AV$71,IF(Z$68=$AY$68,$AY$71,"")))) -> Dicamba | AA71: 0 | AB71: =IF(AB$68=$AP$68,$AP$71,IF(AB$68=$AS$68,$AS$71,IF(AB$68=$AV$68,$AV$71,IF(AB$68=$AY$68,$AY$71,"")))) -> Dicamba | AC71: 0 | AD71: =IF(AD$68=$AP$68,$AP$71,IF(AD$68=$AS$68,$AS$71,IF(AD$68=$AV$68,$AV$71,IF(AD$68=$AY$68,$AY$71,"")))) -> Dicamba | AE71: 0 | AG71: =IF(AG$68=$AP$68,$AP$71,IF(AG$68=$AS$68,$AS$71,IF(AG$68=$AV$68,$AV$71,IF(AG$68=$AY$68,$AY$71,"")))) -> Dicamba | AI71: =IF(AI$68=$AP$68,$AP$71,IF(AI$68=$AS$68,$AS$71,IF(AI$68=$AV$68,$AV$71,IF(AI$68=$AY$68,$AY$71,"")))) -> Dicamba | AK71: =IF(AK$68=$AP$68,$AP$71,IF(AK$68=$AS$68,$AS$71,IF(AK$68=$AV$68,$AV$71,IF(AK$68=$AY$68,$AY$71,"")))) -> Dicamba | AM71: =IF(AM$68=$AP$68,$AP$71,IF(AM$68=$AS$68,$AS$71,IF(AM$68=$AV$68,$AV$71,IF(AM$68=$AY$68,$AY$71,"")))) -> Dicamba | AP71: =Names!$T7 -> Dicamba | AQ71: =VLOOKUP(AP71,Prices!$A$5:$J$38,10,FALSE) -> 76.8 | AS71: =Names!$U7 -> Dicamba | AT71: =VLOOKUP(AS71,Prices!$A$5:$J$38,10,FALSE) -> 76.8 | AV71: =Names!$V7 -> Dicamba | AW71: =VLOOKUP(AV71,Prices!$A$5:$J$38,10,FALSE) -> 76.8 | AY71: =Names!$W7 -> Dicamba | AZ71: =VLOOKUP(AY71,Prices!$A$5:$J$38,10,FALSE) -> 76.8
C72: Gramoxone | D72: =IF(C$68=$AP$68,VLOOKUP(C72,$AP$70:$AQ$74,2,FALSE),IF(C$68=$AS$68,VLOOKUP(C72,$AS$70:$AT$74,2,FALSE),IF(C$68=$AV$68,VLOOKUP(C72,$AV$70:$AW$74,2,FALSE),IF(C$68=$AY$68,VLOOKUP(C72,$AY$70:$AZ$74,2,FALSE))))) -> 33 | E72: =IF(C$68=$AP$68,VLOOKUP(C72,$AP$70:$AR$74,3,FALSE),IF(C$68=$AS$68,VLOOKUP(C72,$AS$70:$AU$74,3,FALSE),IF(C$68=$AV$68,VLOOKUP(C72,$AV$70:$AX$74,3,FALSE),IF(C$68=$AY$68,VLOOKUP(C72,$AY$70:$BA$74,3,FALSE))))) -> 0 | G72: Gramoxone | H72: =IF(G$68=$AP$68,VLOOKUP(G72,$AP$70:$AQ$74,2,FALSE),IF(G$68=$AS$68,VLOOKUP(G72,$AS$70:$AT$74,2,FALSE),IF(G$68=$AV$68,VLOOKUP(G72,$AV$70:$AW$74,2,FALSE),IF(G$68=$AY$68,VLOOKUP(G72,$AY$70:$AZ$74,2,FALSE))))) -> 33 | I72: =IF(G$68=$AP$68,VLOOKUP(G72,$AP$70:$AR$74,3,FALSE),IF(G$68=$AS$68,VLOOKUP(G72,$AS$70:$AU$74,3,FALSE),IF(G$68=$AV$68,VLOOKUP(G72,$AV$70:$AX$74,3,FALSE),IF(G$68=$AY$68,VLOOKUP(G72,$AY$70:$BA$74,3,FALSE))))) -> 0 | K72: Gramoxone | L72: =IF(K$68=$AP$68,VLOOKUP(K72,$AP$70:$AQ$74,2,FALSE),IF(K$68=$AS$68,VLOOKUP(K72,$AS$70:$AT$74,2,FALSE),IF(K$68=$AV$68,VLOOKUP(K72,$AV$70:$AW$74,2,FALSE),IF(K$68=$AY$68,VLOOKUP(K72,$AY$70:$AZ$74,2,FALSE))))) -> 33 | M72: =IF(K$68=$AP$68,VLOOKUP(K72,$AP$70:$AR$74,3,FALSE),IF(K$68=$AS$68,VLOOKUP(K72,$AS$70:$AU$74,3,FALSE),IF(K$68=$AV$68,VLOOKUP(K72,$AV$70:$AX$74,3,FALSE),IF(K$68=$AY$68,VLOOKUP(K72,$AY$70:$BA$74,3,FALSE))))) -> 0 | O72: Gramoxone | P72: =IF(O$68=$AP$68,VLOOKUP(O72,$AP$70:$AQ$74,2,FALSE),IF(O$68=$AS$68,VLOOKUP(O72,$AS$70:$AT$74,2,FALSE),IF(O$68=$AV$68,VLOOKUP(O72,$AV$70:$AW$74,2,FALSE),IF(O$68=$AY$68,VLOOKUP(O72,$AY$70:$AZ$74,2,FALSE))))) -> 33 | Q72: =IF(O$68=$AP$68,VLOOKUP(O72,$AP$70:$AR$74,3,FALSE),IF(O$68=$AS$68,VLOOKUP(O72,$AS$70:$AU$74,3,FALSE),IF(O$68=$AV$68,VLOOKUP(O72,$AV$70:$AX$74,3,FALSE),IF(O$68=$AY$68,VLOOKUP(O72,$AY$70:$BA$74,3,FALSE))))) -> 0 | X72: =IF(X$68=$AP$68,$AP$72,IF(X$68=$AS$68,$AS$72,IF(X$68=$AV$68,$AV$72,IF(X$68=$AY$68,$AY$72,"")))) -> Gramoxone | Y72: 0 | Z72: =IF(Z$68=$AP$68,$AP$72,IF(Z$68=$AS$68,$AS$72,IF(Z$68=$AV$68,$AV$72,IF(Z$68=$AY$68,$AY$72,"")))) -> Gramoxone | AA72: 0 | AB72: =IF(AB$68=$AP$68,$AP$72,IF(AB$68=$AS$68,$AS$72,IF(AB$68=$AV$68,$AV$72,IF(AB$68=$AY$68,$AY$72,"")))) -> Gramoxone | AC72: 0 | AD72: =IF(AD$68=$AP$68,$AP$72,IF(AD$68=$AS$68,$AS$72,IF(AD$68=$AV$68,$AV$72,IF(AD$68=$AY$68,$AY$72,"")))) -> Gramoxone | AE72: 0 | AG72: =IF(AG$68=$AP$68,$AP$72,IF(AG$68=$AS$68,$AS$72,IF(AG$68=$AV$68,$AV$72,IF(AG$68=$AY$68,$AY$72,"")))) -> Gramoxone | AI72: =IF(AI$68=$AP$68,$AP$72,IF(AI$68=$AS$68,$AS$72,IF(AI$68=$AV$68,$AV$72,IF(AI$68=$AY$68,$AY$72,"")))) -> Gramoxone | AK72: =IF(AK$68=$AP$68,$AP$72,IF(AK$68=$AS$68,$AS$72,IF(AK$68=$AV$68,$AV$72,IF(AK$68=$AY$68,$AY$72,"")))) -> Gramoxone | AM72: =IF(AM$68=$AP$68,$AP$72,IF(AM$68=$AS$68,$AS$72,IF(AM$68=$AV$68,$AV$72,IF(AM$68=$AY$68,$AY$72,"")))) -> Gramoxone | AP72: =Names!$T8 -> Gramoxone | AQ72: =VLOOKUP(AP72,Prices!$A$5:$J$38,10,FALSE) -> 33 | AS72: =Names!$U8 -> Gramoxone | AT72: =VLOOKUP(AS72,Prices!$A$5:$J$38,10,FALSE) -> 33 | AV72: =Names!$V8 -> Gramoxone | AW72: =VLOOKUP(AV72,Prices!$A$5:$J$38,10,FALSE) -> 33 | AY72: =Names!$W8 -> Gramoxone | AZ72: =VLOOKUP(AY72,Prices!$A$5:$J$38,10,FALSE) -> 33
C73: LibertyLink | D73: =IF(C$68=$AP$68,VLOOKUP(C73,$AP$70:$AQ$74,2,FALSE),IF(C$68=$AS$68,VLOOKUP(C73,$AS$70:$AT$74,2,FALSE),IF(C$68=$AV$68,VLOOKUP(C73,$AV$70:$AW$74,2,FALSE),IF(C$68=$AY$68,VLOOKUP(C73,$AY$70:$AZ$74,2,FALSE))))) ->  | E73: =IF(C$68=$AP$68,VLOOKUP(C73,$AP$70:$AR$74,3,FALSE),IF(C$68=$AS$68,VLOOKUP(C73,$AS$70:$AU$74,3,FALSE),IF(C$68=$AV$68,VLOOKUP(C73,$AV$70:$AX$74,3,FALSE),IF(C$68=$AY$68,VLOOKUP(C73,$AY$70:$BA$74,3,FALSE))))) ->  | G73: LibertyLink | H73: =IF(G$68=$AP$68,VLOOKUP(G73,$AP$70:$AQ$74,2,FALSE),IF(G$68=$AS$68,VLOOKUP(G73,$AS$70:$AT$74,2,FALSE),IF(G$68=$AV$68,VLOOKUP(G73,$AV$70:$AW$74,2,FALSE),IF(G$68=$AY$68,VLOOKUP(G73,$AY$70:$AZ$74,2,FALSE))))) ->  | I73: =IF(G$68=$AP$68,VLOOKUP(G73,$AP$70:$AR$74,3,FALSE),IF(G$68=$AS$68,VLOOKUP(G73,$AS$70:$AU$74,3,FALSE),IF(G$68=$AV$68,VLOOKUP(G73,$AV$70:$AX$74,3,FALSE),IF(G$68=$AY$68,VLOOKUP(G73,$AY$70:$BA$74,3,FALSE))))) ->  | K73: LibertyLink | L73: =IF(K$68=$AP$68,VLOOKUP(K73,$AP$70:$AQ$74,2,FALSE),IF(K$68=$AS$68,VLOOKUP(K73,$AS$70:$AT$74,2,FALSE),IF(K$68=$AV$68,VLOOKUP(K73,$AV$70:$AW$74,2,FALSE),IF(K$68=$AY$68,VLOOKUP(K73,$AY$70:$AZ$74,2,FALSE))))) ->  | M73: =IF(K$68=$AP$68,VLOOKUP(K73,$AP$70:$AR$74,3,FALSE),IF(K$68=$AS$68,VLOOKUP(K73,$AS$70:$AU$74,3,FALSE),IF(K$68=$AV$68,VLOOKUP(K73,$AV$70:$AX$74,3,FALSE),IF(K$68=$AY$68,VLOOKUP(K73,$AY$70:$BA$74,3,FALSE))))) ->  | O73: LibertyLink | P73: =IF(O$68=$AP$68,VLOOKUP(O73,$AP$70:$AQ$74,2,FALSE),IF(O$68=$AS$68,VLOOKUP(O73,$AS$70:$AT$74,2,FALSE),IF(O$68=$AV$68,VLOOKUP(O73,$AV$70:$AW$74,2,FALSE),IF(O$68=$AY$68,VLOOKUP(O73,$AY$70:$AZ$74,2,FALSE))))) ->  | Q73: =IF(O$68=$AP$68,VLOOKUP(O73,$AP$70:$AR$74,3,FALSE),IF(O$68=$AS$68,VLOOKUP(O73,$AS$70:$AU$74,3,FALSE),IF(O$68=$AV$68,VLOOKUP(O73,$AV$70:$AX$74,3,FALSE),IF(O$68=$AY$68,VLOOKUP(O73,$AY$70:$BA$74,3,FALSE))))) ->  | X73: =IF(X$68=$AP$68,$AP$73,IF(X$68=$AS$68,$AS$73,IF(X$68=$AV$68,$AV$73,IF(X$68=$AY$68,$AY$73,"")))) -> Liberty | Y73: 1 | Z73: =IF(Z$68=$AP$68,$AP$73,IF(Z$68=$AS$68,$AS$73,IF(Z$68=$AV$68,$AV$73,IF(Z$68=$AY$68,$AY$73,"")))) -> Liberty | AA73: 1 | AB73: =IF(AB$68=$AP$68,$AP$73,IF(AB$68=$AS$68,$AS$73,IF(AB$68=$AV$68,$AV$73,IF(AB$68=$AY$68,$AY$73,"")))) -> Liberty | AC73: 1 | AD73: =IF(AD$68=$AP$68,$AP$73,IF(AD$68=$AS$68,$AS$73,IF(AD$68=$AV$68,$AV$73,IF(AD$68=$AY$68,$AY$73,"")))) -> Liberty | AE73: 1 | AG73: =IF(AG$68=$AP$68,$AP$73,IF(AG$68=$AS$68,$AS$73,IF(AG$68=$AV$68,$AV$73,IF(AG$68=$AY$68,$AY$73,"")))) -> Liberty | AI73: =IF(AI$68=$AP$68,$AP$73,IF(AI$68=$AS$68,$AS$73,IF(AI$68=$AV$68,$AV$73,IF(AI$68=$AY$68,$AY$73,"")))) -> Liberty | AK73: =IF(AK$68=$AP$68,$AP$73,IF(AK$68=$AS$68,$AS$73,IF(AK$68=$AV$68,$AV$73,IF(AK$68=$AY$68,$AY$73,"")))) -> Liberty | AM73: =IF(AM$68=$AP$68,$AP$73,IF(AM$68=$AS$68,$AS$73,IF(AM$68=$AV$68,$AV$73,IF(AM$68=$AY$68,$AY$73,"")))) -> Liberty | AP73: =Names!$T9 -> Liberty | AQ73: =VLOOKUP(AP73,Prices!$A$5:$J$38,10,FALSE) -> 53.9 | AS73: =Names!$U9 -> Liberty | AT73: =VLOOKUP(AS73,Prices!$A$5:$J$38,10,FALSE) -> 53.9 | AV73: =Names!$V9 -> Liberty | AW73: =VLOOKUP(AV73,Prices!$A$5:$J$38,10,FALSE) -> 53.9 | AY73: =Names!$W9 -> Liberty | AZ73: =VLOOKUP(AY73,Prices!$A$5:$J$38,10,FALSE) -> 53.9
AP74: =Names!$T10 -> Roundup | AQ74: =VLOOKUP(AP74,Prices!$A$5:$J$38,10,FALSE) -> 20 | AS74: =Names!$U10 -> Roundup | AT74: =VLOOKUP(AS74,Prices!$A$5:$J$38,10,FALSE) -> 20 | AV74: =Names!$V10 -> Roundup | AW74: =VLOOKUP(AV74,Prices!$A$5:$J$38,10,FALSE) -> 20 | AY74: =Names!$W10 -> Roundup | AZ74: =VLOOKUP(AY74,Prices!$A$5:$J$38,10,FALSE) -> 20
B75: Pre emergence | C75: Degree Xtra | D75: =IF(C$68=$AP$68,VLOOKUP(C75,$AP$78:$AQ$85,2,FALSE),IF(C$68=$AS$68,VLOOKUP(C75,$AS$78:$AT$85,2,FALSE),IF(C$68=$AV$68,VLOOKUP(C75,$AV$78:$AW$85,2,FALSE),IF(C$68=$AY$68,VLOOKUP(C75,$AY$78:$AZ$85,2,FALSE))))) -> 44.95 | E75: =IF(C$68=$AP$68,VLOOKUP(C75,$AP$78:$AR$85,3,FALSE),IF(C$68=$AS$68,VLOOKUP(C75,$AS$78:$AU$85,3,FALSE),IF(C$68=$AV$68,VLOOKUP(C75,$AV$78:$AX$85,3,FALSE),IF(C$68=$AY$68,VLOOKUP(C75,$AY$78:$BA$85,3,FALSE))))) -> 0 | G75: Atrazine | H75: =IF(G$68=$AP$68,VLOOKUP(G75,$AP$78:$AQ$85,2,FALSE),IF(G$68=$AS$68,VLOOKUP(G75,$AS$78:$AT$85,2,FALSE),IF(G$68=$AV$68,VLOOKUP(G75,$AV$78:$AW$85,2,FALSE),IF(G$68=$AY$68,VLOOKUP(G75,$AY$78:$AZ$85,2,FALSE))))) -> 16.9 | I75: =IF(G$68=$AP$68,VLOOKUP(G75,$AP$78:$AR$85,3,FALSE),IF(G$68=$AS$68,VLOOKUP(G75,$AS$78:$AU$85,3,FALSE),IF(G$68=$AV$68,VLOOKUP(G75,$AV$78:$AX$85,3,FALSE),IF(G$68=$AY$68,VLOOKUP(G75,$AY$78:$BA$85,3,FALSE))))) -> 0 | K75: Atrazine | L75: =IF(K$68=$AP$68,VLOOKUP(K75,$AP$78:$AQ$85,2,FALSE),IF(K$68=$AS$68,VLOOKUP(K75,$AS$78:$AT$85,2,FALSE),IF(K$68=$AV$68,VLOOKUP(K75,$AV$78:$AW$85,2,FALSE),IF(K$68=$AY$68,VLOOKUP(K75,$AY$78:$AZ$85,2,FALSE))))) -> 16.9 | M75: =IF(K$68=$AP$68,VLOOKUP(K75,$AP$78:$AR$85,3,FALSE),IF(K$68=$AS$68,VLOOKUP(K75,$AS$78:$AU$85,3,FALSE),IF(K$68=$AV$68,VLOOKUP(K75,$AV$78:$AX$85,3,FALSE),IF(K$68=$AY$68,VLOOKUP(K75,$AY$78:$BA$85,3,FALSE))))) -> 0 | O75: Atrazine | P75: =IF(O$68=$AP$68,VLOOKUP(O75,$AP$78:$AQ$85,2,FALSE),IF(O$68=$AS$68,VLOOKUP(O75,$AS$78:$AT$85,2,FALSE),IF(O$68=$AV$68,VLOOKUP(O75,$AV$78:$AW$85,2,FALSE),IF(O$68=$AY$68,VLOOKUP(O75,$AY$78:$AZ$85,2,FALSE))))) -> 16.9 | Q75: =IF(O$68=$AP$68,VLOOKUP(O75,$AP$78:$AR$85,3,FALSE),IF(O$68=$AS$68,VLOOKUP(O75,$AS$78:$AU$85,3,FALSE),IF(O$68=$AV$68,VLOOKUP(O75,$AV$78:$AX$85,3,FALSE),IF(O$68=$AY$68,VLOOKUP(O75,$AY$78:$BA$85,3,FALSE))))) -> 0 | W75: Pre emergence | X75: =IF(X$68=$AP$68,$AP$78,IF(X$68=$AS$68,$AS$78,IF(X$68=$AV$68,$AV$78,IF(X$68=$AY$68,$AY$78,"")))) -> Atrazine | Y75: =IF(C75=X75,0,1) -> 1 | Z75: =IF(Z$68=$AP$68,$AP$78,IF(Z$68=$AS$68,$AS$78,IF(Z$68=$AV$68,$AV$78,IF(Z$68=$AY$68,$AY$78,"")))) -> Atrazine | AA75: =IF(G75=Z75,0,1) -> 0 | AB75: =IF(AB$68=$AP$68,$AP$78,IF(AB$68=$AS$68,$AS$78,IF(AB$68=$AV$68,$AV$78,IF(AB$68=$AY$68,$AY$78,"")))) -> Atrazine | AC75: =IF(K75=AB75,0,1) -> 0 | AD75: =IF(AD$68=$AP$68,$AP$78,IF(AD$68=$AS$68,$AS$78,IF(AD$68=$AV$68,$AV$78,IF(AD$68=$AY$68,$AY$78,"")))) -> Atrazine | AE75: =IF(O75=AD75,0,1) -> 0 | AF75: Pre emergence | AG75: =IF(AG$68=$AP$68,$AP$78,IF(AG$68=$AS$68,$AS$78,IF(AG$68=$AV$68,$AV$78,IF(AG$68=$AY$68,$AY$78,"")))) -> Atrazine | AI75: =IF(AI$68=$AP$68,$AP$78,IF(AI$68=$AS$68,$AS$78,IF(AI$68=$AV$68,$AV$78,IF(AI$68=$AY$68,$AY$78,"")))) -> Atrazine | AK75: =IF(AK$68=$AP$68,$AP$78,IF(AK$68=$AS$68,$AS$78,IF(AK$68=$AV$68,$AV$78,IF(AK$68=$AY$68,$AY$78,"")))) -> Atrazine | AM75: =IF(AM$68=$AP$68,$AP$78,IF(AM$68=$AS$68,$AS$78,IF(AM$68=$AV$68,$AV$78,IF(AM$68=$AY$68,$AY$78,"")))) -> Atrazine
C76: Bicep II Magnum | D76: =IF(C$68=$AP$68,VLOOKUP(C76,$AP$78:$AQ$85,2,FALSE),IF(C$68=$AS$68,VLOOKUP(C76,$AS$78:$AT$85,2,FALSE),IF(C$68=$AV$68,VLOOKUP(C76,$AV$78:$AW$85,2,FALSE),IF(C$68=$AY$68,VLOOKUP(C76,$AY$78:$AZ$85,2,FALSE))))) -> 40.16 | E76: =IF(C$68=$AP$68,VLOOKUP(C76,$AP$78:$AR$85,3,FALSE),IF(C$68=$AS$68,VLOOKUP(C76,$AS$78:$AU$85,3,FALSE),IF(C$68=$AV$68,VLOOKUP(C76,$AV$78:$AX$85,3,FALSE),IF(C$68=$AY$68,VLOOKUP(C76,$AY$78:$BA$85,3,FALSE))))) -> 0 | G76: Bicep II Magnum | H76: =IF(G$68=$AP$68,VLOOKUP(G76,$AP$78:$AQ$85,2,FALSE),IF(G$68=$AS$68,VLOOKUP(G76,$AS$78:$AT$85,2,FALSE),IF(G$68=$AV$68,VLOOKUP(G76,$AV$78:$AW$85,2,FALSE),IF(G$68=$AY$68,VLOOKUP(G76,$AY$78:$AZ$85,2,FALSE))))) -> 40.16 | I76: =IF(G$68=$AP$68,VLOOKUP(G76,$AP$78:$AR$85,3,FALSE),IF(G$68=$AS$68,VLOOKUP(G76,$AS$78:$AU$85,3,FALSE),IF(G$68=$AV$68,VLOOKUP(G76,$AV$78:$AX$85,3,FALSE),IF(G$68=$AY$68,VLOOKUP(G76,$AY$78:$BA$85,3,FALSE))))) -> 0 | K76: Bicep II Magnum | L76: =IF(K$68=$AP$68,VLOOKUP(K76,$AP$78:$AQ$85,2,FALSE),IF(K$68=$AS$68,VLOOKUP(K76,$AS$78:$AT$85,2,FALSE),IF(K$68=$AV$68,VLOOKUP(K76,$AV$78:$AW$85,2,FALSE),IF(K$68=$AY$68,VLOOKUP(K76,$AY$78:$AZ$85,2,FALSE))))) -> 40.16 | M76: =IF(K$68=$AP$68,VLOOKUP(K76,$AP$78:$AR$85,3,FALSE),IF(K$68=$AS$68,VLOOKUP(K76,$AS$78:$AU$85,3,FALSE),IF(K$68=$AV$68,VLOOKUP(K76,$AV$78:$AX$85,3,FALSE),IF(K$68=$AY$68,VLOOKUP(K76,$AY$78:$BA$85,3,FALSE))))) -> 0 | O76: Bicep II Magnum | P76: =IF(O$68=$AP$68,VLOOKUP(O76,$AP$78:$AQ$85,2,FALSE),IF(O$68=$AS$68,VLOOKUP(O76,$AS$78:$AT$85,2,FALSE),IF(O$68=$AV$68,VLOOKUP(O76,$AV$78:$AW$85,2,FALSE),IF(O$68=$AY$68,VLOOKUP(O76,$AY$78:$AZ$85,2,FALSE))))) -> 40.16 | Q76: =IF(O$68=$AP$68,VLOOKUP(O76,$AP$78:$AR$85,3,FALSE),IF(O$68=$AS$68,VLOOKUP(O76,$AS$78:$AU$85,3,FALSE),IF(O$68=$AV$68,VLOOKUP(O76,$AV$78:$AX$85,3,FALSE),IF(O$68=$AY$68,VLOOKUP(O76,$AY$78:$BA$85,3,FALSE))))) -> 0 | X76: =IF(X$68=$AP$68,$AP$79,IF(X$68=$AS$68,$AS$79,IF(X$68=$AV$68,$AV$79,IF(X$68=$AY$68,$AY$79,"")))) -> Bicep II Magnum | Y76: 0 | Z76: =IF(Z$68=$AP$68,$AP$79,IF(Z$68=$AS$68,$AS$79,IF(Z$68=$AV$68,$AV$79,IF(Z$68=$AY$68,$AY$79,"")))) -> Bicep II Magnum | AA76: 0 | AB76: =IF(AB$68=$AP$68,$AP$79,IF(AB$68=$AS$68,$AS$79,IF(AB$68=$AV$68,$AV$79,IF(AB$68=$AY$68,$AY$79,"")))) -> Bicep II Magnum | AC76: 0 | AD76: =IF(AD$68=$AP$68,$AP$79,IF(AD$68=$AS$68,$AS$79,IF(AD$68=$AV$68,$AV$79,IF(AD$68=$AY$68,$AY$79,"")))) -> Bicep II Magnum | AE76: 0 | AG76: =IF(AG$68=$AP$68,$AP$79,IF(AG$68=$AS$68,$AS$79,IF(AG$68=$AV$68,$AV$79,IF(AG$68=$AY$68,$AY$79,"")))) -> Bicep II Magnum | AI76: =IF(AI$68=$AP$68,$AP$79,IF(AI$68=$AS$68,$AS$79,IF(AI$68=$AV$68,$AV$79,IF(AI$68=$AY$68,$AY$79,"")))) -> Bicep II Magnum | AK76: =IF(AK$68=$AP$68,$AP$79,IF(AK$68=$AS$68,$AS$79,IF(AK$68=$AV$68,$AV$79,IF(AK$68=$AY$68,$AY$79,"")))) -> Bicep II Magnum | AM76: =IF(AM$68=$AP$68,$AP$79,IF(AM$68=$AS$68,$AS$79,IF(AM$68=$AV$68,$AV$79,IF(AM$68=$AY$68,$AY$79,"")))) -> Bicep II Magnum | AP76: =Names!$N$13 -> CornPreCv | AS76: =Names!$N$14 -> CornPreEn | AV76: =Names!$N$15 -> CornPreRR | AY76: =Names!$N$16 -> CornPreRRLL
C77: Corvus | D77: =IF(C$68=$AP$68,VLOOKUP(C77,$AP$78:$AQ$85,2,FALSE),IF(C$68=$AS$68,VLOOKUP(C77,$AS$78:$AT$85,2,FALSE),IF(C$68=$AV$68,VLOOKUP(C77,$AV$78:$AW$85,2,FALSE),IF(C$68=$AY$68,VLOOKUP(C77,$AY$78:$AZ$85,2,FALSE))))) -> 853.76 | E77: =IF(C$68=$AP$68,VLOOKUP(C77,$AP$78:$AR$85,3,FALSE),IF(C$68=$AS$68,VLOOKUP(C77,$AS$78:$AU$85,3,FALSE),IF(C$68=$AV$68,VLOOKUP(C77,$AV$78:$AX$85,3,FALSE),IF(C$68=$AY$68,VLOOKUP(C77,$AY$78:$BA$85,3,FALSE))))) -> 0 | G77: Corvus | H77: =IF(G$68=$AP$68,VLOOKUP(G77,$AP$78:$AQ$85,2,FALSE),IF(G$68=$AS$68,VLOOKUP(G77,$AS$78:$AT$85,2,FALSE),IF(G$68=$AV$68,VLOOKUP(G77,$AV$78:$AW$85,2,FALSE),IF(G$68=$AY$68,VLOOKUP(G77,$AY$78:$AZ$85,2,FALSE))))) -> 853.76 | I77: =IF(G$68=$AP$68,VLOOKUP(G77,$AP$78:$AR$85,3,FALSE),IF(G$68=$AS$68,VLOOKUP(G77,$AS$78:$AU$85,3,FALSE),IF(G$68=$AV$68,VLOOKUP(G77,$AV$78:$AX$85,3,FALSE),IF(G$68=$AY$68,VLOOKUP(G77,$AY$78:$BA$85,3,FALSE))))) -> 0 | K77: Corvus | L77: =IF(K$68=$AP$68,VLOOKUP(K77,$AP$78:$AQ$85,2,FALSE),IF(K$68=$AS$68,VLOOKUP(K77,$AS$78:$AT$85,2,FALSE),IF(K$68=$AV$68,VLOOKUP(K77,$AV$78:$AW$85,2,FALSE),IF(K$68=$AY$68,VLOOKUP(K77,$AY$78:$AZ$85,2,FALSE))))) -> 853.76 | M77: =IF(K$68=$AP$68,VLOOKUP(K77,$AP$78:$AR$85,3,FALSE),IF(K$68=$AS$68,VLOOKUP(K77,$AS$78:$AU$85,3,FALSE),IF(K$68=$AV$68,VLOOKUP(K77,$AV$78:$AX$85,3,FALSE),IF(K$68=$AY$68,VLOOKUP(K77,$AY$78:$BA$85,3,FALSE))))) -> 0 | O77: Corvus | P77: =IF(O$68=$AP$68,VLOOKUP(O77,$AP$78:$AQ$85,2,FALSE),IF(O$68=$AS$68,VLOOKUP(O77,$AS$78:$AT$85,2,FALSE),IF(O$68=$AV$68,VLOOKUP(O77,$AV$78:$AW$85,2,FALSE),IF(O$68=$AY$68,VLOOKUP(O77,$AY$78:$AZ$85,2,FALSE))))) -> 853.76 | Q77: =IF(O$68=$AP$68,VLOOKUP(O77,$AP$78:$AR$85,3,FALSE),IF(O$68=$AS$68,VLOOKUP(O77,$AS$78:$AU$85,3,FALSE),IF(O$68=$AV$68,VLOOKUP(O77,$AV$78:$AX$85,3,FALSE),IF(O$68=$AY$68,VLOOKUP(O77,$AY$78:$BA$85,3,FALSE))))) -> 0 | X77: =IF(X$68=$AP$68,$AP$80,IF(X$68=$AS$68,$AS$80,IF(X$68=$AV$68,$AV$80,IF(X$68=$AY$68,$AY$80,"")))) -> Corvus | Y77: 0 | Z77: =IF(Z$68=$AP$68,$AP$80,IF(Z$68=$AS$68,$AS$80,IF(Z$68=$AV$68,$AV$80,IF(Z$68=$AY$68,$AY$80,"")))) -> Corvus | AA77: 0 | AB77: =IF(AB$68=$AP$68,$AP$80,IF(AB$68=$AS$68,$AS$80,IF(AB$68=$AV$68,$AV$80,IF(AB$68=$AY$68,$AY$80,"")))) -> Corvus | AC77: 0 | AD77: =IF(AD$68=$AP$68,$AP$80,IF(AD$68=$AS$68,$AS$80,IF(AD$68=$AV$68,$AV$80,IF(AD$68=$AY$68,$AY$80,"")))) -> Corvus | AE77: 0 | AG77: =IF(AG$68=$AP$68,$AP$80,IF(AG$68=$AS$68,$AS$80,IF(AG$68=$AV$68,$AV$80,IF(AG$68=$AY$68,$AY$80,"")))) -> Corvus | AI77: =IF(AI$68=$AP$68,$AP$80,IF(AI$68=$AS$68,$AS$80,IF(AI$68=$AV$68,$AV$80,IF(AI$68=$AY$68,$AY$80,"")))) -> Corvus | AK77: =IF(AK$68=$AP$68,$AP$80,IF(AK$68=$AS$68,$AS$80,IF(AK$68=$AV$68,$AV$80,IF(AK$68=$AY$68,$AY$80,"")))) -> Corvus | AM77: =IF(AM$68=$AP$68,$AP$80,IF(AM$68=$AS$68,$AS$80,IF(AM$68=$AV$68,$AV$80,IF(AM$68=$AY$68,$AY$80,"")))) -> Corvus | AO77: Pre | AP77: =Names!$T13 -> Acuron | AQ77: =VLOOKUP(AP77,Prices!$A$5:$J$38,10,FALSE) -> 64.5 | AS77: =Names!$U13 -> Acuron | AT77: =VLOOKUP(AS77,Prices!$A$5:$J$38,10,FALSE) -> 64.5 | AV77: =Names!$V13 -> Acuron | AW77: =VLOOKUP(AV77,Prices!$A$5:$J$38,10,FALSE) -> 64.5 | AY77: =Names!$W13 -> Acuron | AZ77: =VLOOKUP(AY77,Prices!$A$5:$J$38,10,FALSE) -> 64.5
C78: Surestart | D78: =IF(C$68=$AP$68,VLOOKUP(C78,$AP$78:$AQ$85,2,FALSE),IF(C$68=$AS$68,VLOOKUP(C78,$AS$78:$AT$85,2,FALSE),IF(C$68=$AV$68,VLOOKUP(C78,$AV$78:$AW$85,2,FALSE),IF(C$68=$AY$68,VLOOKUP(C78,$AY$78:$AZ$85,2,FALSE))))) -> 91.67 | E78: =IF(C$68=$AP$68,VLOOKUP(C78,$AP$78:$AR$85,3,FALSE),IF(C$68=$AS$68,VLOOKUP(C78,$AS$78:$AU$85,3,FALSE),IF(C$68=$AV$68,VLOOKUP(C78,$AV$78:$AX$85,3,FALSE),IF(C$68=$AY$68,VLOOKUP(C78,$AY$78:$BA$85,3,FALSE))))) -> 0 | G78: Degree Xtra | H78: =IF(G$68=$AP$68,VLOOKUP(G78,$AP$78:$AQ$85,2,FALSE),IF(G$68=$AS$68,VLOOKUP(G78,$AS$78:$AT$85,2,FALSE),IF(G$68=$AV$68,VLOOKUP(G78,$AV$78:$AW$85,2,FALSE),IF(G$68=$AY$68,VLOOKUP(G78,$AY$78:$AZ$85,2,FALSE))))) -> 44.95 | I78: =IF(G$68=$AP$68,VLOOKUP(G78,$AP$78:$AR$85,3,FALSE),IF(G$68=$AS$68,VLOOKUP(G78,$AS$78:$AU$85,3,FALSE),IF(G$68=$AV$68,VLOOKUP(G78,$AV$78:$AX$85,3,FALSE),IF(G$68=$AY$68,VLOOKUP(G78,$AY$78:$BA$85,3,FALSE))))) -> 0 | K78: Degree Xtra | L78: =IF(K$68=$AP$68,VLOOKUP(K78,$AP$78:$AQ$85,2,FALSE),IF(K$68=$AS$68,VLOOKUP(K78,$AS$78:$AT$85,2,FALSE),IF(K$68=$AV$68,VLOOKUP(K78,$AV$78:$AW$85,2,FALSE),IF(K$68=$AY$68,VLOOKUP(K78,$AY$78:$AZ$85,2,FALSE))))) -> 44.95 | M78: =IF(K$68=$AP$68,VLOOKUP(K78,$AP$78:$AR$85,3,FALSE),IF(K$68=$AS$68,VLOOKUP(K78,$AS$78:$AU$85,3,FALSE),IF(K$68=$AV$68,VLOOKUP(K78,$AV$78:$AX$85,3,FALSE),IF(K$68=$AY$68,VLOOKUP(K78,$AY$78:$BA$85,3,FALSE))))) -> 0 | O78: Degree Xtra | P78: =IF(O$68=$AP$68,VLOOKUP(O78,$AP$78:$AQ$85,2,FALSE),IF(O$68=$AS$68,VLOOKUP(O78,$AS$78:$AT$85,2,FALSE),IF(O$68=$AV$68,VLOOKUP(O78,$AV$78:$AW$85,2,FALSE),IF(O$68=$AY$68,VLOOKUP(O78,$AY$78:$AZ$85,2,FALSE))))) -> 44.95 | Q78: =IF(O$68=$AP$68,VLOOKUP(O78,$AP$78:$AR$85,3,FALSE),IF(O$68=$AS$68,VLOOKUP(O78,$AS$78:$AU$85,3,FALSE),IF(O$68=$AV$68,VLOOKUP(O78,$AV$78:$AX$85,3,FALSE),IF(O$68=$AY$68,VLOOKUP(O78,$AY$78:$BA$85,3,FALSE))))) -> 0 | X78: =IF(X$68=$AP$68,$AP$81,IF(X$68=$AS$68,$AS$81,IF(X$68=$AV$68,$AV$81,IF(X$68=$AY$68,$AY$81,"")))) -> Degree Xtra | Y78: 1 | Z78: =IF(Z$68=$AP$68,$AP$81,IF(Z$68=$AS$68,$AS$81,IF(Z$68=$AV$68,$AV$81,IF(Z$68=$AY$68,$AY$81,"")))) -> Degree Xtra | AA78: 0 | AB78: =IF(AB$68=$AP$68,$AP$81,IF(AB$68=$AS$68,$AS$81,IF(AB$68=$AV$68,$AV$81,IF(AB$68=$AY$68,$AY$81,"")))) -> Degree Xtra | AC78: 0 | AD78: =IF(AD$68=$AP$68,$AP$81,IF(AD$68=$AS$68,$AS$81,IF(AD$68=$AV$68,$AV$81,IF(AD$68=$AY$68,$AY$81,"")))) -> Degree Xtra | AE78: 0 | AG78: =IF(AG$68=$AP$68,$AP$81,IF(AG$68=$AS$68,$AS$81,IF(AG$68=$AV$68,$AV$81,IF(AG$68=$AY$68,$AY$81,"")))) -> Degree Xtra | AI78: =IF(AI$68=$AP$68,$AP$81,IF(AI$68=$AS$68,$AS$81,IF(AI$68=$AV$68,$AV$81,IF(AI$68=$AY$68,$AY$81,"")))) -> Degree Xtra | AK78: =IF(AK$68=$AP$68,$AP$81,IF(AK$68=$AS$68,$AS$81,IF(AK$68=$AV$68,$AV$81,IF(AK$68=$AY$68,$AY$81,"")))) -> Degree Xtra | AM78: =IF(AM$68=$AP$68,$AP$81,IF(AM$68=$AS$68,$AS$81,IF(AM$68=$AV$68,$AV$81,IF(AM$68=$AY$68,$AY$81,"")))) -> Degree Xtra | AP78: =Names!$T14 -> Atrazine | AQ78: =VLOOKUP(AP78,Prices!$A$5:$J$38,10,FALSE) -> 16.9 | AS78: =Names!$U14 -> Atrazine | AT78: =VLOOKUP(AS78,Prices!$A$5:$J$38,10,FALSE) -> 16.9 | AV78: =Names!$V14 -> Atrazine | AW78: =VLOOKUP(AV78,Prices!$A$5:$J$38,10,FALSE) -> 16.9 | AY78: =Names!$W14 -> Atrazine | AZ78: =VLOOKUP(AY78,Prices!$A$5:$J$38,10,FALSE) -> 16.9
C79: Dual II Magnum | D79: =IF(C$68=$AP$68,VLOOKUP(C79,$AP$78:$AQ$85,2,FALSE),IF(C$68=$AS$68,VLOOKUP(C79,$AS$78:$AT$85,2,FALSE),IF(C$68=$AV$68,VLOOKUP(C79,$AV$78:$AW$85,2,FALSE),IF(C$68=$AY$68,VLOOKUP(C79,$AY$78:$AZ$85,2,FALSE))))) -> 109 | E79: =IF(C$68=$AP$68,VLOOKUP(C79,$AP$78:$AR$85,3,FALSE),IF(C$68=$AS$68,VLOOKUP(C79,$AS$78:$AU$85,3,FALSE),IF(C$68=$AV$68,VLOOKUP(C79,$AV$78:$AX$85,3,FALSE),IF(C$68=$AY$68,VLOOKUP(C79,$AY$78:$BA$85,3,FALSE))))) -> 0 | G79: Dual II Magnum | H79: =IF(G$68=$AP$68,VLOOKUP(G79,$AP$78:$AQ$85,2,FALSE),IF(G$68=$AS$68,VLOOKUP(G79,$AS$78:$AT$85,2,FALSE),IF(G$68=$AV$68,VLOOKUP(G79,$AV$78:$AW$85,2,FALSE),IF(G$68=$AY$68,VLOOKUP(G79,$AY$78:$AZ$85,2,FALSE))))) -> 109 | I79: =IF(G$68=$AP$68,VLOOKUP(G79,$AP$78:$AR$85,3,FALSE),IF(G$68=$AS$68,VLOOKUP(G79,$AS$78:$AU$85,3,FALSE),IF(G$68=$AV$68,VLOOKUP(G79,$AV$78:$AX$85,3,FALSE),IF(G$68=$AY$68,VLOOKUP(G79,$AY$78:$BA$85,3,FALSE))))) -> 0 | K79: Dual II Magnum | L79: =IF(K$68=$AP$68,VLOOKUP(K79,$AP$78:$AQ$85,2,FALSE),IF(K$68=$AS$68,VLOOKUP(K79,$AS$78:$AT$85,2,FALSE),IF(K$68=$AV$68,VLOOKUP(K79,$AV$78:$AW$85,2,FALSE),IF(K$68=$AY$68,VLOOKUP(K79,$AY$78:$AZ$85,2,FALSE))))) -> 109 | M79: =IF(K$68=$AP$68,VLOOKUP(K79,$AP$78:$AR$85,3,FALSE),IF(K$68=$AS$68,VLOOKUP(K79,$AS$78:$AU$85,3,FALSE),IF(K$68=$AV$68,VLOOKUP(K79,$AV$78:$AX$85,3,FALSE),IF(K$68=$AY$68,VLOOKUP(K79,$AY$78:$BA$85,3,FALSE))))) -> 0 | O79: Dual II Magnum | P79: =IF(O$68=$AP$68,VLOOKUP(O79,$AP$78:$AQ$85,2,FALSE),IF(O$68=$AS$68,VLOOKUP(O79,$AS$78:$AT$85,2,FALSE),IF(O$68=$AV$68,VLOOKUP(O79,$AV$78:$AW$85,2,FALSE),IF(O$68=$AY$68,VLOOKUP(O79,$AY$78:$AZ$85,2,FALSE))))) -> 109 | Q79: =IF(O$68=$AP$68,VLOOKUP(O79,$AP$78:$AR$85,3,FALSE),IF(O$68=$AS$68,VLOOKUP(O79,$AS$78:$AU$85,3,FALSE),IF(O$68=$AV$68,VLOOKUP(O79,$AV$78:$AX$85,3,FALSE),IF(O$68=$AY$68,VLOOKUP(O79,$AY$78:$BA$85,3,FALSE))))) -> 0 | X79: =IF(X$68=$AP$68,$AP$82,IF(X$68=$AS$68,$AS$82,IF(X$68=$AV$68,$AV$82,IF(X$68=$AY$68,$AY$82,"")))) -> Dual II Magnum | Y79: 0 | Z79: =IF(Z$68=$AP$68,$AP$82,IF(Z$68=$AS$68,$AS$82,IF(Z$68=$AV$68,$AV$82,IF(Z$68=$AY$68,$AY$82,"")))) -> Dual II Magnum | AA79: =IF(G79=Z79,0,1) -> 0 | AB79: =IF(AB$68=$AP$68,$AP$82,IF(AB$68=$AS$68,$AS$82,IF(AB$68=$AV$68,$AV$82,IF(AB$68=$AY$68,$AY$82,"")))) -> Dual II Magnum | AC79: 0 | AD79: =IF(AD$68=$AP$68,$AP$82,IF(AD$68=$AS$68,$AS$82,IF(AD$68=$AV$68,$AV$82,IF(AD$68=$AY$68,$AY$82,"")))) -> Dual II Magnum | AE79: 0 | AG79: =IF(AG$68=$AP$68,$AP$82,IF(AG$68=$AS$68,$AS$82,IF(AG$68=$AV$68,$AV$82,IF(AG$68=$AY$68,$AY$82,"")))) -> Dual II Magnum | AI79: =IF(AI$68=$AP$68,$AP$82,IF(AI$68=$AS$68,$AS$82,IF(AI$68=$AV$68,$AV$82,IF(AI$68=$AY$68,$AY$82,"")))) -> Dual II Magnum | AK79: =IF(AK$68=$AP$68,$AP$82,IF(AK$68=$AS$68,$AS$82,IF(AK$68=$AV$68,$AV$82,IF(AK$68=$AY$68,$AY$82,"")))) -> Dual II Magnum | AM79: =IF(AM$68=$AP$68,$AP$82,IF(AM$68=$AS$68,$AS$82,IF(AM$68=$AV$68,$AV$82,IF(AM$68=$AY$68,$AY$82,"")))) -> Dual II Magnum | AP79: =Names!$T15 -> Bicep II Magnum | AQ79: =VLOOKUP(AP79,Prices!$A$5:$J$38,10,FALSE) -> 40.16 | AS79: =Names!$U15 -> Bicep II Magnum | AT79: =VLOOKUP(AS79,Prices!$A$5:$J$38,10,FALSE) -> 40.16 | AV79: =Names!$V15 -> Bicep II Magnum | AW79: =VLOOKUP(AV79,Prices!$A$5:$J$38,10,FALSE) -> 40.16 | AY79: =Names!$W15 -> Bicep II Magnum | AZ79: =VLOOKUP(AY79,Prices!$A$5:$J$38,10,FALSE) -> 40.16
AP80: =Names!$T16 -> Corvus | AQ80: =VLOOKUP(AP80,Prices!$A$5:$J$38,10,FALSE) -> 853.76 | AS80: =Names!$U16 -> Corvus | AT80: =VLOOKUP(AS80,Prices!$A$5:$J$38,10,FALSE) -> 853.76 | AV80: =Names!$V16 -> Corvus | AW80: =VLOOKUP(AV80,Prices!$A$5:$J$38,10,FALSE) -> 853.76 | AY80: =Names!$W16 -> Corvus | AZ80: =VLOOKUP(AY80,Prices!$A$5:$J$38,10,FALSE) -> 853.76
B81: Post emergence | C81: 2,4-D | D81: =IF(C$68=$AP$68,VLOOKUP(C81,$AP$89:$AQ$97,2,FALSE),IF(C$68=$AS$68,VLOOKUP(C81,$AS$89:$AT$98,2,FALSE),IF(C$68=$AV$68,VLOOKUP(C81,$AV$89:$AW$99,2,FALSE),IF(C$68=$AY$68,VLOOKUP(C81,$AY$89:$AZ$95,2,FALSE))))) -> 15.4 | E81: =IF(C$68=$AP$68,VLOOKUP(C81,$AP$89:$AR$97,3,FALSE),IF(C$68=$AS$68,VLOOKUP(C81,$AS$89:$AU$98,3,FALSE),IF(C$68=$AV$68,VLOOKUP(C81,$AV$89:$AX$99,3,FALSE),IF(C$68=$AY$68,VLOOKUP(C81,$AY$89:$BA$95,3,FALSE))))) -> 0 | G81: 2,4-D | H81: =IF(G$68=$AP$68,VLOOKUP(G81,$AP$89:$AQ$97,2,FALSE),IF(G$68=$AS$68,VLOOKUP(G81,$AS$89:$AT$98,2,FALSE),IF(G$68=$AV$68,VLOOKUP(G81,$AV$89:$AW$99,2,FALSE),IF(G$68=$AY$68,VLOOKUP(G81,$AY$89:$AZ$95,2,FALSE))))) -> 15.4 | I81: =IF(G$68=$AP$68,VLOOKUP(G81,$AP$89:$AR$97,3,FALSE),IF(G$68=$AS$68,VLOOKUP(G81,$AS$89:$AU$98,3,FALSE),IF(G$68=$AV$68,VLOOKUP(G81,$AV$89:$AX$99,3,FALSE),IF(G$68=$AY$68,VLOOKUP(G81,$AY$89:$BA$95,3,FALSE))))) -> 0 | K81: 2,4-D | L81: =IF(K$68=$AP$68,VLOOKUP(K81,$AP$89:$AQ$97,2,FALSE),IF(K$68=$AS$68,VLOOKUP(K81,$AS$89:$AT$98,2,FALSE),IF(K$68=$AV$68,VLOOKUP(K81,$AV$89:$AW$99,2,FALSE),IF(K$68=$AY$68,VLOOKUP(K81,$AY$89:$AZ$95,2,FALSE))))) -> 15.4 | M81: =IF(K$68=$AP$68,VLOOKUP(K81,$AP$89:$AR$97,3,FALSE),IF(K$68=$AS$68,VLOOKUP(K81,$AS$89:$AU$98,3,FALSE),IF(K$68=$AV$68,VLOOKUP(K81,$AV$89:$AX$99,3,FALSE),IF(K$68=$AY$68,VLOOKUP(K81,$AY$89:$BA$95,3,FALSE))))) -> 0 | O81: 2,4-D | P81: =IF(O$68=$AP$68,VLOOKUP(O81,$AP$89:$AQ$97,2,FALSE),IF(O$68=$AS$68,VLOOKUP(O81,$AS$89:$AT$98,2,FALSE),IF(O$68=$AV$68,VLOOKUP(O81,$AV$89:$AW$99,2,FALSE),IF(O$68=$AY$68,VLOOKUP(O81,$AY$89:$AZ$95,2,FALSE))))) -> 15.4 | Q81: =IF(O$68=$AP$68,VLOOKUP(O81,$AP$89:$AR$97,3,FALSE),IF(O$68=$AS$68,VLOOKUP(O81,$AS$89:$AU$98,3,FALSE),IF(O$68=$AV$68,VLOOKUP(O81,$AV$89:$AX$99,3,FALSE),IF(O$68=$AY$68,VLOOKUP(O81,$AY$89:$BA$95,3,FALSE))))) -> 0 | W81: Post emergence | X81: =IF(X$68=$AP$68,$AP$89,IF(X$68=$AS$68,$AS$89,IF(X$68=$AV$68,$AV$89,IF(X$68=$AY$68,$AY$89,"")))) -> 2,4-D | Y81: =IF(C81=X81,0,1) -> 0 | Z81: =IF(Z$68=$AP$68,$AP$89,IF(Z$68=$AS$68,$AS$89,IF(Z$68=$AV$68,$AV$89,IF(Z$68=$AY$68,$AY$89,"")))) -> 2,4-D | AA81: =IF(G81=Z81,0,1) -> 0 | AB81: =IF(AB$68=$AP$68,$AP$89,IF(AB$68=$AS$68,$AS$89,IF(AB$68=$AV$68,$AV$89,IF(AB$68=$AY$68,$AY$89,"")))) -> 2,4-D | AC81: =IF(K81=AB81,0,1) -> 0 | AD81: =IF(AD$68=$AP$68,$AP$89,IF(AD$68=$AS$68,$AS$89,IF(AD$68=$AV$68,$AV$89,IF(AD$68=$AY$68,$AY$89,"")))) -> 2,4-D | AE81: =IF(O81=AD81,0,1) -> 0 | AF81: Post emergence | AG81: =IF(AG$68=$AP$68,$AP$89,IF(AG$68=$AS$68,$AS$89,IF(AG$68=$AV$68,$AV$89,IF(AG$68=$AY$68,$AY$89,"")))) -> 2,4-D | AI81: =IF(AI$68=$AP$68,$AP$89,IF(AI$68=$AS$68,$AS$89,IF(AI$68=$AV$68,$AV$89,IF(AI$68=$AY$68,$AY$89,"")))) -> 2,4-D | AK81: =IF(AK$68=$AP$68,$AP$89,IF(AK$68=$AS$68,$AS$89,IF(AK$68=$AV$68,$AV$89,IF(AK$68=$AY$68,$AY$89,"")))) -> 2,4-D | AM81: =IF(AM$68=$AP$68,$AP$89,IF(AM$68=$AS$68,$AS$89,IF(AM$68=$AV$68,$AV$89,IF(AM$68=$AY$68,$AY$89,"")))) -> 2,4-D | AP81: =Names!$T17 -> Degree Xtra | AQ81: =VLOOKUP(AP81,Prices!$A$5:$J$38,10,FALSE) -> 44.95 | AS81: =Names!$U17 -> Degree Xtra | AT81: =VLOOKUP(AS81,Prices!$A$5:$J$38,10,FALSE) -> 44.95 | AV81: =Names!$V17 -> Degree Xtra | AW81: =VLOOKUP(AV81,Prices!$A$5:$J$38,10,FALSE) -> 44.95 | AY81: =Names!$W17 -> Degree Xtra | AZ81: =VLOOKUP(AY81,Prices!$A$5:$J$38,10,FALSE) -> 44.95
C82: Acuron | D82: =IF(C$68=$AP$68,VLOOKUP(C82,$AP$89:$AQ$97,2,FALSE),IF(C$68=$AS$68,VLOOKUP(C82,$AS$89:$AT$98,2,FALSE),IF(C$68=$AV$68,VLOOKUP(C82,$AV$89:$AW$99,2,FALSE),IF(C$68=$AY$68,VLOOKUP(C82,$AY$89:$AZ$95,2,FALSE))))) -> 64.5 | E82: =IF(C$68=$AP$68,VLOOKUP(C82,$AP$89:$AR$97,3,FALSE),IF(C$68=$AS$68,VLOOKUP(C82,$AS$89:$AU$98,3,FALSE),IF(C$68=$AV$68,VLOOKUP(C82,$AV$89:$AX$99,3,FALSE),IF(C$68=$AY$68,VLOOKUP(C82,$AY$89:$BA$95,3,FALSE))))) -> 0 | G82: Atrazine | H82: =IF(G$68=$AP$68,VLOOKUP(G82,$AP$89:$AQ$97,2,FALSE),IF(G$68=$AS$68,VLOOKUP(G82,$AS$89:$AT$98,2,FALSE),IF(G$68=$AV$68,VLOOKUP(G82,$AV$89:$AW$99,2,FALSE),IF(G$68=$AY$68,VLOOKUP(G82,$AY$89:$AZ$95,2,FALSE))))) -> 16.9 | I82: =IF(G$68=$AP$68,VLOOKUP(G82,$AP$89:$AR$97,3,FALSE),IF(G$68=$AS$68,VLOOKUP(G82,$AS$89:$AU$98,3,FALSE),IF(G$68=$AV$68,VLOOKUP(G82,$AV$89:$AX$99,3,FALSE),IF(G$68=$AY$68,VLOOKUP(G82,$AY$89:$BA$95,3,FALSE))))) -> 0 | K82: Atrazine | L82: =IF(K$68=$AP$68,VLOOKUP(K82,$AP$89:$AQ$97,2,FALSE),IF(K$68=$AS$68,VLOOKUP(K82,$AS$89:$AT$98,2,FALSE),IF(K$68=$AV$68,VLOOKUP(K82,$AV$89:$AW$99,2,FALSE),IF(K$68=$AY$68,VLOOKUP(K82,$AY$89:$AZ$95,2,FALSE))))) -> 16.9 | M82: =IF(K$68=$AP$68,VLOOKUP(K82,$AP$89:$AR$97,3,FALSE),IF(K$68=$AS$68,VLOOKUP(K82,$AS$89:$AU$98,3,FALSE),IF(K$68=$AV$68,VLOOKUP(K82,$AV$89:$AX$99,3,FALSE),IF(K$68=$AY$68,VLOOKUP(K82,$AY$89:$BA$95,3,FALSE))))) -> 0 | O82: Atrazine | P82: =IF(O$68=$AP$68,VLOOKUP(O82,$AP$89:$AQ$97,2,FALSE),IF(O$68=$AS$68,VLOOKUP(O82,$AS$89:$AT$98,2,FALSE),IF(O$68=$AV$68,VLOOKUP(O82,$AV$89:$AW$99,2,FALSE),IF(O$68=$AY$68,VLOOKUP(O82,$AY$89:$AZ$95,2,FALSE))))) -> 16.9 | Q82: =IF(O$68=$AP$68,VLOOKUP(O82,$AP$89:$AR$97,3,FALSE),IF(O$68=$AS$68,VLOOKUP(O82,$AS$89:$AU$98,3,FALSE),IF(O$68=$AV$68,VLOOKUP(O82,$AV$89:$AX$99,3,FALSE),IF(O$68=$AY$68,VLOOKUP(O82,$AY$89:$BA$95,3,FALSE))))) -> 0 | X82: =IF(X$68=$AP$68,$AP$91,IF(X$68=$AS$68,$AS$91,IF(X$68=$AV$68,$AV$91,IF(X$68=$AY$68,$AY$91,"")))) -> Atrazine | Y82: 1 | Z82: =IF(Z$68=$AP$68,$AP$91,IF(Z$68=$AS$68,$AS$91,IF(Z$68=$AV$68,$AV$91,IF(Z$68=$AY$68,$AY$91,"")))) -> Atrazine | AA82: 0 | AB82: =IF(AB$68=$AP$68,$AP$91,IF(AB$68=$AS$68,$AS$91,IF(AB$68=$AV$68,$AV$91,IF(AB$68=$AY$68,$AY$91,"")))) -> Atrazine | AC82: 0 | AD82: =IF(AD$68=$AP$68,$AP$91,IF(AD$68=$AS$68,$AS$91,IF(AD$68=$AV$68,$AV$91,IF(AD$68=$AY$68,$AY$91,"")))) -> Atrazine | AE82: 0 | AG82: =IF(AG$68=$AP$68,$AP$91,IF(AG$68=$AS$68,$AS$91,IF(AG$68=$AV$68,$AV$91,IF(AG$68=$AY$68,$AY$91,"")))) -> Atrazine | AI82: =IF(AI$68=$AP$68,$AP$91,IF(AI$68=$AS$68,$AS$91,IF(AI$68=$AV$68,$AV$91,IF(AI$68=$AY$68,$AY$91,"")))) -> Atrazine | AK82: =IF(AK$68=$AP$68,$AP$91,IF(AK$68=$AS$68,$AS$91,IF(AK$68=$AV$68,$AV$91,IF(AK$68=$AY$68,$AY$91,"")))) -> Atrazine | AM82: =IF(AM$68=$AP$68,$AP$91,IF(AM$68=$AS$68,$AS$91,IF(AM$68=$AV$68,$AV$91,IF(AM$68=$AY$68,$AY$91,"")))) -> Atrazine | AP82: =Names!$T18 -> Dual II Magnum | AQ82: =VLOOKUP(AP82,Prices!$A$5:$J$38,10,FALSE) -> 109 | AS82: =Names!$U18 -> Dual II Magnum | AT82: =VLOOKUP(AS82,Prices!$A$5:$J$38,10,FALSE) -> 109 | AV82: =Names!$V18 -> Dual II Magnum | AW82: =VLOOKUP(AV82,Prices!$A$5:$J$38,10,FALSE) -> 109 | AY82: =Names!$W18 -> Dual II Magnum | AZ82: =VLOOKUP(AY82,Prices!$A$5:$J$38,10,FALSE) -> 109
C83: Capreno | D83: =IF(C$68=$AP$68,VLOOKUP(C83,$AP$89:$AQ$97,2,FALSE),IF(C$68=$AS$68,VLOOKUP(C83,$AS$89:$AT$98,2,FALSE),IF(C$68=$AV$68,VLOOKUP(C83,$AV$89:$AW$99,2,FALSE),IF(C$68=$AY$68,VLOOKUP(C83,$AY$89:$AZ$95,2,FALSE))))) -> 6.97 | E83: =IF(C$68=$AP$68,VLOOKUP(C83,$AP$89:$AR$97,3,FALSE),IF(C$68=$AS$68,VLOOKUP(C83,$AS$89:$AU$98,3,FALSE),IF(C$68=$AV$68,VLOOKUP(C83,$AV$89:$AX$99,3,FALSE),IF(C$68=$AY$68,VLOOKUP(C83,$AY$89:$BA$95,3,FALSE))))) -> 0 | G83: Capreno | H83: =IF(G$68=$AP$68,VLOOKUP(G83,$AP$89:$AQ$97,2,FALSE),IF(G$68=$AS$68,VLOOKUP(G83,$AS$89:$AT$98,2,FALSE),IF(G$68=$AV$68,VLOOKUP(G83,$AV$89:$AW$99,2,FALSE),IF(G$68=$AY$68,VLOOKUP(G83,$AY$89:$AZ$95,2,FALSE))))) -> 6.97 | I83: =IF(G$68=$AP$68,VLOOKUP(G83,$AP$89:$AR$97,3,FALSE),IF(G$68=$AS$68,VLOOKUP(G83,$AS$89:$AU$98,3,FALSE),IF(G$68=$AV$68,VLOOKUP(G83,$AV$89:$AX$99,3,FALSE),IF(G$68=$AY$68,VLOOKUP(G83,$AY$89:$BA$95,3,FALSE))))) -> 0 | K83: Capreno | L83: =IF(K$68=$AP$68,VLOOKUP(K83,$AP$89:$AQ$97,2,FALSE),IF(K$68=$AS$68,VLOOKUP(K83,$AS$89:$AT$98,2,FALSE),IF(K$68=$AV$68,VLOOKUP(K83,$AV$89:$AW$99,2,FALSE),IF(K$68=$AY$68,VLOOKUP(K83,$AY$89:$AZ$95,2,FALSE))))) -> 6.97 | M83: =IF(K$68=$AP$68,VLOOKUP(K83,$AP$89:$AR$97,3,FALSE),IF(K$68=$AS$68,VLOOKUP(K83,$AS$89:$AU$98,3,FALSE),IF(K$68=$AV$68,VLOOKUP(K83,$AV$89:$AX$99,3,FALSE),IF(K$68=$AY$68,VLOOKUP(K83,$AY$89:$BA$95,3,FALSE))))) -> 0 | O83: Capreno | P83: =IF(O$68=$AP$68,VLOOKUP(O83,$AP$89:$AQ$97,2,FALSE),IF(O$68=$AS$68,VLOOKUP(O83,$AS$89:$AT$98,2,FALSE),IF(O$68=$AV$68,VLOOKUP(O83,$AV$89:$AW$99,2,FALSE),IF(O$68=$AY$68,VLOOKUP(O83,$AY$89:$AZ$95,2,FALSE))))) -> 6.97 | Q83: =IF(O$68=$AP$68,VLOOKUP(O83,$AP$89:$AR$97,3,FALSE),IF(O$68=$AS$68,VLOOKUP(O83,$AS$89:$AU$98,3,FALSE),IF(O$68=$AV$68,VLOOKUP(O83,$AV$89:$AX$99,3,FALSE),IF(O$68=$AY$68,VLOOKUP(O83,$AY$89:$BA$95,3,FALSE))))) -> 0 | X83: =IF(X$68=$AP$68,$AP$92,IF(X$68=$AS$68,$AS$92,IF(X$68=$AV$68,$AV$92,IF(X$68=$AY$68,$AY$92,"")))) -> Capreno | Y83: 0 | Z83: =IF(Z$68=$AP$68,$AP$92,IF(Z$68=$AS$68,$AS$92,IF(Z$68=$AV$68,$AV$92,IF(Z$68=$AY$68,$AY$92,"")))) -> Capreno | AA83: 0 | AB83: =IF(AB$68=$AP$68,$AP$92,IF(AB$68=$AS$68,$AS$92,IF(AB$68=$AV$68,$AV$92,IF(AB$68=$AY$68,$AY$92,"")))) -> Capreno | AC83: 0 | AD83: =IF(AD$68=$AP$68,$AP$92,IF(AD$68=$AS$68,$AS$92,IF(AD$68=$AV$68,$AV$92,IF(AD$68=$AY$68,$AY$92,"")))) -> Capreno | AE83: 0 | AG83: =IF(AG$68=$AP$68,$AP$92,IF(AG$68=$AS$68,$AS$92,IF(AG$68=$AV$68,$AV$92,IF(AG$68=$AY$68,$AY$92,"")))) -> Capreno | AI83: =IF(AI$68=$AP$68,$AP$92,IF(AI$68=$AS$68,$AS$92,IF(AI$68=$AV$68,$AV$92,IF(AI$68=$AY$68,$AY$92,"")))) -> Capreno | AK83: =IF(AK$68=$AP$68,$AP$92,IF(AK$68=$AS$68,$AS$92,IF(AK$68=$AV$68,$AV$92,IF(AK$68=$AY$68,$AY$92,"")))) -> Capreno | AM83: =IF(AM$68=$AP$68,$AP$92,IF(AM$68=$AS$68,$AS$92,IF(AM$68=$AV$68,$AV$92,IF(AM$68=$AY$68,$AY$92,"")))) -> Capreno | AP83: =Names!$T19 -> Keystone | AQ83: =VLOOKUP(AP83,Prices!$A$5:$J$38,10,FALSE) -> 52.53 | AS83: =Names!$U19 -> Keystone | AT83: =VLOOKUP(AS83,Prices!$A$5:$J$38,10,FALSE) -> 52.53 | AV83: =Names!$V19 -> Keystone | AW83: =VLOOKUP(AV83,Prices!$A$5:$J$38,10,FALSE) -> 52.53 | AY83: =Names!$W19 -> Keystone | AZ83: =VLOOKUP(AY83,Prices!$A$5:$J$38,10,FALSE) -> 52.53
C84: Dicamba | D84: =IF(C$68=$AP$68,VLOOKUP(C84,$AP$89:$AQ$97,2,FALSE),IF(C$68=$AS$68,VLOOKUP(C84,$AS$89:$AT$98,2,FALSE),IF(C$68=$AV$68,VLOOKUP(C84,$AV$89:$AW$99,2,FALSE),IF(C$68=$AY$68,VLOOKUP(C84,$AY$89:$AZ$95,2,FALSE))))) -> 76.8 | E84: =IF(C$68=$AP$68,VLOOKUP(C84,$AP$89:$AR$97,3,FALSE),IF(C$68=$AS$68,VLOOKUP(C84,$AS$89:$AU$98,3,FALSE),IF(C$68=$AV$68,VLOOKUP(C84,$AV$89:$AX$99,3,FALSE),IF(C$68=$AY$68,VLOOKUP(C84,$AY$89:$BA$95,3,FALSE))))) -> 0 | G84: Dicamba | H84: =IF(G$68=$AP$68,VLOOKUP(G84,$AP$89:$AQ$97,2,FALSE),IF(G$68=$AS$68,VLOOKUP(G84,$AS$89:$AT$98,2,FALSE),IF(G$68=$AV$68,VLOOKUP(G84,$AV$89:$AW$99,2,FALSE),IF(G$68=$AY$68,VLOOKUP(G84,$AY$89:$AZ$95,2,FALSE))))) -> 76.8 | I84: =IF(G$68=$AP$68,VLOOKUP(G84,$AP$89:$AR$97,3,FALSE),IF(G$68=$AS$68,VLOOKUP(G84,$AS$89:$AU$98,3,FALSE),IF(G$68=$AV$68,VLOOKUP(G84,$AV$89:$AX$99,3,FALSE),IF(G$68=$AY$68,VLOOKUP(G84,$AY$89:$BA$95,3,FALSE))))) -> 0 | K84: Dicamba | L84: =IF(K$68=$AP$68,VLOOKUP(K84,$AP$89:$AQ$97,2,FALSE),IF(K$68=$AS$68,VLOOKUP(K84,$AS$89:$AT$98,2,FALSE),IF(K$68=$AV$68,VLOOKUP(K84,$AV$89:$AW$99,2,FALSE),IF(K$68=$AY$68,VLOOKUP(K84,$AY$89:$AZ$95,2,FALSE))))) -> 76.8 | M84: =IF(K$68=$AP$68,VLOOKUP(K84,$AP$89:$AR$97,3,FALSE),IF(K$68=$AS$68,VLOOKUP(K84,$AS$89:$AU$98,3,FALSE),IF(K$68=$AV$68,VLOOKUP(K84,$AV$89:$AX$99,3,FALSE),IF(K$68=$AY$68,VLOOKUP(K84,$AY$89:$BA$95,3,FALSE))))) -> 0 | O84: Dicamba | P84: =IF(O$68=$AP$68,VLOOKUP(O84,$AP$89:$AQ$97,2,FALSE),IF(O$68=$AS$68,VLOOKUP(O84,$AS$89:$AT$98,2,FALSE),IF(O$68=$AV$68,VLOOKUP(O84,$AV$89:$AW$99,2,FALSE),IF(O$68=$AY$68,VLOOKUP(O84,$AY$89:$AZ$95,2,FALSE))))) -> 76.8 | Q84: =IF(O$68=$AP$68,VLOOKUP(O84,$AP$89:$AR$97,3,FALSE),IF(O$68=$AS$68,VLOOKUP(O84,$AS$89:$AU$98,3,FALSE),IF(O$68=$AV$68,VLOOKUP(O84,$AV$89:$AX$99,3,FALSE),IF(O$68=$AY$68,VLOOKUP(O84,$AY$89:$BA$95,3,FALSE))))) -> 0 | X84: =IF(X$68=$AP$68,$AP$93,IF(X$68=$AS$68,$AS$93,IF(X$68=$AV$68,$AV$93,IF(X$68=$AY$68,$AY$93,"")))) -> Dicamba | Y84: 0 | Z84: =IF(Z$68=$AP$68,$AP$93,IF(Z$68=$AS$68,$AS$93,IF(Z$68=$AV$68,$AV$93,IF(Z$68=$AY$68,$AY$93,"")))) -> Dicamba | AA84: 0 | AB84: =IF(AB$68=$AP$68,$AP$93,IF(AB$68=$AS$68,$AS$93,IF(AB$68=$AV$68,$AV$93,IF(AB$68=$AY$68,$AY$93,"")))) -> Dicamba | AC84: 0 | AD84: =IF(AD$68=$AP$68,$AP$93,IF(AD$68=$AS$68,$AS$93,IF(AD$68=$AV$68,$AV$93,IF(AD$68=$AY$68,$AY$93,"")))) -> Dicamba | AE84: 0 | AG84: =IF(AG$68=$AP$68,$AP$93,IF(AG$68=$AS$68,$AS$93,IF(AG$68=$AV$68,$AV$93,IF(AG$68=$AY$68,$AY$93,"")))) -> Dicamba | AI84: =IF(AI$68=$AP$68,$AP$93,IF(AI$68=$AS$68,$AS$93,IF(AI$68=$AV$68,$AV$93,IF(AI$68=$AY$68,$AY$93,"")))) -> Dicamba | AK84: =IF(AK$68=$AP$68,$AP$93,IF(AK$68=$AS$68,$AS$93,IF(AK$68=$AV$68,$AV$93,IF(AK$68=$AY$68,$AY$93,"")))) -> Dicamba | AM84: =IF(AM$68=$AP$68,$AP$93,IF(AM$68=$AS$68,$AS$93,IF(AM$68=$AV$68,$AV$93,IF(AM$68=$AY$68,$AY$93,"")))) -> Dicamba | AP84: =Names!$T20 -> Prowl | AQ84: =VLOOKUP(AP84,Prices!$A$5:$J$38,10,FALSE) -> 38.25 | AS84: =Names!$U20 -> Prowl | AT84: =VLOOKUP(AS84,Prices!$A$5:$J$38,10,FALSE) -> 38.25 | AV84: =Names!$V20 -> Prowl | AW84: =VLOOKUP(AV84,Prices!$A$5:$J$38,10,FALSE) -> 38.25 | AY84: =Names!$W20 -> Prowl | AZ84: =VLOOKUP(AY84,Prices!$A$5:$J$38,10,FALSE) -> 38.25
C85: Dual II Magnum | D85: =IF(C$68=$AP$68,VLOOKUP(C85,$AP$89:$AQ$97,2,FALSE),IF(C$68=$AS$68,VLOOKUP(C85,$AS$89:$AT$98,2,FALSE),IF(C$68=$AV$68,VLOOKUP(C85,$AV$89:$AW$99,2,FALSE),IF(C$68=$AY$68,VLOOKUP(C85,$AY$89:$AZ$95,2,FALSE))))) -> 109 | E85: =IF(C$68=$AP$68,VLOOKUP(C85,$AP$89:$AR$97,3,FALSE),IF(C$68=$AS$68,VLOOKUP(C85,$AS$89:$AU$98,3,FALSE),IF(C$68=$AV$68,VLOOKUP(C85,$AV$89:$AX$99,3,FALSE),IF(C$68=$AY$68,VLOOKUP(C85,$AY$89:$BA$95,3,FALSE))))) -> 0 | G85: Dual II Magnum | H85: =IF(G$68=$AP$68,VLOOKUP(G85,$AP$89:$AQ$97,2,FALSE),IF(G$68=$AS$68,VLOOKUP(G85,$AS$89:$AT$98,2,FALSE),IF(G$68=$AV$68,VLOOKUP(G85,$AV$89:$AW$99,2,FALSE),IF(G$68=$AY$68,VLOOKUP(G85,$AY$89:$AZ$95,2,FALSE))))) -> 109 | I85: =IF(G$68=$AP$68,VLOOKUP(G85,$AP$89:$AR$97,3,FALSE),IF(G$68=$AS$68,VLOOKUP(G85,$AS$89:$AU$98,3,FALSE),IF(G$68=$AV$68,VLOOKUP(G85,$AV$89:$AX$99,3,FALSE),IF(G$68=$AY$68,VLOOKUP(G85,$AY$89:$BA$95,3,FALSE))))) -> 0 | K85: Dual II Magnum | L85: =IF(K$68=$AP$68,VLOOKUP(K85,$AP$89:$AQ$97,2,FALSE),IF(K$68=$AS$68,VLOOKUP(K85,$AS$89:$AT$98,2,FALSE),IF(K$68=$AV$68,VLOOKUP(K85,$AV$89:$AW$99,2,FALSE),IF(K$68=$AY$68,VLOOKUP(K85,$AY$89:$AZ$95,2,FALSE))))) -> 109 | M85: =IF(K$68=$AP$68,VLOOKUP(K85,$AP$89:$AR$97,3,FALSE),IF(K$68=$AS$68,VLOOKUP(K85,$AS$89:$AU$98,3,FALSE),IF(K$68=$AV$68,VLOOKUP(K85,$AV$89:$AX$99,3,FALSE),IF(K$68=$AY$68,VLOOKUP(K85,$AY$89:$BA$95,3,FALSE))))) -> 0 | O85: Dual II Magnum | P85: =IF(O$68=$AP$68,VLOOKUP(O85,$AP$89:$AQ$97,2,FALSE),IF(O$68=$AS$68,VLOOKUP(O85,$AS$89:$AT$98,2,FALSE),IF(O$68=$AV$68,VLOOKUP(O85,$AV$89:$AW$99,2,FALSE),IF(O$68=$AY$68,VLOOKUP(O85,$AY$89:$AZ$95,2,FALSE))))) -> 109 | Q85: =IF(O$68=$AP$68,VLOOKUP(O85,$AP$89:$AR$97,3,FALSE),IF(O$68=$AS$68,VLOOKUP(O85,$AS$89:$AU$98,3,FALSE),IF(O$68=$AV$68,VLOOKUP(O85,$AV$89:$AX$99,3,FALSE),IF(O$68=$AY$68,VLOOKUP(O85,$AY$89:$BA$95,3,FALSE))))) -> 0 | X85: =IF(X$68=$AP$68,$AP$94,IF(X$68=$AS$68,$AS$94,IF(X$68=$AV$68,$AV$94,IF(X$68=$AY$68,$AY$94,"")))) -> Dual II Magnum | Y85: 0 | Z85: =IF(Z$68=$AP$68,$AP$94,IF(Z$68=$AS$68,$AS$94,IF(Z$68=$AV$68,$AV$94,IF(Z$68=$AY$68,$AY$94,"")))) -> Dual II Magnum | AA85: 0 | AB85: =IF(AB$68=$AP$68,$AP$94,IF(AB$68=$AS$68,$AS$94,IF(AB$68=$AV$68,$AV$94,IF(AB$68=$AY$68,$AY$94,"")))) -> Dual II Magnum | AC85: 0 | AD85: =IF(AD$68=$AP$68,$AP$94,IF(AD$68=$AS$68,$AS$94,IF(AD$68=$AV$68,$AV$94,IF(AD$68=$AY$68,$AY$94,"")))) -> Dual II Magnum | AE85: 0 | AG85: =IF(AG$68=$AP$68,$AP$94,IF(AG$68=$AS$68,$AS$94,IF(AG$68=$AV$68,$AV$94,IF(AG$68=$AY$68,$AY$94,"")))) -> Dual II Magnum | AI85: =IF(AI$68=$AP$68,$AP$94,IF(AI$68=$AS$68,$AS$94,IF(AI$68=$AV$68,$AV$94,IF(AI$68=$AY$68,$AY$94,"")))) -> Dual II Magnum | AK85: =IF(AK$68=$AP$68,$AP$94,IF(AK$68=$AS$68,$AS$94,IF(AK$68=$AV$68,$AV$94,IF(AK$68=$AY$68,$AY$94,"")))) -> Dual II Magnum | AM85: =IF(AM$68=$AP$68,$AP$94,IF(AM$68=$AS$68,$AS$94,IF(AM$68=$AV$68,$AV$94,IF(AM$68=$AY$68,$AY$94,"")))) -> Dual II Magnum | AP85: =Names!$T21 -> Surestart | AQ85: =VLOOKUP(AP85,Prices!$A$5:$J$38,10,FALSE) -> 91.67 | AS85: =Names!$U21 -> Surestart | AT85: =VLOOKUP(AS85,Prices!$A$5:$J$38,10,FALSE) -> 91.67 | AV85: =Names!$V21 -> Surestart | AW85: =VLOOKUP(AV85,Prices!$A$5:$J$38,10,FALSE) -> 91.67 | AY85: =Names!$W21 -> Surestart | AZ85: =VLOOKUP(AY85,Prices!$A$5:$J$38,10,FALSE) -> 91.67
AP86: ="" ->  | AS86: ="" ->  | AV86: ="" ->  | AY86: ="" -> 
AP88: =Names!$O$13 -> CornPostCv | AS88: =Names!$O$14 -> CornPostEn | AV88: =Names!$O$15 -> CornPostRR | AY88: =Names!$O$16 -> CornPostRRLL
AO89: Post | AP89: =Names!$T24 -> 2,4-D | AQ89: =VLOOKUP(AP89,Prices!$A$5:$J$38,10,FALSE) -> 15.4 | AS89: =Names!$U24 -> 2,4-D | AT89: =VLOOKUP(AS89,Prices!$A$5:$J$38,10,FALSE) -> 15.4 | AV89: =Names!$V24 -> 2,4-D | AW89: =VLOOKUP(AV89,Prices!$A$5:$J$38,10,FALSE) -> 15.4 | AY89: =Names!$W24 -> 2,4-D | AZ89: =VLOOKUP(AY89,Prices!$A$5:$J$38,10,FALSE) -> 15.4
AP90: =Names!$T25 -> Acuron | AQ90: =VLOOKUP(AP90,Prices!$A$5:$J$38,10,FALSE) -> 64.5 | AS90: =Names!$U25 -> Acuron | AT90: =VLOOKUP(AS90,Prices!$A$5:$J$38,10,FALSE) -> 64.5 | AV90: =Names!$V25 -> Acuron | AW90: =VLOOKUP(AV90,Prices!$A$5:$J$38,10,FALSE) -> 64.5 | AY90: =Names!$W25 -> Acuron | AZ90: =VLOOKUP(AY90,Prices!$A$5:$J$38,10,FALSE) -> 64.5
AP91: =Names!$T26 -> Atrazine | AQ91: =VLOOKUP(AP91,Prices!$A$5:$J$38,10,FALSE) -> 16.9 | AS91: =Names!$U26 -> Atrazine | AT91: =VLOOKUP(AS91,Prices!$A$5:$J$38,10,FALSE) -> 16.9 | AV91: =Names!$V26 -> Atrazine | AW91: =VLOOKUP(AV91,Prices!$A$5:$J$38,10,FALSE) -> 16.9 | AY91: =Names!$W26 -> Atrazine | AZ91: =VLOOKUP(AY91,Prices!$A$5:$J$38,10,FALSE) -> 16.9
AP92: =Names!$T27 -> Capreno | AQ92: =VLOOKUP(AP92,Prices!$A$5:$J$38,10,FALSE) -> 6.97 | AS92: =Names!$U27 -> Capreno | AT92: =VLOOKUP(AS92,Prices!$A$5:$J$38,10,FALSE) -> 6.97 | AV92: =Names!$V27 -> Capreno | AW92: =VLOOKUP(AV92,Prices!$A$5:$J$38,10,FALSE) -> 6.97 | AY92: =Names!$W27 -> Capreno | AZ92: =VLOOKUP(AY92,Prices!$A$5:$J$38,10,FALSE) -> 6.97
AP93: =Names!$T28 -> Dicamba | AQ93: =VLOOKUP(AP93,Prices!$A$5:$J$38,10,FALSE) -> 76.8 | AS93: =Names!$U28 -> Dicamba | AT93: =VLOOKUP(AS93,Prices!$A$5:$J$38,10,FALSE) -> 76.8 | AV93: =Names!$V28 -> Dicamba | AW93: =VLOOKUP(AV93,Prices!$A$5:$J$38,10,FALSE) -> 76.8 | AY93: =Names!$W28 -> Dicamba | AZ93: =VLOOKUP(AY93,Prices!$A$5:$J$38,10,FALSE) -> 76.8
AP94: =Names!$T29 -> Dual II Magnum | AQ94: =VLOOKUP(AP94,Prices!$A$5:$J$38,10,FALSE) -> 109 | AS94: =Names!$U29 -> Dual II Magnum | AT94: =VLOOKUP(AS94,Prices!$A$5:$J$38,10,FALSE) -> 109 | AV94: =Names!$V29 -> Dual II Magnum | AW94: =VLOOKUP(AV94,Prices!$A$5:$J$38,10,FALSE) -> 109 | AY94: =Names!$W29 -> Dual II Magnum | AZ94: =VLOOKUP(AY94,Prices!$A$5:$J$38,10,FALSE) -> 109
AP95: =Names!$T30 -> Warrant | AQ95: =VLOOKUP(AP95,Prices!$A$5:$J$38,10,FALSE) -> 36.73 | AS95: =Names!$U30 -> Enlist Duo | AT95: =VLOOKUP(AS95,Prices!$A$5:$J$38,10,FALSE) -> 11 | AV95: =Names!$V30 -> Halex GT | AW95: =VLOOKUP(AV95,Prices!$A$5:$J$38,10,FALSE) -> 42 | AY95: =Names!$W30 -> Halex GT | AZ95: =VLOOKUP(AY95,Prices!$A$5:$J$38,10,FALSE) -> 42
AS96: =Names!$U31 -> Halex GT | AT96: =VLOOKUP(AS96,Prices!$A$5:$J$38,10,FALSE) -> 42 | AV96: =Names!$V31 -> Roundup | AW96: =VLOOKUP(AV96,Prices!$A$5:$J$38,10,FALSE) -> 20 | AY96: =Names!$W31 -> Liberty | AZ96: =VLOOKUP(AY96,Prices!$A$5:$J$38,10,FALSE) -> 53.9
AS97: =Names!$U32 -> Liberty | AT97: =VLOOKUP(AS97,Prices!$A$5:$J$38,10,FALSE) -> 53.9 | AV97: =Names!$V32 -> Warrant | AW97: =VLOOKUP(AV97,Prices!$A$5:$J$38,10,FALSE) -> 36.73 | AY97: =Names!$W32 -> Roundup | AZ97: =VLOOKUP(AY97,Prices!$A$5:$J$38,10,FALSE) -> 20
AS98: =Names!$U33 -> Roundup | AT98: =VLOOKUP(AS98,Prices!$A$5:$J$38,10,FALSE) -> 20 | AY98: =Names!$W33 -> Warrant | AZ98: =VLOOKUP(AY98,Prices!$A$5:$J$38,10,FALSE) -> 36.73
AS99: =Names!$U34 -> Warrant | AT99: =VLOOKUP(AS99,Prices!$A$5:$J$38,10,FALSE) -> 36.73
G118: 7 | J118: 10 | K118: 11 | N118: 14
B119: Soybean | C119: LibertyLink | G119: Roundup Ready | K119: Enlist | O119: LibertyLink | W119: Soybean | X119: LibertyLink | Y119: =IF(C119=X119,0,1) -> 0 | Z119: Roundup Ready | AA119: =IF(G119=Z119,0,1) -> 0 | AB119: Enlist | AC119: =IF(K119=AB119,0,1) -> 0 | AD119: LibertyLink | AE119: =IF(O119=AD119,0,1) -> 0 | AF119: Soybean | AG119: =IF(C119=0,"",C119) -> LibertyLink | AI119: =IF(G119=0,"",G119) -> Roundup Ready | AK119: =IF(K119=0,"",K119) -> Enlist | AM119: =IF(O119=0,"",O119) -> LibertyLink
B120: Timing | C120: Crop Trait Options | D120: Price ($/ac) | E120: Efficacy | G120: Crop Trait Options | H120: Price ($/ac) | I120: Efficacy | K120: Crop Trait Options | L120: Price ($/ac) | M120: Efficacy | O120: Crop Trait Options | P120: Price ($/ac) | Q120: Efficacy | W120: Timing | X120: Crop Trait Options | Z120: Crop Trait Options | AB120: Crop Trait Options | AD120: Crop Trait Options | AF120: Timing | AG120: Crop Trait Options | AI120: Crop Trait Options | AK120: Crop Trait Options | AM120: Crop Trait Options
B121: Burndown | C121: 2,4-D | D121: =IF(C$119=$AP$121,VLOOKUP(C121,$AP$123:$AQ$128,2,FALSE),IF(C$119=$AS$121,VLOOKUP(C121,$AS$123:$AT$128,2,FALSE),IF(C$119=$AV$121,VLOOKUP(C121,$AV$123:$AW$128,2,FALSE),IF(C$119=$AY$121,VLOOKUP(C121,$AY$123:$AZ$128,2,FALSE),IF(C$119=$BB$121,VLOOKUP(C121,$BB$123:$BC$128,2,FALSE)))))) -> 15.4 | E121: =IF(C$119=$AP$121,VLOOKUP(C121,$AP$123:$AR$128,3,FALSE),IF(C$119=$AS$121,VLOOKUP(C121,$AS$123:$AU$128,3,FALSE),IF(C$119=$AV$121,VLOOKUP(C121,$AV$123:$AX$128,3,FALSE),IF(C$119=$AY$121,VLOOKUP(C121,$AY$123:$BA$128,3,FALSE),IF(C$119=$BB$121,VLOOKUP(C121,$BB$123:$BD$128,2,FALSE)))))) -> 0 | G121: 2,4-D | H121: =IF(G$119=$AP$121,VLOOKUP(G121,$AP$123:$AQ$128,2,FALSE),IF(G$119=$AS$121,VLOOKUP(G121,$AS$123:$AT$128,2,FALSE),IF(G$119=$AV$121,VLOOKUP(G121,$AV$123:$AW$128,2,FALSE),IF(G$119=$AY$121,VLOOKUP(G121,$AY$123:$AZ$128,2,FALSE),IF(G$119=$BB$121,VLOOKUP(G121,$BB$123:$BC$128,2,FALSE)))))) -> 15.4 | I121: =IF(G$119=$AP$121,VLOOKUP(G121,$AP$123:$AR$128,3,FALSE),IF(G$119=$AS$121,VLOOKUP(G121,$AS$123:$AU$128,3,FALSE),IF(G$119=$AV$121,VLOOKUP(G121,$AV$123:$AX$128,3,FALSE),IF(G$119=$AY$121,VLOOKUP(G121,$AY$123:$BA$128,3,FALSE),IF(G$119=$BB$121,VLOOKUP(G121,$BB$123:$BD$128,2,FALSE)))))) -> 0 | K121: 2,4-D | L121: =IF(K$119=$AP$121,VLOOKUP(K121,$AP$123:$AQ$128,2,FALSE),IF(K$119=$AS$121,VLOOKUP(K121,$AS$123:$AT$128,2,FALSE),IF(K$119=$AV$121,VLOOKUP(K121,$AV$123:$AW$128,2,FALSE),IF(K$119=$AY$121,VLOOKUP(K121,$AY$123:$AZ$128,2,FALSE),IF(K$119=$BB$121,VLOOKUP(K121,$BB$123:$BC$128,2,FALSE)))))) -> 15.4 | M121: =IF(K$119=$AP$121,VLOOKUP(K121,$AP$123:$AR$128,3,FALSE),IF(K$119=$AS$121,VLOOKUP(K121,$AS$123:$AU$128,3,FALSE),IF(K$119=$AV$121,VLOOKUP(K121,$AV$123:$AX$128,3,FALSE),IF(K$119=$AY$121,VLOOKUP(K121,$AY$123:$BA$128,3,FALSE),IF(K$119=$BB$121,VLOOKUP(K121,$BB$123:$BD$128,2,FALSE)))))) -> 0 | O121: 2,4-D | P121: =IF(O$119=$AP$121,VLOOKUP(O121,$AP$123:$AQ$128,2,FALSE),IF(O$119=$AS$121,VLOOKUP(O121,$AS$123:$AT$128,2,FALSE),IF(O$119=$AV$121,VLOOKUP(O121,$AV$123:$AW$128,2,FALSE),IF(O$119=$AY$121,VLOOKUP(O121,$AY$123:$AZ$128,2,FALSE),IF(O$119=$BB$121,VLOOKUP(O121,$BB$123:$BC$128,2,FALSE)))))) -> 15.4 | Q121: =IF(O$119=$AP$121,VLOOKUP(O121,$AP$123:$AR$128,3,FALSE),IF(O$119=$AS$121,VLOOKUP(O121,$AS$123:$AU$128,3,FALSE),IF(O$119=$AV$121,VLOOKUP(O121,$AV$123:$AX$128,3,FALSE),IF(O$119=$AY$121,VLOOKUP(O121,$AY$123:$BA$128,3,FALSE),IF(O$119=$BB$121,VLOOKUP(O121,$BB$123:$BD$128,2,FALSE)))))) -> 0 | W121: Burndown | X121: =IF(X$119=$AP$121,$AP$123,IF(X$119=$AS$121,$AS$123,IF(X$119=$AV$121,$AV$123,IF(X$119=$AY$121,$AY$123,IF(X$119=$BB$121,$BB$123,""))))) -> 2,4-D | Y121: =IF(C121=X121,0,1) -> 0 | Z121: =IF(Z$119=$AP$121,$AP$123,IF(Z$119=$AS$121,$AS$123,IF(Z$119=$AV$121,$AV$123,IF(Z$119=$AY$121,$AY$123,IF(Z$119=$BB$121,$BB$123,""))))) -> 2,4-D | AA121: =IF(G121=Z121,0,1) -> 0 | AB121: =IF(AB$119=$AP$121,$AP$123,IF(AB$119=$AS$121,$AS$123,IF(AB$119=$AV$121,$AV$123,IF(AB$119=$AY$121,$AY$123,IF(AB$119=$BB$121,$BB$123,""))))) -> 2,4-D | AC121: =IF(K121=AB121,0,1) -> 0 | AD121: =IF(AD$119=$AP$121,$AP$123,IF(AD$119=$AS$121,$AS$123,IF(AD$119=$AV$121,$AV$123,IF(AD$119=$AY$121,$AY$123,IF(AD$119=$BB$121,$BB$123,""))))) -> 2,4-D | AE121: =IF(O121=AD121,0,1) -> 0 | AF121: Burndown | AG121: =IF($AG$119=$AP$121,AP123,IF($AG$119=$AS$121,AS123,IF($AG$119=$AV$121,AV123,IF($AG$119=$AY$121,AY123,IF($AG$119=$BB$121,BB123,""))))) -> 2,4-D | AI121: =IF($AI$119=$AP$121,AP123,IF($AI$119=$AS$121,AS123,IF($AI$119=$AV$121,AV123,IF($AI$119=$AY$121,AY123,IF($AI$119=$BB$121,BB123,""))))) -> 2,4-D | AK121: =IF($AK$119=$AP$121,AP123,IF($AK$119=$AS$121,AS123,IF($AK$119=$AV$121,AV123,IF($AK$119=$AY$121,AY123,IF($AK$119=$BB$121,BB123,""))))) -> 2,4-D | AM121: =IF($AM$119=$AP$121,AP123,IF($AM$119=$AS$121,AS123,IF($AM$119=$AV$121,AV123,IF($AM$119=$AY$121,AY123,IF($AM$119=$BB$121,BB123,""))))) -> 2,4-D | AO121: =B119 -> Soybean | AP121: =Names!J19 -> Conventional | AS121: =Names!J20 -> Enlist | AV121: =Names!J21 -> LibertyLink | AY121: =Names!J22 -> Roundup Ready | BB121: =Names!J23 -> Xtend
C122: Dicamba | D122: =IF(C$119=$AP$121,VLOOKUP(C122,$AP$123:$AQ$128,2,FALSE),IF(C$119=$AS$121,VLOOKUP(C122,$AS$123:$AT$128,2,FALSE),IF(C$119=$AV$121,VLOOKUP(C122,$AV$123:$AW$128,2,FALSE),IF(C$119=$AY$121,VLOOKUP(C122,$AY$123:$AZ$128,2,FALSE),IF(C$119=$BB$121,VLOOKUP(C122,$BB$123:$BC$128,2,FALSE)))))) -> 76.8 | E122: =IF(C$119=$AP$121,VLOOKUP(C122,$AP$123:$AR$128,3,FALSE),IF(C$119=$AS$121,VLOOKUP(C122,$AS$123:$AU$128,3,FALSE),IF(C$119=$AV$121,VLOOKUP(C122,$AV$123:$AX$128,3,FALSE),IF(C$119=$AY$121,VLOOKUP(C122,$AY$123:$BA$128,3,FALSE),IF(C$119=$BB$121,VLOOKUP(C122,$BB$123:$BD$128,2,FALSE)))))) -> 0 | G122: Dicamba | H122: =IF(G$119=$AP$121,VLOOKUP(G122,$AP$123:$AQ$128,2,FALSE),IF(G$119=$AS$121,VLOOKUP(G122,$AS$123:$AT$128,2,FALSE),IF(G$119=$AV$121,VLOOKUP(G122,$AV$123:$AW$128,2,FALSE),IF(G$119=$AY$121,VLOOKUP(G122,$AY$123:$AZ$128,2,FALSE),IF(G$119=$BB$121,VLOOKUP(G122,$BB$123:$BC$128,2,FALSE)))))) -> 76.8 | I122: =IF(G$119=$AP$121,VLOOKUP(G122,$AP$123:$AR$128,3,FALSE),IF(G$119=$AS$121,VLOOKUP(G122,$AS$123:$AU$128,3,FALSE),IF(G$119=$AV$121,VLOOKUP(G122,$AV$123:$AX$128,3,FALSE),IF(G$119=$AY$121,VLOOKUP(G122,$AY$123:$BA$128,3,FALSE),IF(G$119=$BB$121,VLOOKUP(G122,$BB$123:$BD$128,2,FALSE)))))) -> 0 | K122: Dicamba | L122: =IF(K$119=$AP$121,VLOOKUP(K122,$AP$123:$AQ$128,2,FALSE),IF(K$119=$AS$121,VLOOKUP(K122,$AS$123:$AT$128,2,FALSE),IF(K$119=$AV$121,VLOOKUP(K122,$AV$123:$AW$128,2,FALSE),IF(K$119=$AY$121,VLOOKUP(K122,$AY$123:$AZ$128,2,FALSE),IF(K$119=$BB$121,VLOOKUP(K122,$BB$123:$BC$128,2,FALSE)))))) -> 76.8 | M122: =IF(K$119=$AP$121,VLOOKUP(K122,$AP$123:$AR$128,3,FALSE),IF(K$119=$AS$121,VLOOKUP(K122,$AS$123:$AU$128,3,FALSE),IF(K$119=$AV$121,VLOOKUP(K122,$AV$123:$AX$128,3,FALSE),IF(K$119=$AY$121,VLOOKUP(K122,$AY$123:$BA$128,3,FALSE),IF(K$119=$BB$121,VLOOKUP(K122,$BB$123:$BD$128,2,FALSE)))))) -> 0 | O122: Dicamba | P122: =IF(O$119=$AP$121,VLOOKUP(O122,$AP$123:$AQ$128,2,FALSE),IF(O$119=$AS$121,VLOOKUP(O122,$AS$123:$AT$128,2,FALSE),IF(O$119=$AV$121,VLOOKUP(O122,$AV$123:$AW$128,2,FALSE),IF(O$119=$AY$121,VLOOKUP(O122,$AY$123:$AZ$128,2,FALSE),IF(O$119=$BB$121,VLOOKUP(O122,$BB$123:$BC$128,2,FALSE)))))) -> 76.8 | Q122: =IF(O$119=$AP$121,VLOOKUP(O122,$AP$123:$AR$128,3,FALSE),IF(O$119=$AS$121,VLOOKUP(O122,$AS$123:$AU$128,3,FALSE),IF(O$119=$AV$121,VLOOKUP(O122,$AV$123:$AX$128,3,FALSE),IF(O$119=$AY$121,VLOOKUP(O122,$AY$123:$BA$128,3,FALSE),IF(O$119=$BB$121,VLOOKUP(O122,$BB$123:$BD$128,2,FALSE)))))) -> 0 | X122: =IF(X$119=$AP$121,$AP$124,IF(X$119=$AS$121,$AS$124,IF(X$119=$AV$121,$AV$124,IF(X$119=$AY$121,$AY$124,IF(X$119=$BB$121,$BB$124,""))))) -> Dicamba | Y122: 0 | Z122: =IF(Z$119=$AP$121,$AP$124,IF(Z$119=$AS$121,$AS$124,IF(Z$119=$AV$121,$AV$124,IF(Z$119=$AY$121,$AY$124,IF(Z$119=$BB$121,$BB$124,""))))) -> Dicamba | AA122: 0 | AB122: =IF(AB$119=$AP$121,$AP$124,IF(AB$119=$AS$121,$AS$124,IF(AB$119=$AV$121,$AV$124,IF(AB$119=$AY$121,$AY$124,IF(AB$119=$BB$121,$BB$124,""))))) -> Dicamba | AC122: 0 | AD122: =IF(AD$119=$AP$121,$AP$124,IF(AD$119=$AS$121,$AS$124,IF(AD$119=$AV$121,$AV$124,IF(AD$119=$AY$121,$AY$124,IF(AD$119=$BB$121,$BB$124,""))))) -> Dicamba | AE122: 0 | AG122: =IF($AG$119=$AP$121,AP124,IF($AG$119=$AS$121,AS124,IF($AG$119=$AV$121,AV124,IF($AG$119=$AY$121,AY124,IF($AG$119=$BB$121,BB124,""))))) -> Dicamba | AI122: =IF($AI$119=$AP$121,AP124,IF($AI$119=$AS$121,AS124,IF($AI$119=$AV$121,AV124,IF($AI$119=$AY$121,AY124,IF($AI$119=$BB$121,BB124,""))))) -> Dicamba | AK122: =IF($AK$119=$AP$121,AP124,IF($AK$119=$AS$121,AS124,IF($AK$119=$AV$121,AV124,IF($AK$119=$AY$121,AY124,IF($AK$119=$BB$121,BB124,""))))) -> Dicamba | AM122: =IF($AM$119=$AP$121,AP124,IF($AM$119=$AS$121,AS124,IF($AM$119=$AV$121,AV124,IF($AM$119=$AY$121,AY124,IF($AM$119=$BB$121,BB124,""))))) -> Dicamba | AO122: Timing | AP122: =Names!$M$19 -> SoyBDCv | AQ122: Cost | AS122: =Names!$M$20 -> SoyBDEn | AT122: Cost | AV122: =Names!$M$21 -> SoyBDLL | AW122: Cost | AY122: =Names!$M$22 -> SoyBDRR | AZ122: Cost | BB122: =Names!$M$23 -> SoyBDXt | BC122: Cost
C123: Gramoxone | D123: =IF(C$119=$AP$121,VLOOKUP(C123,$AP$123:$AQ$128,2,FALSE),IF(C$119=$AS$121,VLOOKUP(C123,$AS$123:$AT$128,2,FALSE),IF(C$119=$AV$121,VLOOKUP(C123,$AV$123:$AW$128,2,FALSE),IF(C$119=$AY$121,VLOOKUP(C123,$AY$123:$AZ$128,2,FALSE),IF(C$119=$BB$121,VLOOKUP(C123,$BB$123:$BC$128,2,FALSE)))))) -> 33 | E123: =IF(C$119=$AP$121,VLOOKUP(C123,$AP$123:$AR$128,3,FALSE),IF(C$119=$AS$121,VLOOKUP(C123,$AS$123:$AU$128,3,FALSE),IF(C$119=$AV$121,VLOOKUP(C123,$AV$123:$AX$128,3,FALSE),IF(C$119=$AY$121,VLOOKUP(C123,$AY$123:$BA$128,3,FALSE),IF(C$119=$BB$121,VLOOKUP(C123,$BB$123:$BD$128,2,FALSE)))))) -> 0 | G123: Gramoxone | H123: =IF(G$119=$AP$121,VLOOKUP(G123,$AP$123:$AQ$128,2,FALSE),IF(G$119=$AS$121,VLOOKUP(G123,$AS$123:$AT$128,2,FALSE),IF(G$119=$AV$121,VLOOKUP(G123,$AV$123:$AW$128,2,FALSE),IF(G$119=$AY$121,VLOOKUP(G123,$AY$123:$AZ$128,2,FALSE),IF(G$119=$BB$121,VLOOKUP(G123,$BB$123:$BC$128,2,FALSE)))))) -> 33 | I123: =IF(G$119=$AP$121,VLOOKUP(G123,$AP$123:$AR$128,3,FALSE),IF(G$119=$AS$121,VLOOKUP(G123,$AS$123:$AU$128,3,FALSE),IF(G$119=$AV$121,VLOOKUP(G123,$AV$123:$AX$128,3,FALSE),IF(G$119=$AY$121,VLOOKUP(G123,$AY$123:$BA$128,3,FALSE),IF(G$119=$BB$121,VLOOKUP(G123,$BB$123:$BD$128,2,FALSE)))))) -> 0 | K123: Gramoxone | L123: =IF(K$119=$AP$121,VLOOKUP(K123,$AP$123:$AQ$128,2,FALSE),IF(K$119=$AS$121,VLOOKUP(K123,$AS$123:$AT$128,2,FALSE),IF(K$119=$AV$121,VLOOKUP(K123,$AV$123:$AW$128,2,FALSE),IF(K$119=$AY$121,VLOOKUP(K123,$AY$123:$AZ$128,2,FALSE),IF(K$119=$BB$121,VLOOKUP(K123,$BB$123:$BC$128,2,FALSE)))))) -> 33 | M123: =IF(K$119=$AP$121,VLOOKUP(K123,$AP$123:$AR$128,3,FALSE),IF(K$119=$AS$121,VLOOKUP(K123,$AS$123:$AU$128,3,FALSE),IF(K$119=$AV$121,VLOOKUP(K123,$AV$123:$AX$128,3,FALSE),IF(K$119=$AY$121,VLOOKUP(K123,$AY$123:$BA$128,3,FALSE),IF(K$119=$BB$121,VLOOKUP(K123,$BB$123:$BD$128,2,FALSE)))))) -> 0 | O123: Gramoxone | P123: =IF(O$119=$AP$121,VLOOKUP(O123,$AP$123:$AQ$128,2,FALSE),IF(O$119=$AS$121,VLOOKUP(O123,$AS$123:$AT$128,2,FALSE),IF(O$119=$AV$121,VLOOKUP(O123,$AV$123:$AW$128,2,FALSE),IF(O$119=$AY$121,VLOOKUP(O123,$AY$123:$AZ$128,2,FALSE),IF(O$119=$BB$121,VLOOKUP(O123,$BB$123:$BC$128,2,FALSE)))))) -> 33 | Q123: =IF(O$119=$AP$121,VLOOKUP(O123,$AP$123:$AR$128,3,FALSE),IF(O$119=$AS$121,VLOOKUP(O123,$AS$123:$AU$128,3,FALSE),IF(O$119=$AV$121,VLOOKUP(O123,$AV$123:$AX$128,3,FALSE),IF(O$119=$AY$121,VLOOKUP(O123,$AY$123:$BA$128,3,FALSE),IF(O$119=$BB$121,VLOOKUP(O123,$BB$123:$BD$128,2,FALSE)))))) -> 0 | X123: =IF(X$119=$AP$121,$AP$125,IF(X$119=$AS$121,$AS$125,IF(X$119=$AV$121,$AV$125,IF(X$119=$AY$121,$AY$125,IF(X$119=$BB$121,$BB$125,""))))) -> Gramoxone | Y123: 0 | Z123: =IF(Z$119=$AP$121,$AP$125,IF(Z$119=$AS$121,$AS$125,IF(Z$119=$AV$121,$AV$125,IF(Z$119=$AY$121,$AY$125,IF(Z$119=$BB$121,$BB$125,""))))) -> Gramoxone | AA123: 0 | AB123: =IF(AB$119=$AP$121,$AP$125,IF(AB$119=$AS$121,$AS$125,IF(AB$119=$AV$121,$AV$125,IF(AB$119=$AY$121,$AY$125,IF(AB$119=$BB$121,$BB$125,""))))) -> Gramoxone | AC123: 0 | AD123: =IF(AD$119=$AP$121,$AP$125,IF(AD$119=$AS$121,$AS$125,IF(AD$119=$AV$121,$AV$125,IF(AD$119=$AY$121,$AY$125,IF(AD$119=$BB$121,$BB$125,""))))) -> Gramoxone | AE123: 0 | AG123: =IF($AG$119=$AP$121,AP125,IF($AG$119=$AS$121,AS125,IF($AG$119=$AV$121,AV125,IF($AG$119=$AY$121,AY125,IF($AG$119=$BB$121,BB125,""))))) -> Gramoxone | AI123: =IF($AI$119=$AP$121,AP125,IF($AI$119=$AS$121,AS125,IF($AI$119=$AV$121,AV125,IF($AI$119=$AY$121,AY125,IF($AI$119=$BB$121,BB125,""))))) -> Gramoxone | AK123: =IF($AK$119=$AP$121,AP125,IF($AK$119=$AS$121,AS125,IF($AK$119=$AV$121,AV125,IF($AK$119=$AY$121,AY125,IF($AK$119=$BB$121,BB125,""))))) -> Gramoxone | AM123: =IF($AM$119=$AP$121,AP125,IF($AM$119=$AS$121,AS125,IF($AM$119=$AV$121,AV125,IF($AM$119=$AY$121,AY125,IF($AM$119=$BB$121,BB125,""))))) -> Gramoxone | AO123: BD | AP123: =Names!$AH6 -> 2,4-D | AQ123: =VLOOKUP(AP123,Prices!$A$5:$J$38,10,FALSE) -> 15.4 | AS123: =Names!$AI6 -> 2,4-D | AT123: =VLOOKUP(AS123,Prices!$A$5:$J$38,10,FALSE) -> 15.4 | AV123: =Names!$AJ6 -> 2,4-D | AW123: =VLOOKUP(AV123,Prices!$A$5:$J$38,10,FALSE) -> 15.4 | AY123: =Names!$AK6 -> 2,4-D | AZ123: =VLOOKUP(AY123,Prices!$A$5:$J$38,10,FALSE) -> 15.4 | BB123: =Names!$AL6 -> 2,4-D | BC123: =VLOOKUP(BB123,Prices!$A$5:$J$38,10,FALSE) -> 15.4
C124: LibertyLink | D124: =IF(C$119=$AP$121,VLOOKUP(C124,$AP$123:$AQ$128,2,FALSE),IF(C$119=$AS$121,VLOOKUP(C124,$AS$123:$AT$128,2,FALSE),IF(C$119=$AV$121,VLOOKUP(C124,$AV$123:$AW$128,2,FALSE),IF(C$119=$AY$121,VLOOKUP(C124,$AY$123:$AZ$128,2,FALSE),IF(C$119=$BB$121,VLOOKUP(C124,$BB$123:$BC$128,2,FALSE)))))) ->  | E124: =IF(C$119=$AP$121,VLOOKUP(C124,$AP$123:$AR$128,3,FALSE),IF(C$119=$AS$121,VLOOKUP(C124,$AS$123:$AU$128,3,FALSE),IF(C$119=$AV$121,VLOOKUP(C124,$AV$123:$AX$128,3,FALSE),IF(C$119=$AY$121,VLOOKUP(C124,$AY$123:$BA$128,3,FALSE),IF(C$119=$BB$121,VLOOKUP(C124,$BB$123:$BD$128,2,FALSE)))))) ->  | G124: LibertyLink | H124: =IF(G$119=$AP$121,VLOOKUP(G124,$AP$123:$AQ$128,2,FALSE),IF(G$119=$AS$121,VLOOKUP(G124,$AS$123:$AT$128,2,FALSE),IF(G$119=$AV$121,VLOOKUP(G124,$AV$123:$AW$128,2,FALSE),IF(G$119=$AY$121,VLOOKUP(G124,$AY$123:$AZ$128,2,FALSE),IF(G$119=$BB$121,VLOOKUP(G124,$BB$123:$BC$128,2,FALSE)))))) ->  | I124: =IF(G$119=$AP$121,VLOOKUP(G124,$AP$123:$AR$128,3,FALSE),IF(G$119=$AS$121,VLOOKUP(G124,$AS$123:$AU$128,3,FALSE),IF(G$119=$AV$121,VLOOKUP(G124,$AV$123:$AX$128,3,FALSE),IF(G$119=$AY$121,VLOOKUP(G124,$AY$123:$BA$128,3,FALSE),IF(G$119=$BB$121,VLOOKUP(G124,$BB$123:$BD$128,2,FALSE)))))) ->  | K124: LibertyLink | L124: =IF(K$119=$AP$121,VLOOKUP(K124,$AP$123:$AQ$128,2,FALSE),IF(K$119=$AS$121,VLOOKUP(K124,$AS$123:$AT$128,2,FALSE),IF(K$119=$AV$121,VLOOKUP(K124,$AV$123:$AW$128,2,FALSE),IF(K$119=$AY$121,VLOOKUP(K124,$AY$123:$AZ$128,2,FALSE),IF(K$119=$BB$121,VLOOKUP(K124,$BB$123:$BC$128,2,FALSE)))))) ->  | M124: =IF(K$119=$AP$121,VLOOKUP(K124,$AP$123:$AR$128,3,FALSE),IF(K$119=$AS$121,VLOOKUP(K124,$AS$123:$AU$128,3,FALSE),IF(K$119=$AV$121,VLOOKUP(K124,$AV$123:$AX$128,3,FALSE),IF(K$119=$AY$121,VLOOKUP(K124,$AY$123:$BA$128,3,FALSE),IF(K$119=$BB$121,VLOOKUP(K124,$BB$123:$BD$128,2,FALSE)))))) ->  | O124: LibertyLink | P124: =IF(O$119=$AP$121,VLOOKUP(O124,$AP$123:$AQ$128,2,FALSE),IF(O$119=$AS$121,VLOOKUP(O124,$AS$123:$AT$128,2,FALSE),IF(O$119=$AV$121,VLOOKUP(O124,$AV$123:$AW$128,2,FALSE),IF(O$119=$AY$121,VLOOKUP(O124,$AY$123:$AZ$128,2,FALSE),IF(O$119=$BB$121,VLOOKUP(O124,$BB$123:$BC$128,2,FALSE)))))) ->  | Q124: =IF(O$119=$AP$121,VLOOKUP(O124,$AP$123:$AR$128,3,FALSE),IF(O$119=$AS$121,VLOOKUP(O124,$AS$123:$AU$128,3,FALSE),IF(O$119=$AV$121,VLOOKUP(O124,$AV$123:$AX$128,3,FALSE),IF(O$119=$AY$121,VLOOKUP(O124,$AY$123:$BA$128,3,FALSE),IF(O$119=$BB$121,VLOOKUP(O124,$BB$123:$BD$128,2,FALSE)))))) ->  | X124: =IF(X$119=$AP$121,$AP$126,IF(X$119=$AS$121,$AS$126,IF(X$119=$AV$121,$AV$126,IF(X$119=$AY$121,$AY$126,IF(X$119=$BB$121,$BB$126,""))))) -> Liberty | Y124: 1 | Z124: =IF(Z$119=$AP$121,$AP$126,IF(Z$119=$AS$121,$AS$126,IF(Z$119=$AV$121,$AV$126,IF(Z$119=$AY$121,$AY$126,IF(Z$119=$BB$121,$BB$126,""))))) -> Liberty | AA124: 1 | AB124: =IF(AB$119=$AP$121,$AP$126,IF(AB$119=$AS$121,$AS$126,IF(AB$119=$AV$121,$AV$126,IF(AB$119=$AY$121,$AY$126,IF(AB$119=$BB$121,$BB$126,""))))) -> Liberty | AC124: 1 | AD124: =IF(AD$119=$AP$121,$AP$126,IF(AD$119=$AS$121,$AS$126,IF(AD$119=$AV$121,$AV$126,IF(AD$119=$AY$121,$AY$126,IF(AD$119=$BB$121,$BB$126,""))))) -> Liberty | AE124: 1 | AG124: =IF($AG$119=$AP$121,AP126,IF($AG$119=$AS$121,AS126,IF($AG$119=$AV$121,AV126,IF($AG$119=$AY$121,AY126,IF($AG$119=$BB$121,BB126,""))))) -> Liberty | AI124: =IF($AI$119=$AP$121,AP126,IF($AI$119=$AS$121,AS126,IF($AI$119=$AV$121,AV126,IF($AI$119=$AY$121,AY126,IF($AI$119=$BB$121,BB126,""))))) -> Liberty | AK124: =IF($AK$119=$AP$121,AP126,IF($AK$119=$AS$121,AS126,IF($AK$119=$AV$121,AV126,IF($AK$119=$AY$121,AY126,IF($AK$119=$BB$121,BB126,""))))) -> Liberty | AM124: =IF($AM$119=$AP$121,AP126,IF($AM$119=$AS$121,AS126,IF($AM$119=$AV$121,AV126,IF($AM$119=$AY$121,AY126,IF($AM$119=$BB$121,BB126,""))))) -> Liberty | AP124: =Names!$AH7 -> Dicamba | AQ124: =VLOOKUP(AP124,Prices!$A$5:$J$38,10,FALSE) -> 76.8 | AS124: =Names!$AI7 -> Dicamba | AT124: =VLOOKUP(AS124,Prices!$A$5:$J$38,10,FALSE) -> 76.8 | AV124: =Names!$AJ7 -> Dicamba | AW124: =VLOOKUP(AV124,Prices!$A$5:$J$38,10,FALSE) -> 76.8 | AY124: =Names!$AK7 -> Dicamba | AZ124: =VLOOKUP(AY124,Prices!$A$5:$J$38,10,FALSE) -> 76.8 | BB124: =Names!$AL7 -> Dicamba | BC124: =VLOOKUP(BB124,Prices!$A$5:$J$38,10,FALSE) -> 76.8
AP125: =Names!$AH8 -> Gramoxone | AQ125: =VLOOKUP(AP125,Prices!$A$5:$J$38,10,FALSE) -> 33 | AS125: =Names!$AI8 -> Gramoxone | AT125: =VLOOKUP(AS125,Prices!$A$5:$J$38,10,FALSE) -> 33 | AV125: =Names!$AJ8 -> Gramoxone | AW125: =VLOOKUP(AV125,Prices!$A$5:$J$38,10,FALSE) -> 33 | AY125: =Names!$AK8 -> Gramoxone | AZ125: =VLOOKUP(AY125,Prices!$A$5:$J$38,10,FALSE) -> 33 | BB125: =Names!$AL8 -> Gramoxone | BC125: =VLOOKUP(BB125,Prices!$A$5:$J$38,10,FALSE) -> 33
B126: Pre emergence | C126: Authority MTZ | D126: =IF(C$119=$AP$121,VLOOKUP(C126,$AP$131:$AQ$137,2,FALSE),IF(C$119=$AS$121,VLOOKUP(C126,$AS$131:$AT$137,2,FALSE),IF(C$119=$AV$121,VLOOKUP(C126,$AV$131:$AW$137,2,FALSE),IF(C$119=$AY$121,VLOOKUP(C126,$AY$131:$AZ$139,2,FALSE),IF(C$119=$BB$121,VLOOKUP(C126,$BB$131:$BC$137,2,FALSE)))))) -> 23.3745 | E126: =IF(C$119=$AP$121,VLOOKUP(C126,$AP$131:$AR$137,3,FALSE),IF(C$119=$AS$121,VLOOKUP(C126,$AS$131:$AU$137,3,FALSE),IF(C$119=$AV$121,VLOOKUP(C126,$AV$131:$AX$137,3,FALSE),IF(C$119=$AY$121,VLOOKUP(C126,$AY$131:$BA$139,3,FALSE),IF(C$119=$BB$121,VLOOKUP(C126,$BB$131:$BD$137,2,FALSE)))))) -> 0 | G126: Authority MTZ | H126: =IF(G$119=$AP$121,VLOOKUP(G126,$AP$131:$AQ$137,2,FALSE),IF(G$119=$AS$121,VLOOKUP(G126,$AS$131:$AT$137,2,FALSE),IF(G$119=$AV$121,VLOOKUP(G126,$AV$131:$AW$137,2,FALSE),IF(G$119=$AY$121,VLOOKUP(G126,$AY$131:$AZ$139,2,FALSE),IF(G$119=$BB$121,VLOOKUP(G126,$BB$131:$BC$137,2,FALSE)))))) -> 23.3745 | I126: =IF(G$119=$AP$121,VLOOKUP(G126,$AP$131:$AR$137,3,FALSE),IF(G$119=$AS$121,VLOOKUP(G126,$AS$131:$AU$137,3,FALSE),IF(G$119=$AV$121,VLOOKUP(G126,$AV$131:$AX$137,3,FALSE),IF(G$119=$AY$121,VLOOKUP(G126,$AY$131:$BA$139,3,FALSE),IF(G$119=$BB$121,VLOOKUP(G126,$BB$131:$BD$137,2,FALSE)))))) -> 0 | K126: Authority MTZ | L126: =IF(K$119=$AP$121,VLOOKUP(K126,$AP$131:$AQ$137,2,FALSE),IF(K$119=$AS$121,VLOOKUP(K126,$AS$131:$AT$137,2,FALSE),IF(K$119=$AV$121,VLOOKUP(K126,$AV$131:$AW$137,2,FALSE),IF(K$119=$AY$121,VLOOKUP(K126,$AY$131:$AZ$139,2,FALSE),IF(K$119=$BB$121,VLOOKUP(K126,$BB$131:$BC$137,2,FALSE)))))) -> 23.3745 | M126: =IF(K$119=$AP$121,VLOOKUP(K126,$AP$131:$AR$137,3,FALSE),IF(K$119=$AS$121,VLOOKUP(K126,$AS$131:$AU$137,3,FALSE),IF(K$119=$AV$121,VLOOKUP(K126,$AV$131:$AX$137,3,FALSE),IF(K$119=$AY$121,VLOOKUP(K126,$AY$131:$BA$139,3,FALSE),IF(K$119=$BB$121,VLOOKUP(K126,$BB$131:$BD$137,2,FALSE)))))) -> 0 | O126: Authority MTZ | P126: =IF(O$119=$AP$121,VLOOKUP(O126,$AP$131:$AQ$137,2,FALSE),IF(O$119=$AS$121,VLOOKUP(O126,$AS$131:$AT$137,2,FALSE),IF(O$119=$AV$121,VLOOKUP(O126,$AV$131:$AW$137,2,FALSE),IF(O$119=$AY$121,VLOOKUP(O126,$AY$131:$AZ$139,2,FALSE),IF(O$119=$BB$121,VLOOKUP(O126,$BB$131:$BC$137,2,FALSE)))))) -> 23.3745 | Q126: =IF(O$119=$AP$121,VLOOKUP(O126,$AP$131:$AR$137,3,FALSE),IF(O$119=$AS$121,VLOOKUP(O126,$AS$131:$AU$137,3,FALSE),IF(O$119=$AV$121,VLOOKUP(O126,$AV$131:$AX$137,3,FALSE),IF(O$119=$AY$121,VLOOKUP(O126,$AY$131:$BA$139,3,FALSE),IF(O$119=$BB$121,VLOOKUP(O126,$BB$131:$BD$137,2,FALSE)))))) -> 0 | W126: Pre emergence | X126: =IF(X$119=$AP$121,$AP$131,IF(X$119=$AS$121,$AS$131,IF(X$119=$AV$121,$AV$131,IF(X$119=$AY$121,$AY$131,IF(X$119=$BB$121,$BB$131,""))))) -> Authority MTZ | Y126: =IF(C126=X126,0,1) -> 0 | Z126: =IF(Z$119=$AP$121,$AP$131,IF(Z$119=$AS$121,$AS$131,IF(Z$119=$AV$121,$AV$131,IF(Z$119=$AY$121,$AY$131,IF(Z$119=$BB$121,$BB$131,""))))) -> Authority MTZ | AA126: =IF(G126=Z126,0,1) -> 0 | AB126: =IF(AB$119=$AP$121,$AP$131,IF(AB$119=$AS$121,$AS$131,IF(AB$119=$AV$121,$AV$131,IF(AB$119=$AY$121,$AY$131,IF(AB$119=$BB$121,$BB$131,""))))) -> Authority MTZ | AC126: =IF(K126=AB126,0,1) -> 0 | AD126: =IF(AD$119=$AP$121,$AP$131,IF(AD$119=$AS$121,$AS$131,IF(AD$119=$AV$121,$AV$131,IF(AD$119=$AY$121,$AY$131,IF(AD$119=$BB$121,$BB$131,""))))) -> Authority MTZ | AE126: =IF(O126=AD126,0,1) -> 0 | AF126: Pre emergence | AG126: =IF($AG$119=$AP$121,AP131,IF($AG$119=$AS$121,AS131,IF($AG$119=$AV$121,AV131,IF($AG$119=$AY$121,AY131,IF($AG$119=$BB$121,BB131,""))))) -> Authority MTZ | AI126: =IF($AI$119=$AP$121,AP131,IF($AI$119=$AS$121,AS131,IF($AI$119=$AV$121,AV131,IF($AI$119=$AY$121,AY131,IF($AI$119=$BB$121,BB131,""))))) -> Authority MTZ | AK126: =IF($AK$119=$AP$121,AP131,IF($AK$119=$AS$121,AS131,IF($AK$119=$AV$121,AV131,IF($AK$119=$AY$121,AY131,IF($AK$119=$BB$121,BB131,""))))) -> Authority MTZ | AM126: =IF($AM$119=$AP$121,AP131,IF($AM$119=$AS$121,AS131,IF($AM$119=$AV$121,AV131,IF($AM$119=$AY$121,AY131,IF($AM$119=$BB$121,BB131,""))))) -> Authority MTZ | AP126: =Names!$AH9 -> Liberty | AQ126: =VLOOKUP(AP126,Prices!$A$5:$J$38,10,FALSE) -> 53.9 | AS126: =Names!$AI9 -> Liberty | AT126: =VLOOKUP(AS126,Prices!$A$5:$J$38,10,FALSE) -> 53.9 | AV126: =Names!$AJ9 -> Liberty | AW126: =VLOOKUP(AV126,Prices!$A$5:$J$38,10,FALSE) -> 53.9 | AY126: =Names!$AK9 -> Liberty | AZ126: =VLOOKUP(AY126,Prices!$A$5:$J$38,10,FALSE) -> 53.9 | BB126: =Names!$AL9 -> Liberty | BC126: =VLOOKUP(BB126,Prices!$A$5:$J$38,10,FALSE) -> 53.9
C127: Boundary | D127: =IF(C$119=$AP$121,VLOOKUP(C127,$AP$131:$AQ$137,2,FALSE),IF(C$119=$AS$121,VLOOKUP(C127,$AS$131:$AT$137,2,FALSE),IF(C$119=$AV$121,VLOOKUP(C127,$AV$131:$AW$137,2,FALSE),IF(C$119=$AY$121,VLOOKUP(C127,$AY$131:$AZ$139,2,FALSE),IF(C$119=$BB$121,VLOOKUP(C127,$BB$131:$BC$137,2,FALSE)))))) -> 76 | E127: =IF(C$119=$AP$121,VLOOKUP(C127,$AP$131:$AR$137,3,FALSE),IF(C$119=$AS$121,VLOOKUP(C127,$AS$131:$AU$137,3,FALSE),IF(C$119=$AV$121,VLOOKUP(C127,$AV$131:$AX$137,3,FALSE),IF(C$119=$AY$121,VLOOKUP(C127,$AY$131:$BA$139,3,FALSE),IF(C$119=$BB$121,VLOOKUP(C127,$BB$131:$BD$137,2,FALSE)))))) -> 0 | G127: Boundary | H127: =IF(G$119=$AP$121,VLOOKUP(G127,$AP$131:$AQ$137,2,FALSE),IF(G$119=$AS$121,VLOOKUP(G127,$AS$131:$AT$137,2,FALSE),IF(G$119=$AV$121,VLOOKUP(G127,$AV$131:$AW$137,2,FALSE),IF(G$119=$AY$121,VLOOKUP(G127,$AY$131:$AZ$139,2,FALSE),IF(G$119=$BB$121,VLOOKUP(G127,$BB$131:$BC$137,2,FALSE)))))) -> 76 | I127: =IF(G$119=$AP$121,VLOOKUP(G127,$AP$131:$AR$137,3,FALSE),IF(G$119=$AS$121,VLOOKUP(G127,$AS$131:$AU$137,3,FALSE),IF(G$119=$AV$121,VLOOKUP(G127,$AV$131:$AX$137,3,FALSE),IF(G$119=$AY$121,VLOOKUP(G127,$AY$131:$BA$139,3,FALSE),IF(G$119=$BB$121,VLOOKUP(G127,$BB$131:$BD$137,2,FALSE)))))) -> 0 | K127: Boundary | L127: =IF(K$119=$AP$121,VLOOKUP(K127,$AP$131:$AQ$137,2,FALSE),IF(K$119=$AS$121,VLOOKUP(K127,$AS$131:$AT$137,2,FALSE),IF(K$119=$AV$121,VLOOKUP(K127,$AV$131:$AW$137,2,FALSE),IF(K$119=$AY$121,VLOOKUP(K127,$AY$131:$AZ$139,2,FALSE),IF(K$119=$BB$121,VLOOKUP(K127,$BB$131:$BC$137,2,FALSE)))))) -> 76 | M127: =IF(K$119=$AP$121,VLOOKUP(K127,$AP$131:$AR$137,3,FALSE),IF(K$119=$AS$121,VLOOKUP(K127,$AS$131:$AU$137,3,FALSE),IF(K$119=$AV$121,VLOOKUP(K127,$AV$131:$AX$137,3,FALSE),IF(K$119=$AY$121,VLOOKUP(K127,$AY$131:$BA$139,3,FALSE),IF(K$119=$BB$121,VLOOKUP(K127,$BB$131:$BD$137,2,FALSE)))))) -> 0 | O127: Boundary | P127: =IF(O$119=$AP$121,VLOOKUP(O127,$AP$131:$AQ$137,2,FALSE),IF(O$119=$AS$121,VLOOKUP(O127,$AS$131:$AT$137,2,FALSE),IF(O$119=$AV$121,VLOOKUP(O127,$AV$131:$AW$137,2,FALSE),IF(O$119=$AY$121,VLOOKUP(O127,$AY$131:$AZ$139,2,FALSE),IF(O$119=$BB$121,VLOOKUP(O127,$BB$131:$BC$137,2,FALSE)))))) -> 76 | Q127: =IF(O$119=$AP$121,VLOOKUP(O127,$AP$131:$AR$137,3,FALSE),IF(O$119=$AS$121,VLOOKUP(O127,$AS$131:$AU$137,3,FALSE),IF(O$119=$AV$121,VLOOKUP(O127,$AV$131:$AX$137,3,FALSE),IF(O$119=$AY$121,VLOOKUP(O127,$AY$131:$BA$139,3,FALSE),IF(O$119=$BB$121,VLOOKUP(O127,$BB$131:$BD$137,2,FALSE)))))) -> 0 | X127: =IF(X$119=$AP$121,$AP$132,IF(X$119=$AS$121,$AS$132,IF(X$119=$AV$121,$AV$132,IF(X$119=$AY$121,$AY$132,IF(X$119=$BB$121,$BB$132,""))))) -> Boundary | Y127: 0 | Z127: =IF(Z$119=$AP$121,$AP$132,IF(Z$119=$AS$121,$AS$132,IF(Z$119=$AV$121,$AV$132,IF(Z$119=$AY$121,$AY$132,IF(Z$119=$BB$121,$BB$132,""))))) -> Boundary | AA127: 0 | AB127: =IF(AB$119=$AP$121,$AP$132,IF(AB$119=$AS$121,$AS$132,IF(AB$119=$AV$121,$AV$132,IF(AB$119=$AY$121,$AY$132,IF(AB$119=$BB$121,$BB$132,""))))) -> Boundary | AC127: 0 | AD127: =IF(AD$119=$AP$121,$AP$132,IF(AD$119=$AS$121,$AS$132,IF(AD$119=$AV$121,$AV$132,IF(AD$119=$AY$121,$AY$132,IF(AD$119=$BB$121,$BB$132,""))))) -> Boundary | AE127: 0 | AG127: =IF($AG$119=$AP$121,AP132,IF($AG$119=$AS$121,AS132,IF($AG$119=$AV$121,AV132,IF($AG$119=$AY$121,AY132,IF($AG$119=$BB$121,BB132,""))))) -> Boundary | AI127: =IF($AI$119=$AP$121,AP132,IF($AI$119=$AS$121,AS132,IF($AI$119=$AV$121,AV132,IF($AI$119=$AY$121,AY132,IF($AI$119=$BB$121,BB132,""))))) -> Boundary | AK127: =IF($AK$119=$AP$121,AP132,IF($AK$119=$AS$121,AS132,IF($AK$119=$AV$121,AV132,IF($AK$119=$AY$121,AY132,IF($AK$119=$BB$121,BB132,""))))) -> Boundary | AM127: =IF($AM$119=$AP$121,AP132,IF($AM$119=$AS$121,AS132,IF($AM$119=$AV$121,AV132,IF($AM$119=$AY$121,AY132,IF($AM$119=$BB$121,BB132,""))))) -> Boundary | AP127: =Names!$AH10 -> Roundup | AQ127: =VLOOKUP(AP127,Prices!$A$5:$J$38,10,FALSE) -> 20 | AS127: =Names!$AI10 -> Roundup | AT127: =VLOOKUP(AS127,Prices!$A$5:$J$38,10,FALSE) -> 20 | AV127: =Names!$AJ10 -> Roundup | AW127: =VLOOKUP(AV127,Prices!$A$5:$J$38,10,FALSE) -> 20 | AY127: =Names!$AK10 -> Roundup | AZ127: =VLOOKUP(AY127,Prices!$A$5:$J$38,10,FALSE) -> 20 | BB127: =Names!$AL10 -> Roundup | BC127: =VLOOKUP(BB127,Prices!$A$5:$J$38,10,FALSE) -> 20
C128: Dual Magnum | D128: =IF(C$119=$AP$121,VLOOKUP(C128,$AP$131:$AQ$137,2,FALSE),IF(C$119=$AS$121,VLOOKUP(C128,$AS$131:$AT$137,2,FALSE),IF(C$119=$AV$121,VLOOKUP(C128,$AV$131:$AW$137,2,FALSE),IF(C$119=$AY$121,VLOOKUP(C128,$AY$131:$AZ$139,2,FALSE),IF(C$119=$BB$121,VLOOKUP(C128,$BB$131:$BC$137,2,FALSE)))))) -> 109 | E128: =IF(C$119=$AP$121,VLOOKUP(C128,$AP$131:$AR$137,3,FALSE),IF(C$119=$AS$121,VLOOKUP(C128,$AS$131:$AU$137,3,FALSE),IF(C$119=$AV$121,VLOOKUP(C128,$AV$131:$AX$137,3,FALSE),IF(C$119=$AY$121,VLOOKUP(C128,$AY$131:$BA$139,3,FALSE),IF(C$119=$BB$121,VLOOKUP(C128,$BB$131:$BD$137,2,FALSE)))))) -> 0 | G128: Dual Magnum | H128: =IF(G$119=$AP$121,VLOOKUP(G128,$AP$131:$AQ$137,2,FALSE),IF(G$119=$AS$121,VLOOKUP(G128,$AS$131:$AT$137,2,FALSE),IF(G$119=$AV$121,VLOOKUP(G128,$AV$131:$AW$137,2,FALSE),IF(G$119=$AY$121,VLOOKUP(G128,$AY$131:$AZ$139,2,FALSE),IF(G$119=$BB$121,VLOOKUP(G128,$BB$131:$BC$137,2,FALSE)))))) -> 109 | I128: =IF(G$119=$AP$121,VLOOKUP(G128,$AP$131:$AR$137,3,FALSE),IF(G$119=$AS$121,VLOOKUP(G128,$AS$131:$AU$137,3,FALSE),IF(G$119=$AV$121,VLOOKUP(G128,$AV$131:$AX$137,3,FALSE),IF(G$119=$AY$121,VLOOKUP(G128,$AY$131:$BA$139,3,FALSE),IF(G$119=$BB$121,VLOOKUP(G128,$BB$131:$BD$137,2,FALSE)))))) -> 0 | K128: Dual Magnum | L128: =IF(K$119=$AP$121,VLOOKUP(K128,$AP$131:$AQ$137,2,FALSE),IF(K$119=$AS$121,VLOOKUP(K128,$AS$131:$AT$137,2,FALSE),IF(K$119=$AV$121,VLOOKUP(K128,$AV$131:$AW$137,2,FALSE),IF(K$119=$AY$121,VLOOKUP(K128,$AY$131:$AZ$139,2,FALSE),IF(K$119=$BB$121,VLOOKUP(K128,$BB$131:$BC$137,2,FALSE)))))) -> 109 | M128: =IF(K$119=$AP$121,VLOOKUP(K128,$AP$131:$AR$137,3,FALSE),IF(K$119=$AS$121,VLOOKUP(K128,$AS$131:$AU$137,3,FALSE),IF(K$119=$AV$121,VLOOKUP(K128,$AV$131:$AX$137,3,FALSE),IF(K$119=$AY$121,VLOOKUP(K128,$AY$131:$BA$139,3,FALSE),IF(K$119=$BB$121,VLOOKUP(K128,$BB$131:$BD$137,2,FALSE)))))) -> 0 | O128: Dual Magnum | P128: =IF(O$119=$AP$121,VLOOKUP(O128,$AP$131:$AQ$137,2,FALSE),IF(O$119=$AS$121,VLOOKUP(O128,$AS$131:$AT$137,2,FALSE),IF(O$119=$AV$121,VLOOKUP(O128,$AV$131:$AW$137,2,FALSE),IF(O$119=$AY$121,VLOOKUP(O128,$AY$131:$AZ$139,2,FALSE),IF(O$119=$BB$121,VLOOKUP(O128,$BB$131:$BC$137,2,FALSE)))))) -> 109 | Q128: =IF(O$119=$AP$121,VLOOKUP(O128,$AP$131:$AR$137,3,FALSE),IF(O$119=$AS$121,VLOOKUP(O128,$AS$131:$AU$137,3,FALSE),IF(O$119=$AV$121,VLOOKUP(O128,$AV$131:$AX$137,3,FALSE),IF(O$119=$AY$121,VLOOKUP(O128,$AY$131:$BA$139,3,FALSE),IF(O$119=$BB$121,VLOOKUP(O128,$BB$131:$BD$137,2,FALSE)))))) -> 0 | X128: =IF(X$119=$AP$121,$AP$133,IF(X$119=$AS$121,$AS$133,IF(X$119=$AV$121,$AV$133,IF(X$119=$AY$121,$AY$133,IF(X$119=$BB$121,$BB$133,""))))) -> Dual Magnum | Y128: =IF(C128=X128,0,1) -> 0 | Z128: =IF(Z$119=$AP$121,$AP$133,IF(Z$119=$AS$121,$AS$133,IF(Z$119=$AV$121,$AV$133,IF(Z$119=$AY$121,$AY$133,IF(Z$119=$BB$121,$BB$133,""))))) -> Dual Magnum | AA128: 0 | AB128: =IF(AB$119=$AP$121,$AP$133,IF(AB$119=$AS$121,$AS$133,IF(AB$119=$AV$121,$AV$133,IF(AB$119=$AY$121,$AY$133,IF(AB$119=$BB$121,$BB$133,""))))) -> Dual Magnum | AC128: 0 | AD128: =IF(AD$119=$AP$121,$AP$133,IF(AD$119=$AS$121,$AS$133,IF(AD$119=$AV$121,$AV$133,IF(AD$119=$AY$121,$AY$133,IF(AD$119=$BB$121,$BB$133,""))))) -> Dual Magnum | AE128: 0 | AG128: =IF($AG$119=$AP$121,AP133,IF($AG$119=$AS$121,AS133,IF($AG$119=$AV$121,AV133,IF($AG$119=$AY$121,AY133,IF($AG$119=$BB$121,BB133,""))))) -> Dual Magnum | AI128: =IF($AI$119=$AP$121,AP133,IF($AI$119=$AS$121,AS133,IF($AI$119=$AV$121,AV133,IF($AI$119=$AY$121,AY133,IF($AI$119=$BB$121,BB133,""))))) -> Dual Magnum | AK128: =IF($AK$119=$AP$121,AP133,IF($AK$119=$AS$121,AS133,IF($AK$119=$AV$121,AV133,IF($AK$119=$AY$121,AY133,IF($AK$119=$BB$121,BB133,""))))) -> Dual Magnum | AM128: =IF($AM$119=$AP$121,AP133,IF($AM$119=$AS$121,AS133,IF($AM$119=$AV$121,AV133,IF($AM$119=$AY$121,AY133,IF($AM$119=$BB$121,BB133,""))))) -> Dual Magnum | AP128: =Names!$AH11 -> Valor | AQ128: =VLOOKUP(AP128,Prices!$A$5:$J$38,10,FALSE) -> 4.38 | AS128: =Names!$AI11 -> Valor | AT128: =VLOOKUP(AS128,Prices!$A$5:$J$38,10,FALSE) -> 4.38 | AV128: =Names!$AJ11 -> Valor | AW128: =VLOOKUP(AV128,Prices!$A$5:$J$38,10,FALSE) -> 4.38 | AY128: =Names!$AK11 -> Valor | AZ128: =VLOOKUP(AY128,Prices!$A$5:$J$38,10,FALSE) -> 4.38 | BB128: =Names!$AL11 -> Valor | BC128: =VLOOKUP(BB128,Prices!$A$5:$J$38,10,FALSE) -> 4.38
C129: Fierce | D129: =IF(C$119=$AP$121,VLOOKUP(C129,$AP$131:$AQ$137,2,FALSE),IF(C$119=$AS$121,VLOOKUP(C129,$AS$131:$AT$137,2,FALSE),IF(C$119=$AV$121,VLOOKUP(C129,$AV$131:$AW$137,2,FALSE),IF(C$119=$AY$121,VLOOKUP(C129,$AY$131:$AZ$139,2,FALSE),IF(C$119=$BB$121,VLOOKUP(C129,$BB$131:$BC$137,2,FALSE)))))) -> 105.03 | E129: =IF(C$119=$AP$121,VLOOKUP(C129,$AP$131:$AR$137,3,FALSE),IF(C$119=$AS$121,VLOOKUP(C129,$AS$131:$AU$137,3,FALSE),IF(C$119=$AV$121,VLOOKUP(C129,$AV$131:$AX$137,3,FALSE),IF(C$119=$AY$121,VLOOKUP(C129,$AY$131:$BA$139,3,FALSE),IF(C$119=$BB$121,VLOOKUP(C129,$BB$131:$BD$137,2,FALSE)))))) -> 0 | G129: Fierce | H129: =IF(G$119=$AP$121,VLOOKUP(G129,$AP$131:$AQ$137,2,FALSE),IF(G$119=$AS$121,VLOOKUP(G129,$AS$131:$AT$137,2,FALSE),IF(G$119=$AV$121,VLOOKUP(G129,$AV$131:$AW$137,2,FALSE),IF(G$119=$AY$121,VLOOKUP(G129,$AY$131:$AZ$139,2,FALSE),IF(G$119=$BB$121,VLOOKUP(G129,$BB$131:$BC$137,2,FALSE)))))) -> 105.03 | I129: =IF(G$119=$AP$121,VLOOKUP(G129,$AP$131:$AR$137,3,FALSE),IF(G$119=$AS$121,VLOOKUP(G129,$AS$131:$AU$137,3,FALSE),IF(G$119=$AV$121,VLOOKUP(G129,$AV$131:$AX$137,3,FALSE),IF(G$119=$AY$121,VLOOKUP(G129,$AY$131:$BA$139,3,FALSE),IF(G$119=$BB$121,VLOOKUP(G129,$BB$131:$BD$137,2,FALSE)))))) -> 0 | K129: Fierce | L129: =IF(K$119=$AP$121,VLOOKUP(K129,$AP$131:$AQ$137,2,FALSE),IF(K$119=$AS$121,VLOOKUP(K129,$AS$131:$AT$137,2,FALSE),IF(K$119=$AV$121,VLOOKUP(K129,$AV$131:$AW$137,2,FALSE),IF(K$119=$AY$121,VLOOKUP(K129,$AY$131:$AZ$139,2,FALSE),IF(K$119=$BB$121,VLOOKUP(K129,$BB$131:$BC$137,2,FALSE)))))) -> 105.03 | M129: =IF(K$119=$AP$121,VLOOKUP(K129,$AP$131:$AR$137,3,FALSE),IF(K$119=$AS$121,VLOOKUP(K129,$AS$131:$AU$137,3,FALSE),IF(K$119=$AV$121,VLOOKUP(K129,$AV$131:$AX$137,3,FALSE),IF(K$119=$AY$121,VLOOKUP(K129,$AY$131:$BA$139,3,FALSE),IF(K$119=$BB$121,VLOOKUP(K129,$BB$131:$BD$137,2,FALSE)))))) -> 0 | O129: Fierce | P129: =IF(O$119=$AP$121,VLOOKUP(O129,$AP$131:$AQ$137,2,FALSE),IF(O$119=$AS$121,VLOOKUP(O129,$AS$131:$AT$137,2,FALSE),IF(O$119=$AV$121,VLOOKUP(O129,$AV$131:$AW$137,2,FALSE),IF(O$119=$AY$121,VLOOKUP(O129,$AY$131:$AZ$139,2,FALSE),IF(O$119=$BB$121,VLOOKUP(O129,$BB$131:$BC$137,2,FALSE)))))) -> 105.03 | Q129: =IF(O$119=$AP$121,VLOOKUP(O129,$AP$131:$AR$137,3,FALSE),IF(O$119=$AS$121,VLOOKUP(O129,$AS$131:$AU$137,3,FALSE),IF(O$119=$AV$121,VLOOKUP(O129,$AV$131:$AX$137,3,FALSE),IF(O$119=$AY$121,VLOOKUP(O129,$AY$131:$BA$139,3,FALSE),IF(O$119=$BB$121,VLOOKUP(O129,$BB$131:$BD$137,2,FALSE)))))) -> 0 | X129: =IF(X$119=$AP$121,$AP$134,IF(X$119=$AS$121,$AS$134,IF(X$119=$AV$121,$AV$134,IF(X$119=$AY$121,$AY$134,IF(X$119=$BB$121,$BB$134,""))))) -> Fierce | Y129: 0 | Z129: =IF(Z$119=$AP$121,$AP$134,IF(Z$119=$AS$121,$AS$134,IF(Z$119=$AV$121,$AV$134,IF(Z$119=$AY$121,$AY$134,IF(Z$119=$BB$121,$BB$134,""))))) -> Fierce | AA129: 0 | AB129: =IF(AB$119=$AP$121,$AP$134,IF(AB$119=$AS$121,$AS$134,IF(AB$119=$AV$121,$AV$134,IF(AB$119=$AY$121,$AY$134,IF(AB$119=$BB$121,$BB$134,""))))) -> Fierce | AC129: 0 | AD129: =IF(AD$119=$AP$121,$AP$134,IF(AD$119=$AS$121,$AS$134,IF(AD$119=$AV$121,$AV$134,IF(AD$119=$AY$121,$AY$134,IF(AD$119=$BB$121,$BB$134,""))))) -> Fierce | AE129: 0 | AG129: =IF($AG$119=$AP$121,AP134,IF($AG$119=$AS$121,AS134,IF($AG$119=$AV$121,AV134,IF($AG$119=$AY$121,AY134,IF($AG$119=$BB$121,BB134,""))))) -> Fierce | AI129: =IF($AI$119=$AP$121,AP134,IF($AI$119=$AS$121,AS134,IF($AI$119=$AV$121,AV134,IF($AI$119=$AY$121,AY134,IF($AI$119=$BB$121,BB134,""))))) -> Fierce | AK129: =IF($AK$119=$AP$121,AP134,IF($AK$119=$AS$121,AS134,IF($AK$119=$AV$121,AV134,IF($AK$119=$AY$121,AY134,IF($AK$119=$BB$121,BB134,""))))) -> Fierce | AM129: =IF($AM$119=$AP$121,AP134,IF($AM$119=$AS$121,AS134,IF($AM$119=$AV$121,AV134,IF($AM$119=$AY$121,AY134,IF($AM$119=$BB$121,BB134,""))))) -> Fierce
C130: Gramoxone | D130: =IF(C$119=$AP$121,VLOOKUP(C130,$AP$131:$AQ$137,2,FALSE),IF(C$119=$AS$121,VLOOKUP(C130,$AS$131:$AT$137,2,FALSE),IF(C$119=$AV$121,VLOOKUP(C130,$AV$131:$AW$137,2,FALSE),IF(C$119=$AY$121,VLOOKUP(C130,$AY$131:$AZ$139,2,FALSE),IF(C$119=$BB$121,VLOOKUP(C130,$BB$131:$BC$137,2,FALSE)))))) -> 33 | E130: =IF(C$119=$AP$121,VLOOKUP(C130,$AP$131:$AR$137,3,FALSE),IF(C$119=$AS$121,VLOOKUP(C130,$AS$131:$AU$137,3,FALSE),IF(C$119=$AV$121,VLOOKUP(C130,$AV$131:$AX$137,3,FALSE),IF(C$119=$AY$121,VLOOKUP(C130,$AY$131:$BA$139,3,FALSE),IF(C$119=$BB$121,VLOOKUP(C130,$BB$131:$BD$137,2,FALSE)))))) -> 0 | G130: Gramoxone | H130: =IF(G$119=$AP$121,VLOOKUP(G130,$AP$131:$AQ$137,2,FALSE),IF(G$119=$AS$121,VLOOKUP(G130,$AS$131:$AT$137,2,FALSE),IF(G$119=$AV$121,VLOOKUP(G130,$AV$131:$AW$137,2,FALSE),IF(G$119=$AY$121,VLOOKUP(G130,$AY$131:$AZ$139,2,FALSE),IF(G$119=$BB$121,VLOOKUP(G130,$BB$131:$BC$137,2,FALSE)))))) -> 33 | I130: =IF(G$119=$AP$121,VLOOKUP(G130,$AP$131:$AR$137,3,FALSE),IF(G$119=$AS$121,VLOOKUP(G130,$AS$131:$AU$137,3,FALSE),IF(G$119=$AV$121,VLOOKUP(G130,$AV$131:$AX$137,3,FALSE),IF(G$119=$AY$121,VLOOKUP(G130,$AY$131:$BA$139,3,FALSE),IF(G$119=$BB$121,VLOOKUP(G130,$BB$131:$BD$137,2,FALSE)))))) -> 0 | K130: Gramoxone | L130: =IF(K$119=$AP$121,VLOOKUP(K130,$AP$131:$AQ$137,2,FALSE),IF(K$119=$AS$121,VLOOKUP(K130,$AS$131:$AT$137,2,FALSE),IF(K$119=$AV$121,VLOOKUP(K130,$AV$131:$AW$137,2,FALSE),IF(K$119=$AY$121,VLOOKUP(K130,$AY$131:$AZ$139,2,FALSE),IF(K$119=$BB$121,VLOOKUP(K130,$BB$131:$BC$137,2,FALSE)))))) -> 33 | M130: =IF(K$119=$AP$121,VLOOKUP(K130,$AP$131:$AR$137,3,FALSE),IF(K$119=$AS$121,VLOOKUP(K130,$AS$131:$AU$137,3,FALSE),IF(K$119=$AV$121,VLOOKUP(K130,$AV$131:$AX$137,3,FALSE),IF(K$119=$AY$121,VLOOKUP(K130,$AY$131:$BA$139,3,FALSE),IF(K$119=$BB$121,VLOOKUP(K130,$BB$131:$BD$137,2,FALSE)))))) -> 0 | O130: Gramoxone | P130: =IF(O$119=$AP$121,VLOOKUP(O130,$AP$131:$AQ$137,2,FALSE),IF(O$119=$AS$121,VLOOKUP(O130,$AS$131:$AT$137,2,FALSE),IF(O$119=$AV$121,VLOOKUP(O130,$AV$131:$AW$137,2,FALSE),IF(O$119=$AY$121,VLOOKUP(O130,$AY$131:$AZ$139,2,FALSE),IF(O$119=$BB$121,VLOOKUP(O130,$BB$131:$BC$137,2,FALSE)))))) -> 33 | Q130: =IF(O$119=$AP$121,VLOOKUP(O130,$AP$131:$AR$137,3,FALSE),IF(O$119=$AS$121,VLOOKUP(O130,$AS$131:$AU$137,3,FALSE),IF(O$119=$AV$121,VLOOKUP(O130,$AV$131:$AX$137,3,FALSE),IF(O$119=$AY$121,VLOOKUP(O130,$AY$131:$BA$139,3,FALSE),IF(O$119=$BB$121,VLOOKUP(O130,$BB$131:$BD$137,2,FALSE)))))) -> 0 | X130: =IF(X$119=$AP$121,$AP$135,IF(X$119=$AS$121,$AS$135,IF(X$119=$AV$121,$AV$135,IF(X$119=$AY$121,$AY$135,IF(X$119=$BB$121,$BB$135,""))))) -> Gramoxone | Y130: 0 | Z130: =IF(Z$119=$AP$121,$AP$135,IF(Z$119=$AS$121,$AS$135,IF(Z$119=$AV$121,$AV$135,IF(Z$119=$AY$121,$AY$135,IF(Z$119=$BB$121,$BB$135,""))))) -> Gramoxone | AA130: 0 | AB130: =IF(AB$119=$AP$121,$AP$135,IF(AB$119=$AS$121,$AS$135,IF(AB$119=$AV$121,$AV$135,IF(AB$119=$AY$121,$AY$135,IF(AB$119=$BB$121,$BB$135,""))))) -> Gramoxone | AC130: 0 | AD130: =IF(AD$119=$AP$121,$AP$135,IF(AD$119=$AS$121,$AS$135,IF(AD$119=$AV$121,$AV$135,IF(AD$119=$AY$121,$AY$135,IF(AD$119=$BB$121,$BB$135,""))))) -> Gramoxone | AE130: 0 | AG130: =IF($AG$119=$AP$121,AP135,IF($AG$119=$AS$121,AS135,IF($AG$119=$AV$121,AV135,IF($AG$119=$AY$121,AY135,IF($AG$119=$BB$121,BB135,""))))) -> Gramoxone | AI130: =IF($AI$119=$AP$121,AP135,IF($AI$119=$AS$121,AS135,IF($AI$119=$AV$121,AV135,IF($AI$119=$AY$121,AY135,IF($AI$119=$BB$121,BB135,""))))) -> Gramoxone | AK130: =IF($AK$119=$AP$121,AP135,IF($AK$119=$AS$121,AS135,IF($AK$119=$AV$121,AV135,IF($AK$119=$AY$121,AY135,IF($AK$119=$BB$121,BB135,""))))) -> Gramoxone | AM130: =IF($AM$119=$AP$121,AP135,IF($AM$119=$AS$121,AS135,IF($AM$119=$AV$121,AV135,IF($AM$119=$AY$121,AY135,IF($AM$119=$BB$121,BB135,""))))) -> Gramoxone | AP130: =Names!$N$19 -> SoyPreCv | AS130: =Names!$N$20 -> SoyPreEn | AV130: =Names!$N$21 -> SoyPreLL | AY130: =Names!$N$22 -> SoyPreRR | BB130: =Names!$N$23 -> SoyPreXt
AO131: Pre | AP131: =Names!$AH14 -> Authority MTZ | AQ131: =VLOOKUP(AP131,Prices!$A$5:$J$38,10,FALSE) -> 23.3745 | AS131: =Names!$AI14 -> Authority MTZ | AT131: =VLOOKUP(AS131,Prices!$A$5:$J$38,10,FALSE) -> 23.3745 | AV131: =Names!$AJ14 -> Authority MTZ | AW131: =VLOOKUP(AV131,Prices!$A$5:$J$38,10,FALSE) -> 23.3745 | AY131: =Names!$AK14 -> Authority MTZ | AZ131: =VLOOKUP(AY131,Prices!$A$5:$J$38,10,FALSE) -> 23.3745 | BB131: =Names!$AL14 -> Authority MTZ | BC131: =VLOOKUP(BB131,Prices!$A$5:$J$38,10,FALSE) -> 23.3745
B132: Post emergence | C132: LibertyLink | D132: =IF(C$119=$AP$121,VLOOKUP(C132,$AP$142:$AQ$145,2,FALSE),IF(C$119=$AS$121,VLOOKUP(C132,$AS$142:$AT$145,2,FALSE),IF(C$119=$AV$121,VLOOKUP(C132,$AV$142:$AW$147,2,FALSE),IF(C$119=$AY$121,VLOOKUP(C132,$AY$142:$AZ$146,2,FALSE),IF(C$119=$BB$121,VLOOKUP(C132,$BB$142:$BC$144,2,FALSE)))))) ->  | E132: =IF(C$119=$AP$121,VLOOKUP(C132,$AP$142:$AR$145,3,FALSE),IF(C$119=$AS$121,VLOOKUP(C132,$AS$142:$AU$145,3,FALSE),IF(C$119=$AV$121,VLOOKUP(C132,$AV$142:$AX$147,3,FALSE),IF(C$119=$AY$121,VLOOKUP(C132,$AY$142:$BA$146,3,FALSE),IF(C$119=$BB$121,VLOOKUP(C132,$BB$142:$BD$144,2,FALSE)))))) ->  | G132: Prefix | H132: =IF(G$119=$AP$121,VLOOKUP(G132,$AP$142:$AQ$145,2,FALSE),IF(G$119=$AS$121,VLOOKUP(G132,$AS$142:$AT$145,2,FALSE),IF(G$119=$AV$121,VLOOKUP(G132,$AV$142:$AW$147,2,FALSE),IF(G$119=$AY$121,VLOOKUP(G132,$AY$142:$AZ$146,2,FALSE),IF(G$119=$BB$121,VLOOKUP(G132,$BB$142:$BC$144,2,FALSE)))))) -> 48.5 | I132: =IF(G$119=$AP$121,VLOOKUP(G132,$AP$142:$AR$145,3,FALSE),IF(G$119=$AS$121,VLOOKUP(G132,$AS$142:$AU$145,3,FALSE),IF(G$119=$AV$121,VLOOKUP(G132,$AV$142:$AX$147,3,FALSE),IF(G$119=$AY$121,VLOOKUP(G132,$AY$142:$BA$146,3,FALSE),IF(G$119=$BB$121,VLOOKUP(G132,$BB$142:$BD$144,2,FALSE)))))) -> 0 | K132: Enlist Duo | L132: =IF(K$119=$AP$121,VLOOKUP(K132,$AP$142:$AQ$145,2,FALSE),IF(K$119=$AS$121,VLOOKUP(K132,$AS$142:$AT$145,2,FALSE),IF(K$119=$AV$121,VLOOKUP(K132,$AV$142:$AW$147,2,FALSE),IF(K$119=$AY$121,VLOOKUP(K132,$AY$142:$AZ$146,2,FALSE),IF(K$119=$BB$121,VLOOKUP(K132,$BB$142:$BC$144,2,FALSE)))))) -> 11 | M132: =IF(K$119=$AP$121,VLOOKUP(K132,$AP$142:$AR$145,3,FALSE),IF(K$119=$AS$121,VLOOKUP(K132,$AS$142:$AU$145,3,FALSE),IF(K$119=$AV$121,VLOOKUP(K132,$AV$142:$AX$147,3,FALSE),IF(K$119=$AY$121,VLOOKUP(K132,$AY$142:$BA$146,3,FALSE),IF(K$119=$BB$121,VLOOKUP(K132,$BB$142:$BD$144,2,FALSE)))))) -> 0 | O132: LibertyLink | P132: =IF(O$119=$AP$121,VLOOKUP(O132,$AP$142:$AQ$145,2,FALSE),IF(O$119=$AS$121,VLOOKUP(O132,$AS$142:$AT$145,2,FALSE),IF(O$119=$AV$121,VLOOKUP(O132,$AV$142:$AW$147,2,FALSE),IF(O$119=$AY$121,VLOOKUP(O132,$AY$142:$AZ$146,2,FALSE),IF(O$119=$BB$121,VLOOKUP(O132,$BB$142:$BC$144,2,FALSE)))))) ->  | Q132: =IF(O$119=$AP$121,VLOOKUP(O132,$AP$142:$AR$145,3,FALSE),IF(O$119=$AS$121,VLOOKUP(O132,$AS$142:$AU$145,3,FALSE),IF(O$119=$AV$121,VLOOKUP(O132,$AV$142:$AX$147,3,FALSE),IF(O$119=$AY$121,VLOOKUP(O132,$AY$142:$BA$146,3,FALSE),IF(O$119=$BB$121,VLOOKUP(O132,$BB$142:$BD$144,2,FALSE)))))) ->  | W132: Post emergence | X132: =IF(X$119=$AP$121,$AP$142,IF(X$119=$AS$121,$AS$142,IF(X$119=$AV$121,$AV$142,IF(X$119=$AY$121,$AY$142,IF(X$119=$BB$121,$BB$142,""))))) -> Liberty | Y132: =IF(C132=X132,0,1) -> 1 | Z132: =IF(Z$119=$AP$121,$AP$142,IF(Z$119=$AS$121,$AS$142,IF(Z$119=$AV$121,$AV$142,IF(Z$119=$AY$121,$AY$142,IF(Z$119=$BB$121,$BB$142,""))))) -> Prefix | AA132: =IF(G132=Z132,0,1) -> 0 | AB132: =IF(AB$119=$AP$121,$AP$142,IF(AB$119=$AS$121,$AS$142,IF(AB$119=$AV$121,$AV$142,IF(AB$119=$AY$121,$AY$142,IF(AB$119=$BB$121,$BB$142,""))))) -> Enlist Duo | AC132: =IF(K132=AB132,0,1) -> 0 | AD132: =IF(AD$119=$AP$121,$AP$142,IF(AD$119=$AS$121,$AS$142,IF(AD$119=$AV$121,$AV$142,IF(AD$119=$AY$121,$AY$142,IF(AD$119=$BB$121,$BB$142,""))))) -> Liberty | AE132: =IF(O132=AD132,0,1) -> 1 | AF132: Post emergence | AG132: =IF($AG$119=$AP$121,AP142,IF($AG$119=$AS$121,AS142,IF($AG$119=$AV$121,AV142,IF($AG$119=$AY$121,AY142,IF($AG$119=$BB$121,BB142,""))))) -> Liberty | AI132: =IF($AI$119=$AP$121,AP142,IF($AI$119=$AS$121,AS142,IF($AI$119=$AV$121,AV142,IF($AI$119=$AY$121,AY142,IF($AI$119=$BB$121,BB142,""))))) -> Prefix | AK132: =IF($AK$119=$AP$121,AP142,IF($AK$119=$AS$121,AS142,IF($AK$119=$AV$121,AV142,IF($AK$119=$AY$121,AY142,IF($AK$119=$BB$121,BB142,""))))) -> Enlist Duo | AM132: =IF($AM$119=$AP$121,AP142,IF($AM$119=$AS$121,AS142,IF($AM$119=$AV$121,AV142,IF($AM$119=$AY$121,AY142,IF($AM$119=$BB$121,BB142,""))))) -> Liberty | AP132: =Names!$AH15 -> Boundary | AQ132: =VLOOKUP(AP132,Prices!$A$5:$J$38,10,FALSE) -> 76 | AS132: =Names!$AI15 -> Boundary | AT132: =VLOOKUP(AS132,Prices!$A$5:$J$38,10,FALSE) -> 76 | AV132: =Names!$AJ15 -> Boundary | AW132: =VLOOKUP(AV132,Prices!$A$5:$J$38,10,FALSE) -> 76 | AY132: =Names!$AK15 -> Boundary | AZ132: =VLOOKUP(AY132,Prices!$A$5:$J$38,10,FALSE) -> 76 | BB132: =Names!$AL15 -> Boundary | BC132: =VLOOKUP(BB132,Prices!$A$5:$J$38,10,FALSE) -> 76
